{"text_format":"1","workbook":"xlsx","n_sheets":63,"sheets":["Menu","Administratif","batiment_admin","Consommations","regulation","PEB","Entretien","machine_frigo","emetteurs","Humid","Echangeur","Circuit_eau","GE","Grilles","Bouches","Puits_provencal","Clapets","Récup","Appoint","Pompe","Expans","Filtre","Purgeur_air","stockage_déstockage","Permis_environnement","Recommandations","emetteurs (2)","Sysclim","Dimensionnement","Sysclim (2)","PEB (2)","Entretien (2)","Rapport","Annexe1","Annexe_Rapport_1","Annexe_Rapport_2","Rapport (2)","batiment_admin (2)","Récup (2)","Annexe_Rapport_2 (2)","Consommations (2)","Dimensionnement (2)","regulation (2)","machine_frigo (2)","Humid (2)","Echangeur (2)","Circuit_eau (2)","GP","GP (2)","GE (2)","Grilles (2)","Bouches (2)","Puits_provencal (2)","Clapets (2)","Appoint (2)","Pompe (2)","Expans (2)","Filtre (2)","Purgeur_air (2)","stockage_déstockage (2)","Permis_environnement (2)","Recommandations (2)","Annexe_rapport_1 (2)"],"not_rendered":{"charts":0,"images":14,"macros":1,"external_links":4,"defined_names":610,"comments":42,"pivot_tables":0},"unopened":[],"bounds":{"document_bytes":16777216,"sheet_cells":100000,"rows_first":2000,"rows_last":500,"rows_between":2000,"halvings":0,"cell_chars":16384,"cell_head_chars":4096},"cells_cut":0,"cells_raw":0,"read":"whole","date_system":"1900"}

{"sheet":"Menu","index":0,"n_rows":42,"n_cols":29,"rows_kept":42,"cut":false,"hidden":false,"merged":[[38,19,38,30],[41,21,41,30],[0,24,0,32],[2,28,2,32],[31,13,31,18],[32,13,32,18],[0,9,0,21]]}
["CONTROL CLIM",null,null,null,null,null,null,null,null,"Diagnostic PEB des systèmes de climatisation - PEB\nEPB - Diagnose van de klimaatregelingssystemen",null,null,null,null,null,null,null,null,null,null,null,null,null,null,"Région de Bruxelles-Capitale\nBrussels Hoofdstedelijk Gewest"]
[null,null,"Gegevens met bretrekking tot de contoleur en het gebouw"]
[null,null,null,null,null,null,null,null,null,null,null,null,null,null,null,null,null,null,null,null,null,null,null,null,null,null,"Datum:",null,{"$f":"TODAY()","v":"2020-12-01"}]
[]
[]
[]
[]
[]
[null,null,"Gegevens met betrekking tot de periodieke controle"]
[]
[]
[]
[]
[]
[]
[]
[]
[]
[]
[]
[]
[]
[]
[]
[]
[]
[]
[]
[]
[null,null,"Het attest van periodieke controle bewerken of de ingegeven gegevens verwijderen"]
[]
[]
[]
[]
[]
[]
[null,null,"Vragen"]
[]
[null,null,null,"Met betrekking tot de attesten :",null,null,null,null,null,null,null,null,null,null,null,null,null,null,null,"attesten_klimEPB@environnement.brussels"]
[]
[]
[null,null,null,"Met betrekking tot de reglementering klimaatregeling EPB :",null,null,null,null,null,null,null,null,null,null,null,null,null,null,null,null,null,"climpeb@environnement.brussels"]

{"sheet":"Administratif","index":1,"n_rows":20,"n_cols":3,"rows_kept":20,"cut":false,"hidden":true,"merged":[]}
[]
[]
[null,"Gegevens over de EPB klimaatregelingsadviseur"]
[null,null,"Achternaam"]
[null,null,"Voornaam"]
[null,null,"Identificatienummer"]
[]
[null,null,"Bedrijfsnaam"]
[null,null,"BTW nummer"]
[]
[null,"Adres","Straat"]
[null,null,"Nummer"]
[null,null,"Postnummer"]
[null,null,"Gemeente"]
[null,null,"Land"]
[]
[null,null,"Telefoonnummer"]
[null,null,"GSMnummer"]
[null,null,"Faxnummer"]
[null,null,"E-mail-adres"]

{"sheet":"batiment_admin","index":2,"n_rows":84,"n_cols":8,"rows_kept":84,"cut":false,"hidden":true,"merged":[[64,0,64,3],[75,0,75,2],[72,0,72,1],[73,0,73,1]]}
[]
[]
["Gebouw"]
[null,"Naam van het gebouw",null,null,null,null,null,"ja"]
[null,null,null,null,null,null,null,"nee"]
["Adres","Straat"]
[null,"Nummer"]
[null,"Postnummer"]
[null,"Gemeente"]
[null,"Land","België"]
[]
[]
["Contactgevens van de eigenaar (of houder/aanvrager)"]
[null,"Achternaam"]
[null,"Voornaam"]
[]
[null,"Bedrijfsnaam"]
[null,"BTW nummer"]
[]
["Adres","Straat"]
[null,"Nummer"]
[null,"Postnummer"]
[null,"Gemeente"]
[null,"Land"]
[]
[null,"Telefoonnummer"]
[null,"GSM nummer"]
[null,"Faxnummer"]
[null,"E-mail-adres"]
[]
["Is de eigenaar (of houder/aanvrager) ook de contactpersoon ?",null,null,"nee"]
["Contactpersoon voor dit gebouw"]
[null,"Achternaam"]
[null,"Voornaam"]
[]
[null,"Bedrijfsnaam"]
[]
["Adres","Straat"]
[null,"Nummer"]
[null,"Postnummer"]
[null,"Gemeente"]
[null,"Land"]
[]
[null,"Telefoonnummer"]
[null,"Faxnummer"]
[null,"E-mail-adres"]
[null,"GSM nummer"]
["Installateur"]
[null,"Bedrijfsnaam"]
[null,"BTW nummer"]
[]
["Koeltechnisch bedrijf"]
[null,"Bedrijfsnaam"]
[null,"Registratienummer"]
[]
["Gebouw"]
[null,"Bouwjaar"]
[]
["Beschrijving van de eventuele renovaties van het gebouw en van de technische installaties"]
["Renovaties"]
[null,"Korte beschrijving",null,"jaar",null,null,"Lourd"]
[null,"Korte beschrijving",null,"jaar",null,null,"simple"]
[null,"Korte beschrijving",null,"jaar"]
[]
["Beschrijving van de uitbreidingen van het gebouw"]
["Uitbreidingen"]
[null,"Korte beschrijving",null,"jaar",null,null,"Lourd "]
[null,"Korte beschrijving",null,"jaar",null,null,"Neuf"]
[null,"Korte beschrijving",null,"jaar"]
[]
[null,"Bouwwijze"]
[null,null,null,null,null,null,"Zwaar"]
["Bruto oppervlakte van het beschermd volume",null,null,"Bron:",null,null,"Half zwaar"]
["Netto oppervlakte geklimatiseerde ruimtes",null,null,null,null,null,"Matig zwaar"]
[null,null,null,null,null,null,"Licht"]
["Netto oppervlakte per bestemming",null,null,"details:",null,null,"EPB Certificaat"]
[null,null,"totaal (m²)","geklimatiseerd","niet geklimatiseerd",null,"Adviseur"]
[null,"Kantoren",null,null,null,null,"Logboek"]
[null,"Auditorium"]
[null,"Restaurant"]
[null,"Woning"]
["Andere bestemming"]
["Andere bestemming"]
["Andere bestemming"]

{"sheet":"Consommations","index":3,"n_rows":28,"n_cols":10,"rows_kept":28,"cut":false,"hidden":true,"merged":[[16,2,17,4],[16,8,17,10],[16,5,17,7],[25,2,26,4],[24,5,26,7]]}
[]
[]
[null,null,"Verbruik"]
[]
[null,null,"Totaal verbruik"]
[]
[null,null,"Jaarlijks totaal stroomverbruik"]
[null,null,"Jaar","kWh/an"]
[]
[]
[]
[]
[]
[]
[]
[null,null,"Verbruik van het klimaatregelingssysteem"]
[null,null,"Jaarlijks stroomverbruik koelinstallaties",null,null,"Jaarlijks stroomverbruik van de ijswaterproductiesgroepen",null,null,"Jaarlijkse koelenergieproductie door de ijswaterproductiegroepen"]
[]
[null,null,"Jaar","kWh/an",null,"Jaar","kWh/an",null,"Jaar","kWh/an"]
[]
[]
[]
[]
[]
[null,null,null,null,null,"Jaarlijks stroomverbruik \nventilatoren > 10000 m³/u"]
[null,null,"Jaarlijks stroomverbruik luchtcondensoren en koeltorens"]
[]
[null,null,"Jaar","kWh/an",null,"Jaar","kWh/an"]

{"sheet":"regulation","index":4,"n_rows":26,"n_cols":16,"rows_kept":26,"cut":false,"hidden":true,"merged":[[25,2,25,6],[18,2,18,5],[12,2,12,5],[13,2,13,5],[14,2,14,5],[17,2,17,5],[4,2,4,5],[21,2,21,5],[22,2,22,5],[6,2,6,5],[20,2,20,5],[15,2,15,5],[16,2,16,5],[19,2,19,5],[10,2,10,5],[11,2,11,5],[5,2,5,5],[9,2,9,5],[8,2,8,5],[7,2,7,5]]}
[null,null,null,null,null,null,null,null,"ETAT:"]
[]
[null,null,"Controle van de automatische regeling",null,null,null,null,null,null,null,null,null,"ja"]
[null,null,null,null,null,null,null,null,null,null,null,null,"nee"]
[null,null,"Bevinden de regelingsinstallaties zich in goede staat ?",null,null,null,null,null,"état",null,"(oui, non, sans objet)"]
[null,null,"Zijn de regelingsinstallaties ingesteld op : \"manuele modus\", \"automatische modus\" of \"noodprogramma\" ?",null,null,null,null,null,"général",null,"(automatique, dégradé, manuel)",null,"automatisch"]
[null,null,"Wordt rekening gehouden met de alarmen van het klimaatregelingsysteem (correctieve acties) ?",null,null,null,null,null,"suivi des alarmes",null,"(oui, non, sans objet)",null,"\"noodprogramma\""]
[null,null,"Is er een beheer van de uurregeling voor de werking van de  ventilatie ?",null,null,null,null,null,"plages horaires",null,null,null,"manueel"]
[null,null,"Is er een beheer van de uurregeling voor de werking van de verwarming ?"]
[null,null,"Is er een beheer van de uurregeling voor de werking van de koeling ?"]
[null,null,"Stemmen de uurregelingen voor de werking overeen met de huidige noden van de gebruikers ?"]
[null,null,"Beheert de regeling van het gebouw verschillende zones van klimaatcomfort ?",null,null,null,null,null,"gestion partition ?"]
[null,null,"Is er een \"neutrale\" zone tussen de instelpunten voor de verwarming en die voor koeling ?",null,null,null,null,null,"zone neutre"]
[null,null,"Zijn de instelpunten voor temperatuur en omgevingsvochtigheid voor de verwarming optimaal voor elke zone?",null,null,null,null,null,"consignes T et RH"]
[null,null,"Zijn de instelpunten voor temperatuur en omgevingsvochtigheid voor de koeling optimaal voor elke zone?"]
[null,null,"Zijn de instelpunten voor temperatuur optimaal voor elke verdeelkring van de verwarming (aandrijfgroep, ventilatorluchtkoeler, …) ?",null,null,null,null,null,"consignes des sous-circuits"]
[null,null,"Zijn de instelpunten voor temperatuur optimaal voor elke verdeelkring van het koelcircuit (pulsiegroep, ventiloconvectoren, …) ?"]
[null,null,"Zijn de instelpunten voor vochtigheid optimaal voor het opstarten en stilleggen van de bevochtigingsinstallaties?",null,null,null,null,null,"consignes humidification"]
[null,null,"Is de regeling van het  verse luchtdebiet gekoppeld aan de bezettingsgraad ?",null,null,null,null,null,"débit air neuf = f(taux d'occupation) ?"]
[null,null,"Zijn er curves beschikbaar (metingen, starten en stoppen van de verschillende uitrustingen …)?",null,null,null,null,null,"courbes"]
[null,null,"Komen de curves voor opstarten en stilleggen van de installaties voor ventilatie, koeling en verwarming overeen met de uurregelingen ?",null,null,null,null,null,"vérification plages horaires"]
[null,null,"Is het verschil tussen de curves van de metingen van de omgevingstemperatuur, de aandrijftemperatuur en de instelpunten klein ?",null,null,null,null,null,"vérification températures"]
[null,null,"Wanneer de lokalen bezet zijn, zijn de curves van de metingen van de omgevingstemperatuur stabiel ?"]
[]
[null,null,"Commentaar met betrekking tot de automatische regeling"]
[null,null,null,null,null,null,null,null,null,null,null,null,null,null,null,{"$f":"C26","v":0}]

{"sheet":"PEB","index":5,"n_rows":94,"n_cols":15,"rows_kept":94,"cut":false,"hidden":true,"merged":[[37,0,38,7],[39,0,40,7],[56,0,57,7],[58,0,59,7],[68,0,68,7],[63,0,64,7],[65,0,66,7],[67,0,67,7],[62,0,62,8],[8,0,8,4],[11,0,11,8],[12,0,12,8],[13,0,14,7],[15,0,16,7],[17,0,18,7],[19,0,20,7],[32,0,33,7],[34,0,35,7],[36,0,36,8],[21,0,22,7],[23,0,24,7],[25,0,26,7],[27,0,28,7],[29,0,29,8],[30,0,31,7],[68,14,68,21],[44,14,44,21],[49,14,49,21],[41,0,42,7],[45,0,45,8],[46,0,47,7],[50,0,50,8],[51,0,52,7],[55,0,55,8],[93,0,93,6],[90,0,90,8],[71,0,71,8],[72,0,73,7],[74,0,74,7],[75,0,75,7],[89,0,89,8],[76,0,76,7],[77,0,77,7],[80,0,80,8],[81,0,83,7],[84,0,86,7]]}
[]
[]
[]
[]
[null,null,null,null,null,null,null,null,null,null,null,null,null,null,"Sélectionnez une réponse"]
[null,null,null,null,null,null,null,null,null,null,null,null,null,null,"Oui"]
[null,null,null,null,null,null,null,null,null,null,null,null,null,null,"Non"]
[]
["EPB-eisen van toepassing op klimaatregelingssystemen"]
[null,null,null,null,null,null,null,null,null,null,null,"ja",null,null,"Het gecontroleerde klimaatreglingsysteem is conform de eisen zoals gesteld in de reglementering \"klimaatregeling EPB\"."]
["Afdeling 1",null,null,null,null,null,null,null,null,null,null,"nee",null,null,"Het gecontroleerde klimaatreglingsysteem is niet conform de eisen zoals gesteld in de reglementering \"klimaatregeling EPB\". \nDe verantwoordelijke voor de technische installaties heeft 12 maanden de tijd om het in overeenstemming te brengen en een nieuwe periodieke controle te laten uitvoeren.\nDe EPB-eisen die niet gerespecteerd worden vindt u in de bijlage 2 van het attest van de periodieke controle."]
["Eisen m.b.t. energiemeting",null,null,null,null,null,null,null,null,null,null,{"$f":"SUM(L14:L43)","v":9}]
["Koude-productie"]
["Laten één of meerdere meters toe om de elektrische energie te meten die wordt verbruikt door de volledige koelinstallatie? ",null,null,null,null,null,null,null,null,null,null,{"$f":"IF(I14=\"ja\",0,1)","v":1}]
[]
["Is de som van de vermogens van de koelinstallaties die ijswater produceren groter dan of gelijk aan 500kW?\n"]
[]
["Laten één of meerdere meters toe om om de koelenergie te meten die door de volledige koelinstallatie afgegeven wordt aan ijwaterverdeelcricuit?   ",null,null,null,null,null,null,null,null,null,null,{"$f":"IF(I16=\"nee\",0,IF(I18=\"ja\",0,1))","v":1}]
[]
["Verdeelt het klimaatregelingssysteem ijswater aan meerdere gebouwen? "]
[]
["Laten één of meerdere meters toe om de hoeveelheid koelenergie die aan elk gebouw afgegeven wordt te meten en het gemiddeld globaal productierendement van de koelinstallaties te bepalen?  ",null,null,null,null,null,null,null,null,null,null,{"$f":"IF(I20=\"nee\",0,IF(I22=\"ja\",0,1))","v":1}]
[]
["Werden koeltorens of luchtkoelers verbonden aan de koelinstallties na 1 september 2012 geplaats of vervangen?\n"]
[]
["Laten één of meerdere meters toe om het elektrisch verbruik van het geheel van koeltorens en luchtkoelers te meten? ",null,null,null,null,null,null,null,null,null,null,{"$f":"IF(I24=\"nee\",0,IF(I26=\"ja\",0,1))","v":1}]
[]
["Zijn de meters uitgerust met een inrichting, zoals een analoge of digitale uitgang, die een automatische opname van de gemeten hoeveelheid mogelijk maakt en dat ter plaatse of van op afstand? ",null,null,null,null,null,null,null,null,null,null,{"$f":"IF(I28=\"ja\",0,1)","v":1}]
[]
["Ventilatie"]
["Omvat het klimaatregelingssysteem één of meerdere pulsie-of extractiegroepen waarvan het nominaal debiet  ≥ 10 000 m³/h bedraagt?  (voorzien van een \"koelbatterij\") "]
[]
["Laten één of meerdere meters toe om het elektrisch verbruik van het geheel van de ventielatoren of van elke ventilator waarvan het debiet  ≥ 10 000 m³/h te meten ?",null,null,null,null,null,null,null,null,null,null,{"$f":"IF(I31=\"nee\",0,IF(I33=\"ja\",0,1))","v":1}]
[]
["Zijn de meters uitgerust met een inrichting, zoals een analoge of digitale uitgang, die een automatische opname van de gemeten hoeveelheid mogelijk maakt en dat ter plaatse of van op afstand? ",null,null,null,null,null,null,null,null,null,null,{"$f":"IF(I31=\"nee\",0,IF(I35=\"ja\",0,1))","v":1}]
[]
["Meting per EPB-eenheid"]
["Betreft het een nieuw klimaatregelingssysteem  en een nieuw circuit dat ijswater verdeelt aan meerdere EPB-eenheden?"]
[]
["Laten één of meerdere meters toe om de hoeveelheid koelenergie die via ijswater aan de EPB-eenheid wordt afgegeven te meten? ",null,null,null,null,null,null,null,null,null,null,{"$f":"IF(I38=\"nee\",0,IF(I40=\"ja\",0,1))","v":1}]
[]
["Zijn de meters uitgerust met een inrichting, zoals een analoge of digitale uitgang, die een automatische opname van de gemeten hoeveelheid mogelijk maakt en dat ter plaatse of van op afstand? ",null,null,null,null,null,null,null,null,null,null,{"$f":"IF(I38=\"nee\",0,IF(I42=\"ja\",0,1))","v":1}]
[]
[]
["Afdeling 2"]
["Eisen m.b.t energieboekhouding"]
["Komt het boekhoudingsverslag overeen met de bepalingen van de reglementering EPB-klimaatregling?  ",null,null,null,null,null,null,null,null,null,null,{"$f":"IF(I47=\"ja\",0,1)","v":1}]
[]
[]
["Afdeling 3"]
["Eis m.b.t. het logboek"]
["Werd er een logboek  dat beantwoordt aan de minimuminhoud voorzien in de reglementering opgemaakt en up to date gehouden door de verschillende personen die op het klimaatregelsysteem tussenkomen? ",null,null,null,null,null,null,null,null,null,null,{"$f":"IF(I52=\"ja\",0,1)","v":1}]
[]
[]
["Afdeling 4"]
["Eis m.b.t de dimensionering van het klimaatregelsysteem"]
["Werden één of meerdere koelinstallaties na 1 september 2012 geplaatst of vervangen? "]
[]
["Werd er een dimensioneringsnota voor de koelinstallaties opgemaakt? ",null,null,null,null,null,null,null,null,null,null,{"$f":"IF(I57=\"nee\",0,IF(I59=\"ja\",0,1))","v":1}]
[]
[]
["Afdeling 5"]
["Eis m.b.t. isolatie van de leidingen en toebehoren "]
["Werden er nieuwe ijswaterleidingen of -toebehoren geplaatst of werden één of meerdere koelinstallaties geplaatstna 1 september 2012?  "]
[]
["Zijn de ijswaterleidingen en -toebehoren geïsoleerd overeenkomstig de isolatie-eis van de reglementering EPB-klimaatregeling?",null,null,null,null,null,null,null,null,null,null,{"$f":"IF(I64=\"nee\",0,IF(I66=\"ja\",0,1))","v":1}]
[]
["Geef de totale lengte van de leidingen die niet geïsoleerd zijn [m] :"]
["Geef het totaal aantal toebehoren die niet geïsoleerd zijn [aantal] :"]
[]
["Afdeling 6"]
["Eis m.b.t. de verdeling van de ijswater- en luchtdistributie"]
["Is erna 1 januari 2019 een nieuw verdeelnet geplaatst die minstens één EPB-eenheid, minstens één verdieping waarvan meer dan 80% van de gebruiksoppervlakte in beslag genomen wordt door kantoorruimte OF een oppervlakte van ≥ 500 m² bedeelt ?"]
[]
["Worden de volgende principes nageleefd ?",null,null,null,null,null,null,null,null,null,null,{"$f":"IF(I73=\"nee\",0,IF(I75=\"ja\",0,1))","v":1}]
["1° Elke EPB-eenheid omvat één zone "]
["2° de oppervlakte van elke zone is ≤ 1.250 m²"]
["3° Er is minstens één zone voor elke verdieping waarvan de gebruikoppervlakte voor meer dan 80% als kantoorruimte wordt gebruikt "]
[]
["Afdeling 7"]
["Eis m.b.t de variatie van het luchtdebiet naargelang de reële bezetting"]
["Werd er een ventilatiesysteem dat uitgerust is met een koude-batterij die een lokaal met variable menselijke bezetting bedeelt met een nominaal verse luchtdebiet  ≥ 2000 m³/h (5000 m³/h indien bouwvergunning voor 1/1/2019)  nieuw geplaatst?"]
[]
[]
["Is dit systeem uitgerust met een inrichting die het verse luchtdebiet doet variëren in functie van een parameter die representatief is voor het aantal mensen die in het lokaal aanwezig zijn (CO2-meting, aantal verkochte tickets, enz)  ?",null,null,null,null,null,null,null,null,null,null,{"$f":"IF(I82=\"nee\",0,IF(I85=\"ja\",0,1))","v":1}]
[]
[]
[]
[]
["Besluit"]
[{"$f":"IF(L91>0,$O$11,$O$10)","v":"Het gecontroleerde klimaatreglingsysteem is niet conform de eisen zoals gesteld in de reglementering \"klimaatregeling EPB\". \nDe verantwoordelijke voor de technische installaties heeft 12 maanden de tijd om het in overeenstemming te brengen en een nieuwe periodieke controle te laten uitvoeren.\nDe EPB-eisen die niet gerespecteerd worden vindt u in de bijlage 2 van het attest van de periodieke controle."},null,null,null,null,null,null,null,null,null,null,{"$f":"SUM(L14:L87)","v":15}]
[]
["Opmerkingen betreffende de EPB-eisen die van toepassing zijn op het klimaatregelsysteem:"]
[null,null,null,null,null,null,null,null,null,null,null,null,null,null,{"$f":"A94","v":0}]

{"sheet":"Entretien","index":6,"n_rows":94,"n_cols":35,"rows_kept":94,"cut":false,"hidden":true,"merged":[[36,1,36,14],[3,1,3,18],[32,1,33,21]]}
[]
[]
[]
[null,"Controle van het onderhoud van het klimaatregelingssysteem: grootte van de te controleren steekproeven"]
[]
[null,"Systeem voor de productie van koelenergie (CEG-system)",null,null,null,null,null,null,null,null,null,null,"Pulsiegroep",null,null,null,null,null,null,null,null,null,null,"Behandelingsinstallatie voor het toevoegingswater",null,null,null,null,null,null,null,null,null,null,"JA"]
[null,null,null,null,null,null,null,null,null,null,null,null,null,null,null,null,null,null,null,null,null,null,null,null,null,null,null,null,null,null,null,null,null,null,"NEE"]
[null,null,null,null,null,null,null,{"$f":"Sysclim!AG21","v":0},null,null,null,null,null,null,null,null,null,null,{"$f":"Sysclim!AG51","v":0},null,null,null,null,null,null,null,null,null,{"$f":"Sysclim!AG70","v":0}]
[]
[]
[null,"Systeem voor de emissie van koelenergie (CEE-system)",null,null,null,null,null,null,null,null,null,null,"Extractiegroep",null,null,null,null,null,null,null,null,null,null,"Pompen en circulatoren"]
[]
[null,null,null,null,null,null,null,{"$f":"Sysclim!AG44","v":0},null,null,null,null,null,null,null,null,null,null,{"$f":"Sysclim!AG52","v":0},null,null,null,null,null,null,null,null,null,{"$f":"Sysclim!AG71","v":0}]
[]
[null,"Luchtbevochtigers",null,null,null,null,null,null,null,null,null,null,"Aanzuig- en afblaasroosters",null,null,null,null,null,null,null,null,null,null,"Warmteterugwinningsystemen"]
[]
[null,null,null,null,null,null,null,{"$f":"Sysclim!AG65","v":0},null,null,null,null,null,null,null,null,null,null,{"$f":"Sysclim!AG54","v":0},null,null,null,null,null,null,null,null,null,{"$f":"Sysclim!AG61","v":0}]
[]
[]
[null,"Watercircuits",null,null,null,null,null,null,null,null,null,null,"Pulsie- en extractiemonden",null,null,null,null,null,null,null,null,null,null,"Waterfilters"]
[]
[null,null,null,null,null,null,null,{"$f":"Sysclim!AG76","v":0},null,null,null,null,null,null,null,null,null,null,{"$f":"Sysclim!AG55","v":0},null,null,null,null,null,null,null,null,null,{"$f":"Sysclim!AG73","v":0}]
[]
[null,"Opslag/onttrekking van koude",null,null,null,null,null,null,null,null,null,null,"Canadese/provençaalse put",null,null,null,null,null,null,null,null,null,null,"Ontluchters en microbellenafscheiders"]
[]
[null,null,null,null,null,null,null,{"$f":"Sysclim!AG75","v":0},null,null,null,null,null,null,null,null,null,null,{"$f":"Sysclim!AG56","v":0},null,null,null,null,null,null,null,null,null,{"$f":"Sysclim!AG74","v":0}]
[]
[null,"Expansiesystemen",null,null,null,null,null,null,null,null,null,null,"Luchtkleppen en schuiven",null,null,null,null,null,null,null,null,null,null,"Warmtewisselaar"]
[]
[null,null,null,null,null,null,null,{"$f":"Sysclim!AG72","v":0},null,null,null,null,null,null,null,null,null,null,{"$f":"Sysclim!AG53","v":0},null,null,null,null,null,null,null,null,null,{"$f":"Sysclim!AG69","v":0}]
[]
[]
[null,"Wordt het onderhoud uitgevoerd onder toezicht van een persoon die een certificaat heeft behaald na het succesvol afronden van een reglementaire opleiding over het minimum onderhoudsprogramma voor klimaatregelingssystemen en over de inhoud van het logboek ?                  \n",null,null,null,null,null,null,null,null,null,null,null,null,null,null,null,null,null,null,null,null,null,"NEE"]
[]
[]
[null,"Commentaar met betrekking tot het onderhoud van het klimaatregelingssysteem:"]
[null,null,null,null,null,null,null,null,null,null,null,null,null,null,null,null,null,null,null,null,null,null,null,null,null,null,null,null,null,null,null,null,null,null,{"$f":"B37","v":0}]
[]
[]
[]
[]
[]
[]
[]
[]
[]
[]
[]
[]
[]
[]
[]
[]
[]
[]
[]
[]
[]
[]
[]
[]
[]
[]
[]
[]
[]
[]
[]
[]
[]
[]
[]
[]
[]
[]
[]
[]
[]
[]
[]
[]
[]
[]
[]
[]
[]
[]
[]
[]
[]
[]
[]
[]
[null,null,"Luchtgroepen"]

{"sheet":"machine_frigo","index":7,"n_rows":91,"n_cols":29,"rows_kept":91,"cut":false,"hidden":true,"merged":[[4,17,4,18],[4,19,4,20],[4,21,4,22],[4,23,4,24],[5,5,5,6],[5,7,5,8],[5,9,5,10],[5,11,5,12],[5,13,5,14],[5,15,5,16],[4,5,4,6],[4,7,4,8],[4,9,4,10],[4,11,4,12],[4,13,4,14],[4,15,4,16],[5,17,5,18],[5,19,5,20],[5,21,5,22],[5,23,5,24],[6,5,6,6],[6,7,6,8],[6,9,6,10],[6,11,6,12],[6,13,6,14],[6,15,6,16],[9,17,9,18],[9,19,9,20],[9,21,9,22],[7,21,7,22],[6,21,6,22],[7,5,7,6],[7,7,7,8],[8,5,8,6],[8,7,8,8],[8,11,8,12],[8,13,8,14],[8,15,8,16],[7,9,7,10],[7,11,7,12],[7,13,7,14],[7,15,7,16],[7,23,7,24],[8,9,8,10],[10,5,10,6],[10,7,10,8],[10,9,10,10],[10,11,10,12],[10,13,10,14],[10,15,10,16],[9,5,9,6],[9,7,9,8],[9,9,9,10],[9,11,9,12],[9,13,9,14],[9,15,9,16],[86,2,86,3],[13,23,13,24],[12,23,12,24],[11,9,11,10],[11,11,11,12],[11,13,11,14],[11,15,11,16],[6,17,6,18],[6,19,6,20],[7,17,7,18],[7,19,7,20],[9,23,9,24],[10,17,10,18],[10,19,10,20],[10,21,10,22],[10,23,10,24],[6,23,6,24],[8,17,8,18],[8,19,8,20],[8,21,8,22],[8,23,8,24],[11,17,11,18],[11,19,11,20],[11,21,11,22],[11,23,11,24],[12,17,12,18],[12,19,12,20],[12,21,12,22],[11,5,11,6],[11,7,11,8],[12,5,12,6],[12,7,12,8],[12,9,12,10],[12,11,12,12],[12,13,12,14],[12,15,12,16],[15,5,15,6],[15,7,15,8],[15,9,15,10],[15,11,15,12],[15,13,15,14],[15,15,15,16],[13,17,13,18],[13,19,13,20],[13,21,13,22],[14,5,14,6],[14,7,14,8],[14,9,14,10],[14,11,14,12],[14,13,14,14],[14,15,14,16],[16,17,16,18],[16,19,16,20],[16,21,16,22],[16,23,16,24],[13,5,13,6],[13,7,13,8],[13,9,13,10],[13,11,13,12],[13,13,13,14],[13,15,13,16],[15,17,15,18],[15,19,15,20],[15,21,15,22],[15,23,15,24],[16,5,16,6],[16,7,16,8],[16,9,16,10],[16,11,16,12],[16,13,16,14],[16,15,16,16],[14,17,14,18],[14,19,14,20],[14,21,14,22],[14,23,14,24],[18,1,19,1],[18,2,18,4],[18,5,19,5],[18,6,19,6],[18,7,19,7],[18,8,19,8],[17,5,17,6],[17,7,17,8],[17,9,17,10],[18,9,19,9],[18,10,19,10],[18,11,19,11],[18,12,19,12],[18,13,19,13],[18,14,19,14],[17,17,17,18],[17,19,17,20],[17,21,17,22],[17,23,17,24],[17,11,17,12],[17,13,17,14],[17,15,17,16],[18,21,19,21],[18,22,19,22],[18,23,19,23],[18,24,19,24],[18,15,19,15],[18,16,19,16],[18,17,19,17],[18,18,19,18],[18,19,19,19],[18,20,19,20]]}
["Systeem voor de productie van koelenergie"]
[]
[]
[]
[null,"Aantal uitrustingen te controleren",null,null,null,1,null,2,null,3,null,4,null,5,null,6,null,7,null,8,null,9,null,10]
[null,"Gegevens met betrekking tot de koelmachine",null,null,null,null,null,null,null,null,null,null,null,null,null,null,null,null,null,null,null,null,null,null,null,null,"Type compresseur",null,"Type machine"]
[null,"Klantreferentie (TAG name, P&ID number)",null,null,null,null,null,null,null,null,null,null,null,null,null,null,null,null,null,null,null,null,null,null,null,"ok","zuigercompressor",null,{"$f":"Sysclim!A10","v":"IJswaterproductiemachine met luchtcondensor"}]
[null,"Machine type",null,null,null,null,null,null,null,null,null,null,null,null,null,null,null,null,null,null,null,null,null,null,null,"niet ok","Scroll compressor",null,{"$f":"Sysclim!A11","v":"IJswaterproductiemachine met watercondensor"}]
[null,"Fabrikant",null,null,null,null,null,null,null,null,null,null,null,null,null,null,null,null,null,null,null,null,null,null,null,"niet van toepassing","Schroefcompressor",null,{"$f":"Sysclim!A12","v":"IJswaterproductiemachine met condensor op afstand"}]
[null,"Model",null,null,null,null,null,null,null,null,null,null,null,null,null,null,null,null,null,null,null,null,null,null,null,null,"Turbo/centrifugaalcomp.",null,{"$f":"Sysclim!A13","v":"Condensing unit van monosplit"}]
[null,"Serienummer",null,null,null,null,null,null,null,null,null,null,null,null,null,null,null,null,null,null,null,null,null,null,null,null,"Schott- of rolzuigercomp.",null,{"$f":"Sysclim!A14","v":"Condensing unit van multisplit"}]
[null,"Bouwjaar",null,null,null,null,null,null,null,null,null,null,null,null,null,null,null,null,null,null,null,null,null,null,null,null,null,null,{"$f":"Sysclim!A15","v":"Lucht/lucht warmtepomp"}]
[null,"Effectief nominaal vermogen (kW)",null,null,null,null,null,null,null,null,null,null,null,null,null,null,null,null,null,null,null,null,null,null,null,null,null,null,{"$f":"Sysclim!A16","v":"Lucht/water warmtepomp"}]
[null,"Elektrisch vermogen (kW)",null,null,null,null,null,null,null,null,null,null,null,null,null,null,null,null,null,null,null,null,null,null,null,null,null,null,{"$f":"Sysclim!A17","v":"Water/lucht warmtepomp "}]
[null,"Compressortypes",null,null,null,null,null,null,null,null,null,null,null,null,null,null,null,null,null,null,null,null,null,null,null,null,null,null,{"$f":"Sysclim!A18","v":"Water/water warmtepomp"}]
[null,"Aantal compressoren",null,null,null,null,null,null,null,null,null,null,null,null,null,null,null,null,null,null,null,null,null,null,null,null,null,null,{"$f":"Sysclim!A19","v":"Bodem/lucht warmtepomp"}]
[null,"Type koelmiddel",null,null,null,null,null,null,null,null,null,null,null,null,null,null,null,null,null,null,null,null,null,null,null,null,null,null,{"$f":"Sysclim!A20","v":"Bodem/water warmtepomp"}]
[null,"Hoeveelheid koelmiddel (kg)"]
[null,"Controle van het onderhoud","Type van gegevens",null,null,"Resultaat van de controle","Observaties en meetresultaten","Resultaat van de controle","Observaties en meetresultaten","Resultaat van de controle","Observaties en meetresultaten","Resultaat van de controle","Observaties en meetresultaten","Resultaat van de controle","Observaties en meetresultaten","Resultaat van de controle","Observaties en meetresultaten","Resultaat van de controle","Observaties en meetresultaten","Resultaat van de controle","Observaties en meetresultaten","Resultaat van de controle","Observaties en meetresultaten","Resultaat van de controle","Observaties en meetresultaten"]
[]
[null,"Controleren of de ruimte rond de machine vrijgemaakt is en de aanbevelingen van de fabrikant op het vlak van de ruimte en de luchtrecirculatie rond de machine worden nageleefd",null,"x"]
[null,"De eventuele alarmen noteren",null,"x"]
[null,"Controle van het koelmiddelcircuit"]
[null,"Controle van het register : dichtheidscontroles en controle van de hoeveelheden koelvloeistof die aan een koelcircuit\nworden toegevoegd of afgetapt","x"]
[null,"Checklist \"Exploitatievoorwaarden\" invullen (milieuvergunning)","x","x"]
[null,"Visuele controle van de leidingen, kleppen, veiligheidsventielen en aansluitingen: opsporing van lekken, staat van de isolatie, corrosie en bevestigingen;",null,"x"]
[null,"Werkingscontrole van de meetvoorzieningen (manometers, temperatuurmeters, …), regelsystemen (automaten, regelaars, actuatoren, …), veiligheids- (pressostaat) en alarmvoorzieningen;",null,"x"]
[null,"Controleren of de volgende metingen op het koelcircuit werden uitgevoerd : de werkingsdrukken en -temperaturen noteren (HD, LD, onderkoeling, oververhitting) en vergelijken met de inbedrijfstellingsgegevens","x"]
[null,"1 HD",null,null,"x",null,0,null,0,null,0,null,0,null,0,null,0,null,0,null,0,null,0,null,0]
[null,"1 LD",null,null,"x",null,0,null,0,null,0,null,0,null,0,null,0,null,0,null,0,null,0,null,0]
[null,"1 Temperatuur koelmiddel na de condensor",null,null,"x",null,0,null,0,null,0,null,0,null,0,null,0,null,0,null,0,null,0,null,0]
[null,"1 Onderkoeling",null,null,"x",null,0,null,0,null,0,null,0,null,0,null,0,null,0,null,0,null,0,null,0]
[null,"1 Temperatuur koelmiddel na de verdamper",null,null,"x",null,0,null,0,null,0,null,0,null,0,null,0,null,0,null,0,null,0,null,0]
[null,"1 Oververhitting",null,null,"x",null,0,null,0,null,0,null,0,null,0,null,0,null,0,null,0,null,0,null,0]
[null,"Controle van het koelmiddel:  afwezigheid van luchtbellen achter het kijkglas, peil in de koelmiddelfles, vochtigheidsindicator ...",null,"x"]
[null,"Compressor(en)"]
[null,"Controleren of de kwaliteit en het niveau van de olie regelmatig werden gecontroleerd\nHet oliepeil controleren\nVerslagen van olieanalyses lezen","x",null,"x"]
[null,"Bevestigingen, beschermingselementen, trillingsdempers, opwarming, trillingen, netheid en geluid controleren",null,"x"]
[null,"Controleren of het stroomverbruik voor elke fase bij maximale belasting werd gemeten (koelinstallatie in regime toestand)","x"]
[null,"Compressornummer","x"]
[null,"Nominale motorstroom","x",null,null,null,0,null,0,null,0,null,0,null,0,null,0,null,0,null,0,null,0,null,0]
[null,"Stroomverbruik op fase 1\nStroomverbruik alleen meten wanneer een probleem met de koelcyclus wordt gedetecteerd : zie  1",null,null,"x",null,0,null,0,null,0,null,0,null,0,null,0,null,0,null,0,null,0,null,0]
[null,"Stroomverbruik op fase 2\nStroomverbruik alleen meten wanneer een probleem met de koelcyclus wordt gedetecteerd : zie  1",null,null,"x",null,0,null,0,null,0,null,0,null,0,null,0,null,0,null,0,null,0,null,0]
[null,"Stroomverbruik op fase 3\nStroomverbruik alleen meten wanneer een probleem met de koelcyclus wordt gedetecteerd : zie  1",null,null,"x",null,0,null,0,null,0,null,0,null,0,null,0,null,0,null,0,null,0,null,0]
[null,"Indien een startteller gemonteerd is, controleren of het aantal startcycli in de werkverslagen werd genoteerd. De resultaten vergelijken met de voorschriften van de fabrikant.","x"]
[null,"Controle van de werking van condensors en verdampers"]
[null,"Controleren of de temperaturen van de lucht of van het water voor en na de condensor en de verdamper werden gemeten","x"]
[null,"Temperatuur van de lucht of van het water voor de condensor",null,null,"x",null,0,null,0,null,0,null,0,null,0,null,0,null,0,null,0,null,0,null,0]
[null,"Temperatuur van de lucht of van het water na de condensor",null,null,"x",null,0,null,0,null,0,null,0,null,0,null,0,null,0,null,0,null,0,null,0]
[null,"Temperatuur van de lucht of van het water voor de verdamper",null,null,"x",null,0,null,0,null,0,null,0,null,0,null,0,null,0,null,0,null,0,null,0]
[null,"Temperatuur van de lucht of van het water na de verdamper",null,null,"x",null,0,null,0,null,0,null,0,null,0,null,0,null,0,null,0,null,0,null,0]
[null,"Luchtgekoelde condensors"]
[null,"Aantal luchtgekoeld condensors"]
[null,"Condensor nummer"]
[null,"De staat van de warmtewisselingsbatterij controleren, lekken of eventuele beschadiging opsporen, de batterij op corrosie en netheid controleren",null,"x"]
[null,"Controleren of het water correct wordt afgevoerd",null,"x"]
[null,"Controle van de ventilator(en): controleren op draairichting, schade, corrosie, geluid, trillingen, de bevestigingen controleren ® ventilator, motor, koppeling, aandrijving, beschermingsaccessoires",null,"x"]
[null,"Controleren of het stroomverbruik voor elke fase (op nominale frequentie) van elke ventilator werd gemeten","x"]
[null,"Aantal ventilator(en)"]
[null,"Ventilator nummer"]
[null,"Nominale motorstroom","x",null,null,null,0,null,0,null,0,null,0,null,0,null,0,null,0,null,0,null,0,null,0]
[null,"Stroomverbruik op fase 1",null,null,"x",null,0,null,0,null,0,null,0,null,0,null,0,null,0,null,0,null,0,null,0]
[null,"Stroomverbruik op fase 2",null,null,"x",null,0,null,0,null,0,null,0,null,0,null,0,null,0,null,0,null,0,null,0]
[null,"Stroomverbruik op fase 3",null,null,"x",null,0,null,0,null,0,null,0,null,0,null,0,null,0,null,0,null,0,null,0]
[null,"Watergekoelde condensors"]
[null,"Warmtewisselaar (condensor)"]
[null,"Visuele controle: opsporing van lekken, staat van de isolatie, schade, corrosie en bevestigingen",null,"x"]
[null,"Open, gesloten en hybride koeltorens en verdampingscondensors"]
[null,"Aantal koeltorens"]
[null,"Koeltoren nummer"]
[null,"Controleren of de temperaturen in vertrek- en retourleidingen werden gemeten","x"]
[null,"Temperatuur van het water in de vertrekleiding van de koeltoren",null,null,"x",null,0,null,0,null,0,null,0,null,0,null,0,null,0,null,0,null,0,null,0]
[null,"Temperatuur van het water in de retourleiding van de koeltoren",null,null,"x",null,0,null,0,null,0,null,0,null,0,null,0,null,0,null,0,null,0,null,0]
[null,"Controle van de staat van de toren: zuiverheid, afzettingen, corrosie, leidingen, bevestigingen, verdeling van de vernevelde lucht",null,"x"]
[null,"Indien een koeltoren gedurende een lange periode in stilstand blijft (meer dan een week), controleren of deze leeg leeggemaakt werd",null,"x"]
[null,"De werking van de automatische deconcentratie en van de waterpeilregeling controleren: corrosie, schade, \"manuele werking\" ...",null,"x"]
[null,"Visuele controle van de waterbehandelingsinstallaties corrosie, lekken, schade ...",null,"x"]
[null,"Controleren of het toevoegingswater en het water van de koeltoren werden geanalyseerd (verslagen in het logboek)","x"]
[null,"Als de lediging, reiniging en ontsmetting niet mogelijk zijn: controleren of legionellaonderzoeken werden uitgevoerd","x"]
[null,"Controle van de ventilator(en): controleren op draairichting, schade, corrosie, geluid, trillingen, de bevestigingen controleren ® ventilator, motor, koppeling, aandrijving, moffen, beschermingsaccessoires",null,"x"]
[null,"Aantal ventilator(en)"]
[null,"Ventilator nummer"]
[null,"Nominale motorstroom","x",null,null,null,0,null,0,null,0,null,0,null,0,null,0,null,0,null,0,null,0,null,0]
[null,"Stroomverbruik op fase 1",null,null,"x",null,0,null,0,null,0,null,0,null,0,null,0,null,0,null,0,null,0,null,0]
[null,"Stroomverbruik op fase 2",null,null,"x",null,0,null,0,null,0,null,0,null,0,null,0,null,0,null,0,null,0,null,0]
[null,"Stroomverbruik op fase 3",null,null,"x",null,0,null,0,null,0,null,0,null,0,null,0,null,0,null,0,null,0,null,0]
[null,"Controle en onderhoud van de circulatiepomp(en) en de filter(s)","Zie \"pompen en filters van de watercircuits\""]
["(s)","Systèmes dont la source froide provient du sol\nCaptage vertical (BTES - Borehole Thermal Energy)  et captage sur nappe aquifère (ATES - Aquifer Thermal Energy Storage)"]
[null,"Vérifier que les mesures de la température de départ et de retour ont été effectuées.","x"]
[null,"Mesurer T départ",null,null,"x",null,0,null,0,null,0,null,0,null,0,null,0,null,0,null,0,null,0,null,0]
[null,"Mesurer T retour",null,null,"x",null,0,null,0,null,0,null,0,null,0,null,0,null,0,null,0,null,0,null,0]

{"sheet":"emetteurs","index":8,"n_rows":22,"n_cols":47,"rows_kept":22,"cut":false,"hidden":true,"merged":[[11,26,12,26],[11,27,12,27],[11,28,12,28],[11,29,12,29],[11,30,12,30],[11,43,12,43],[11,44,12,44],[8,43,8,44],[9,25,9,26],[9,27,9,28],[9,29,9,30],[9,31,9,32],[9,33,9,34],[9,35,9,36],[11,37,12,37],[11,38,12,38],[11,39,12,39],[11,40,12,40],[11,41,12,41],[11,42,12,42],[11,31,12,31],[11,32,12,32],[11,33,12,33],[11,34,12,34],[11,35,12,35],[11,36,12,36],[10,37,10,38],[10,39,10,40],[10,41,10,42],[10,43,10,44],[11,25,12,25],[7,25,7,26],[7,27,7,28],[7,29,7,30],[7,31,7,32],[7,33,7,34],[7,35,7,36],[10,27,10,28],[10,29,10,30],[10,31,10,32],[10,33,10,34],[10,35,10,36],[9,43,9,44],[10,25,10,26],[7,37,7,38],[7,39,7,40],[7,41,7,42],[7,43,7,44],[9,37,9,38],[9,39,9,40],[4,37,4,38],[4,39,4,40],[4,41,4,42],[4,43,4,44],[5,25,5,26],[5,27,5,28],[5,29,5,30],[5,31,5,32],[5,33,5,34],[5,35,5,36],[4,25,4,26],[4,27,4,28],[4,29,4,30],[4,31,4,32],[4,33,4,34],[4,35,4,36],[9,41,9,42],[8,37,8,38],[8,39,8,40],[8,41,8,42],[5,37,5,38],[5,39,5,40],[5,41,5,42],[5,43,5,44],[6,25,6,26],[6,27,6,28],[6,29,6,30],[6,31,6,32],[6,33,6,34],[6,35,6,36],[6,41,6,42],[6,43,6,44],[6,37,6,38],[6,39,6,40],[8,25,8,26],[8,27,8,28],[8,29,8,30],[8,31,8,32],[8,33,8,34],[8,35,8,36],[4,1,4,4],[6,1,6,4],[7,1,7,4],[8,1,8,4],[8,7,8,8],[8,9,8,10],[8,11,8,12],[8,13,8,14],[8,15,8,16],[7,23,7,24],[6,17,6,18],[6,19,6,20],[6,21,6,22],[6,23,6,24],[7,5,7,6],[7,7,7,8],[7,9,7,10],[7,11,7,12],[10,1,10,4],[11,15,12,15],[11,16,12,16],[11,17,12,17],[11,18,12,18],[11,9,12,9],[11,10,12,10],[11,11,12,11],[11,12,12,12],[11,13,12,13],[11,14,12,14],[10,17,10,18],[11,1,12,1],[11,2,11,4],[11,5,12,5],[11,6,12,6],[11,7,12,7],[11,8,12,8],[9,17,9,18],[10,5,10,6],[9,15,9,16],[11,21,12,21],[11,22,12,22],[11,23,12,23],[11,24,12,24],[10,21,10,22],[10,23,10,24],[11,19,12,19],[11,20,12,20],[10,19,10,20],[10,7,10,8],[10,9,10,10],[10,11,10,12],[10,13,10,14],[10,15,10,16],[9,19,9,20],[9,21,9,22],[9,23,9,24],[9,1,9,4],[5,17,5,18],[5,19,5,20],[5,21,5,22],[5,23,5,24],[6,5,6,6],[6,7,6,8],[6,9,6,10],[6,11,6,12],[6,13,6,14],[6,15,6,16],[8,5,8,6],[8,17,8,18],[8,19,8,20],[8,21,8,22],[8,23,8,24],[9,5,9,6],[9,7,9,8],[9,9,9,10],[9,11,9,12],[9,13,9,14],[7,17,7,18],[7,19,7,20],[7,21,7,22],[7,13,7,14],[7,15,7,16],[4,17,4,18],[4,19,4,20],[4,21,4,22],[4,23,4,24],[5,5,5,6],[5,7,5,8],[5,9,5,10],[5,11,5,12],[5,13,5,14],[5,15,5,16],[4,5,4,6],[4,7,4,8],[4,9,4,10],[4,11,4,12],[4,13,4,14],[4,15,4,16]]}
["Systeem voor de \"emissie\" van koelenergie"]
[]
[]
[]
[null,"Aantal uitrustingen te controleren :",null,null,null,1,null,2,null,3,null,4,null,5,null,6,null,7,null,8,null,9,null,10,null,11,null,12,null,13,null,14,null,15,null,16,null,17,null,18,null,19,null,20]
[null,"Gegevens van deze eenheid",null,null,null,null,null,null,null,null,null,null,null,null,null,null,null,null,null,null,null,null,null,null,null,null,null,null,null,null,null,null,null,null,null,null,null,null,null,null,null,null,null,null,null,null,"Type d'émetteur"]
[null,"Klantreferentie (TAG name, P&ID number)",null,null,null,null,null,null,null,null,null,null,null,null,null,null,null,null,null,null,null,null,null,null,null,null,null,null,null,null,null,null,null,null,null,null,null,null,null,null,null,null,null,null,null,null,{"$f":"Sysclim!A31","v":"Ventiloconvectoren"}]
[null,"Type uitrusting",null,null,null,null,null,null,null,null,null,null,null,null,null,null,null,null,null,null,null,null,null,null,null,null,null,null,null,null,null,null,null,null,null,null,null,null,null,null,null,null,null,null,null,null,{"$f":"Sysclim!A32","v":"Cassettes in vals plafond"}]
[null,"Plaats (verdiep, bureelnummer)",null,null,null,null,null,null,null,null,null,null,null,null,null,null,null,null,null,null,null,null,null,null,null,null,null,null,null,null,null,null,null,null,null,null,null,null,null,null,null,null,null,null,null,null,{"$f":"Sysclim!A33","v":"Vloer plafond wandkoeling (watervoerend)"}]
[null,"Fabrikant",null,null,null,null,null,null,null,null,null,null,null,null,null,null,null,null,null,null,null,null,null,null,null,null,null,null,null,null,null,null,null,null,null,null,null,null,null,null,null,null,null,null,null,null,{"$f":"Sysclim!A34","v":"Betonkeractivering"}]
[null,"Model",null,null,null,null,null,null,null,null,null,null,null,null,null,null,null,null,null,null,null,null,null,null,null,null,null,null,null,null,null,null,null,null,null,null,null,null,null,null,null,null,null,null,null,null,{"$f":"Sysclim!A35","v":"Directe verdamping (vloer-, muur- of plafondkoeling)"}]
[null,"Controle van het onderhoud","Type van gegevens",null,null,"Resultaten van de controle","Observaties en meetresultaten","Resultaten van de controle","Observaties en meetresultaten","Resultaten van de controle","Observaties en meetresultaten","Resultaten van de controle","Observaties en meetresultaten","Resultaten van de controle","Observaties en meetresultaten","Resultaten van de controle","Observaties en meetresultaten","Resultaten van de controle","Observaties en meetresultaten","Resultaten van de controle","Observaties en meetresultaten","Resultaten van de controle","Observaties en meetresultaten","Resultaten van de controle","Observaties en meetresultaten","Resultaten van de controle","Observaties en meetresultaten","Resultaten van de controle","Observaties en meetresultaten","Resultaten van de controle","Observaties en meetresultaten","Resultaten van de controle","Observaties en meetresultaten","Resultaten van de controle","Observaties en meetresultaten","Resultaten van de controle","Observaties en meetresultaten","Resultaten van de controle","Observaties en meetresultaten","Resultaten van de controle","Observaties en meetresultaten","Resultaten van de controle","Observaties en meetresultaten","Resultaten van de controle","Observaties en meetresultaten",null,{"$f":"Sysclim!A36","v":"Passieve koelbalken"}]
[null,null,null,null,null,null,null,null,null,null,null,null,null,null,null,null,null,null,null,null,null,null,null,null,null,null,null,null,null,null,null,null,null,null,null,null,null,null,null,null,null,null,null,null,null,"ok",{"$f":"Sysclim!A37","v":"Actieve koelbalken"}]
[null,"Meting van de temperatuur in vertrekleiding van dat circuit",null,null,"x",null,0,null,0,null,0,null,0,null,0,null,0,null,0,null,0,null,0,null,0,null,0,null,0,null,0,null,0,null,0,null,0,null,0,null,0,null,0,null,0,"niet ok",{"$f":"Sysclim!A38","v":"Ejectoconvectoren"}]
[null,"Meting van de temperatuur in retourleiding van dat circuit",null,null,"x",null,0,null,0,null,0,null,0,null,0,null,0,null,0,null,0,null,0,null,0,null,0,null,0,null,0,null,0,null,0,null,0,null,0,null,0,null,0,null,0,"niet van toepassing",{"$f":"Sysclim!A39","v":"Koelbatterij in luchtgroep"}]
[null,"Meting van de buitentemperatuur",null,null,"x",null,0,null,0,null,0,null,0,null,0,null,0,null,0,null,0,null,0,null,0,null,0,null,0,null,0,null,0,null,0,null,0,null,0,null,0,null,0,null,0,null,{"$f":"Sysclim!A40","v":"Koelbatterij in luchtkanalen"}]
[null,"Meting van de omgevingstemperatuur",null,null,"x",null,0,null,0,null,0,null,0,null,0,null,0,null,0,null,0,null,0,null,0,null,0,null,0,null,0,null,0,null,0,null,0,null,0,null,0,null,0,null,0,null,{"$f":"Sysclim!A41","v":"Binnen unit monosplit"}]
[null,"Controle van de netheid van de condensaatopvangbak en werkingscontrole van de condensaatafvoerpomp (indien aanwezig)",null,"x",null,null,null,null,null,null,null,null,null,null,null,null,null,null,null,null,null,null,null,null,null,null,null,null,null,null,null,null,null,null,null,null,null,null,null,null,null,null,null,null,null,null,{"$f":"Sysclim!A42","v":"Binnen unit multisplit"}]
[null,"Controle van de reiniging en de vulling van de sifons (indien aanwezig)",null,"x",null,null,null,null,null,null,null,null,null,null,null,null,null,null,null,null,null,null,null,null,null,null,null,null,null,null,null,null,null,null,null,null,null,null,null,null,null,null,null,null,null,null,{"$f":"Sysclim!A43","v":"Klimaatkast"}]
[null,"Controle van de ventilator: geluid, trillingen, debiet van de inblaaslucht (werking van de eventuele snelheidsschakelaar)",null,"x"]
[null,"De luchtfilter visueel op vuil controleren (indien aanwezig)",null,"x"]
[null,"Visuele controle van de netheid van deze emissiebron (indien bereikbaar)",null,"x"]

{"sheet":"Humid","index":9,"n_rows":25,"n_cols":30,"rows_kept":25,"cut":false,"hidden":true,"merged":[[10,23,10,24],[11,21,12,21],[11,22,12,22],[11,23,12,23],[11,24,12,24],[9,15,9,16],[9,17,9,18],[9,19,9,20],[9,21,9,22],[11,8,12,8],[11,20,12,20],[11,9,12,9],[11,10,12,10],[11,11,12,11],[11,12,12,12],[11,13,12,13],[11,15,12,15],[11,16,12,16],[11,17,12,17],[11,18,12,18],[11,19,12,19],[11,14,12,14],[10,17,10,18],[10,19,10,20],[10,21,10,22],[10,15,10,16],[11,1,12,1],[11,2,11,4],[11,5,12,5],[11,6,12,6],[11,7,12,7],[8,17,8,18],[8,19,8,20],[8,21,8,22],[8,23,8,24],[9,23,9,24],[8,5,8,6],[8,7,8,8],[8,9,8,10],[8,11,8,12],[8,13,8,14],[10,5,10,6],[10,7,10,8],[10,9,10,10],[10,11,10,12],[10,13,10,14],[7,19,7,20],[7,21,7,22],[7,23,7,24],[6,15,6,16],[6,17,6,18],[6,19,6,20],[6,21,6,22],[6,23,6,24],[5,19,5,20],[5,21,5,22],[5,23,5,24],[4,19,4,20],[4,21,4,22],[4,23,4,24],[4,5,4,6],[9,5,9,6],[9,7,9,8],[9,9,9,10],[9,11,9,12],[5,5,5,6],[5,7,5,8],[5,9,5,10],[5,11,5,12],[6,5,6,6],[6,7,6,8],[6,9,6,10],[6,11,6,12],[7,5,7,6],[7,7,7,8],[7,9,7,10],[9,13,9,14],[4,17,4,18],[4,7,4,8],[4,9,4,10],[4,11,4,12],[4,13,4,14],[5,13,5,14],[6,13,6,14],[4,15,4,16],[5,17,5,18],[5,15,5,16],[7,15,7,16],[7,17,7,18],[7,11,7,12],[7,13,7,14],[8,15,8,16]]}
["Andere componenten"]
[]
[]
[]
[null,"Aantal uitrustingen te controleren :",null,null,null,1,null,2,null,3,null,4,null,5,null,6,null,7,null,8,null,9,null,10,null,null,"ok",null,"Type d'humidificateur"]
[null,"Gegevens van deze uitrusting",null,null,null,null,null,null,null,null,null,null,null,null,null,null,null,null,null,null,null,null,null,null,null,null,"niet ok",null,"Adiabatische bevochtiger : bevochtigingsbak"]
[null,"Klantreferentie (TAG name, P&ID number)",null,null,null,null,null,null,null,null,null,null,null,null,null,null,null,null,null,null,null,null,null,null,null,null,"niet van toepassing",null,"Adiabatische bevochtiger : verneveling systeem, ultrason …","En italique = exemple"]
[null,"Type uitrusting",null,null,null,null,null,null,null,null,null,null,null,null,null,null,null,null,null,null,null,null,null,null,null,"*",null,null,"Stoombevochtiger","* données \"obligatoires\""]
[null,"Merk"]
[null,"Model"]
[null,"Plaats (verdiep, bureelnummer)",null,null,null,null,null,null,null,null,null,null,null,null,null,null,null,null,null,null,null,null,null,null,null,"*"]
[null,"Controle van het onderhoud","Type van gegevens",null,null,"Resultaat van de controle","Observaties en meetresultaten","Resultaat van de controle","Observaties en meetresultaten","Resultaat van de controle","Observaties en meetresultaten","Resultaat van de controle","Observaties en meetresultaten","Resultaat van de controle","Observaties en meetresultaten","Resultaat van de controle","Observaties en meetresultaten","Resultaat van de controle","Observaties en meetresultaten","Resultaat van de controle","Observaties en meetresultaten","Resultaat van de controle","Observaties en meetresultaten","Resultaat van de controle","Observaties en meetresultaten"]
[]
[null,"Adiabatische luchtbevochtigers (luchtbevochtigingsbak, vernevelingssystemen, ultrasone systemen, …)"]
[null,"Controle van de luchtbevochtiger op slijtage, corrosie, afzettingen, controle van de verneveling en van de netheid",null,"x"]
[null,"Controle van de sproeiers. Indien mogelijk werkingscontrole van het vernevelingssysteem (verdeling …)",null,"x"]
[null,"Alleen voor bevochtigingsbakken : controleren of geleidbaarheidsmetingen werden uitgevoerd","x"]
[null,"Alleen voor bevochtigingsbakken : werkingscontrole van de pomp (geluid, corrosie …) en van de automatische deconcentratie (indien aanwezig)",null,"x"]
[null,"Alleen voor bevochtigingsbakken. Controleren of verslagen van wateranalysen in het logboek zich bevinden (analyse van het deconcetratiewater voor de bevochtigingsbakken en van het toevoegingswater voor de ultrasone en de vernevelingssystemen ...)","x"]
[null,"Controle van de goede werking van de uv-ontsmetting (indien aanwezig)",null,"x"]
[null,"Stoombevochtigers"]
[null,"Controle van de luchtbevochtiger op slijtage, corrosie, afzettingen, controle van de verneveling en van de netheid",null,"x"]
[null,"Controle van de sproeiers. Indien mogelijk werkingscontrole van het vernevelingssysteem (verdeling …)",null,"x"]
[null,"Controleren of het stroomverbruik werd gemeten (bevochtigers met elektrodes of met elektrische weerstand)","x"]
[null,"Indien het toevoegingswater wordt behandeld of als de fabrikant voorschriften heeft gegeven : controleren of verslagen van wateranalysen in het logboek zich bevinden","x"]

{"sheet":"Echangeur","index":10,"n_rows":19,"n_cols":27,"rows_kept":19,"cut":false,"hidden":true,"merged":[[4,1,4,4],[6,1,6,4],[7,1,7,4],[10,1,10,4],[4,15,4,16],[5,5,5,6],[5,7,5,8],[5,9,5,10],[5,11,5,12],[5,13,5,14],[5,15,5,16],[4,5,4,6],[4,7,4,8],[4,9,4,10],[4,11,4,12],[4,13,4,14],[6,23,6,24],[4,17,4,18],[4,19,4,20],[4,21,4,22],[4,23,4,24],[5,17,5,18],[5,19,5,20],[5,21,5,22],[5,23,5,24],[6,5,6,6],[6,7,6,8],[6,9,6,10],[6,11,6,12],[6,13,6,14],[6,15,6,16],[7,15,7,16],[7,17,7,18],[7,19,7,20],[7,21,7,22],[6,17,6,18],[6,19,6,20],[6,21,6,22],[7,23,7,24],[7,5,7,6],[7,7,7,8],[7,9,7,10],[7,11,7,12],[7,13,7,14],[8,15,8,16],[8,17,8,18],[8,19,8,20],[8,21,8,22],[8,23,8,24],[8,5,8,6],[8,7,8,8],[8,9,8,10],[8,11,8,12],[8,13,8,14],[10,5,10,6],[10,7,10,8],[10,9,10,10],[10,11,10,12],[10,13,10,14],[9,5,9,6],[9,7,9,8],[9,9,9,10],[9,11,9,12],[9,13,9,14],[11,9,12,9],[11,10,12,10],[11,11,12,11],[11,12,12,12],[11,13,12,13],[9,15,9,16],[9,17,9,18],[9,19,9,20],[9,21,9,22],[9,23,9,24],[10,15,10,16],[11,14,12,14],[10,17,10,18],[10,19,10,20],[10,21,10,22],[11,20,12,20],[10,23,10,24],[11,1,12,1],[11,2,11,4],[11,5,12,5],[11,6,12,6],[11,7,12,7],[11,8,12,8],[11,21,12,21],[11,22,12,22],[11,23,12,23],[11,24,12,24],[11,15,12,15],[11,16,12,16],[11,17,12,17],[11,18,12,18],[11,19,12,19]]}
["Andere componenten"]
[]
[]
[]
[null,"Aantal uitrustingen te controleren :",null,null,null,1,null,2,null,3,null,4,null,5,null,6,null,7,null,8,null,9,null,10,null,null,"ok"]
[null,"Gegevens van deze uitrusting",null,null,null,null,null,null,null,null,null,null,null,null,null,null,null,null,null,null,null,null,null,null,null,null,"niet ok"]
[null,"Klantreferentie (TAG name, P&ID number)",null,null,null,null,null,null,null,null,null,null,null,null,null,null,null,null,null,null,null,null,null,null,null,null,"niet van toepassing"]
[null,"Type uitrusting"]
[null,"Primaire kring"]
[null,"Secondaire kring"]
[null,"Plaats (verdiep, bureelnummer)"]
[null,"Controle van het onderhoud","Type van gegevens",null,null,"Resultaat van de controle","Observaties en meetresultaten","Resultaat van de controle","Observaties en meetresultaten","Resultaat van de controle","Observaties en meetresultaten","Resultaat van de controle","Observaties en meetresultaten","Resultaat van de controle","Observaties en meetresultaten","Resultaat van de controle","Observaties en meetresultaten","Resultaat van de controle","Observaties en meetresultaten","Resultaat van de controle","Observaties en meetresultaten","Resultaat van de controle","Observaties en meetresultaten","Resultaat van de controle","Observaties en meetresultaten"]
[]
[null,"De staat van de warmtewisselaar controleren : visuele controle van de thermische isolatie, lekken, corrosie of eventuele beschadiging opsporen","x"]
[null,"Controleren of de temperatuur aan de ingang en de uitgang van de warmtewisselaaar (primaire en secundaire kring) werd gemeten","x"]
[null,"Indien vaste temperatuurmeters werden aangebracht : temperatuur ingang primaire kring noteren",null,null,"x",null,0,null,0,null,0,null,0,null,0,null,0,null,0,null,0,null,0]
[null,"Indien vaste temperatuurmeters werden aangebracht : temperatuur uitgang primaire kring noteren",null,null,"x",null,0,null,0,null,0,null,0,null,0,null,0,null,0,null,0,null,0]
[null,"Indien vaste temperatuurmeters werden aangebracht : temperatuur ingang secundaire kring noteren",null,null,"x",null,0,null,0,null,0,null,0,null,0,null,0,null,0,null,0,null,0]
[null,"Indien vaste temperatuurmeters werden aangebracht : temperatuur uitgang secundaire kring noteren",null,null,"x",null,0,null,0,null,0,null,0,null,0,null,0,null,0,null,0,null,0]

{"sheet":"Circuit_eau","index":11,"n_rows":16,"n_cols":16,"rows_kept":16,"cut":false,"hidden":true,"merged":[[4,1,4,4],[6,1,6,4],[7,1,7,4],[8,1,8,4],[5,5,5,6],[5,7,5,8],[6,5,6,6],[6,7,6,8],[4,5,4,6],[4,7,4,8],[9,8,10,8],[8,5,8,6],[8,7,8,8],[7,5,7,6],[7,7,7,8],[9,1,10,1],[9,2,9,4],[9,5,10,5],[9,6,10,6],[9,7,10,7]]}
["Andere componenten"]
[]
[]
[]
[null,"Aantal uitrustingen te controleren :",null,null,null,1,null,2,null,null,"ok",null,"Type de circuit",null,null,"Classe de filtre suivant NEN 779:2012"]
[null,"Gegevens van deze uitrusting",null,null,null,null,null,null,null,null,"niet ok",null,"IJswater",null,null,"G1"]
[null,"Klantreferentie (TAG name, P&ID number)",null,null,null,null,null,null,null,null,"niet van toepassing",null,"Koeltoren"]
[null,"Circuit",null,null,null,null,null,null,null,null,null,null,"Andere : …"]
[null,"Plaats (zone of toepassing)"]
[null,"Controle van het onderhoud","Type van gegevens",null,null,"Resultaat van de controle","Observaties en meetresultaten","Resultaat van de controle","Observaties en meetresultaten"]
[null,null,null,null,null,null,null,null,null,null,null,null,null,null,null,"G4"]
[null,"De leidingen van het circuit visueel controleren (gedurende het bezoek van de technische ruimtes) : de staat van de isolatie controleren (condensatie …), controleren op lekken en zichtbare uitwendige corrosie of schade",null,"x"]
[null,"De manuele ventielen van het circuit visueel controleren (gedurende het bezoek van de technische ruimtes) : de staat van de isolatie controleren (condensatie …), controleren op lekken en zichtbare uitwendige corrosie of schade",null,"x"]
[null,"De gemotoriseerde kleppen van het circuit visueel controleren (gedurende het bezoek van de technische ruimtes) : staat van de isolatie (condensatie …), lekken, zichtbare uitwendige corrosie of schade, eindschakelaars controleren, abnormale werking ...",null,"x"]
[null,"De druk in het circuit controleren",null,"x"]
[null,"Controleren of het water van de verschillende kringen werd geanalyseerd (verslagen in het logboek)","x"]

{"sheet":"GE","index":12,"n_rows":886,"n_cols":32,"rows_kept":886,"cut":false,"hidden":true,"merged":[[5,17,5,18],[5,19,5,20],[5,21,5,22],[5,23,5,24],[4,5,4,6],[4,7,4,8],[4,9,4,10],[4,11,4,12],[4,13,4,14],[4,15,4,16],[4,17,4,18],[4,19,4,20],[4,21,4,22],[4,23,4,24],[5,5,5,6],[5,7,5,8],[5,9,5,10],[5,11,5,12],[5,13,5,14],[5,15,5,16],[9,19,9,20],[9,21,9,22],[7,23,7,24],[6,5,6,6],[6,7,6,8],[6,9,6,10],[6,11,6,12],[6,13,6,14],[6,15,6,16],[6,17,6,18],[6,19,6,20],[6,21,6,22],[6,23,6,24],[7,5,7,6],[7,7,7,8],[7,9,7,10],[7,11,7,12],[7,13,7,14],[7,15,7,16],[7,17,7,18],[7,19,7,20],[7,21,7,22],[12,15,12,16],[12,17,12,18],[12,19,12,20],[12,21,12,22],[11,17,11,18],[11,19,11,20],[9,23,9,24],[8,5,8,6],[8,7,8,8],[8,9,8,10],[8,11,8,12],[8,13,8,14],[8,15,8,16],[8,17,8,18],[8,19,8,20],[8,21,8,22],[8,23,8,24],[9,5,9,6],[9,7,9,8],[9,9,9,10],[9,11,9,12],[9,13,9,14],[9,15,9,16],[9,17,9,18],[12,23,12,24],[11,23,11,24],[10,5,10,6],[10,7,10,8],[10,9,10,10],[10,11,10,12],[10,13,10,14],[10,15,10,16],[10,17,10,18],[10,19,10,20],[10,23,10,24],[11,5,11,6],[11,7,11,8],[11,9,11,10],[11,11,11,12],[11,13,11,14],[11,15,11,16],[10,21,10,22],[11,21,11,22],[12,5,12,6],[12,7,12,8],[12,9,12,10],[12,11,12,12],[12,13,12,14],[13,14,14,14],[13,23,14,23],[13,24,14,24],[13,15,14,15],[13,16,14,16],[13,17,14,17],[13,18,14,18],[13,19,14,19],[13,20,14,20],[13,21,14,21],[13,22,14,22],[4,1,4,4],[6,1,6,4],[7,1,7,4],[8,1,8,4],[13,9,14,9],[13,10,14,10],[13,11,14,11],[13,12,14,12],[13,13,14,13],[13,1,14,1],[13,2,13,4],[13,5,14,5],[13,6,14,6],[13,7,14,7],[13,8,14,8]]}
["Systeem voor de emissie van koelenergie"]
[]
[]
[]
[null,"Aantal uitrustingen te controleren :",null,null,null,1,null,2,null,3,null,4,null,5,null,6,null,7,null,8,null,9,null,10,null,null,"ok","mmH2O",null,null,null,"Classe de filtre suivant NEN 779:2012"]
[null,"Gegevens van deze uitrusting",null,null,null,null,null,null,null,null,null,null,null,null,null,null,null,null,null,null,null,null,null,null,null,null,"niet ok","mbar",null,null,null,"G1"]
[null,"Klantreferentie (TAG name, P&ID number)",null,null,null,null,null,null,null,null,null,null,null,null,null,null,null,null,null,null,null,null,null,null,null,null,"niet van toepassing","Pa",null,null,null,"G2"]
[null,"Type uitrusting",null,null,null,"Extractiegroep",null,"Extractiegroep",null,"Extractiegroep",null,"Extractiegroep",null,"Extractiegroep",null,"Extractiegroep",null,"Extractiegroep",null,"Extractiegroep",null,"Extractiegroep",null,"Extractiegroep",null,null,null,null,null,null,null,"G3"]
[null,"Plaats (verdiep, bureelnummer)",null,null,null,null,null,null,null,null,null,null,null,null,null,null,null,null,null,null,null,null,null,null,null,null,null,null,null,null,null,"G4"]
[null,"Fabrikant",null,null,null,null,null,null,null,null,null,null,null,null,null,null,null,null,null,null,null,null,null,null,null,null,null,null,null,null,null,"M5 (ex. F5)"]
[null,"Model"]
[null,"Nominale debiet (m³/u)",null,null,null,null,null,null,null,null,null,null,null,null,null,null,null,null,null,null,null,null,null,null,null,null,null,null,null,null,null,"M6 (ex. F6)"]
[null,"Bouwjaar"]
[null,"Controle van het onderhoud","Type van gegevens",null,null,"Resultaat van de controle","Observaties en meetresultaten","Resultaat van de controle","Observaties en meetresultaten","Resultaat van de controle","Observaties en meetresultaten","Resultaat van de controle","Observaties en meetresultaten","Resultaat van de controle","Observaties en meetresultaten","Resultaat van de controle","Observaties en meetresultaten","Resultaat van de controle","Observaties en meetresultaten","Resultaat van de controle","Observaties en meetresultaten","Resultaat van de controle","Observaties en meetresultaten","Resultaat van de controle","Observaties en meetresultaten",null,null,null,null,null,null,"F7"]
[null,null,null,null,null,null,null,null,null,null,null,null,null,null,null,null,null,null,null,null,null,null,null,null,null,null,null,null,null,null,null,"F8"]
[null,"Algemene controles",null,null,null,null,null,null,null,null,null,null,null,null,null,null,null,null,null,null,null,null,null,null,null,null,null,null,null,null,null,"F9"]
[null,"Controle van de afdichting van de toegangsmiddelen",null,"x"]
[null,"Controle van de zuiverheid, de corrosie, de reiniging van de luchtbehandelingsgroep",null,"x"]
[null,"Kleppen en schuiven (in deze luchtgroep)"]
[null,"Controle van de zuiverheid, de corrosie, van eventuele schade",null,"x"]
[null,"Controleren of de positie van de afsluit- of regelvoorziening correct is","x","x"]
[null,"Luchtfilters"]
[null,"De filter visueel op vuil controleren",null,"x"]
[null,"Warmteterugwinningssystemen","zie specifieke tabbladen"]
[null,"Ventilator"]
[null,"Algemene controles"]
[null,"De staat van de ventilatiegroep controleren, controleren op schade, corrosie, de bevestigingen controleren: ventilator, motor, koppeling, aandrijving, beschermingsaccessoires, moffen of andere aansluitingen van de luchtkanalen",null,"x"]
[null,"Controle van het wiel/de schoep"]
[null,"Controleren op lagergeluiden en trillingen",null,"x"]
[null,"Controle van de motor en de koppeling"]
[null,"Controleren of het stroomverbruik voor elke fase van de ventilator werd gemeten","x"]
[null,"Lagergeluiden, trillingen, warmlopen controleren",null,"x"]
[null,"De uitlijning van de motor en de koppeling visueel controleren",null,"x"]
[null,"Controle van de aandrijving"]
[null,"De staat, de uitlijning en de spanning van de riem(en) visueel controleren ",null,"x"]
[null,"Faseregelaar (indien aanwezig)"]
[null,"Controleren of de door de regelaar ontwikkelde warmte correct wordt afgevoerd. De zuiverheid controleren (stof).",null,"x"]
[]
[]
[]
[]
[]
[]
[]
[]
[]
[]
[]
[]
[]
[]
[]
[]
[]
[]
[]
[]
[]
[]
[]
[]
[]
[]
[]
[]
[]
[]
[]
[]
[]
[]
[]
[]
[]
[]
[]
[]
[]
[]
[]
[]
[]
[]
[]
[]
[]
[]
[]
[]
[]
[]
[]
[]
[]
[]
[]
[]
[]
[]
[]
[]
[]
[]
[]
[]
[]
[]
[]
[]
[]
[]
[]
[]
[]
[]
[]
[]
[]
[]
[]
[]
[]
[]
[]
[]
[]
[]
[]
[]
[]
[]
[]
[]
[]
[]
[]
[]
[]
[]
[]
[]
[]
[]
[]
[]
[]
[]
[]
[]
[]
[]
[]
[]
[]
[]
[]
[]
[]
[]
[]
[]
[]
[]
[]
[]
[]
[]
[]
[]
[]
[]
[]
[]
[]
[]
[]
[]
[]
[]
[]
[]
[]
[]
[]
[]
[]
[]
[]
[]
[]
[]
[]
[]
[]
[]
[]
[]
[]
[]
[]
[]
[]
[]
[]
[]
[]
[]
[]
[]
[]
[]
[]
[]
[]
[]
[]
[]
[]
[]
[]
[]
[]
[]
[]
[]
[]
[]
[]
[]
[]
[]
[]
[]
[]
[]
[]
[]
[]
[]
[]
[]
[]
[]
[]
[]
[]
[]
[]
[]
[]
[]
[]
[]
[]
[]
[]
[]
[]
[]
[]
[]
[]
[]
[]
[]
[]
[]
[]
[]
[]
[]
[]
[]
[]
[]
[]
[]
[]
[]
[]
[]
[]
[]
[]
[]
[]
[]
[]
[]
[]
[]
[]
[]
[]
[]
[]
[]
[]
[]
[]
[]
[]
[]
[]
[]
[]
[]
[]
[]
[]
[]
[]
[]
[]
[]
[]
[]
[]
[]
[]
[]
[]
[]
[]
[]
[]
[]
[]
[]
[]
[]
[]
[]
[]
[]
[]
[]
[]
[]
[]
[]
[]
[]
[]
[]
[]
[]
[]
[]
[]
[]
[]
[]
[]
[]
[]
[]
[]
[]
[]
[]
[]
[]
[]
[]
[]
[]
[]
[]
[]
[]
[]
[]
[]
[]
[]
[]
[]
[]
[]
[]
[]
[]
[]
[]
[]
[]
[]
[]
[]
[]
[]
[]
[]
[]
[]
[]
[]
[]
[]
[]
[]
[]
[]
[]
[]
[]
[]
[]
[]
[]
[]
[]
[]
[]
[]
[]
[]
[]
[]
[]
[]
[]
[]
[]
[]
[]
[]
[]
[]
[]
[]
[]
[]
[]
[]
[]
[]
[]
[]
[]
[]
[]
[]
[]
[]
[]
[]
[]
[]
[]
[]
[]
[]
[]
[]
[]
[]
[]
[]
[]
[]
[]
[]
[]
[]
[]
[]
[]
[]
[]
[]
[]
[]
[]
[]
[]
[]
[]
[]
[]
[]
[]
[]
[]
[]
[]
[]
[]
[]
[]
[]
[]
[]
[]
[]
[]
[]
[]
[]
[]
[]
[]
[]
[]
[]
[]
[]
[]
[]
[]
[]
[]
[]
[]
[]
[]
[]
[]
[]
[]
[]
[]
[]
[]
[]
[]
[]
[]
[]
[]
[]
[]
[]
[]
[]
[]
[]
[]
[]
[]
[]
[]
[]
[]
[]
[]
[]
[]
[]
[]
[]
[]
[]
[]
[]
[]
[]
[]
[]
[]
[]
[]
[]
[]
[]
[]
[]
[]
[]
[]
[]
[]
[]
[]
[]
[]
[]
[]
[]
[]
[]
[]
[]
[]
[]
[]
[]
[]
[]
[]
[]
[]
[]
[]
[]
[]
[]
[]
[]
[]
[]
[]
[]
[]
[]
[]
[]
[]
[]
[]
[]
[]
[]
[]
[]
[]
[]
[]
[]
[]
[]
[]
[]
[]
[]
[]
[]
[]
[]
[]
[]
[]
[]
[null,null,null,null,"Contrôle de la propreté, du niveau de corrosion, de la présence d'éléments endommagés"]
[null,null,null,null,"Vérifier que la position des organes de sectionnement ou de régulation est correcte"]
[]
[]
[]
[]
[]
[]
[]
[]
[]
[]
[]
[]
[]
[]
[]
[]
[]
[]
[]
[]
[]
[]
[]
[]
[]
[]
[]
[]
[]
[]
[]
[]
[]
[]
[]
[]
[]
[]
[]
[]
[]
[]
[]
[]
[]
[]
[]
[]
[]
[]
[]
[]
[]
[]
[]
[]
[]
[]
[]
[]
[]
[]
[]
[]
[]
[]
[]
[]
[]
[]
[]
[]
[]
[]
[]
[]
[]
[]
[]
[]
[]
[]
[]
[]
[]
[null,null,null,null,"Contrôle de la propreté, du niveau de corrosion, de la présence d'éléments endommagés"]
[]
[]
[]
[]
[]
[]
[]
[]
[]
[]
[]
[]
[]
[]
[]
[]
[]
[]
[]
[]
[]
[]
[]
[]
[]
[]
[]
[]
[]
[]
[]
[]
[]
[]
[]
[]
[]
[]
[]
[]
[]
[]
[]
[]
[]
[]
[]
[]
[]
[]
[]
[]
[]
[]
[]
[]
[]
[]
[]
[]
[]
[]
[]
[]
[]
[]
[]
[]
[]
[]
[]
[]
[]
[]
[]
[]
[]
[]
[]
[]
[]
[]
[]
[]
[]
[]
[]
[]
[]
[]
[]
[]
[]
[]
[]
[]
[]
[]
[]
[]
[]
[]
[]
[]
[]
[]
[]
[]
[]
[]
[]
[]
[]
[]
[]
[]
[]
[]
[]
[]
[]
[]
[]
[]
[]
[]
[]
[]
[]
[]
[]
[]
[]
[]
[]
[]
[]
[]
[]
[]
[]
[]
[]
[]
[]
[]
[]
[]
[]
[]
[]
[]
[]
[]
[]
[]
[]
[]
[]
[]
[]
[]
[null,null,null,null,"Contrôle de la propreté, du niveau de corrosion, de la présence d'éléments endommagés"]
[null,null,null,null,"Vérifier que la position des organes de sectionnement ou de régulation est correcte"]

{"sheet":"Grilles","index":13,"n_rows":12,"n_cols":29,"rows_kept":12,"cut":false,"hidden":true,"merged":[[4,5,4,6],[4,7,4,8],[4,9,4,10],[4,11,4,12],[4,13,4,14],[4,15,4,16],[4,17,4,18],[4,19,4,20],[4,21,4,22],[4,23,4,24],[5,5,5,6],[5,7,5,8],[5,9,5,10],[5,11,5,12],[5,13,5,14],[5,15,5,16],[5,17,5,18],[5,19,5,20],[5,21,5,22],[5,23,5,24],[6,5,6,6],[6,7,6,8],[6,9,6,10],[6,11,6,12],[6,13,6,14],[7,5,7,6],[7,7,7,8],[7,9,7,10],[7,11,7,12],[7,13,7,14],[8,15,8,16],[6,17,6,18],[6,19,6,20],[6,21,6,22],[6,23,6,24],[7,15,7,16],[8,17,8,18],[8,19,8,20],[8,21,8,22],[8,23,8,24],[6,15,6,16],[7,17,7,18],[7,19,7,20],[7,21,7,22],[7,23,7,24],[8,13,8,14],[9,14,10,14],[9,8,10,8],[9,9,10,9],[9,10,10,10],[9,11,10,11],[9,22,10,22],[9,23,10,23],[9,24,10,24],[9,15,10,15],[9,16,10,16],[9,17,10,17],[9,18,10,18],[9,19,10,19],[9,20,10,20],[4,1,4,4],[6,1,6,4],[7,1,7,4],[8,1,8,4],[9,21,10,21],[9,1,10,1],[9,2,9,4],[9,5,10,5],[9,6,10,6],[9,7,10,7],[9,12,10,12],[9,13,10,13],[8,5,8,6],[8,7,8,8],[8,9,8,10],[8,11,8,12]]}
["Systeem voor de distributie van koelenergie"]
[]
[]
[]
[null,"Aantal uitrustingen te controleren :",null,null,null,1,null,2,null,3,null,4,null,5,null,6,null,7,null,8,null,9,null,10,null,null,"ok",null,"Grilles"]
[null,"Gegevens van deze uitrusting",null,null,null,null,null,null,null,null,null,null,null,null,null,null,null,null,null,null,null,null,null,null,null,null,"niet ok",null,"Aanzuigrooster"]
[null,"Klantreferentie (TAG name, P&ID number)",null,null,null,null,null,null,null,null,null,null,null,null,null,null,null,null,null,null,null,null,null,null,null,null,"niet van toepassing",null,"Afblaasrooster"]
[null,"Type uitrusting"]
[null,"Plaats (verdiep, bureelnummer)"]
[null,"Controle van het onderhoud","Type van gegevens",null,null,"Resultaat van de controle","Observaties en meetresultaten","Resultaat van de controle","Observaties en meetresultaten","Resultaat van de controle","Observaties en meetresultaten","Resultaat van de controle","Observaties en meetresultaten","Resultaat van de controle","Observaties en meetresultaten","Resultaat van de controle","Observaties en meetresultaten","Resultaat van de controle","Observaties en meetresultaten","Resultaat van de controle","Observaties en meetresultaten","Resultaat van de controle","Observaties en meetresultaten","Resultaat van de controle","Observaties en meetresultaten"]
[]
[null,"Visuele controle : staat, netheid, corrosie, eventuele schade",null,"x"]

{"sheet":"Bouches","index":14,"n_rows":12,"n_cols":29,"rows_kept":12,"cut":false,"hidden":true,"merged":[[4,15,4,16],[5,5,5,6],[5,7,5,8],[5,9,5,10],[5,11,5,12],[5,13,5,14],[5,15,5,16],[4,5,4,6],[4,7,4,8],[4,9,4,10],[4,11,4,12],[4,13,4,14],[4,17,4,18],[4,19,4,20],[4,21,4,22],[4,23,4,24],[5,17,5,18],[5,19,5,20],[5,21,5,22],[5,23,5,24],[6,17,6,18],[6,19,6,20],[6,21,6,22],[6,23,6,24],[6,15,6,16],[7,15,7,16],[6,5,6,6],[6,7,6,8],[6,9,6,10],[6,11,6,12],[7,5,7,6],[7,7,7,8],[7,9,7,10],[7,11,7,12],[7,13,7,14],[6,13,6,14],[8,15,8,16],[9,9,10,9],[9,10,10,10],[9,11,10,11],[9,12,10,12],[9,13,10,13],[8,9,8,10],[8,11,8,12],[8,13,8,14],[9,14,10,14],[8,17,8,18],[8,19,8,20],[8,21,8,22],[8,23,8,24],[7,17,7,18],[7,19,7,20],[7,21,7,22],[7,23,7,24],[9,21,10,21],[9,22,10,22],[9,23,10,23],[9,24,10,24],[9,15,10,15],[9,16,10,16],[9,17,10,17],[9,18,10,18],[9,19,10,19],[9,20,10,20],[4,1,4,4],[6,1,6,4],[7,1,7,4],[8,1,8,4],[9,8,10,8],[8,5,8,6],[8,7,8,8],[9,1,10,1],[9,2,9,4],[9,5,10,5],[9,6,10,6],[9,7,10,7]]}
["Systeem voor de distributie van koelenergie"]
[]
[]
[]
[null,"Aantal uitrustingen te controleren :",null,null,null,1,null,2,null,3,null,4,null,5,null,6,null,7,null,8,null,9,null,10,null,null,"ok",null,"Bouches"]
[null,"Gegevens van deze uitrusting",null,null,null,null,null,null,null,null,null,null,null,null,null,null,null,null,null,null,null,null,null,null,null,null,"niet ok",null,"Pulsiemond"]
[null,"Klantreferentie (TAG name, P&ID number)",null,null,null,null,null,null,null,null,null,null,null,null,null,null,null,null,null,null,null,null,null,null,null,null,"niet van toepassing",null,"extractiemond"]
[null,"Type uitrusting"]
[null,"Plaats (verdiep, bureelnummer)"]
[null,"Controle van het onderhoud","Type van gegevens",null,null,"Resultaat van de controle","Observaties en meetresultaten","Resultaat van de controle","Observaties en meetresultaten","Resultaat van de controle","Observaties en meetresultaten","Resultaat van de controle","Observaties en meetresultaten","Resultaat van de controle","Observaties en meetresultaten","Resultaat van de controle","Observaties en meetresultaten","Resultaat van de controle","Observaties en meetresultaten","Resultaat van de controle","Observaties en meetresultaten","Resultaat van de controle","Observaties en meetresultaten","Resultaat van de controle","Observaties en meetresultaten"]
[]
[null,"Visuele controle : staat, netheid, corrosie, eventuele schade\nWerkingscontrole (verdeling van het luchtdebiet)",null,"x"]

{"sheet":"Puits_provencal","index":15,"n_rows":12,"n_cols":27,"rows_kept":12,"cut":false,"hidden":true,"merged":[[4,15,4,16],[5,5,5,6],[5,7,5,8],[5,9,5,10],[5,11,5,12],[5,13,5,14],[5,15,5,16],[4,5,4,6],[4,7,4,8],[4,9,4,10],[4,11,4,12],[4,13,4,14],[4,17,4,18],[4,19,4,20],[4,21,4,22],[4,23,4,24],[5,17,5,18],[5,19,5,20],[5,21,5,22],[5,23,5,24],[6,17,6,18],[6,19,6,20],[6,21,6,22],[6,23,6,24],[6,15,6,16],[7,15,7,16],[6,5,6,6],[6,7,6,8],[6,9,6,10],[6,11,6,12],[7,5,7,6],[7,7,7,8],[7,9,7,10],[7,11,7,12],[7,13,7,14],[6,13,6,14],[8,15,8,16],[9,9,10,9],[9,10,10,10],[9,11,10,11],[9,12,10,12],[9,13,10,13],[8,9,8,10],[8,11,8,12],[8,13,8,14],[9,14,10,14],[8,17,8,18],[8,19,8,20],[8,21,8,22],[8,23,8,24],[7,17,7,18],[7,19,7,20],[7,21,7,22],[7,23,7,24],[9,21,10,21],[9,22,10,22],[9,23,10,23],[9,24,10,24],[9,15,10,15],[9,16,10,16],[9,17,10,17],[9,18,10,18],[9,19,10,19],[9,20,10,20],[4,1,4,4],[6,1,6,4],[7,1,7,4],[8,1,8,4],[9,8,10,8],[8,5,8,6],[8,7,8,8],[9,1,10,1],[9,2,9,4],[9,5,10,5],[9,6,10,6],[9,7,10,7]]}
["Systeem voor de distributie van koelenergie"]
[]
[]
[]
[null,"Aantal uitrustingen te controleren :",null,null,null,1,null,2,null,3,null,4,null,5,null,6,null,7,null,8,null,9,null,10,null,null,"ok"]
[null,"Gegevens van deze uitrusting",null,null,null,null,null,null,null,null,null,null,null,null,null,null,null,null,null,null,null,null,null,null,null,null,"niet ok"]
[null,"Klantreferentie (TAG name, P&ID number)",null,null,null,null,null,null,null,null,null,null,null,null,null,null,null,null,null,null,null,null,null,null,null,null,"niet van toepassing"]
[null,"Type uitrusting",null,null,null,"Canadese/provençaalse put",null,"Canadese/provençaalse put",null,"Canadese/provençaalse put",null,"Canadese/provençaalse put",null,"Canadese/provençaalse put",null,"Canadese/provençaalse put",null,"Canadese/provençaalse put",null,"Canadese/provençaalse put",null,"Canadese/provençaalse put",null,"Canadese/provençaalse put"]
[null,"Plaats (op welke kant van het gebouw)"]
[null,"Controle van het onderhoud","Type van gegevens",null,null,"Resultaat van de controle","Observaties en meetresultaten","Resultaat van de controle","Observaties en meetresultaten","Resultaat van de controle","Observaties en meetresultaten","Resultaat van de controle","Observaties en meetresultaten","Resultaat van de controle","Observaties en meetresultaten","Resultaat van de controle","Observaties en meetresultaten","Resultaat van de controle","Observaties en meetresultaten","Resultaat van de controle","Observaties en meetresultaten","Resultaat van de controle","Observaties en meetresultaten","Resultaat van de controle","Observaties en meetresultaten"]
[]
[null,"Controleren of inspecties werden gedaan: controle op aanwezigheid van stilstaand water en van de staat (zuiverheid, schade, …)","x"]

{"sheet":"Clapets","index":16,"n_rows":14,"n_cols":29,"rows_kept":14,"cut":false,"hidden":true,"merged":[[4,5,4,6],[4,7,4,8],[4,9,4,10],[4,11,4,12],[4,13,4,14],[4,15,4,16],[4,17,4,18],[4,19,4,20],[4,21,4,22],[4,23,4,24],[5,5,5,6],[5,7,5,8],[5,9,5,10],[5,11,5,12],[5,13,5,14],[5,15,5,16],[5,17,5,18],[5,19,5,20],[5,21,5,22],[5,23,5,24],[6,5,6,6],[6,7,6,8],[6,9,6,10],[6,11,6,12],[6,13,6,14],[7,5,7,6],[7,7,7,8],[7,9,7,10],[7,11,7,12],[7,13,7,14],[8,15,8,16],[6,17,6,18],[6,19,6,20],[6,21,6,22],[6,23,6,24],[7,15,7,16],[8,17,8,18],[8,19,8,20],[8,21,8,22],[8,23,8,24],[6,15,6,16],[7,17,7,18],[7,19,7,20],[7,21,7,22],[7,23,7,24],[8,13,8,14],[9,14,10,14],[9,8,10,8],[9,9,10,9],[9,10,10,10],[9,11,10,11],[9,22,10,22],[9,23,10,23],[9,24,10,24],[9,15,10,15],[9,16,10,16],[9,17,10,17],[9,18,10,18],[9,19,10,19],[9,20,10,20],[4,1,4,4],[6,1,6,4],[7,1,7,4],[8,1,8,4],[9,21,10,21],[9,1,10,1],[9,2,9,4],[9,5,10,5],[9,6,10,6],[9,7,10,7],[9,12,10,12],[9,13,10,13],[8,5,8,6],[8,7,8,8],[8,9,8,10],[8,11,8,12]]}
["Systeem voor de distributie van koelenergie"]
[]
[]
[]
[null,"Aantal uitrustingen te controleren :",null,null,null,1,null,2,null,3,null,4,null,5,null,6,null,7,null,8,null,9,null,10,null,null,"ok",null,"Type de clapet"]
[null,"Gegevens van deze uitrusting",null,null,null,null,null,null,null,null,null,null,null,null,null,null,null,null,null,null,null,null,null,null,null,null,"niet ok",null,"Brandklep"]
[null,"Klantreferentie (TAG name, P&ID number)",null,null,null,null,null,null,null,null,null,null,null,null,null,null,null,null,null,null,null,null,null,null,null,null,"niet van toepassing",null,"Terugslagklep"]
[null,"Type uitrusting",null,null,null,null,null,null,null,null,null,null,null,null,null,null,null,null,null,null,null,null,null,null,null,null,null,null,"Klep op verse lucht"]
[null,"Plaats (op welke kant van het gebouw)",null,null,null,null,null,null,null,null,null,null,null,null,null,null,null,null,null,null,null,null,null,null,null,null,null,null,"Mengklep"]
[null,"Controle van het onderhoud","Type van gegevens",null,null,"Resultaat van de controle","Observaties en meetresultaten","Resultaat van de controle","Observaties en meetresultaten","Resultaat van de controle","Observaties en meetresultaten","Resultaat van de controle","Observaties en meetresultaten","Resultaat van de controle","Observaties en meetresultaten","Resultaat van de controle","Observaties en meetresultaten","Resultaat van de controle","Observaties en meetresultaten","Resultaat van de controle","Observaties en meetresultaten","Resultaat van de controle","Observaties en meetresultaten","Resultaat van de controle","Observaties en meetresultaten",null,null,null,"Andere : …"]
[]
[null,"Visuele controle : staat, netheid, corrosie, eventuele schade",null,"x"]
[null,"Controleren of de positie van de afsluit- of regelvoorziening correct is","x","x"]
[null,"Test van de afsluit- of regelvoorzieningen (manueel of gemotoriseerd). Gebruik voor gemotoriseerde voorzieningen het bedieningssysteem.",null,"x"]

{"sheet":"Récup","index":17,"n_rows":19,"n_cols":29,"rows_kept":19,"cut":false,"hidden":true,"merged":[[4,15,4,16],[5,5,5,6],[5,7,5,8],[5,9,5,10],[5,11,5,12],[5,13,5,14],[5,15,5,16],[4,5,4,6],[4,7,4,8],[4,9,4,10],[4,11,4,12],[4,13,4,14],[4,17,4,18],[4,19,4,20],[4,21,4,22],[4,23,4,24],[5,17,5,18],[5,19,5,20],[5,21,5,22],[5,23,5,24],[6,17,6,18],[6,19,6,20],[6,21,6,22],[6,23,6,24],[6,15,6,16],[7,15,7,16],[6,5,6,6],[6,7,6,8],[6,9,6,10],[6,11,6,12],[7,5,7,6],[7,7,7,8],[7,9,7,10],[7,11,7,12],[7,13,7,14],[6,13,6,14],[8,15,8,16],[9,9,10,9],[9,10,10,10],[9,11,10,11],[9,12,10,12],[9,13,10,13],[8,9,8,10],[8,11,8,12],[8,13,8,14],[9,14,10,14],[8,17,8,18],[8,19,8,20],[8,21,8,22],[8,23,8,24],[7,17,7,18],[7,19,7,20],[7,21,7,22],[7,23,7,24],[9,21,10,21],[9,22,10,22],[9,23,10,23],[9,24,10,24],[9,15,10,15],[9,16,10,16],[9,17,10,17],[9,18,10,18],[9,19,10,19],[9,20,10,20],[4,1,4,4],[6,1,6,4],[7,1,7,4],[8,1,8,4],[9,8,10,8],[8,5,8,6],[8,7,8,8],[9,1,10,1],[9,2,9,4],[9,5,10,5],[9,6,10,6],[9,7,10,7]]}
["Andere componenten"]
[]
[]
[]
[null,"Aantal uitrustingen te controleren :",null,null,null,1,null,2,null,3,null,4,null,5,null,6,null,7,null,8,null,9,null,10,null,null,"ok",null,"Type récupérateur"]
[null,"Gegevens van deze uitrusting",null,null,null,null,null,null,null,null,null,null,null,null,null,null,null,null,null,null,null,null,null,null,null,null,"niet ok",null,"Lucht/lucht warmtewisselaar of heatpipe"]
[null,"Klantreferentie (TAG name, P&ID number)",null,null,null,null,null,null,null,null,null,null,null,null,null,null,null,null,null,null,null,null,null,null,null,null,"niet van toepassing",null,"Met gesloten kring"]
[null,"Type uitrusting",null,null,null,null,null,null,null,null,null,null,null,null,null,null,null,null,null,null,null,null,null,null,null,null,null,null,"Roterende systeem (warmtewiel)"]
[null,"Plaats (verdiep, bureelnummer)"]
[null,"Controle van het onderhoud","Type van gegevens",null,null,"Resultaat van de controle","Observaties en meetresultaten","Resultaat van de controle","Observaties en meetresultaten","Resultaat van de controle","Observaties en meetresultaten","Resultaat van de controle","Observaties en meetresultaten","Resultaat van de controle","Observaties en meetresultaten","Resultaat van de controle","Observaties en meetresultaten","Resultaat van de controle","Observaties en meetresultaten","Resultaat van de controle","Observaties en meetresultaten","Resultaat van de controle","Observaties en meetresultaten","Resultaat van de controle","Observaties en meetresultaten"]
[]
[null,"Lucht/lucht-warmtewisselaars (kruisstroom, tegenstroom, buizen ...) en Caloduc (heatpipe)"]
[null,"Controle van de staat van het warmteterugwinningssysteem, controle op schade, corrosie en lekkage (caloduc/heatpipe)",null,"x"]
[null,"Terugwinningssysteem met gesloten tussencircuit"]
[null,"Controle van de staat van de batterijen van het warmteterugwinningssysteem, controle op schade, corrosie en lekkage (caloduc/heatpipe)",null,"x"]
[null,"Controle van de uitrustingen waaruit dit circuit bestaat: kleppen, leidingen, circulatoren, regeling, …",null,"x"]
[null,"Controleren of het water van het circuit werd geanalyseerd (verslagen in het logboek)","x"]
[null,"Systeem van het roterende type (warmtewiel)"]
[null,"Algemene controle : staat van het wiel, de dichtingen, de riem, de motor, controle op schade en corrosie",null,"x"]

{"sheet":"Appoint","index":18,"n_rows":13,"n_cols":27,"rows_kept":13,"cut":false,"hidden":true,"merged":[[4,15,4,16],[5,5,5,6],[5,7,5,8],[5,9,5,10],[5,11,5,12],[5,13,5,14],[5,15,5,16],[4,5,4,6],[4,7,4,8],[4,9,4,10],[4,11,4,12],[4,13,4,14],[4,17,4,18],[4,19,4,20],[4,21,4,22],[4,23,4,24],[5,17,5,18],[5,19,5,20],[5,21,5,22],[5,23,5,24],[6,17,6,18],[6,19,6,20],[6,21,6,22],[6,23,6,24],[6,15,6,16],[6,13,6,14],[8,5,8,6],[8,7,8,8],[8,9,8,10],[8,11,8,12],[8,13,8,14],[6,5,6,6],[6,7,6,8],[6,9,6,10],[6,11,6,12],[7,5,7,6],[7,7,7,8],[7,9,7,10],[7,11,7,12],[9,10,10,10],[9,11,10,11],[9,12,10,12],[9,13,10,13],[7,15,7,16],[7,13,7,14],[8,23,8,24],[7,17,7,18],[7,19,7,20],[7,21,7,22],[7,23,7,24],[9,23,10,23],[9,24,10,24],[9,15,10,15],[9,16,10,16],[9,17,10,17],[9,18,10,18],[9,19,10,19],[9,20,10,20],[4,1,4,4],[6,1,6,4],[9,8,10,8],[9,21,10,21],[9,22,10,22],[9,14,10,14],[9,1,10,1],[9,2,9,4],[9,5,10,5],[9,6,10,6],[9,7,10,7],[8,17,8,18],[8,19,8,20],[8,21,8,22],[8,15,8,16],[9,9,10,9]]}
["Andere componenten"]
[]
[]
[]
[null,"Aantal uitrustingen te controleren :",null,null,null,1,null,2,null,3,null,4,null,5,null,6,null,7,null,8,null,9,null,10,null,null,"ok"]
[null,"Gegevens van deze uitrusting",null,null,null,null,null,null,null,null,null,null,null,null,null,null,null,null,null,null,null,null,null,null,null,null,"niet ok"]
[null,"Klantreferentie (TAG name, P&ID number)",null,null,null,null,null,null,null,null,null,null,null,null,null,null,null,null,null,null,null,null,null,null,null,null,"niet van toepassing"]
[null,"Type waterbehandelingsinstallaties : filtratie, verzachting, producttoevoeging, reverse osmosis …"]
[null,"Plaats (zone of toepassing)"]
[null,"Controle van het onderhoud","Type van gegevens",null,null,"Resultaat van de controle","Observaties en meetresultaten","Resultaat van de controle","Observaties en meetresultaten","Resultaat van de controle","Observaties en meetresultaten","Resultaat van de controle","Observaties en meetresultaten","Resultaat van de controle","Observaties en meetresultaten","Resultaat van de controle","Observaties en meetresultaten","Resultaat van de controle","Observaties en meetresultaten","Resultaat van de controle","Observaties en meetresultaten","Resultaat van de controle","Observaties en meetresultaten","Resultaat van de controle","Observaties en meetresultaten"]
[]
[null,"Visuele controle van de waterbehandelingsinstallatie op corrosie, lekken, schade, aanwezigheid van zout in de bak van een waterverzachter, genoeg product in de bak van een productdosering …",null,"x"]
[null,"Controleren of het water werd geanalyseerd (verslagen in het logboek)","x"]

{"sheet":"Pompe","index":19,"n_rows":22,"n_cols":27,"rows_kept":22,"cut":false,"hidden":true,"merged":[[4,15,4,16],[5,5,5,6],[5,7,5,8],[5,9,5,10],[5,11,5,12],[5,13,5,14],[5,15,5,16],[4,5,4,6],[4,7,4,8],[4,9,4,10],[4,11,4,12],[4,13,4,14],[6,23,6,24],[4,17,4,18],[4,19,4,20],[4,21,4,22],[4,23,4,24],[5,17,5,18],[5,19,5,20],[5,21,5,22],[5,23,5,24],[6,11,6,12],[6,13,6,14],[6,17,6,18],[6,19,6,20],[6,21,6,22],[9,23,9,24],[10,13,11,13],[6,15,6,16],[8,5,8,6],[8,7,8,8],[8,9,8,10],[8,11,8,12],[8,13,8,14],[7,5,7,6],[7,7,7,8],[7,9,7,10],[7,11,7,12],[7,13,7,14],[7,15,7,16],[6,5,6,6],[6,7,6,8],[7,17,7,18],[7,19,7,20],[7,21,7,22],[7,23,7,24],[8,15,8,16],[8,17,8,18],[8,19,8,20],[8,21,8,22],[8,23,8,24],[10,1,11,1],[10,2,10,4],[10,5,11,5],[10,6,11,6],[10,7,11,7],[10,23,11,23],[10,24,11,24],[10,15,11,15],[10,16,11,16],[10,17,11,17],[10,18,11,18],[10,19,11,19],[10,20,11,20],[9,11,9,12],[9,13,9,14],[10,8,11,8],[10,21,11,21],[10,22,11,22],[10,14,11,14],[10,9,11,9],[10,10,11,10],[10,11,11,11],[10,12,11,12],[9,15,9,16],[9,17,9,18],[9,19,9,20],[9,21,9,22],[4,1,4,4],[6,1,6,4],[9,5,9,6],[9,7,9,8],[9,9,9,10],[6,9,6,10]]}
["Andere componenten"]
[]
[]
[]
[null,"Aantal uitrustingen te controleren :",null,null,null,1,null,2,null,3,null,4,null,5,null,6,null,7,null,8,null,9,null,10,null,null,"ok"]
[null,"Gegevens van deze uitrusting",null,null,null,null,null,null,null,null,null,null,null,null,null,null,null,null,null,null,null,null,null,null,null,null,"niet ok"]
[null,"Klantreferentie (TAG name, P&ID number)",null,null,null,null,null,null,null,null,null,null,null,null,null,null,null,null,null,null,null,null,null,null,null,null,"niet van toepassing"]
[null,"Merk"]
[null,"Model"]
[null,"Plaats (circuit, verdiep, lokaal)"]
[null,"Controle van het onderhoud","Type van gegevens",null,null,"Resultaat van de controle","Observaties en meetresultaten","Resultaat van de controle","Observaties en meetresultaten","Resultaat van de controle","Observaties en meetresultaten","Resultaat van de controle","Observaties en meetresultaten","Resultaat van de controle","Observaties en meetresultaten","Resultaat van de controle","Observaties en meetresultaten","Resultaat van de controle","Observaties en meetresultaten","Resultaat van de controle","Observaties en meetresultaten","Resultaat van de controle","Observaties en meetresultaten","Resultaat van de controle","Observaties en meetresultaten"]
[]
[null,"Circulatoren (met natlopende rotor)"]
[null,"Controle van de draairichting, trillingen, geluid, lekkage, corrosie of andere schade",null,"x"]
[null,"Centrifugaalcirculatiepompen (in-line, monoblok, …)"]
[null,"Controle van de staat: netheid, corrosie, lekkage, bevestigingen, beschermingsaccessoires",null,"x"]
[null,"Controle van geluid en trillingen",null,"x"]
[null,"Controleren of het stroomverbruik voor elke fase van de pomp op nominale frequentie werd gemeten","x"]
[null,"Indien druk- of debietsmeting aanwezig : de gemeten waarden noteren",null,null,"x"]
[null,"Controle van de opwarming van de motor (snele controle met de hand ® oppassen !)",null,"x"]
[null,"Faseregelaar (indien aanwezig): controle van de afstelling, van de warmteafvoer, indien nodig stofvrij maken",null,"x"]
[null,"Het aanval startcycli/uur controleren (indien startteller aanwezig)",null,null,"x"]

{"sheet":"Expans","index":20,"n_rows":15,"n_cols":32,"rows_kept":15,"cut":false,"hidden":true,"merged":[[4,1,4,4],[6,1,6,4],[5,5,5,6],[5,7,5,8],[5,9,5,10],[5,11,5,12],[5,13,5,14],[4,5,4,6],[4,7,4,8],[4,9,4,10],[4,11,4,12],[4,13,4,14],[6,17,6,18],[6,19,6,20],[6,21,6,22],[6,23,6,24],[5,17,5,18],[5,19,5,20],[5,21,5,22],[5,23,5,24],[4,17,4,18],[4,19,4,20],[4,21,4,22],[4,23,4,24],[5,15,5,16],[4,15,4,16],[6,15,6,16],[7,5,7,6],[7,7,7,8],[7,9,7,10],[7,11,7,12],[7,13,7,14],[7,15,7,16],[6,5,6,6],[6,7,6,8],[6,9,6,10],[6,11,6,12],[6,13,6,14],[7,17,7,18],[7,19,7,20],[7,21,7,22],[7,23,7,24],[8,5,8,6],[8,7,8,8],[8,9,8,10],[8,11,8,12],[8,13,8,14],[8,15,8,16],[8,17,8,18],[8,19,8,20],[8,21,8,22],[8,23,8,24],[10,9,11,9],[10,10,11,10],[10,11,11,11],[10,12,11,12],[10,13,11,13],[9,5,9,6],[9,7,9,8],[9,9,9,10],[9,11,9,12],[9,13,9,14],[9,15,9,16],[10,14,11,14],[9,17,9,18],[9,19,9,20],[9,21,9,22],[10,20,11,20],[9,23,9,24],[10,1,11,1],[10,2,10,4],[10,5,11,5],[10,6,11,6],[10,7,11,7],[10,8,11,8],[10,21,11,21],[10,22,11,22],[10,23,11,23],[10,24,11,24],[10,15,11,15],[10,16,11,16],[10,17,11,17],[10,18,11,18],[10,19,11,19]]}
["Andere componenten"]
[]
[]
[]
[null,"Aantal uitrustingen te controleren :",null,null,null,1,null,2,null,3,null,4,null,5,null,6,null,7,null,8,null,9,null,10,null,null,"ok",null,null,null,null,"Classe de filtre suivant NEN 779:2012"]
[null,"Gegevens van deze uitrusting",null,null,null,null,null,null,null,null,null,null,null,null,null,null,null,null,null,null,null,null,null,null,null,null,"niet ok",null,null,null,null,"G1"]
[null,"Klantreferentie (TAG name, P&ID number)",null,null,null,null,null,null,null,null,null,null,null,null,null,null,null,null,null,null,null,null,null,null,null,null,"niet van toepassing",null,null,null,null,"G2"]
[null,"Merk",null,null,null,null,null,null,null,null,null,null,null,null,null,null,null,null,null,null,null,null,null,null,null,null,null,null,null,null,null,"G3"]
[null,"Model"]
[null,"Plaats (circuit, verdiep, lokaal)"]
[null,"Controle van het onderhoud","Type de contrôle",null,null,"Resultaat van de controle","Observaties en meetresultaten","Resultaat van de controle","Observaties en meetresultaten","Resultaat van de controle","Observaties en meetresultaten","Resultaat van de controle","Observaties en meetresultaten","Resultaat van de controle","Observaties en meetresultaten","Resultaat van de controle","Observaties en meetresultaten","Resultaat van de controle","Observaties en meetresultaten","Resultaat van de controle","Observaties en meetresultaten","Resultaat van de controle","Observaties en meetresultaten","Resultaat van de controle","Observaties en meetresultaten"]
[null,null,null,null,null,null,null,null,null,null,null,null,null,null,null,null,null,null,null,null,null,null,null,null,null,null,null,null,null,null,null,"G4"]
[null,"Algemene controle van het expansiesysteem : corrosie, lekkage, staat, trillingen, staat van het regelingssysteem (indien aanwezig), staat van de compressor (indien aanwezig), staat van de pompen (indien aanwezig)",null,"x",null,null,null,null,null,null,null,null,null,null,null,null,null,null,null,null,null,null,null,null,null,null,null,null,null,null,null,"F7"]
[null,null,null,null,null,null,null,null,null,null,null,null,null,null,null,null,null,null,null,null,null,null,null,null,null,null,null,null,null,null,null,"F8"]
[null,null,null,null,null,null,null,null,null,null,null,null,null,null,null,null,null,null,null,null,null,null,null,null,null,null,null,null,null,null,null,"F9"]

{"sheet":"Filtre","index":21,"n_rows":18,"n_cols":29,"rows_kept":18,"cut":false,"hidden":true,"merged":[[4,15,4,16],[5,5,5,6],[5,7,5,8],[5,9,5,10],[5,11,5,12],[5,13,5,14],[5,15,5,16],[4,5,4,6],[4,7,4,8],[4,9,4,10],[4,11,4,12],[4,13,4,14],[4,17,4,18],[4,19,4,20],[4,21,4,22],[4,23,4,24],[5,17,5,18],[5,19,5,20],[5,21,5,22],[5,23,5,24],[6,17,6,18],[6,19,6,20],[6,21,6,22],[6,15,6,16],[6,23,6,24],[8,15,8,16],[9,5,9,6],[9,7,9,8],[9,9,9,10],[9,11,9,12],[9,13,9,14],[8,5,8,6],[8,7,8,8],[8,9,8,10],[8,11,8,12],[8,13,8,14],[10,5,10,6],[10,7,10,8],[10,9,10,10],[10,11,10,12],[10,13,10,14],[11,9,12,9],[11,10,12,10],[11,11,12,11],[11,12,12,12],[11,20,12,20],[11,8,12,8],[9,17,9,18],[9,19,9,20],[9,21,9,22],[9,23,9,24],[10,15,10,16],[9,15,9,16],[11,14,12,14],[10,17,10,18],[10,19,10,20],[11,13,12,13],[11,15,12,15],[11,16,12,16],[11,17,12,17],[11,24,12,24],[11,19,12,19],[11,1,12,1],[11,2,11,4],[11,5,12,5],[11,6,12,6],[11,7,12,7],[8,19,8,20],[8,21,8,22],[8,23,8,24],[11,18,12,18],[8,17,8,18],[7,23,7,24],[11,21,12,21],[11,22,12,22],[11,23,12,23],[10,21,10,22],[10,23,10,24],[4,1,4,4],[6,1,6,4],[7,17,7,18],[7,19,7,20],[7,21,7,22],[7,15,7,16],[6,5,6,6],[6,7,6,8],[6,9,6,10],[7,5,7,6],[7,7,7,8],[7,9,7,10],[7,11,7,12],[7,13,7,14],[6,11,6,12],[6,13,6,14]]}
["Andere componenten"]
[]
[]
[]
[null,"Aantal uitrustingen te controleren :",null,null,null,1,null,2,null,3,null,4,null,5,null,6,null,7,null,8,null,9,null,10,null,null,"ok",null,"Type de filtre"]
[null,"Gegevens van deze uitrusting",null,null,null,null,null,null,null,null,null,null,null,null,null,null,null,null,null,null,null,null,null,null,null,null,"niet ok",null,"Zandfilter"]
[null,"Klantreferentie (TAG name, P&ID number)",null,null,null,null,null,null,null,null,null,null,null,null,null,null,null,null,null,null,null,null,null,null,null,null,"niet van toepassing",null,"Patroonfilter/zeeffilter"]
[null,"Filtertype",null,null,null,null,null,null,null,null,null,null,null,null,null,null,null,null,null,null,null,null,null,null,null,null,null,null,"Deeltjes/slibasfcheider"]
[null,"Merk",null,null,null,null,null,null,null,null,null,null,null,null,null,null,null,null,null,null,null,null,null,null,null,null,null,null,"Magnetische filter"]
[null,"Model",null,null,null,null,null,null,null,null,null,null,null,null,null,null,null,null,null,null,null,null,null,null,null,null,null,null,"Andere : …"]
[null,"Plaats (circuit, verdiep, lokaal)"]
[null,"Controle van het onderhoud","Type van gegevens",null,null,"Resultaat van de controle","Observaties en meetresultaten","Resultaat van de controle","Observaties en meetresultaten","Resultaat van de controle","Observaties en meetresultaten","Resultaat van de controle","Observaties en meetresultaten","Resultaat van de controle","Observaties en meetresultaten","Resultaat van de controle","Observaties en meetresultaten","Resultaat van de controle","Observaties en meetresultaten","Resultaat van de controle","Observaties en meetresultaten","Resultaat van de controle","Observaties en meetresultaten","Resultaat van de controle","Observaties en meetresultaten"]
[]
[null,"Visuele controle van de filter : corrosie, lekkage, schade",null,"x"]
[null,"Drukverlies meten (indien drukmeters aanwezig zijn)",null,"x",null,null,0,null,0,null,0,null,0,null,0,null,0,null,0,null,0,null,0,null,0]
[null,"Observer le niveau d'encrassement, si celui-ci peut être observé",null,"x"]
[null,"Manuele spui van de \"manuele\" afscheiders, controle van de afzettingen",null,"x"]
[null,"Test van de \"automatische\" afscheiders, controle van de afzettingen",null,"x"]

{"sheet":"Purgeur_air","index":22,"n_rows":16,"n_cols":32,"rows_kept":16,"cut":false,"hidden":true,"merged":[[4,15,4,16],[5,5,5,6],[5,7,5,8],[5,9,5,10],[5,11,5,12],[5,13,5,14],[5,15,5,16],[4,5,4,6],[4,7,4,8],[4,9,4,10],[4,11,4,12],[4,13,4,14],[6,23,6,24],[4,17,4,18],[4,19,4,20],[4,21,4,22],[4,23,4,24],[5,17,5,18],[5,19,5,20],[5,21,5,22],[5,23,5,24],[6,5,6,6],[6,7,6,8],[6,9,6,10],[6,11,6,12],[6,13,6,14],[6,15,6,16],[7,15,7,16],[7,17,7,18],[7,19,7,20],[7,21,7,22],[6,17,6,18],[6,19,6,20],[6,21,6,22],[8,23,8,24],[7,23,7,24],[7,5,7,6],[7,7,7,8],[7,9,7,10],[7,11,7,12],[7,13,7,14],[8,13,8,14],[8,15,8,16],[8,17,8,18],[8,19,8,20],[8,21,8,22],[11,8,12,8],[11,9,12,9],[11,10,12,10],[11,11,12,11],[11,12,12,12],[10,5,10,6],[10,7,10,8],[10,9,10,10],[10,11,10,12],[10,13,10,14],[9,5,9,6],[9,7,9,8],[9,9,9,10],[9,11,9,12],[9,13,9,14],[10,17,10,18],[10,19,10,20],[4,1,4,4],[6,1,6,4],[10,23,10,24],[9,23,9,24],[10,21,10,22],[9,15,9,16],[9,17,9,18],[9,19,9,20],[9,21,9,22],[10,15,10,16],[8,5,8,6],[8,7,8,8],[8,9,8,10],[8,11,8,12],[11,1,12,1],[11,2,11,4],[11,5,12,5],[11,6,12,6],[11,7,12,7],[11,22,12,22],[11,23,12,23],[11,24,12,24],[11,15,12,15],[11,16,12,16],[11,17,12,17],[11,13,12,13],[11,20,12,20],[11,18,12,18],[11,19,12,19],[11,21,12,21],[11,14,12,14]]}
["Andere componenten"]
[]
[]
[]
[null,"Aantal uitrustingen te controleren :",null,null,null,1,null,2,null,3,null,4,null,5,null,6,null,7,null,8,null,9,null,10,null,null,"ok",null,"Type purgeur air",null,null,"Classe de filtre suivant NEN 779:2012"]
[null,"Gegevens van deze uitrusting",null,null,null,null,null,null,null,null,null,null,null,null,null,null,null,null,null,null,null,null,null,null,null,null,"niet ok",null,"manuele ontluchter",null,null,"G1"]
[null,"Klantreferentie (TAG name, P&ID number)",null,null,null,null,null,null,null,null,null,null,null,null,null,null,null,null,null,null,null,null,null,null,null,null,"niet van toepassing",null,"automatische ontluchter",null,null,"G2"]
[null,"Type",null,null,null,null,null,null,null,null,null,null,null,null,null,null,null,null,null,null,null,null,null,null,null,null,null,null,"automatische ontgassingssysteem"]
[null,"Merk",null,null,null,null,null,null,null,null,null,null,null,null,null,null,null,null,null,null,null,null,null,null,null,null,null,null,null,null,null,"G3"]
[null,"Model"]
[null,"Plaats (circuit, verdiep, lokaal)"]
[null,"Controle van het onderhoud","Type van gegevens",null,null,"Resultaat van de controle","Observaties en meetresultaten","Resultaat van de controle","Observaties en meetresultaten","Resultaat van de controle","Observaties en meetresultaten","Resultaat van de controle","Observaties en meetresultaten","Resultaat van de controle","Observaties en meetresultaten","Resultaat van de controle","Observaties en meetresultaten","Resultaat van de controle","Observaties en meetresultaten","Resultaat van de controle","Observaties en meetresultaten","Resultaat van de controle","Observaties en meetresultaten","Resultaat van de controle","Observaties en meetresultaten"]
[null,null,null,null,null,null,null,null,null,null,null,null,null,null,null,null,null,null,null,null,null,null,null,null,null,null,null,null,null,null,null,"G4"]
[null,"Controle van de hoeveelheid lucht in de manuele ontluchter (of microbellenafscheider voorzien van een manuele ontluchter)",null,"x",null,null,null,null,null,null,null,null,null,null,null,null,null,null,null,null,null,null,null,null,null,null,null,null,null,null,null,"F7"]
[null,"Werkingscontrole van de automatische ontluchter (of microbellenafscheider voorzien van een automatische ontluchter)",null,"x",null,null,null,null,null,null,null,null,null,null,null,null,null,null,null,null,null,null,null,null,null,null,null,null,null,null,null,"F8"]
[null,"Automatische vacuümontgassers : vacuümtest, werkingscontrole van een cyclus",null,"x",null,null,null,null,null,null,null,null,null,null,null,null,null,null,null,null,null,null,null,null,null,null,null,null,null,null,null,"F9"]

{"sheet":"stockage_déstockage","index":23,"n_rows":16,"n_cols":32,"rows_kept":16,"cut":false,"hidden":true,"merged":[[4,1,4,4],[6,1,6,4],[5,5,5,6],[5,7,5,8],[5,9,5,10],[5,11,5,12],[5,13,5,14],[4,5,4,6],[4,7,4,8],[4,9,4,10],[4,11,4,12],[4,13,4,14],[6,17,6,18],[6,19,6,20],[6,21,6,22],[6,23,6,24],[5,17,5,18],[5,19,5,20],[5,21,5,22],[5,23,5,24],[4,17,4,18],[4,19,4,20],[4,21,4,22],[4,23,4,24],[5,15,5,16],[4,15,4,16],[6,15,6,16],[7,5,7,6],[7,7,7,8],[7,9,7,10],[7,11,7,12],[6,5,6,6],[6,7,6,8],[6,9,6,10],[6,11,6,12],[6,13,6,14],[8,18,9,18],[8,1,9,1],[8,2,8,4],[8,5,9,5],[8,6,9,6],[8,7,9,7],[8,8,9,8],[8,9,9,9],[8,10,9,10],[8,11,9,11],[8,12,9,12],[8,17,9,17],[7,23,7,24],[7,13,7,14],[7,15,7,16],[8,13,9,13],[8,21,9,21],[8,22,9,22],[8,23,9,23],[8,24,9,24],[8,15,9,15],[8,16,9,16],[8,19,9,19],[8,20,9,20],[8,14,9,14],[7,17,7,18],[7,19,7,20],[7,21,7,22]]}
["Andere componenten"]
[]
[]
[]
[null,"Aantal uitrustingen te controleren :",null,null,null,1,null,2,null,3,null,4,null,5,null,6,null,7,null,8,null,9,null,10,null,null,"ok"]
[null,"Gegevens van deze uitrusting",null,null,null,null,null,null,null,null,null,null,null,null,null,null,null,null,null,null,null,null,null,null,null,null,"niet ok"]
[null,"Klantreferentie (TAG name, P&ID number)",null,null,null,null,null,null,null,null,null,null,null,null,null,null,null,null,null,null,null,null,null,null,null,null,"niet van toepassing"]
[null,"Plaats (circuit, verdiep, lokaal)"]
[null,"Controle van het onderhoud","Type van gegevens",null,null,"Resultaat van de controle","Observaties en meetresultaten","Resultaat van de controle","Observaties en meetresultaten","Resultaat van de controle","Observaties en meetresultaten","Resultaat van de controle","Observaties en meetresultaten","Resultaat van de controle","Observaties en meetresultaten","Resultaat van de controle","Observaties en meetresultaten","Resultaat van de controle","Observaties en meetresultaten","Resultaat van de controle","Observaties en meetresultaten","Resultaat van de controle","Observaties en meetresultaten","Resultaat van de controle","Observaties en meetresultaten"]
[]
[null,"Visuele controle van de staat van de faseveranderingsmaterialen",null,"x"]
[]
[null,null,null,null,null,null,null,null,null,null,null,null,null,null,null,null,null,null,null,null,null,null,null,null,null,null,null,null,null,null,null,"G4"]
[null,null,null,null,null,null,null,null,null,null,null,null,null,null,null,null,null,null,null,null,null,null,null,null,null,null,null,null,null,null,null,"F7"]
[null,null,null,null,null,null,null,null,null,null,null,null,null,null,null,null,null,null,null,null,null,null,null,null,null,null,null,null,null,null,null,"F8"]
[null,null,null,null,null,null,null,null,null,null,null,null,null,null,null,null,null,null,null,null,null,null,null,null,null,null,null,null,null,null,null,"F9"]

{"sheet":"Permis_environnement","index":24,"n_rows":37,"n_cols":17,"rows_kept":37,"cut":false,"hidden":true,"merged":[[31,5,34,5],[36,1,36,3],[8,5,12,5],[28,3,28,4]]}
[]
[]
[]
[null,"Milieuvergunning bestaande installaties"]
[null,null,null,null,null,null,null,null,"ja"]
[null,null,"Vragen","Antwoorden",null,"Nuttige informatie",null,null,"nee"]
[null,"1. Milieuvergunning",null,null,null,null,null,null,"ok"]
[null,null,"Referentie van de milieuvergunning",null,null,null,null,null,"niet ok"]
[null,null,"Identificatieplaat aanwezig",null,null,"De gegevens van punten 3 tot 6 moeten in de register zich bevinden",null,null,"niet van toepassing"]
[null,"2. Test documenten"]
[null,null,"Register aanwezig en bijgewerkt gebleven"]
[null,null,"Conformiteitscertificaat"]
[null,null,"Dichtheidsattest bij de indienststelling"]
[null,null,"Laatste dichtheidstest: resultaat + datum (deze test moet door een geregistreerde bedrijf uitgevoerd worden)",null,"../../.."]
[null,"3. Indienstelling"]
[null,null,"Datum","../../.."]
[null,null,"Indien HCFK aanwezig : bewijs (kopie van een factuur …)"]
[null,null,"(voor of na 31/12/1999)"]
[null,"4. Elektrisch vermogen"]
[null,null,"Elektrisch vermogen per circuit",null,"kW","Totaal elektrisch vermogen van de compressoren op hetzelfde circuit"]
[null,"5. Koelmiddel"]
[null,"Type :","HCFK (R22, R124, 401A,R402A, R408A, R409A, …)",null,null,"Naam van de koelmiddel opschrijven"]
[null,null,"HFK (R134A, R143A, R404A, R407C, R410A,…)"]
[null,null,"HK (Propane (R290), Butane (R600), …)"]
[null,null,"NH3 (R717)"]
[null,null,"CO2"]
[null,null,"Hoeveelheid",null,"kg","Naam en registratienummer op internet controleren"]
[null,"6. Koeltechnisch bedrijf","Indien de koelmiddel een HCFK of een HFK, naam en registratienummer van het koeltechnisch bedrijf hier opschrijven",null,null,"Indien HCFK aanwezig is(R22, …), moet de exploitant dit aan de BIM met een specifieke formulier meedelen"]
[null,null,"Naam",{"$f":"IF(batiment_admin!C53<>\"\",batiment_admin!C53,\"\")","v":""},null,null,null,null,null,null,null,null,null,null,null,{"$f":"D29","v":""},"pour ajuster la hauteur de la ligne"]
[null,null,"Registratienummer",{"$f":"IF(batiment_admin!C54<>\"\",batiment_admin!C54,\"\")","v":""}]
[null,"7. Machineruimte"]
[null,null,"Ketels, luchtcompressoren, warmtegeneratoren, pulsiegroepen, verbrandingsmotoren … aanwezig dichtbij de koelinstallaties ?",null,null," "]
[null,null,"Indien het elektrisch vermogen > 100 kW is : machineruimte beschikt over een hoge en lage ventilatie"]
[null,null,"In de nabijheid van een koelmachine met een elektrisch vermogen > 100 kW moet een informatiepaneel geplaatst worden met de volgende gegevens : contactgegevens van de onderhoudsfirma en instructies over de wijze waarop de koelinstallaties in of buiten bedrijf kunnen worden gesteld"]
[]
[null,"Commentaar met betrekking tot de exploitatievoorwaarden voor deze koelinstallaties:"]
[null,null,null,null,null,null,null,null,null,null,null,null,null,null,{"$f":"B37","v":0}]

{"sheet":"Recommandations","index":25,"n_rows":105,"n_cols":7,"rows_kept":105,"cut":false,"hidden":true,"merged":[[7,2,7,3]]}
[]
[]
[]
[null,null,"Aanbevelingen"]
[]
[null,null,null,null,null,"ja"]
[null,null,"Algemene aanbevelingen",null,null,"nee"]
[null,null,null,null,null,null,{"$f":"C8","v":0}]
[]
[null,null,"Volgende aanbevelingen toe te voegen aan het eindverslag :"]
[]
[null,null,"1 Vermindering van het opwarmingsrisico en van de koelbehoeften"]
[]
[null,null,"1.1 Vermindering van de interne warmtetoevoer"]
[]
[null,null,"De keuze van efficiënte elektrische uitrustingen aanmoedigen: iedere elektrische uitrusting ontwikkelt warmte. De keuze van computers, motoren, fotokopieerapparaten, elektrische huishoudtoestellen enz. is dus zeer belangrijk om de opwarming te beperken."]
[null,null,"Een doordacht verlichtingsbeheer voeren: keuze van gloeilampen of TL-buizen met laag energieverbruik, automatisch doven van de verlichting, keuze tussen algemene verlichting van een kantoor of verlichting van de werkpost, rekening houden met het daglicht ..."]
[null,null," Nous vous recommandons d’isoler toutes les conduites et les accessoires, afin d’éviter des transferts de chaleur entre le circuit de chauffage et le circuit de refroidissement, d’éviter un transfert de chaleur en un endroit inadéquat, prévenir des problèmes de condensation … "]
[]
[null,null,"1.2 Vermindering van de warmtetoevoer van buiten af"]
[]
[null,null,"geklimatiseerde lokalen die zich aan de zuid-, de oost- of de westkant bevinden en niet van zonweringen voorzien zijn, kan het interessant zijn zonweringen aan de buitenkant te installeren, de ruiten te vervangen door ruiten in weerkaatsend glas, een weerkaatsende film op de ruiten aan te brengen of natuurlijke beschaduwing te bevorderen (groenbedekking, aanwezigheid van bomen, ...)."]
[null,null,"Om rekening te houden met de combinatie van externe en interne factoren, is het raadzaam lokalen die een aanzienlijke warmtebron (computerlokalen, vergaderzalen) zijn, aan de noordzijde in te richten."]
[]
[null,null,"2 De ventilatie verbeteren"]
[]
[null,null,"2.1 Free cooling nastreven"]
[]
[null,null,"Als het gebouw een zekere thermische inertie heeft: het gebouw 's nachts ventileren in de zomer (100% verse lucht), voor het gebruik, om het \"voor te koelen\" (wanneer de buitentemperatuur lager is dan de temperatuur in de lokalen)."]
[null,null,"De regeling van de mengschuiven zodanig aanpassen dat zij aan verseluchtzijde 100% openen wanneer de buitentemperatuur lager is dan de ingestelde kamertemperatuur en in bepaalde zones koude gevraagd wordt."]
[]
[]
[null,null,"2.2 Het luchtverdeelnet verbeteren"]
[]
[null,null,"Lekken in het luchtverdeelnet herstellen."]
[null,null,"Wij raden aan de kokers en luchtkanalen die zich niet in het beschermd volume bevinden, te isoleren."]
[null,null,"Het net uitbalanceren als bepaalde lokalen niet correct geventileerd worden (te veel of te weinig ventilatie)."]
[null,null,"De opstelling en het type van de luchtopeningen wijzigen om het rendement van de klimaatregelingsinstallaties te verhogen: als de ingeblazen lucht rechtstreeks aangezogen of slecht verdeeld wordt, kan de installatie de lucht niet doeltreffend mengen, wat gevolgen heeft voor het binnenklimaat en het energieverbruik."]
[null,null," De leidingverliezen van het net verminderen (gladde, progressief divergerende leidingen, schoepen in de bochtstukken, ...) indien de verhouding tussen het samengevoegd vermogen van de aanzuig- en inblaasventilatoren en het (gemeenschappelijk) getransporteerde luchtdebiet hoger is dan 1,1 W/(m³/u)."]
[null,null," "]
[]
[null,null,"2.3 Beheer van het verseluchtdebiet en regeling van het recirculatiepercentage"]
[]
[null,null,"Behoudens een uitzonderlijke behoefte, de ventilatie uitschakelen tijdens het gebruik van de lokalen (uitgezonderd eventueel 's nachts en tijdens warme periodes in de zomer)."]
[null,null,"De verseluchtaanvoer tot het aanbevolen hygiënisch debiet beperken door het vermogen van de ventilator van de installatie aan te passen (op een lagere snelheid instellen, de diameters van de riemschijven van de motor en de ventilator aanpassen, ...)"]
[null,null,"Het sanitair aanzuigingsdebiet beperken buiten de gebruiksperiodes."]
[null,null,"Opteren voor een regeling met variabele snelheid van de ventilator in plaats van een regeling met een smoorsysteem."]
[null,null,"In geval van luchtrecirculatie in de installatie: vervang de manuele luchtmengschuif door een automatische schuif die een modulatie van 100% verse lucht tot 100% gerecirculeerde lucht toelaat. Met de regeling van het binnenklimaat door middel van luchtrecirculatie kan men het energieverbruik verlagen en bijgevolg energie besparen."]
[null,null,"Overweeg, voor lokalen met variabele bezettingsgraad, het verseluchtdebiet te regelen op basis van de bezettingsgraad of van een meting van de luchtkwaliteit."]
[null,null,"Indien de ventilatoren van het type \"met naar voor gerichte schoepen\" zijn en de schoepen niet in de vorm van een vliegtuigvleugel geprofileerd zijn, vervang deze ventilatoren dan door ventilatoren met naar achter gerichte schoepen (// in de draairichting)."]
[]
[null,null,"2.4 Warmteterugwinning"]
[null,null,"In de huidige configuratie van de inblaas- en aanzuiggroepen kan het interessant zijn de plaatsing te overwegen van een systeem dat de warmte van de aangezogen lucht terugwint."]
[]
[null,null,"3 De koelinstallatie verbeteren"]
[null,null,"3.1 De omgeving van de koelinstallaties verbeteren"]
[]
[null,null,"De omgeving van de koelmachines, de condensors en/of de koeltorens vrijmaken (om de toevoer van verse lucht te verbeteren)."]
[null,null,"De luchtcondensors in de schaduw plaatsen of ze omgeven met een lichtgekleurd oppervlak (witte kiezel is beter dan zwarte roofing)."]
[]
[null,null,"3.2 Aanpassingen van de regeling van de koudeproductie"]
[]
[null,null,"Voorzien in een tijdsregeling voor de koelinstallatie: de productie van koelwater onderbreken buiten de gebruiksuren ('s nachts, weekend, ...) als er dan geen koelbehoeften zijn."]
[null,null,"De productie van koelwater in de winter uitschakelen als er geen koelbehoeften zijn."]
[null,null,"De herinschakeling van de koelinstallatie vertragen op basis van een meting van de buitentemperatuur (bijvoorbeeld wanneer die lager is dan 13 °C). Dit systeem verhindert de inschakeling van een koelmachine of van een tweede compressor wanneer zich in de lokalen een tijdelijke temperatuurpiek heeft voorgedaan, bijvoorbeeld in het tussenseizoen."]
[null,null,"Wanneer de temperatuursensor zich in de volle zon of op een weinig representatieve plaats bevindt, verplaats hem dan om een betrouwbare meting te verkrijgen."]
[null,null,"Als de koelmachine uitgerust is met een regelsysteem door injectie van warme gassen, probeer dit systeem dan in de mate van het mogelijke buiten werking te stellen."]
[null,null,"De voeding van de weerstanden van de compressorcarters in de winter uitschakelen (enkele uren laten voorverwarmen voor ze opnieuw wordt ingeschakeld!)."]
[null,null,"De mogelijkheid onderzoeken om de inschakeldrempel van het hogedruksysteem van de compressor te verhogen."]
[null,null,"Bij vervanging van het thermostatische expansieventiel, proberen de koelmachine uit te rusten met een digitale regeling met elektronisch expansieventiel."]
[null,null,"De diverse vermogenstrappen regelen om een cascadewerking te verkrijgen."]
[null,null,"De cascaderegeling van de compressoren verbeteren: de drempels wijzigen, vertragen, van type regelaar veranderen, ..."]
[null,null,"De verdampingstemperatuur en bijgevolg de temperatuur van het koelwater verhogen om de ontvochtiging in de koudebatterij van de luchtbehandelingsgroep te beperken als ontvochtiging niet vereist is (bijvoorbeeld in het tussenseizoen)."]
[null,null,"De temperatuur van de verdamper aanpassen aan de werkelijke behoeften van het gebouw (bv. een hogere begintemperatuur in de winter dan in de zomer).é)"]
[null,null,"De mogelijkheid onderzoeken om de regeling van het omschakelpunt in functie van de vraag te automatiseren."]
[null,null,"Kies bij een vervanging van de compressor een compressor met variabele snelheid (Inverter). De investering is duurder, maar biedt een aantrekkelijk rendement."]
[null,null,"De machines uitrusten met een opteller en bedrijfsurenteller voor de compressoren."]
[null,null,"De werking van de ventilatoren van de luchtcondensor of de koeltoren aansturen met een cascaderegeling of een snelheidsregelaar."]
[]
[null,null,"3.3 Aanpassingen van de technische installaties voor koudeproductie"]
[]
[null,null,"Een lokaal koudeproductiesysteem installeren in een zone waar koeling nodig is, terwijl in de andere zones een warmtevraag heerst ."]
[null,null,"Bij koelbehoeften in de winter: rust het koelsysteem uit met een free-chilling installatie (= bypass van de koelmachine) om gedeeltelijk  in deze behoeften te voorzien."]
[null,null,"De condensor van een koelwatermachine uitrusten met een warmteterugwinningssysteem (warmtewisselaar bij de uitgang van de compressor voor het voorverwarmen van het sanitair water, de warmte van de condensor voor de luchtverwarming van het gebouw, ...) als er warmtebehoeften bij lage temperatuur bestaan en als de koelmachine in de winter functioneert."]
[null,null,"Als de koelinstallatie R22 of R12 als koelmiddel gebruikt en minder dan 10 jaar oud is, bij de fabrikant navraag doen of er een \"upgrade\" is naar een toegestaan koelmiddel. Als dat mogelijk is, de \"upgrade\" van de machine voorbereiden door te onderzoeken of de prestaties nog voldoening schenken (bijvoorbeeld verlaging van het rendement als R407 wordt gebruikt). Indien de machine meer dan 10 jaar oud is en/of een \"upgrade\" niet mogelijk is, de vervanging van de machine tegen 2015 voorbereiden door de werkelijke behoeften van de installatie te analyseren. Een eventuele vervanging is een gelegenheid om het algemeen concept van de installatie voor koudeproductie te wijzigen (bijvoorbeeld met terugwinning op de condensor of combinatie met een free-chilling systeem)."]
[null,null,"Indien de koelinstallatie ouder dan 20 jaar is en/of niet de kenmerken van een performante machine bezit (opsplitsing van het vermogen van de compressor in diverse trappen of compressor met schuifschroef of met frequentieregelaar, aanwezigheid van een digitale regeling, goede algemene toestand van de schoepen van de warmtewisselaars, van de elektrische componenten, geen algemene corrosie, olievlekken op de grond, aanzienlijke trillingen, ...): in haar vervanging voorzien."]
[null,null,"Een wateronthardingssysteem (en een eventuele installatie voor de dosering van biociden of ontkalkings-/corrosiewerende producten) op het condensatiecircuit installeren als het gaat om een koelinstallatie voorzien van een watercondensor met open toren."]
[null,null,"Een automatisch deconcentratiesysteem gebaseerd op de meting van de geleidbaarheid op het koeltorencircuit installeren."]
[]
[null,null,"3.4 Aanpassingen van het systeem voor koudedistributie"]
[]
[null,null,"Alle leidingen en accessoires isoleren\nMet voorrang te isoleren leidingen:\n- aanzuigleiding van de compressor\n- leidingen die kunnen bevriezen\n- leidingen voor verwarming, koelwater, sanitair warm water en verluchtingskokers die zich niet in het beschermd volume bevinden\n- dicht bij elkaar gelegen verwarmings- en koelwaterleidingen."]
[null,null,"Alle leidingen en accessoires isoleren om warmteoverdracht tussen het verwarmingscircuit en het koelcircuit te vermijden, warmteoverdracht op een ongeschikte plaats te vermijden, condensatieproblemen te voorkomen, ..."]
[null,null,"De inschakeldrempels van de koel-, verwarmings-, bevochtigings-, ontvochtigingsinstallaties aanpassen. In een \"neutrale\" zone voorzien."]
[null,null,"Het ontvochtigingspeil beperken tot 60% RV (in plaats van 50%) + een neutrale zone creëren tussen de ingestelde waarden voor bevochtiging en ontvochtiging."]
[null,null,"De omschakelpunten van de diverse circuits analyseren en ze zo hoog mogelijk instellen. Op die manier kan men minder koud koelwater (verkregen door het omschakelpunt van de verdamper te verhogen of met behulp van een mengventiel) gebruiken en dus de warmteverliezen tijdens het transport verlagen. Het productiesysteem kan bovendien zijn eigen omschakelpunt verhogen, wat de energiebesparing ten goede komt."]
[null,null,"De temperatuur van het water in elk circuit door middel van driewegventielen aanpassen aan de behoeften van de diverse zones."]
[null,null,"De koelwatercirculatie onderbreken buiten de gebruiksuren ('s nachts, weekend, ...) als er geen koelingsbehoefte is."]
[null,null,"De koelwatercirculatie in de winter uitschakelen of beperken (bijvoorbeeld: 1 u/dag) in zones waar tijdens deze periode geen koelingsbehoefte bestaat."]
[null,null,"De circulatiepomp vervangen of aanpassen zodanig dat regeling door verandering van de snelheid mogelijk is als de eindapparaten van het type met variabel debiet zijn (bv. tweewegventielen in ventilo-convectoren)."]
[null,null,"Het vertrek van de diverse circuits met balanskleppen uitrusten en het net uitbalanceren als er geen kleppen zijn en de distributie niet correct gebeurt (slecht gekoelde lokalen)."]
[null,null,"Het circuit is uitgerust met balanskleppen maar de distributie gebeurt niet correct. Wij bevelen dan aan het circuit uit te balanceren."]
[null,null,"Afsluitkleppen installeren of de uitschakeling van de pompen van elke koelmachine regelen (afhankelijk van het type van hydraulisch schema) om warmteoverdracht in de uitgeschakelde machine te vermijden."]
[null,null,"Een buffervat op het koelwatercircuit plaatsen om de inertie van het koelwatercircuit te verhogen en het aantal startcycli van de koelinstallaties te verlagen."]
[null,null,"De kwaliteit van het water van het circuit verhogen: op basis van analyses een behandelingsproduct in brengen, de lage punten van het circuit ontluchten, een deeltjesafscheider plaatsen, ..."]

{"sheet":"emetteurs (2)","index":26,"n_rows":22,"n_cols":47,"rows_kept":22,"cut":false,"hidden":true,"merged":[[4,21,4,22],[4,23,4,24],[4,25,4,26],[4,1,4,4],[4,5,4,6],[4,7,4,8],[4,9,4,10],[4,11,4,12],[4,13,4,14],[5,21,5,22],[5,23,5,24],[5,25,5,26],[5,27,5,28],[5,29,5,30],[4,39,4,40],[4,41,4,42],[4,43,4,44],[5,5,5,6],[5,7,5,8],[5,9,5,10],[5,11,5,12],[5,13,5,14],[5,15,5,16],[5,17,5,18],[4,27,4,28],[4,29,4,30],[4,31,4,32],[4,33,4,34],[4,35,4,36],[4,37,4,38],[4,15,4,16],[4,17,4,18],[4,19,4,20],[6,43,6,44],[6,21,6,22],[6,23,6,24],[6,25,6,26],[6,27,6,28],[6,29,6,30],[6,31,6,32],[5,43,5,44],[6,1,6,4],[6,5,6,6],[6,7,6,8],[6,9,6,10],[6,11,6,12],[6,13,6,14],[6,15,6,16],[6,17,6,18],[6,19,6,20],[5,31,5,32],[5,33,5,34],[5,35,5,36],[5,37,5,38],[5,39,5,40],[5,41,5,42],[5,19,5,20],[7,7,7,8],[7,9,7,10],[7,11,7,12],[7,13,7,14],[6,33,6,34],[6,35,6,36],[6,37,6,38],[6,39,6,40],[6,41,6,42],[7,39,7,40],[7,41,7,42],[7,43,7,44],[8,1,8,4],[8,5,8,6],[8,7,8,8],[8,9,8,10],[8,11,8,12],[8,13,8,14],[8,15,8,16],[7,27,7,28],[7,29,7,30],[7,31,7,32],[7,33,7,34],[7,35,7,36],[7,37,7,38],[7,15,7,16],[7,17,7,18],[7,19,7,20],[7,21,7,22],[7,23,7,24],[7,25,7,26],[7,1,7,4],[7,5,7,6],[8,41,8,42],[8,43,8,44],[9,1,9,4],[9,5,9,6],[9,7,9,8],[9,9,9,10],[9,11,9,12],[9,13,9,14],[9,15,9,16],[9,17,9,18],[8,29,8,30],[8,31,8,32],[8,33,8,34],[8,35,8,36],[8,37,8,38],[8,39,8,40],[8,17,8,18],[8,19,8,20],[8,21,8,22],[8,23,8,24],[8,25,8,26],[8,27,8,28],[9,43,9,44],[10,1,10,4],[10,5,10,6],[10,7,10,8],[10,9,10,10],[10,11,10,12],[10,13,10,14],[10,15,10,16],[10,17,10,18],[10,19,10,20],[9,31,9,32],[9,33,9,34],[9,35,9,36],[9,37,9,38],[9,39,9,40],[9,41,9,42],[9,19,9,20],[9,21,9,22],[9,23,9,24],[9,25,9,26],[9,27,9,28],[9,29,9,30],[10,39,10,40],[10,41,10,42],[10,43,10,44],[10,21,10,22],[10,23,10,24],[10,25,10,26],[10,27,10,28],[10,29,10,30],[10,31,10,32],[11,1,12,1],[11,2,11,4],[11,5,12,5],[11,6,12,6],[11,7,12,7],[11,8,12,8],[10,33,10,34],[10,35,10,36],[10,37,10,38],[11,15,12,15],[11,16,12,16],[11,17,12,17],[11,18,12,18],[11,19,12,19],[11,20,12,20],[11,9,12,9],[11,10,12,10],[11,11,12,11],[11,12,12,12],[11,13,12,13],[11,14,12,14],[11,27,12,27],[11,28,12,28],[11,29,12,29],[11,30,12,30],[11,31,12,31],[11,32,12,32],[11,21,12,21],[11,22,12,22],[11,23,12,23],[11,24,12,24],[11,25,12,25],[11,26,12,26],[11,39,12,39],[11,40,12,40],[11,41,12,41],[11,42,12,42],[11,43,12,43],[11,44,12,44],[11,33,12,33],[11,34,12,34],[11,35,12,35],[11,36,12,36],[11,37,12,37],[11,38,12,38]]}
["Systeem voor de \"emissie\" van koelenergie"]
[]
[]
[]
[null,"Aantal uitrustingen te controleren :",null,null,null,1,null,2,null,3,null,4,null,5,null,6,null,7,null,8,null,9,null,10,null,11,null,12,null,13,null,14,null,15,null,16,null,17,null,18,null,19,null,20]
[null,"Gegevens van deze eenheid",null,null,null,null,null,null,null,null,null,null,null,null,null,null,null,null,null,null,null,null,null,null,null,null,null,null,null,null,null,null,null,null,null,null,null,null,null,null,null,null,null,null,null,null,"Type d'émetteur"]
[null,"Klantreferentie (TAG name, P&ID number)",null,null,null,null,null,null,null,null,null,null,null,null,null,null,null,null,null,null,null,null,null,null,null,null,null,null,null,null,null,null,null,null,null,null,null,null,null,null,null,null,null,null,null,null,{"$f":"Sysclim!A31","v":"Ventiloconvectoren"}]
[null,"Type uitrusting",null,null,null,null,null,null,null,null,null,null,null,null,null,null,null,null,null,null,null,null,null,null,null,null,null,null,null,null,null,null,null,null,null,null,null,null,null,null,null,null,null,null,null,null,{"$f":"Sysclim!A32","v":"Cassettes in vals plafond"}]
[null,"Plaats (verdiep, bureelnummer)",null,null,null,null,null,null,null,null,null,null,null,null,null,null,null,null,null,null,null,null,null,null,null,null,null,null,null,null,null,null,null,null,null,null,null,null,null,null,null,null,null,null,null,null,{"$f":"Sysclim!A33","v":"Vloer plafond wandkoeling (watervoerend)"}]
[null,"Fabrikant",null,null,null,null,null,null,null,null,null,null,null,null,null,null,null,null,null,null,null,null,null,null,null,null,null,null,null,null,null,null,null,null,null,null,null,null,null,null,null,null,null,null,null,null,{"$f":"Sysclim!A34","v":"Betonkeractivering"}]
[null,"Model",null,null,null,null,null,null,null,null,null,null,null,null,null,null,null,null,null,null,null,null,null,null,null,null,null,null,null,null,null,null,null,null,null,null,null,null,null,null,null,null,null,null,null,null,{"$f":"Sysclim!A35","v":"Directe verdamping (vloer-, muur- of plafondkoeling)"}]
[null,"Controle van het onderhoud","Type van gegevens",null,null,"Resultaten van de controle","Observaties en meetresultaten","Resultaten van de controle","Observaties en meetresultaten","Resultaten van de controle","Observaties en meetresultaten","Resultaten van de controle","Observaties en meetresultaten","Resultaten van de controle","Observaties en meetresultaten","Resultaten van de controle","Observaties en meetresultaten","Resultaten van de controle","Observaties en meetresultaten","Resultaten van de controle","Observaties en meetresultaten","Resultaten van de controle","Observaties en meetresultaten","Resultaten van de controle","Observaties en meetresultaten","Resultaten van de controle","Observaties en meetresultaten","Resultaten van de controle","Observaties en meetresultaten","Resultaten van de controle","Observaties en meetresultaten","Resultaten van de controle","Observaties en meetresultaten","Resultaten van de controle","Observaties en meetresultaten","Resultaten van de controle","Observaties en meetresultaten","Resultaten van de controle","Observaties en meetresultaten","Resultaten van de controle","Observaties en meetresultaten","Resultaten van de controle","Observaties en meetresultaten","Resultaten van de controle","Observaties en meetresultaten",null,{"$f":"Sysclim!A36","v":"Passieve koelbalken"}]
[null,null,null,null,null,null,null,null,null,null,null,null,null,null,null,null,null,null,null,null,null,null,null,null,null,null,null,null,null,null,null,null,null,null,null,null,null,null,null,null,null,null,null,null,null,"ok",{"$f":"Sysclim!A37","v":"Actieve koelbalken"}]
[null,"Meting van de temperatuur in vertrekleiding van dat circuit",null,null,"x",null,0,null,0,null,0,null,0,null,0,null,0,null,0,null,0,null,0,null,0,null,0,null,0,null,0,null,0,null,0,null,0,null,0,null,0,null,0,null,0,"niet ok",{"$f":"Sysclim!A38","v":"Ejectoconvectoren"}]
[null,"Meting van de temperatuur in retourleiding van dat circuit",null,null,"x",null,0,null,0,null,0,null,0,null,0,null,0,null,0,null,0,null,0,null,0,null,0,null,0,null,0,null,0,null,0,null,0,null,0,null,0,null,0,null,0,"niet van toepassing",{"$f":"Sysclim!A39","v":"Koelbatterij in luchtgroep"}]
[null,"Meting van de buitentemperatuur",null,null,"x",null,0,null,0,null,0,null,0,null,0,null,0,null,0,null,0,null,0,null,0,null,0,null,0,null,0,null,0,null,0,null,0,null,0,null,0,null,0,null,0,null,{"$f":"Sysclim!A40","v":"Koelbatterij in luchtkanalen"}]
[null,"Meting van de omgevingstemperatuur",null,null,"x",null,0,null,0,null,0,null,0,null,0,null,0,null,0,null,0,null,0,null,0,null,0,null,0,null,0,null,0,null,0,null,0,null,0,null,0,null,0,null,0,null,{"$f":"Sysclim!A41","v":"Binnen unit monosplit"}]
[null,"Controle van de netheid van de condensaatopvangbak en werkingscontrole van de condensaatafvoerpomp (indien aanwezig)",null,"x",null,null,null,null,null,null,null,null,null,null,null,null,null,null,null,null,null,null,null,null,null,null,null,null,null,null,null,null,null,null,null,null,null,null,null,null,null,null,null,null,null,null,{"$f":"Sysclim!A42","v":"Binnen unit multisplit"}]
[null,"Controle van de reiniging en de vulling van de sifons (indien aanwezig)",null,"x",null,null,null,null,null,null,null,null,null,null,null,null,null,null,null,null,null,null,null,null,null,null,null,null,null,null,null,null,null,null,null,null,null,null,null,null,null,null,null,null,null,null,{"$f":"Sysclim!A43","v":"Klimaatkast"}]
[null,"Controle van de ventilator: geluid, trillingen, debiet van de inblaaslucht (werking van de eventuele snelheidsschakelaar)",null,"x"]
[null,"De luchtfilter visueel op vuil controleren (indien aanwezig)",null,"x"]
[null,"Visuele controle van de netheid van deze emissiebron (indien bereikbaar)",null,"x"]

{"sheet":"Sysclim","index":27,"n_rows":76,"n_cols":37,"rows_kept":76,"cut":false,"hidden":true,"merged":[[11,0,11,13],[12,0,12,13],[14,0,14,13],[15,0,15,13],[16,0,16,13],[17,0,17,13],[30,0,30,13],[31,0,31,13],[21,0,21,13],[13,0,13,13],[25,0,25,13],[14,16,14,18],[13,16,13,18],[10,16,10,18],[10,19,10,22],[11,16,11,18],[11,19,11,22],[12,16,12,18],[12,19,12,22],[13,19,13,22],[18,16,18,18],[18,19,18,22],[19,16,19,18],[19,19,19,22],[20,16,20,18],[20,19,20,22],[21,16,21,18],[18,0,18,13],[19,0,19,13],[20,0,20,13],[10,0,10,13],[76,0,76,13],[75,16,75,18],[74,16,74,18],[59,16,59,18],[59,20,59,22],[0,24,0,25],[55,16,55,18],[51,16,51,18],[51,20,51,22],[52,16,52,18],[53,16,53,18],[54,16,54,18],[42,16,42,18],[47,1,47,14],[49,0,49,13],[33,16,33,18],[34,16,34,18],[35,16,35,18],[32,16,32,18],[22,0,22,14],[22,16,22,19],[24,0,24,13],[24,16,24,18],[71,16,71,18],[72,20,72,22],[72,16,72,18],[73,20,73,22],[73,16,73,18],[74,20,74,22],[68,16,68,18],[69,20,69,22],[69,16,69,18],[70,20,70,22],[70,16,70,18],[71,20,71,22],[66,16,66,18],[66,19,66,22],[58,16,58,18],[50,16,50,18],[50,20,50,22],[60,16,60,18],[60,20,60,22],[61,0,61,13],[61,16,61,18],[61,19,61,22],[63,16,63,18],[64,16,64,18],[64,20,64,22],[66,0,66,13],[59,0,59,13],[57,0,57,13],[58,0,58,13],[60,0,60,13],[64,0,64,13],[62,0,62,13],[63,0,63,13],[41,16,41,18],[36,16,36,18],[37,16,37,18],[38,16,38,18],[14,19,14,22],[15,16,15,18],[15,19,15,22],[26,0,26,13],[16,16,16,18],[16,19,16,22],[17,16,17,18],[17,19,17,22],[39,16,39,18],[40,16,40,18],[34,0,34,13],[35,0,35,13],[25,16,25,18],[30,16,30,18],[31,16,31,18],[26,16,26,18],[28,0,28,14],[23,0,23,14],[29,0,29,14],[32,0,32,13],[3,7,3,8],[5,8,5,9],[8,0,8,14],[8,16,8,18],[9,16,9,18],[9,19,9,22],[8,19,8,22],[6,16,6,17],[5,0,5,7],[9,0,9,13],[7,0,7,22],[41,0,41,13],[36,0,36,13],[37,0,37,13],[38,0,38,13],[39,0,39,13],[40,0,40,13],[33,0,33,13],[55,0,55,13],[51,0,51,13],[52,0,52,13],[53,0,53,13],[54,0,54,13],[50,0,50,13],[75,0,75,13],[72,0,72,13],[73,0,73,13],[74,0,74,13],[69,0,69,13],[70,0,70,13],[71,0,71,13],[68,0,68,13],[42,0,42,13]]}
[]
[]
[null,null,null,null,null,null,null,null,null,null,null,null,null,null,null,null,null,null,null,null,null,null,null,null,null,"ja"]
[null,null,null,null,null,null,null,null,null,null,null,null,null,null,null,null,null,null,null,null,null,null,null,null,null,"nee"]
[]
["Effectief nominaal vermogen",null,null,null,null,null,null,null,{"$f":"SUM(T10:T20)","v":0},null,"kW"]
["Totaal vermogen van de ijswaterproductiegroepen:",null,null,null,null,null,null,null,null,null,null,null,null,null,null,null,{"$f":"SUM(T10,T11,T12,T16,T18,T20)","v":0},null,"kW"]
["Wanneer een aantal uitrustingen wordt ingebracht of verwijderd, \"bereidt\" de software de tabbladen voor de controle van het onderhoud voor: het aantal kolommen dat gelijk is aan het aantal steekproeven wordt getoond en de inhoud van de kolommen die niet worden weergegeven wordt gewist."]
["Hoofdcomponenten\n\nSysteem voor de productie van koelenergie",null,null,null,null,null,null,null,null,null,null,null,null,null,null,null,"Aantal eenheden",null,null,"Totaal koelvermogen (kW)",null,null,null,null,null,null,null,null,null,null,null,"répartition"]
["IJswaterproductiemachine met luchtcondensor",null,null,null,null,null,null,null,null,null,null,null,null,null,null,null,null,null,null,null,null,null,null,null,null,null,null,null,null,null,null,{"$f":"IF($Y$21>0,ROUND(Q10/$Y$21*$AG$21,0),0)","v":0}]
["IJswaterproductiemachine met watercondensor",null,null,null,null,null,null,null,null,null,null,null,null,null,null,null,null,null,null,null,null,null,null,null,null,null,null,null,null,null,null,{"$f":"IF($Y$21>0,ROUND(Q11/$Y$21*$AG$21,0),0)","v":0}]
["IJswaterproductiemachine met condensor op afstand",null,null,null,null,null,null,null,null,null,null,null,null,null,null,null,null,null,null,null,null,null,null,null,null,null,null,null,null,null,null,0]
["Condensing unit van monosplit",null,null,null,null,null,null,null,null,null,null,null,null,null,null,null,null,null,null,null,null,null,null,null,null,null,null,null,null,null,null,0]
["Condensing unit van multisplit",null,null,null,null,null,null,null,null,null,null,null,null,null,null,null,null,null,null,null,null,null,null,null,null,null,null,null,null,null,null,0]
["Lucht/lucht warmtepomp",null,null,null,null,null,null,null,null,null,null,null,null,null,null,null,null,null,null,null,null,null,null,null,null,null,null,null,null,null,null,0]
["Lucht/water warmtepomp",null,null,null,null,null,null,null,null,null,null,null,null,null,null,null,null,null,null,null,null,null,null,null,null,null,null,null,null,null,null,0]
["Water/lucht warmtepomp ",null,null,null,null,null,null,null,null,null,null,null,null,null,null,null,null,null,null,null,null,null,null,null,null,null,null,null,null,null,null,0]
["Water/water warmtepomp",null,null,null,null,null,null,null,null,null,null,null,null,null,null,null,null,null,null,null,null,null,null,null,null,null,null,null,null,null,null,0]
["Bodem/lucht warmtepomp",null,null,null,null,null,null,null,null,null,null,null,null,null,null,null,null,null,null,null,null,null,null,null,null,null,null,null,null,null,null,0]
["Bodem/water warmtepomp",null,null,null,null,null,null,null,null,null,null,null,null,null,null,null,null,null,null,null,null,null,null,null,null,null,null,null,null,null,null,0]
["Absorptiekoelmachine",null,null,null,null,null,null,null,null,null,null,null,null,null,null,null,null,null,null,null,null,null,null,null,{"$f":"SUM(Q10:S20)","v":0},{"$f":"IF(Y21>=100,10,0)","v":0},{"$f":"IF(AND(Y21>=50,Y21<100),7,0)","v":0},{"$f":"IF(AND(Y21>=10,Y21<50),4,0)","v":0},{"$f":"IF(AND(Y21>=5,Y21<10),2,0)","v":0},{"$f":"IF(AND(Y21>=1,Y21<5),1,0)","v":0},null,null,{"$f":"SUM(Z21:AD21)","v":0},"F",10,87,"machine_frigo"]
["Koeltoren(s) of luchtkoeler(s) aanwezig",null,null,null,null,null,null,null,null,null,null,null,null,null,null,null,null,null,null,null,null,null,null,null,null,null,null,null,null,null,null,null,"x","depart","x_\nmax","l_max"]
[]
["Systeem voor de distributie van koelenergie",null,null,null,null,null,null,null,null,null,null,null,null,null,null,null,"Aanwezige systemen"]
["Luchtkanalen"]
["Ijswaterkring"]
["Koelmiddelverdelingssysteem"]
[null,null,null,null,null,null,null,null,null,null,null,null,null,null,null,null," "]
[]
["Systeem voor de emissie van koelenergie",null,null,null,null,null,null,null,null,null,null,null,null,null,null,null,"Aantal eenheden",null,null,null,null,null,null,null,null,null,null,null,null,null,null,"répartition"]
["Ventiloconvectoren",null,null,null,null,null,null,null,null,null,null,null,null,null,null,null,null,null,null,null,null,null,null,null,null,null,null,null,null,null,null,{"$f":"IF($Y$44>0,ROUND(Q31/$Y$44*$AG$44,0),0)","v":0}]
["Cassettes in vals plafond",null,null,null,null,null,null,null,null,null,null,null,null,null,null,null,null,null,null,null,null,null,null,null,null,null,null,null,null,null,null,{"$f":"IF($Y$44>0,ROUND(Q32/$Y$44*$AG$44,0),0)","v":0}]
["Vloer plafond wandkoeling (watervoerend)",null,null,null,null,null,null,null,null,null,null,null,null,null,null,null,null,null,null,null,null,null,null,null,null,null,null,null,null,null,null,0]
["Betonkeractivering",null,null,null,null,null,null,null,null,null,null,null,null,null,null,null,null,null,null,null,null,null,null,null,null,null,null,null,null,null,null,0]
["Directe verdamping (vloer-, muur- of plafondkoeling)",null,null,null,null,null,null,null,null,null,null,null,null,null,null,null,null,null,null,null,null,null,null,null,null,null,null,null,null,null,null,0]
["Passieve koelbalken",null,null,null,null,null,null,null,null,null,null,null,null,null,null,null,null,null,null,null,null,null,null,null,null,null,null,null,null,null,null,0]
["Actieve koelbalken",null,null,null,null,null,null,null,null,null,null,null,null,null,null,null,null,null,null,null,null,null,null,null,null,null,null,null,null,null,null,0]
["Ejectoconvectoren",null,null,null,null,null,null,null,null,null,null,null,null,null,null,null,null,null,null,null,null,null,null,null,null,null,null,null,null,null,null,0]
["Koelbatterij in luchtgroep",null,null,null,null,null,null,null,null,null,null,null,null,null,null,null,null,null,null,null,null,null,null,null,null,null,null,null,null,null,null,0]
["Koelbatterij in luchtkanalen",null,null,null,null,null,null,null,null,null,null,null,null,null,null,null,null,null,null,null,null,null,null,null,null,null,null,null,null,null,null,0]
["Binnen unit monosplit",null,null,null,null,null,null,null,null,null,null,null,null,null,null,null,null,null,null,null,null,null,null,null,null,null,null,null,null,null,null,0]
["Binnen unit multisplit",null,null,null,null,null,null,null,null,null,null,null,null,null,null,null,null,null,null,null,null,null,null,null,null,null,null,null,null,null,null,0]
["Klimaatkast",null,null,null,null,null,null,null,null,null,null,null,null,null,null,null,null,null,null,null,null,null,null,null,null,null,null,null,null,null,null,0]
[null,null,null,null,null,null,null,null,null,null,null,null,null,null,null,null," ",null,null,null,null,null,null,null,{"$f":"SUM(Q31:S43)","v":0},{"$f":"IF(Y44>=500,20,0)","v":0},{"$f":"IF(AND(Y44>=100,Y44<500),10,0)","v":0},{"$f":"IF(AND(Y44>=50,Y44<100),7,0)","v":0},{"$f":"IF(AND(Y44>=10,Y44<50),4,0)","v":0},{"$f":"IF(AND(Y44>1,Y44<10),2,0)","v":0},{"$f":"IF(Y44=1,1,0)","v":0},null,{"$f":"SUM(Z44:AE44)","v":0},"F",20,22,"emetteurs"]
["(ac) contrôle sur base du canevas des émetteurs \"accessibles\""]
["(in) contrôle sur base du canevas des émetteurs \"inaccessibles\""]
[null,null,null,null,null,null,null,null,null,null,null,null,null,null,null,null,null,null,null,null,null,null,null,null,null,null,null,null,null,null,null,null,"x","depart","x_\nmax","l_max"]
[null,"Andere componenten",null,null,null,null,null,null,null,null,null,null,null,null,null,null," "]
[null,null,null,null,null,null,null,null,null,null,null,null,null,null,null,null," "]
["Ventilatie",null,null,null,null,null,null,null,null,null,null,null,null,null,null,null,"Aantal eenheden"]
["Pulsiegroep",null,null,null,null,null,null,null,null,null,null,null,null,null,null,null,null,null,null,null,null,null,null,null,null,{"$f":"IF(Q51>=100,10,0)","v":0},{"$f":"IF(AND(Q51>=50,Q51<100),7,0)","v":0},{"$f":"IF(AND(Q51>=10,Q51<50),4,0)","v":0},{"$f":"IF(AND(Q51>=5,Q51<10),2,0)","v":0},{"$f":"IF(AND(Q51<5,Q51>=1),1,0)","v":0},null,null,{"$f":"SUM(Z51:AE51)","v":0},"F",10,62,"GP"]
["Extractiegroep",null,null,null,null,null,null,null,null,null,null,null,null,null,null,null,null,null,null,null,null,null,null,null,null,{"$f":"IF(Q52>=100,10,0)","v":0},{"$f":"IF(AND(Q52>=50,Q52<100),7,0)","v":0},{"$f":"IF(AND(Q52>=10,Q52<50),4,0)","v":0},{"$f":"IF(AND(Q52>=5,Q52<10),2,0)","v":0},{"$f":"IF(AND(Q52<5,Q52>=1),1,0)","v":0},null,null,{"$f":"SUM(Z52:AE52)","v":0},"F",10,37,"GE"]
["Luchtkleppen en schuiven (buiten de luchtgroepen)",null,null,null,null,null,null,null,null,null,null,null,null,null,null,null,null,null,null,null,null,null,null,null,null,{"$f":"IF(Q53>=100,4,0)","v":0},{"$f":"IF(AND(Q53>=50,Q53<100),2,0)","v":0},{"$f":"IF(AND(Q53>=10,Q53<50),1,0)","v":0},{"$f":"IF(AND(Q53>=5,Q53<10),1,0)","v":0},{"$f":"IF(AND(Q53<5,Q53>=1),1,0)","v":0},null,null,0,"F",4,14,"Clapets"]
["Aanzuig- en afblaasroosters",null,null,null,null,null,null,null,null,null,null,null,null,null,null,null,null,null,null,null,null,null,null,null,null,{"$f":"IF(Q54>=100,4,0)","v":0},{"$f":"IF(AND(Q54>=50,Q54<100),2,0)","v":0},{"$f":"IF(AND(Q54>=10,Q54<50),1,0)","v":0},{"$f":"IF(AND(Q54>=5,Q54<10),1,0)","v":0},{"$f":"IF(AND(Q54<5,Q54>=1),1,0)","v":0},null,null,0,"F",4,12,"Grilles"]
["Pulsie en extractie monden",null,null,null,null,null,null,null,null,null,null,null,null,null,null,null,null,null,null,null,null,null,null,null,null,{"$f":"IF(Q55>=100,10,0)","v":0},{"$f":"IF(AND(Q55>=50,Q55<100),7,0)","v":0},{"$f":"IF(AND(Q55>=10,Q55<50),4,0)","v":0},{"$f":"IF(AND(Q55>=5,Q55<10),2,0)","v":0},{"$f":"IF(AND(Q55<5,Q55>1),2,0)","v":0},{"$f":"IF(Q55=1,1,0)","v":0},null,0,"F",10,12,"Bouches"]
["Canadese/Provençaalse put",null,null,null,null,null,null,null,null,null,null,null,null,null,null,null,null,null,null,null,null,null,null,null,null,0,null,null,null,null,null,null,0,"F"]
[null,null,null,null,null,null,null,null,null,null,null,null,null,null,null,null," "]
["Warmteterugwinningsysteem",null,null,null,null,null,null,null,null,null,null,null,null,null,null,null,"Aantal eenheden"]
["Lucht/lucht warmtewisselaar en heatpipe"]
["Warmteterugwinningsysteem met een gesloten kring"]
["Warmtewiel (Roterende systemen)",null,null,null,null,null,null,null,null,null,null,null,null,null,null,null,null,null,null,null,null,null,null,null,{"$f":"SUM(Q59:S61)","v":0},{"$f":"IF(Y61>=100,4,0)","v":0},{"$f":"IF(AND(Y61>=50,Y61<100),2,0)","v":0},{"$f":"IF(AND(Y61>=10,Y61<50),1,0)","v":0},{"$f":"IF(AND(Y61>=5,Y61<10),1,0)","v":0},{"$f":"IF(AND(Y61<5,Y61>=1),1,0)","v":0},null,null,0,"F",4,19,"Récup"]
[null,null,null,null,null,null,null,null,null,null,null,null,null,null,null,null," "]
["Luchtbevochtigers",null,null,null,null,null,null,null,null,null,null,null,null,null,null,null,"Aantal eenheden"]
["Adiabatische bevochtigers"]
["Stoombevochtigers",null,null,null,null,null,null,null,null,null,null,null,null,null,null,null,null,null,null,null,null,null,null,null,{"$f":"SUM(Q64:S65)","v":0},{"$f":"IF(Y65>=100,10,0)","v":0},{"$f":"IF(AND(Y65>=50,Y65<100),7,0)","v":0},{"$f":"IF(AND(Y65>=10,Y65<50),4,0)","v":0},{"$f":"IF(AND(Y65>=5,Y65<10),2,0)","v":0},{"$f":"IF(AND(Y65<5,Y65>=1),1,0)","v":0},null,null,{"$f":"SUM(Z65:AE65)","v":0},"F",10,25,"Humid"]
[]
[null,null,null,null,null,null,null,null,null,null,null,null,null,null,null,null," "]
[null,null,null,null,null,null,null,null,null,null,null,null,null,"Andere",null,null,"Aantal eenheden"]
["Warmtewisselaar",null,null,null,null,null,null,null,null,null,null,null,null,null,null,null,null,null,null,null,null,null,null,null,null,{"$f":"IF(Q69>=5,2,0)","v":0},{"$f":"IF(AND(Q69<5,Q69>=1),1,0)","v":0},null,null,null,null,null,0,"F",2,19,"Echangeur"]
["Waterbehandelingsinstallatie op suppletiewater",null,null,null,null,null,null,null,null,null,null,null,null,null,null,null,null,null,null,null,null,null,null,null,null,{"$f":"IF(Q70>=5,2,0)","v":0},{"$f":"IF(AND(Q70<5,Q70>=1),1,0)","v":0},null,null,null,null,null,0,"F",2,13,"Appoint"]
["Pompen en circulatoren",null,null,null,null,null,null,null,null,null,null,null,null,null,null,null,null,null,null,null,null,null,null,null,null,{"$f":"IF(Q71>=100,7,0)","v":0},{"$f":"IF(AND(Q71>=50,Q71<100),5,0)","v":0},{"$f":"IF(AND(Q71>=10,Q71<50),3,0)","v":0},{"$f":"IF(AND(Q71>=5,Q71<10),1,0)","v":0},{"$f":"IF(AND(Q71<5,Q71>=1),1,0)","v":0},null,null,0,"F",7,22,"Pompe"]
["Expansiesystemen",null,null,null,null,null,null,null,null,null,null,null,null,null,null,null,null,null,null,null,null,null,null,null,null,{"$f":"IF(Q72>=5,2,0)","v":0},{"$f":"IF(AND(Q72<5,Q72>=1),1,0)","v":0},null,null,null,null,null,0,"F",2,13,"Expans"]
["Filter, deeltjes en slib-afscheiders",null,null,null,null,null,null,null,null,null,null,null,null,null,null,null,null,null,null,null,null,null,null,null,null,{"$f":"IF(Q73>=5,2,0)","v":0},{"$f":"IF(AND(Q73<5,Q73>=1),1,0)","v":0},null,null,null,null,null,0,"F",2,18,"Filtre"]
["Ontluchter, microbellenafscheider, automatische ontgassingssysteem",null,null,null,null,null,null,null,null,null,null,null,null,null,null,null,null,null,null,null,null,null,null,null,null,{"$f":"IF(Q74>=5,2,0)","v":0},{"$f":"IF(AND(Q74<5,Q74>=1),1,0)","v":0},null,null,null,null,null,0,"F",2,16,"Purgeur_air"]
["Koude opslag",null,null,null,null,null,null,null,null,null,null,null,null,null,null,null,null,null,null,null,null,null,null,null,null,{"$f":"IF(Q75>=1,1,0)","v":0},null,null,null,null,null,null,0,"F",1,11,"stockage_déstockage"]
["Watercircuits (ijswater, glycolkring, koelwaterkring, luchtcondensoren)",null,null,null,null,null,null,null,null,null,null,null,null,null,null,null,null,null,null,null,null,null,null,null,null,{"$f":"IF(Q76>=5,2,0)","v":0},{"$f":"IF(AND(Q76<5,Q76>=1),1,0)","v":0},null,null,null,null,null,0,"F",2,16,"Circuit_eau"]

{"sheet":"Dimensionnement","index":28,"n_rows":29,"n_cols":20,"rows_kept":29,"cut":false,"hidden":true,"merged":[[8,0,8,8],[13,0,13,8],[14,0,14,8],[15,0,15,8],[18,0,18,8],[21,0,21,8],[24,0,24,10],[45,0,45,4],[44,0,44,4],[35,0,35,4],[29,6,29,9],[31,0,31,4],[32,0,32,4],[33,0,33,4],[34,0,34,4],[40,0,40,4],[41,0,41,4],[43,0,43,4],[36,0,36,4],[37,0,37,4],[38,0,38,4],[39,0,39,4],[42,0,42,4],[46,0,46,4],[54,0,54,4],[48,0,48,4],[49,0,49,4],[50,0,50,4],[51,0,51,4],[52,0,52,4],[53,0,53,4],[47,0,47,4]]}
[]
[]
["Beoordeling van de dimensionering van het klimaatregelingssysteem"]
[]
["Bruto oppervlakte van het beschermd volume",null,null,null,null,null,null,null,null,"m2",{"$f":"batiment_admin!C73","v":0}]
["Netto oppervlakte geklimatiseerde ruimtes",null,null,null,null,null,null,null,null,"m2",{"$f":"batiment_admin!C74","v":0}]
[null,null,null,null,null,null,null,null,null,null,null,null,"Beoordeling",null,"zeer laag","laag","hoog","zeer hoog"]
["Jaarlijks gemiddeld totaal stroomverbruik",null,null,null,null,null,null,null,null,"kWh/jaar",{"$f":"IF(SUM(Consommations!D9:D13)>0,AVERAGEIF(Consommations!D9:D13,\">0\"),\"\")","v":""}]
["Specifiek stroomverbruik in verhouding tot de bruto-oppervlakte\nvan het beschermd volume",null,null,null,null,null,null,null,null,"kWh/m2.jaar",{"$f":"IF(AND(K8<>\"\",K5<>\"\",K8>0,K5>0),K8/K5,\"\")","v":""},null,{"$f":"IF(K9=\"\",\"\",IF(K9<O9,O7,IF(K9<P9,P7,IF(K9>R9,R7,IF(K9>Q9,Q7,\"gemiddeld\")))))","v":""},null,50,80,140,170]
[]
["Jaarlijks gemiddeld stroomverbruik van de koelinstallaties",null,null,null,null,null,null,null,null,"kWh/jaar",{"$f":"IF(SUM(Consommations!D20:D24)>0,AVERAGEIF(Consommations!D20:D24,\">0\"),\"\")","v":""}]
["Jaarlijks stroomverbruik van de koeltorens en luchtkoelers",null,null,null,null,null,null,null,null,"kWh/jaar",{"$f":"IF(SUM(Consommations!D29:D33)>0,AVERAGEIF(Consommations!D29:D33,\">0\"),\"\")","v":""}]
["Jaarlijks gemiddeld stroomverbruik van de ventilatoren",null,null,null,null,null,null,null,null,"kWh/jaar",{"$f":"IF(SUM(Consommations!G29:G33)>0,AVERAGEIF(Consommations!G29:G33,\">0\"),\"\")","v":""}]
["Aandeel van het stroomverbruik dat voor rekening komt van\nde \"productie van koud\"",null,null,null,null,null,null,null,null,"%",{"$f":"IF(Sysclim!Q22=\"ja\",IF(AND(K12<>\"\",K11<>\"\",K8<>\"\",K12>0,K11>0,K8>0),(K11+K12)*100/K8,\"\"),IF(AND(K11<>\"\",K8<>\"\",K11>0,K8>0),K11*100/K8,\"\"))","v":""}]
["Specifiek stroomverbruik van de \"productie van koud\" in verhouding tot de bruto oppervlakte van het beschermd volume",null,null,null,null,null,null,null,null,"kWh/m2.jaar",{"$f":"IF(Sysclim!Q22=\"ja\",IF(AND(K12<>\"\",K11<>\"\",K5<>\"\",K12>0,K11>0,K5>0),(K11+K12)/K5,\"\"),IF(AND(K11<>\"\",K5<>\"\",K11>0,K5>0),K11/K5,\"\"))","v":""},null,{"$f":"IF(K15=\"\",\"\",IF(K15<O15,O7,IF(K15<P15,P7,IF(K15>R15,R7,IF(K15>Q15,Q7,\"gemiddeld\")))))","v":""},null,10,20,40,50]
["Specifiek stroomverbruik van de \"productie van koud\" in verhouding tot de netto oppervlakte van de geklimatiseerde ruimtes",null,null,null,null,null,null,null,null,"kWh/m2.jaar",{"$f":"IF(Sysclim!Q22=\"ja\",IF(AND(K12<>\"\",K11<>\"\",K6<>\"\",K12>0,K11>0,K6>0),(K11+K12)/K6,\"\"),IF(AND(K11<>\"\",K6<>\"\",K11>0,K6>0),K11/K6,\"\"))","v":""}]
[]
["Effectief nominaal vermogen van het klimaatregelingsysteem",null,null,null,null,null,null,null,null,"kW",{"$f":"Sysclim!I6","v":0}]
["Specifieke vermogen van het klimaatregelingssysteem\n(gedeeld door de netto oppervlakte van de geklimatiseerde ruimtes)",null,null,null,null,null,null,null,null,"W/m2",{"$f":"IF(AND(K18<>\"\",K6<>\"\",K18>0,K6>0),K18*1000/K6,\"\")","v":""},null,{"$f":"IF(K19=\"\",\"\",IF(K19<O19,O7,IF(K19<P19,P7,IF(K19>R19,R7,IF(K19>Q19,Q7,\"gemiddeld\")))))","v":""},null,50,75,125,150]
[]
["Elektrische vermogen van de koelinstallaties",null,null,null,null,null,null,null,null,"kW"]
["Aantal equivalente bedrijfsuren van het koelsysteem\nbij maximumvermogen ",null,null,null,null,null,null,null,null,"uren/an",{"$f":"IF(AND(K11<>\"\",K21<>\"\",K11>0,K21>0),K11/K21,\"\")","v":""},null,{"$f":"IF(K22=\"\",\"\",IF(K22<O22,O7,IF(K22<P22,P7,IF(K22>R22,R7,IF(K22>Q22,Q7,\"gemiddeld\")))))","v":""},null,500,750,1250,1500]
[]
["Commentaar over deze indicatoren"]
[null,null,null,null,null,null,null,null,null,null,null,null,null,null,null,null,null,null,null,{"$f":"A25","v":0}]
[]
["Legenda:",null,null,null,"Gegevens die moeten ingevoerd worden"]
[null,null,null,null,"Gegevens uit de vorige tabbladen"]
[null,null,null,null,"Resultaat van een berekening"]

{"sheet":"Sysclim (2)","index":29,"n_rows":76,"n_cols":37,"rows_kept":76,"cut":false,"hidden":true,"merged":[[8,0,8,14],[8,16,8,18],[8,19,8,22],[9,0,9,13],[9,16,9,18],[9,19,9,22],[0,24,0,25],[3,7,3,8],[5,0,5,7],[5,8,5,9],[6,16,6,17],[7,0,7,22],[12,0,12,13],[12,16,12,18],[12,19,12,22],[13,0,13,13],[13,16,13,18],[13,19,13,22],[10,0,10,13],[10,16,10,18],[10,19,10,22],[11,0,11,13],[11,16,11,18],[11,19,11,22],[16,0,16,13],[16,16,16,18],[16,19,16,22],[17,0,17,13],[17,16,17,18],[17,19,17,22],[14,0,14,13],[14,16,14,18],[14,19,14,22],[15,0,15,13],[15,16,15,18],[15,19,15,22],[20,19,20,22],[21,0,21,13],[21,16,21,18],[22,0,22,14],[22,16,22,19],[18,0,18,13],[18,16,18,18],[18,19,18,22],[19,0,19,13],[19,16,19,18],[19,19,19,22],[23,0,23,14],[24,0,24,13],[24,16,24,18],[25,0,25,13],[25,16,25,18],[26,0,26,13],[26,16,26,18],[20,0,20,13],[20,16,20,18],[32,0,32,13],[32,16,32,18],[33,0,33,13],[33,16,33,18],[34,0,34,13],[34,16,34,18],[28,0,28,14],[29,0,29,14],[30,0,30,13],[30,16,30,18],[31,0,31,13],[31,16,31,18],[38,0,38,13],[38,16,38,18],[39,0,39,13],[39,16,39,18],[40,0,40,13],[40,16,40,18],[35,0,35,13],[35,16,35,18],[36,0,36,13],[36,16,36,18],[37,0,37,13],[37,16,37,18],[50,0,50,13],[50,16,50,18],[50,20,50,22],[51,0,51,13],[51,16,51,18],[51,20,51,22],[41,0,41,13],[41,16,41,18],[42,0,42,13],[42,16,42,18],[47,1,47,14],[49,0,49,13],[55,0,55,13],[55,16,55,18],[57,0,57,13],[58,0,58,13],[58,16,58,18],[59,0,59,13],[59,16,59,18],[52,0,52,13],[52,16,52,18],[53,0,53,13],[53,16,53,18],[54,0,54,13],[54,16,54,18],[62,0,62,13],[63,0,63,13],[63,16,63,18],[64,0,64,13],[64,16,64,18],[64,20,64,22],[59,20,59,22],[60,0,60,13],[60,16,60,18],[60,20,60,22],[61,0,61,13],[61,16,61,18],[61,19,61,22],[70,0,70,13],[70,16,70,18],[70,20,70,22],[71,0,71,13],[71,16,71,18],[71,20,71,22],[66,0,66,13],[66,16,66,18],[66,19,66,22],[68,0,68,13],[68,16,68,18],[69,0,69,13],[69,16,69,18],[69,20,69,22],[74,0,74,13],[74,16,74,18],[74,20,74,22],[75,0,75,13],[75,16,75,18],[76,0,76,13],[72,0,72,13],[72,16,72,18],[72,20,72,22],[73,0,73,13],[73,16,73,18],[73,20,73,22]]}
[]
[]
[null,null,null,null,null,null,null,null,null,null,null,null,null,null,null,null,null,null,null,null,null,null,null,null,null,"ja"]
[null,null,null,null,null,null,null,null,null,null,null,null,null,null,null,null,null,null,null,null,null,null,null,null,null,"nee"]
[]
["Effectief nominaal vermogen",null,null,null,null,null,null,null,{"$f":"SUM(T10:T20)","v":0},null,"kW"]
["Totaal vermogen van de ijswaterproductiegroepen:",null,null,null,null,null,null,null,null,null,null,null,null,null,null,null,{"$f":"SUM(T10,T11,T12,T16,T18,T20)","v":0},null,"kW"]
["Wanneer een aantal uitrustingen wordt ingebracht of verwijderd, \"bereidt\" de software de tabbladen voor de controle van het onderhoud voor: het aantal kolommen dat gelijk is aan het aantal steekproeven wordt getoond en de inhoud van de kolommen die niet worden weergegeven wordt gewist."]
["Hoofdcomponenten\n\nSysteem voor de productie van koelenergie",null,null,null,null,null,null,null,null,null,null,null,null,null,null,null,"Aantal eenheden",null,null,"Totaal koelvermogen (kW)",null,null,null,null,null,null,null,null,null,null,null,"répartition"]
["IJswaterproductiemachine met luchtcondensor",null,null,null,null,null,null,null,null,null,null,null,null,null,null,null,null,null,null,null,null,null,null,null,null,null,null,null,null,null,null,{"$f":"IF($Y$21>0,ROUND(Q10/$Y$21*$AG$21,0),0)","v":0}]
["IJswaterproductiemachine met watercondensor",null,null,null,null,null,null,null,null,null,null,null,null,null,null,null,null,null,null,null,null,null,null,null,null,null,null,null,null,null,null,{"$f":"IF($Y$21>0,ROUND(Q11/$Y$21*$AG$21,0),0)","v":0}]
["IJswaterproductiemachine met condensor op afstand",null,null,null,null,null,null,null,null,null,null,null,null,null,null,null,null,null,null,null,null,null,null,null,null,null,null,null,null,null,null,0]
["Condensing unit van monosplit",null,null,null,null,null,null,null,null,null,null,null,null,null,null,null,null,null,null,null,null,null,null,null,null,null,null,null,null,null,null,0]
["Condensing unit van multisplit",null,null,null,null,null,null,null,null,null,null,null,null,null,null,null,null,null,null,null,null,null,null,null,null,null,null,null,null,null,null,0]
["Lucht/lucht warmtepomp",null,null,null,null,null,null,null,null,null,null,null,null,null,null,null,null,null,null,null,null,null,null,null,null,null,null,null,null,null,null,0]
["Lucht/water warmtepomp",null,null,null,null,null,null,null,null,null,null,null,null,null,null,null,null,null,null,null,null,null,null,null,null,null,null,null,null,null,null,0]
["Water/lucht warmtepomp ",null,null,null,null,null,null,null,null,null,null,null,null,null,null,null,null,null,null,null,null,null,null,null,null,null,null,null,null,null,null,0]
["Water/water warmtepomp",null,null,null,null,null,null,null,null,null,null,null,null,null,null,null,null,null,null,null,null,null,null,null,null,null,null,null,null,null,null,0]
["Bodem/lucht warmtepomp",null,null,null,null,null,null,null,null,null,null,null,null,null,null,null,null,null,null,null,null,null,null,null,null,null,null,null,null,null,null,0]
["Bodem/water warmtepomp",null,null,null,null,null,null,null,null,null,null,null,null,null,null,null,null,null,null,null,null,null,null,null,null,null,null,null,null,null,null,0]
["Absorptiekoelmachine",null,null,null,null,null,null,null,null,null,null,null,null,null,null,null,null,null,null,null,null,null,null,null,{"$f":"SUM(Q10:S20)","v":0},{"$f":"IF(Y21>=100,10,0)","v":0},{"$f":"IF(AND(Y21>=50,Y21<100),7,0)","v":0},{"$f":"IF(AND(Y21>=10,Y21<50),4,0)","v":0},{"$f":"IF(AND(Y21>=5,Y21<10),2,0)","v":0},{"$f":"IF(AND(Y21>=1,Y21<5),1,0)","v":0},null,null,{"$f":"SUM(Z21:AD21)","v":0},"F",10,87,"machine_frigo"]
["Koeltoren(s) of luchtkoeler(s) aanwezig",null,null,null,null,null,null,null,null,null,null,null,null,null,null,null,null,null,null,null,null,null,null,null,null,null,null,null,null,null,null,null,"x","depart","x_\nmax","l_max"]
[]
["Systeem voor de distributie van koelenergie",null,null,null,null,null,null,null,null,null,null,null,null,null,null,null,"Aanwezige systemen"]
["Luchtkanalen"]
["Ijswaterkring"]
["Koelmiddelverdelingssysteem"]
[null,null,null,null,null,null,null,null,null,null,null,null,null,null,null,null," "]
[]
["Systeem voor de emissie van koelenergie",null,null,null,null,null,null,null,null,null,null,null,null,null,null,null,"Aantal eenheden",null,null,null,null,null,null,null,null,null,null,null,null,null,null,"répartition"]
["Ventiloconvectoren",null,null,null,null,null,null,null,null,null,null,null,null,null,null,null,null,null,null,null,null,null,null,null,null,null,null,null,null,null,null,{"$f":"IF($Y$44>0,ROUND(Q31/$Y$44*$AG$44,0),0)","v":0}]
["Cassettes in vals plafond",null,null,null,null,null,null,null,null,null,null,null,null,null,null,null,null,null,null,null,null,null,null,null,null,null,null,null,null,null,null,{"$f":"IF($Y$44>0,ROUND(Q32/$Y$44*$AG$44,0),0)","v":0}]
["Vloer plafond wandkoeling (watervoerend)",null,null,null,null,null,null,null,null,null,null,null,null,null,null,null,null,null,null,null,null,null,null,null,null,null,null,null,null,null,null,0]
["Betonkeractivering",null,null,null,null,null,null,null,null,null,null,null,null,null,null,null,null,null,null,null,null,null,null,null,null,null,null,null,null,null,null,0]
["Directe verdamping (vloer-, muur- of plafondkoeling)",null,null,null,null,null,null,null,null,null,null,null,null,null,null,null,null,null,null,null,null,null,null,null,null,null,null,null,null,null,null,0]
["Passieve koelbalken",null,null,null,null,null,null,null,null,null,null,null,null,null,null,null,null,null,null,null,null,null,null,null,null,null,null,null,null,null,null,0]
["Actieve koelbalken",null,null,null,null,null,null,null,null,null,null,null,null,null,null,null,null,null,null,null,null,null,null,null,null,null,null,null,null,null,null,0]
["Ejectoconvectoren",null,null,null,null,null,null,null,null,null,null,null,null,null,null,null,null,null,null,null,null,null,null,null,null,null,null,null,null,null,null,0]
["Koelbatterij in luchtgroep",null,null,null,null,null,null,null,null,null,null,null,null,null,null,null,null,null,null,null,null,null,null,null,null,null,null,null,null,null,null,0]
["Koelbatterij in luchtkanalen",null,null,null,null,null,null,null,null,null,null,null,null,null,null,null,null,null,null,null,null,null,null,null,null,null,null,null,null,null,null,0]
["Binnen unit monosplit",null,null,null,null,null,null,null,null,null,null,null,null,null,null,null,null,null,null,null,null,null,null,null,null,null,null,null,null,null,null,0]
["Binnen unit multisplit",null,null,null,null,null,null,null,null,null,null,null,null,null,null,null,null,null,null,null,null,null,null,null,null,null,null,null,null,null,null,0]
["Klimaatkast",null,null,null,null,null,null,null,null,null,null,null,null,null,null,null,null,null,null,null,null,null,null,null,null,null,null,null,null,null,null,0]
[null,null,null,null,null,null,null,null,null,null,null,null,null,null,null,null," ",null,null,null,null,null,null,null,{"$f":"SUM(Q31:S43)","v":0},{"$f":"IF(Y44>=500,20,0)","v":0},{"$f":"IF(AND(Y44>=100,Y44<500),10,0)","v":0},{"$f":"IF(AND(Y44>=50,Y44<100),7,0)","v":0},{"$f":"IF(AND(Y44>=10,Y44<50),4,0)","v":0},{"$f":"IF(AND(Y44>1,Y44<10),2,0)","v":0},{"$f":"IF(Y44=1,1,0)","v":0},null,{"$f":"SUM(Z44:AE44)","v":0},"F",20,22,"emetteurs"]
["(ac) contrôle sur base du canevas des émetteurs \"accessibles\""]
["(in) contrôle sur base du canevas des émetteurs \"inaccessibles\""]
[null,null,null,null,null,null,null,null,null,null,null,null,null,null,null,null,null,null,null,null,null,null,null,null,null,null,null,null,null,null,null,null,"x","depart","x_\nmax","l_max"]
[null,"Andere componenten",null,null,null,null,null,null,null,null,null,null,null,null,null,null," "]
[null,null,null,null,null,null,null,null,null,null,null,null,null,null,null,null," "]
["Ventilatie",null,null,null,null,null,null,null,null,null,null,null,null,null,null,null,"Aantal eenheden"]
["Pulsiegroep",null,null,null,null,null,null,null,null,null,null,null,null,null,null,null,null,null,null,null,null,null,null,null,null,{"$f":"IF(Q51>=100,10,0)","v":0},{"$f":"IF(AND(Q51>=50,Q51<100),7,0)","v":0},{"$f":"IF(AND(Q51>=10,Q51<50),4,0)","v":0},{"$f":"IF(AND(Q51>=5,Q51<10),2,0)","v":0},{"$f":"IF(AND(Q51<5,Q51>=1),1,0)","v":0},null,null,{"$f":"SUM(Z51:AE51)","v":0},"F",10,62,"GP"]
["Extractiegroep",null,null,null,null,null,null,null,null,null,null,null,null,null,null,null,null,null,null,null,null,null,null,null,null,{"$f":"IF(Q52>=100,10,0)","v":0},{"$f":"IF(AND(Q52>=50,Q52<100),7,0)","v":0},{"$f":"IF(AND(Q52>=10,Q52<50),4,0)","v":0},{"$f":"IF(AND(Q52>=5,Q52<10),2,0)","v":0},{"$f":"IF(AND(Q52<5,Q52>=1),1,0)","v":0},null,null,{"$f":"SUM(Z52:AE52)","v":0},"F",10,37,"GE"]
["Luchtkleppen en schuiven (buiten de luchtgroepen)",null,null,null,null,null,null,null,null,null,null,null,null,null,null,null,null,null,null,null,null,null,null,null,null,{"$f":"IF(Q53>=100,4,0)","v":0},{"$f":"IF(AND(Q53>=50,Q53<100),2,0)","v":0},{"$f":"IF(AND(Q53>=10,Q53<50),1,0)","v":0},{"$f":"IF(AND(Q53>=5,Q53<10),1,0)","v":0},{"$f":"IF(AND(Q53<5,Q53>=1),1,0)","v":0},null,null,0,"F",4,14,"Clapets"]
["Aanzuig- en afblaasroosters",null,null,null,null,null,null,null,null,null,null,null,null,null,null,null,null,null,null,null,null,null,null,null,null,{"$f":"IF(Q54>=100,4,0)","v":0},{"$f":"IF(AND(Q54>=50,Q54<100),2,0)","v":0},{"$f":"IF(AND(Q54>=10,Q54<50),1,0)","v":0},{"$f":"IF(AND(Q54>=5,Q54<10),1,0)","v":0},{"$f":"IF(AND(Q54<5,Q54>=1),1,0)","v":0},null,null,0,"F",4,12,"Grilles"]
["Pulsie en extractie monden",null,null,null,null,null,null,null,null,null,null,null,null,null,null,null,null,null,null,null,null,null,null,null,null,{"$f":"IF(Q55>=100,10,0)","v":0},{"$f":"IF(AND(Q55>=50,Q55<100),7,0)","v":0},{"$f":"IF(AND(Q55>=10,Q55<50),4,0)","v":0},{"$f":"IF(AND(Q55>=5,Q55<10),2,0)","v":0},{"$f":"IF(AND(Q55<5,Q55>1),2,0)","v":0},{"$f":"IF(Q55=1,1,0)","v":0},null,0,"F",10,12,"Bouches"]
["Canadese/Provençaalse put",null,null,null,null,null,null,null,null,null,null,null,null,null,null,null,null,null,null,null,null,null,null,null,null,0,null,null,null,null,null,null,0,"F"]
[null,null,null,null,null,null,null,null,null,null,null,null,null,null,null,null," "]
["Warmteterugwinningsysteem",null,null,null,null,null,null,null,null,null,null,null,null,null,null,null,"Aantal eenheden"]
["Lucht/lucht warmtewisselaar en heatpipe"]
["Warmteterugwinningsysteem met een gesloten kring"]
["Warmtewiel (Roterende systemen)",null,null,null,null,null,null,null,null,null,null,null,null,null,null,null,null,null,null,null,null,null,null,null,{"$f":"SUM(Q59:S61)","v":0},{"$f":"IF(Y61>=100,4,0)","v":0},{"$f":"IF(AND(Y61>=50,Y61<100),2,0)","v":0},{"$f":"IF(AND(Y61>=10,Y61<50),1,0)","v":0},{"$f":"IF(AND(Y61>=5,Y61<10),1,0)","v":0},{"$f":"IF(AND(Y61<5,Y61>=1),1,0)","v":0},null,null,0,"F",4,19,"Récup"]
[null,null,null,null,null,null,null,null,null,null,null,null,null,null,null,null," "]
["Luchtbevochtigers",null,null,null,null,null,null,null,null,null,null,null,null,null,null,null,"Aantal eenheden"]
["Adiabatische bevochtigers"]
["Stoombevochtigers",null,null,null,null,null,null,null,null,null,null,null,null,null,null,null,null,null,null,null,null,null,null,null,{"$f":"SUM(Q64:S65)","v":0},{"$f":"IF(Y65>=100,10,0)","v":0},{"$f":"IF(AND(Y65>=50,Y65<100),7,0)","v":0},{"$f":"IF(AND(Y65>=10,Y65<50),4,0)","v":0},{"$f":"IF(AND(Y65>=5,Y65<10),2,0)","v":0},{"$f":"IF(AND(Y65<5,Y65>=1),1,0)","v":0},null,null,{"$f":"SUM(Z65:AE65)","v":0},"F",10,25,"Humid"]
[]
[null,null,null,null,null,null,null,null,null,null,null,null,null,null,null,null," "]
[null,null,null,null,null,null,null,null,null,null,null,null,null,"Andere",null,null,"Aantal eenheden"]
["Warmtewisselaar",null,null,null,null,null,null,null,null,null,null,null,null,null,null,null,null,null,null,null,null,null,null,null,null,{"$f":"IF(Q69>=5,2,0)","v":0},{"$f":"IF(AND(Q69<5,Q69>=1),1,0)","v":0},null,null,null,null,null,0,"F",2,19,"Echangeur"]
["Waterbehandelingsinstallatie op suppletiewater",null,null,null,null,null,null,null,null,null,null,null,null,null,null,null,null,null,null,null,null,null,null,null,null,{"$f":"IF(Q70>=5,2,0)","v":0},{"$f":"IF(AND(Q70<5,Q70>=1),1,0)","v":0},null,null,null,null,null,0,"F",2,13,"Appoint"]
["Pompen en circulatoren",null,null,null,null,null,null,null,null,null,null,null,null,null,null,null,null,null,null,null,null,null,null,null,null,{"$f":"IF(Q71>=100,7,0)","v":0},{"$f":"IF(AND(Q71>=50,Q71<100),5,0)","v":0},{"$f":"IF(AND(Q71>=10,Q71<50),3,0)","v":0},{"$f":"IF(AND(Q71>=5,Q71<10),1,0)","v":0},{"$f":"IF(AND(Q71<5,Q71>=1),1,0)","v":0},null,null,0,"F",7,22,"Pompe"]
["Expansiesystemen",null,null,null,null,null,null,null,null,null,null,null,null,null,null,null,null,null,null,null,null,null,null,null,null,{"$f":"IF(Q72>=5,2,0)","v":0},{"$f":"IF(AND(Q72<5,Q72>=1),1,0)","v":0},null,null,null,null,null,0,"F",2,13,"Expans"]
["Filter, deeltjes en slib-afscheiders",null,null,null,null,null,null,null,null,null,null,null,null,null,null,null,null,null,null,null,null,null,null,null,null,{"$f":"IF(Q73>=5,2,0)","v":0},{"$f":"IF(AND(Q73<5,Q73>=1),1,0)","v":0},null,null,null,null,null,0,"F",2,18,"Filtre"]
["Ontluchter, microbellenafscheider, automatische ontgassingssysteem",null,null,null,null,null,null,null,null,null,null,null,null,null,null,null,null,null,null,null,null,null,null,null,null,{"$f":"IF(Q74>=5,2,0)","v":0},{"$f":"IF(AND(Q74<5,Q74>=1),1,0)","v":0},null,null,null,null,null,0,"F",2,16,"Purgeur_air"]
["Koude opslag",null,null,null,null,null,null,null,null,null,null,null,null,null,null,null,null,null,null,null,null,null,null,null,null,{"$f":"IF(Q75>=1,1,0)","v":0},null,null,null,null,null,null,0,"F",1,11,"stockage_déstockage"]
["Watercircuits (ijswater, glycolkring, koelwaterkring, luchtcondensoren)",null,null,null,null,null,null,null,null,null,null,null,null,null,null,null,null,null,null,null,null,null,null,null,null,{"$f":"IF(Q76>=5,2,0)","v":0},{"$f":"IF(AND(Q76<5,Q76>=1),1,0)","v":0},null,null,null,null,null,0,"F",2,16,"Circuit_eau"]

{"sheet":"PEB (2)","index":30,"n_rows":94,"n_cols":15,"rows_kept":94,"cut":false,"hidden":true,"merged":[[29,0,29,8],[8,0,8,4],[11,0,11,8],[12,0,12,8],[13,0,14,7],[15,0,16,7],[17,0,18,7],[19,0,20,7],[21,0,22,7],[23,0,24,7],[25,0,26,7],[27,0,28,7],[50,0,50,8],[30,0,31,7],[32,0,33,7],[34,0,35,7],[36,0,36,8],[37,0,38,7],[39,0,40,7],[41,0,42,7],[44,14,44,21],[45,0,45,8],[46,0,47,7],[49,14,49,21],[72,0,73,7],[51,0,52,7],[55,0,55,8],[56,0,57,7],[58,0,59,7],[62,0,62,8],[63,0,64,7],[65,0,66,7],[67,0,67,7],[68,0,68,7],[68,14,68,21],[71,0,71,8],[84,0,86,7],[89,0,89,8],[90,0,90,8],[93,0,93,6],[74,0,74,7],[75,0,75,7],[76,0,76,7],[77,0,77,7],[80,0,80,8],[81,0,83,7]]}
[]
[]
[]
[]
[null,null,null,null,null,null,null,null,null,null,null,null,null,null,"Sélectionnez une réponse"]
[null,null,null,null,null,null,null,null,null,null,null,null,null,null,"Oui"]
[null,null,null,null,null,null,null,null,null,null,null,null,null,null,"Non"]
[]
["EPB-eisen van toepassing op klimaatregelingssystemen"]
[null,null,null,null,null,null,null,null,null,null,null,"ja",null,null,"Het gecontroleerde klimaatreglingsysteem is conform de eisen zoals gesteld in de reglementering \"klimaatregeling EPB\"."]
["Afdeling 1",null,null,null,null,null,null,null,null,null,null,"nee",null,null,"Het gecontroleerde klimaatreglingsysteem is niet conform de eisen zoals gesteld in de reglementering \"klimaatregeling EPB\". \nDe verantwoordelijke voor de technische installaties heeft 12 maanden de tijd om het in overeenstemming te brengen en een nieuwe periodieke controle te laten uitvoeren.\nDe EPB-eisen die niet gerespecteerd worden vindt u in de bijlage 2 van het attest van de periodieke controle."]
["Eisen m.b.t. energiemeting",null,null,null,null,null,null,null,null,null,null,{"$f":"SUM(L14:L43)","v":9}]
["Koude-productie"]
["Laten één of meerdere meters toe om de elektrische energie te meten die wordt verbruikt door de volledige koelinstallatie? ",null,null,null,null,null,null,null,null,null,null,{"$f":"IF(I14=\"ja\",0,1)","v":1}]
[]
["Is de som van de vermogens van de koelinstallaties die ijswater produceren groter dan of gelijk aan 500kW?\n"]
[]
["Laten één of meerdere meters toe om om de koelenergie te meten die door de volledige koelinstallatie afgegeven wordt aan ijwaterverdeelcricuit?   ",null,null,null,null,null,null,null,null,null,null,{"$f":"IF(I16=\"nee\",0,IF(I18=\"ja\",0,1))","v":1}]
[]
["Verdeelt het klimaatregelingssysteem ijswater aan meerdere gebouwen? "]
[]
["Laten één of meerdere meters toe om de hoeveelheid koelenergie die aan elk gebouw afgegeven wordt te meten en het gemiddeld globaal productierendement van de koelinstallaties te bepalen?  ",null,null,null,null,null,null,null,null,null,null,{"$f":"IF(I20=\"nee\",0,IF(I22=\"ja\",0,1))","v":1}]
[]
["Werden koeltorens of luchtkoelers verbonden aan de koelinstallties na 1 september 2012 geplaats of vervangen?\n"]
[]
["Laten één of meerdere meters toe om het elektrisch verbruik van het geheel van koeltorens en luchtkoelers te meten? ",null,null,null,null,null,null,null,null,null,null,{"$f":"IF(I24=\"nee\",0,IF(I26=\"ja\",0,1))","v":1}]
[]
["Zijn de meters uitgerust met een inrichting, zoals een analoge of digitale uitgang, die een automatische opname van de gemeten hoeveelheid mogelijk maakt en dat ter plaatse of van op afstand? ",null,null,null,null,null,null,null,null,null,null,{"$f":"IF(I28=\"ja\",0,1)","v":1}]
[]
["Ventilatie"]
["Omvat het klimaatregelingssysteem één of meerdere pulsie-of extractiegroepen waarvan het nominaal debiet  ≥ 10 000 m³/h bedraagt?  (voorzien van een \"koelbatterij\") "]
[]
["Laten één of meerdere meters toe om het elektrisch verbruik van het geheel van de ventielatoren of van elke ventilator waarvan het debiet  ≥ 10 000 m³/h te meten ?",null,null,null,null,null,null,null,null,null,null,{"$f":"IF(I31=\"nee\",0,IF(I33=\"ja\",0,1))","v":1}]
[]
["Zijn de meters uitgerust met een inrichting, zoals een analoge of digitale uitgang, die een automatische opname van de gemeten hoeveelheid mogelijk maakt en dat ter plaatse of van op afstand? ",null,null,null,null,null,null,null,null,null,null,{"$f":"IF(I31=\"nee\",0,IF(I35=\"ja\",0,1))","v":1}]
[]
["Meting per EPB-eenheid"]
["Betreft het een nieuw klimaatregelingssysteem  en een nieuw circuit dat ijswater verdeelt aan meerdere EPB-eenheden?"]
[]
["Laten één of meerdere meters toe om de hoeveelheid koelenergie die via ijswater aan de EPB-eenheid wordt afgegeven te meten? ",null,null,null,null,null,null,null,null,null,null,{"$f":"IF(I38=\"nee\",0,IF(I40=\"ja\",0,1))","v":1}]
[]
["Zijn de meters uitgerust met een inrichting, zoals een analoge of digitale uitgang, die een automatische opname van de gemeten hoeveelheid mogelijk maakt en dat ter plaatse of van op afstand? ",null,null,null,null,null,null,null,null,null,null,{"$f":"IF(I38=\"nee\",0,IF(I42=\"ja\",0,1))","v":1}]
[]
[]
["Afdeling 2"]
["Eisen m.b.t energieboekhouding"]
["Komt het boekhoudingsverslag overeen met de bepalingen van de reglementering EPB-klimaatregling?  ",null,null,null,null,null,null,null,null,null,null,{"$f":"IF(I47=\"ja\",0,1)","v":1}]
[]
[]
["Afdeling 3"]
["Eis m.b.t. het logboek"]
["Werd er een logboek  dat beantwoordt aan de minimuminhoud voorzien in de reglementering opgemaakt en up to date gehouden door de verschillende personen die op het klimaatregelsysteem tussenkomen? ",null,null,null,null,null,null,null,null,null,null,{"$f":"IF(I52=\"ja\",0,1)","v":1}]
[]
[]
["Afdeling 4"]
["Eis m.b.t de dimensionering van het klimaatregelsysteem"]
["Werden één of meerdere koelinstallaties na 1 september 2012 geplaatst of vervangen? "]
[]
["Werd er een dimensioneringsnota voor de koelinstallaties opgemaakt? ",null,null,null,null,null,null,null,null,null,null,{"$f":"IF(I57=\"nee\",0,IF(I59=\"ja\",0,1))","v":1}]
[]
[]
["Afdeling 5"]
["Eis m.b.t. isolatie van de leidingen en toebehoren "]
["Werden er nieuwe ijswaterleidingen of -toebehoren geplaatst of werden één of meerdere koelinstallaties geplaatstna 1 september 2012?  "]
[]
["Zijn de ijswaterleidingen en -toebehoren geïsoleerd overeenkomstig de isolatie-eis van de reglementering EPB-klimaatregeling?",null,null,null,null,null,null,null,null,null,null,{"$f":"IF(I64=\"nee\",0,IF(I66=\"ja\",0,1))","v":1}]
[]
["Geef de totale lengte van de leidingen die niet geïsoleerd zijn [m] :"]
["Geef het totaal aantal toebehoren die niet geïsoleerd zijn [aantal] :"]
[]
["Afdeling 6"]
["Eis m.b.t. de verdeling van de ijswater- en luchtdistributie"]
["Is erna 1 januari 2019 een nieuw verdeelnet geplaatst die minstens één EPB-eenheid, minstens één verdieping waarvan meer dan 80% van de gebruiksoppervlakte in beslag genomen wordt door kantoorruimte OF een oppervlakte van ≥ 500 m² bedeelt ?"]
[]
["Worden de volgende principes nageleefd ?",null,null,null,null,null,null,null,null,null,null,{"$f":"IF(I73=\"nee\",0,IF(I75=\"ja\",0,1))","v":1}]
["1° Elke EPB-eenheid omvat één zone "]
["2° de oppervlakte van elke zone is ≤ 1.250 m²"]
["3° Er is minstens één zone voor elke verdieping waarvan de gebruikoppervlakte voor meer dan 80% als kantoorruimte wordt gebruikt "]
[]
["Afdeling 7"]
["Eis m.b.t de variatie van het luchtdebiet naargelang de reële bezetting"]
["Werd er een ventilatiesysteem dat uitgerust is met een koude-batterij die een lokaal met variable menselijke bezetting bedeelt met een nominaal verse luchtdebiet  ≥ 2000 m³/h (5000 m³/h indien bouwvergunning voor 1/1/2019)  nieuw geplaatst?"]
[]
[]
["Is dit systeem uitgerust met een inrichting die het verse luchtdebiet doet variëren in functie van een parameter die representatief is voor het aantal mensen die in het lokaal aanwezig zijn (CO2-meting, aantal verkochte tickets, enz)  ?",null,null,null,null,null,null,null,null,null,null,{"$f":"IF(I82=\"nee\",0,IF(I85=\"ja\",0,1))","v":1}]
[]
[]
[]
[]
["Besluit"]
[{"$f":"IF(L91>0,$O$11,$O$10)","v":"Het gecontroleerde klimaatreglingsysteem is niet conform de eisen zoals gesteld in de reglementering \"klimaatregeling EPB\". \nDe verantwoordelijke voor de technische installaties heeft 12 maanden de tijd om het in overeenstemming te brengen en een nieuwe periodieke controle te laten uitvoeren.\nDe EPB-eisen die niet gerespecteerd worden vindt u in de bijlage 2 van het attest van de periodieke controle."},null,null,null,null,null,null,null,null,null,null,{"$f":"SUM(L14:L87)","v":15}]
[]
["Opmerkingen betreffende de EPB-eisen die van toepassing zijn op het klimaatregelsysteem:"]
[null,null,null,null,null,null,null,null,null,null,null,null,null,null,{"$f":"A94","v":0}]

{"sheet":"Entretien (2)","index":31,"n_rows":94,"n_cols":35,"rows_kept":94,"cut":false,"hidden":true,"merged":[[3,1,3,18],[32,1,33,21],[36,1,36,14]]}
[]
[]
[]
[null,"Controle van het onderhoud van het klimaatregelingssysteem: grootte van de te controleren steekproeven"]
[]
[null,"Systeem voor de productie van koelenergie (CEG-system)",null,null,null,null,null,null,null,null,null,null,"Pulsiegroep",null,null,null,null,null,null,null,null,null,null,"Behandelingsinstallatie voor het toevoegingswater",null,null,null,null,null,null,null,null,null,null,"JA"]
[null,null,null,null,null,null,null,null,null,null,null,null,null,null,null,null,null,null,null,null,null,null,null,null,null,null,null,null,null,null,null,null,null,null,"NEE"]
[null,null,null,null,null,null,null,{"$f":"Sysclim!AG21","v":0},null,null,null,null,null,null,null,null,null,null,{"$f":"Sysclim!AG51","v":0},null,null,null,null,null,null,null,null,null,{"$f":"Sysclim!AG70","v":0}]
[]
[]
[null,"Systeem voor de emissie van koelenergie (CEE-system)",null,null,null,null,null,null,null,null,null,null,"Extractiegroep",null,null,null,null,null,null,null,null,null,null,"Pompen en circulatoren"]
[]
[null,null,null,null,null,null,null,{"$f":"Sysclim!AG44","v":0},null,null,null,null,null,null,null,null,null,null,{"$f":"Sysclim!AG52","v":0},null,null,null,null,null,null,null,null,null,{"$f":"Sysclim!AG71","v":0}]
[]
[null,"Luchtbevochtigers",null,null,null,null,null,null,null,null,null,null,"Aanzuig- en afblaasroosters",null,null,null,null,null,null,null,null,null,null,"Warmteterugwinningsystemen"]
[]
[null,null,null,null,null,null,null,{"$f":"Sysclim!AG65","v":0},null,null,null,null,null,null,null,null,null,null,{"$f":"Sysclim!AG54","v":0},null,null,null,null,null,null,null,null,null,{"$f":"Sysclim!AG61","v":0}]
[]
[]
[null,"Watercircuits",null,null,null,null,null,null,null,null,null,null,"Pulsie- en extractiemonden",null,null,null,null,null,null,null,null,null,null,"Waterfilters"]
[]
[null,null,null,null,null,null,null,{"$f":"Sysclim!AG76","v":0},null,null,null,null,null,null,null,null,null,null,{"$f":"Sysclim!AG55","v":0},null,null,null,null,null,null,null,null,null,{"$f":"Sysclim!AG73","v":0}]
[]
[null,"Opslag/onttrekking van koude",null,null,null,null,null,null,null,null,null,null,"Canadese/provençaalse put",null,null,null,null,null,null,null,null,null,null,"Ontluchters en microbellenafscheiders"]
[]
[null,null,null,null,null,null,null,{"$f":"Sysclim!AG75","v":0},null,null,null,null,null,null,null,null,null,null,{"$f":"Sysclim!AG56","v":0},null,null,null,null,null,null,null,null,null,{"$f":"Sysclim!AG74","v":0}]
[]
[null,"Expansiesystemen",null,null,null,null,null,null,null,null,null,null,"Luchtkleppen en schuiven",null,null,null,null,null,null,null,null,null,null,"Warmtewisselaar"]
[]
[null,null,null,null,null,null,null,{"$f":"Sysclim!AG72","v":0},null,null,null,null,null,null,null,null,null,null,{"$f":"Sysclim!AG53","v":0},null,null,null,null,null,null,null,null,null,{"$f":"Sysclim!AG69","v":0}]
[]
[]
[null,"Wordt het onderhoud uitgevoerd onder toezicht van een persoon die een certificaat heeft behaald na het succesvol afronden van een reglementaire opleiding over het minimum onderhoudsprogramma voor klimaatregelingssystemen en over de inhoud van het logboek ?                  \n",null,null,null,null,null,null,null,null,null,null,null,null,null,null,null,null,null,null,null,null,null,"NEE"]
[]
[]
[null,"Commentaar met betrekking tot het onderhoud van het klimaatregelingssysteem:"]
[null,null,null,null,null,null,null,null,null,null,null,null,null,null,null,null,null,null,null,null,null,null,null,null,null,null,null,null,null,null,null,null,null,null,{"$f":"B37","v":0}]
[]
[]
[]
[]
[]
[]
[]
[]
[]
[]
[]
[]
[]
[]
[]
[]
[]
[]
[]
[]
[]
[]
[]
[]
[]
[]
[]
[]
[]
[]
[]
[]
[]
[]
[]
[]
[]
[]
[]
[]
[]
[]
[]
[]
[]
[]
[]
[]
[]
[]
[]
[]
[]
[]
[]
[]
[null,null,"Luchtgroepen"]

{"sheet":"Rapport","index":32,"n_rows":297,"n_cols":29,"rows_kept":297,"cut":false,"hidden":false,"merged":[[118,20,118,22],[133,16,133,18],[130,0,130,13],[129,16,129,18],[128,0,128,13],[132,0,132,13],[133,19,133,22],[140,0,140,13],[140,16,140,18],[126,0,126,13],[126,16,126,18],[127,16,127,18],[127,20,127,22],[125,0,125,13],[123,16,123,18],[120,16,120,18],[121,16,121,18],[119,0,119,13],[127,0,127,13],[120,0,120,13],[139,0,139,13],[119,16,119,18],[123,0,123,13],[122,0,122,13],[157,18,157,22],[157,0,157,17],[158,0,158,17],[143,16,143,18],[143,20,143,22],[162,18,162,22],[141,0,141,13],[141,16,141,18],[146,0,146,14],[147,0,147,14],[159,0,159,17],[160,18,160,22],[160,0,160,17],[156,0,156,17],[156,18,156,22],[115,1,115,14],[117,0,117,13],[104,16,104,18],[104,0,104,13],[102,0,102,13],[102,16,102,18],[109,16,109,18],[107,0,107,13],[118,0,118,13],[118,16,118,18],[112,0,112,13],[107,16,107,18],[108,16,108,18],[105,16,105,18],[108,0,108,13],[111,0,111,13],[105,0,105,13],[106,0,106,13],[106,16,106,18],[103,16,103,18],[109,0,109,13],[103,0,103,13],[33,17,33,21],[36,2,36,22],[41,4,41,9],[90,0,90,13],[46,0,46,1],[46,19,46,22],[47,3,47,11],[47,15,47,22],[52,2,52,3],[53,2,53,3],[87,19,87,22],[89,19,89,22],[85,19,85,22],[86,19,86,22],[84,0,84,13],[88,19,88,22],[90,19,90,22],[87,0,87,13],[89,16,89,18],[87,16,87,18],[85,16,85,18],[86,0,86,13],[82,19,82,22],[71,19,71,22],[101,16,101,18],[99,0,99,14],[90,16,90,18],[96,0,96,13],[89,0,89,13],[88,16,88,18],[85,0,85,13],[54,2,54,3],[59,2,59,3],[92,0,92,14],[94,0,94,13],[94,16,94,18],[93,0,93,14],[91,0,91,13],[91,16,91,18],[95,0,95,13],[95,16,95,18],[98,0,98,14],[100,0,100,13],[100,16,100,18],[75,9,75,11],[66,16,66,18],[86,16,86,18],[88,0,88,13],[135,0,135,13],[131,0,131,13],[129,0,129,13],[142,16,142,18],[139,16,139,18],[152,0,152,22],[155,0,155,17],[148,0,148,14],[140,20,140,22],[149,20,149,22],[155,18,155,22],[142,0,142,13],[149,0,149,14],[136,0,136,13],[136,16,136,18],[136,20,136,22],[137,20,137,22],[137,16,137,18],[137,0,137,13],[138,16,138,18],[138,20,138,22],[139,20,139,22],[29,20,29,22],[146,15,146,19],[129,19,129,22],[132,16,132,18],[0,0,0,22],[7,5,7,7],[17,0,17,2],[17,3,17,9],[17,12,17,22],[19,20,19,22],[20,3,20,11],[20,15,20,22],[22,17,22,21],[12,4,12,12],[16,2,16,9],[22,0,22,3],[22,4,22,12],[2,20,2,22],[9,2,9,11],[9,13,9,16],[19,2,19,11],[19,13,19,15],[132,20,132,22],[101,0,101,13],[30,3,30,11],[30,15,30,22],[32,0,32,3],[37,3,37,13],[29,2,29,11],[29,13,29,15],[32,17,32,21],[159,18,159,22],[76,15,76,20],[66,10,66,15],[79,0,79,13],[79,16,79,18],[64,19,64,22],[71,4,71,9],[71,10,71,15],[49,10,49,17],[69,16,69,18],[57,2,57,3],[96,16,96,18],[81,0,81,13],[119,20,119,22],[128,20,128,22],[112,16,112,18],[128,16,128,18],[285,0,285,22],[286,0,286,22],[266,0,266,22],[265,0,265,22],[35,24,38,24],[48,6,48,7],[5,2,5,9],[6,3,6,9],[5,12,5,22],[6,12,6,22],[16,12,16,22],[9,19,9,22],[10,3,10,10],[10,15,10,22],[12,17,12,21],[13,17,13,21],[7,0,7,4],[26,2,26,9],[26,12,26,22],[27,0,27,2],[27,3,27,9],[27,12,27,22],[23,17,23,21],[32,4,32,12],[274,0,274,22],[263,0,263,22],[267,0,267,22],[253,0,253,22],[288,0,288,22],[233,0,233,22],[172,18,172,22],[174,18,174,22],[234,0,234,22],[235,0,235,22],[222,14,222,17],[207,14,207,17],[223,14,223,17],[208,14,208,17],[202,1,202,13],[203,1,203,11],[205,14,205,17],[172,0,172,17],[174,0,174,17],[198,14,198,17],[199,14,199,17],[221,14,221,17],[281,0,281,22],[173,18,173,22],[212,14,212,17],[215,14,215,17],[216,14,216,17],[217,14,217,17],[284,0,284,22],[283,0,283,22],[282,0,282,22],[242,0,242,22],[243,0,243,22],[244,0,244,22],[247,0,247,22],[272,0,272,22],[273,0,273,22],[276,0,276,22],[277,0,277,22],[278,0,278,22],[248,0,248,22],[280,0,280,22],[279,0,279,22],[257,0,257,22],[258,0,258,22],[259,0,259,22],[260,0,260,22],[275,0,275,22],[166,0,166,17],[161,0,161,17],[163,18,163,22],[165,18,165,22],[163,0,163,17],[164,0,164,17],[161,18,161,22],[165,0,165,17],[164,18,164,22],[264,0,264,22],[231,0,231,22],[238,0,238,22],[268,0,268,22],[270,0,270,22],[271,0,271,22],[255,0,255,22],[269,0,269,22],[256,0,256,22],[251,0,251,22],[262,0,262,22],[261,0,261,22],[254,0,254,22],[252,0,252,22],[219,14,219,17],[250,0,250,22],[213,14,213,17],[245,0,245,22],[246,0,246,22],[239,0,239,22],[241,0,241,22],[222,1,222,13],[230,0,230,22],[237,0,237,22],[232,0,232,22],[226,0,226,22],[229,0,229,22],[236,0,236,22],[249,0,249,22],[223,1,223,13],[221,1,221,13],[220,14,220,17],[214,14,214,17],[218,14,218,21],[209,14,209,17],[170,18,170,22],[171,18,171,22],[201,14,201,17],[202,14,202,17],[203,14,203,17],[191,0,191,22],[187,0,188,22],[167,0,167,17],[168,0,168,17],[169,18,169,22],[169,0,169,17],[183,0,183,22],[170,0,170,17],[176,0,176,22],[180,0,180,22],[196,14,196,17],[197,14,197,17],[173,0,173,17],[204,14,204,17],[206,14,206,17],[211,14,211,17],[240,0,240,22],[68,10,68,15],[69,10,69,15],[66,19,66,22],[78,19,78,22],[67,19,67,22],[68,19,68,22],[70,16,70,18],[71,16,71,18],[82,16,82,18],[80,16,80,18],[82,0,82,13],[84,16,84,18],[84,19,84,22],[81,16,81,18],[81,19,81,22],[83,19,83,22],[83,0,83,13],[79,19,79,22],[80,0,80,13],[80,19,80,22],[83,16,83,18],[167,18,167,22],[46,13,46,16],[46,2,46,11],[77,0,77,14],[78,0,78,14],[78,16,78,18],[70,10,70,15],[68,16,68,18],[67,16,67,18],[69,4,69,9],[70,4,70,9],[49,18,49,21],[50,18,50,22],[49,0,49,5],[69,19,69,22],[70,19,70,22],[58,2,58,3],[61,5,61,11],[64,10,64,15],[65,10,65,15],[65,16,65,18],[49,6,49,9],[64,16,64,18],[65,19,65,22],[67,10,67,15],[287,0,287,22],[146,20,146,22],[147,20,147,22],[148,20,148,22],[138,0,138,13],[131,16,131,18],[135,16,135,18],[110,0,110,13],[110,16,110,18],[121,0,121,13],[122,16,122,18],[111,16,111,18],[147,15,147,19],[148,15,148,19],[149,15,149,19],[145,20,145,22],[168,18,168,22],[171,0,171,17],[162,0,162,17],[200,14,200,17],[141,20,141,22],[158,18,158,22],[166,18,166,22],[210,14,210,17]]}
["VERSLAG EPB DIAGNOSE \nVAN EEN KLIMAATREGELINGSSYSTEEM",null,null,null,null,null,null,null,null,null,null,null,null,null,null,null,null,null,null,null,null,null,null,null,"set_clear (utilisé lorsque la macro \"clear\" est employée)"]
[]
["1. Administratieve gegevens:",null,null,null,null,null,null,null,null,null,null,null,null,null,null,null,null,null,"Datum:",null,{"$f":"Menu!AC3","v":"2020-12-01"}]
[]
["1.1 Gegevens over de EPB klimaatregelingsadviseur"]
["Naam:",null,{"$f":"Administratif!D4","v":0},null,null,null,null,null,null,null,null,"Bedrijf:",{"$f":"Administratif!D8","v":0}]
["Voornaam:",null,null,{"$f":"Administratif!D5","v":0},null,null,null,null,null,null,null,"BTW nr:",{"$f":"Administratif!D9","v":0}]
["Identificatienr.:",null,null,null,null,{"$f":"Administratif!D6","v":0}]
[]
["Straat:",null,{"$f":"Administratif!D11","v":0},null,null,null,null,null,null,null,null,null,"Nr.:",{"$f":"Administratif!D12","v":0}]
["Postcode:",null,null,{"$f":"Administratif!D13","v":0},null,null,null,null,null,null,null,null,"Gemeente:",null,null,{"$f":"Administratif!D14","v":0}]
[]
["Telefoonnr.:",null,null,null,{"$f":"Administratif!D17","v":0},null,null,null,null,null,null,null,null,null,null,null,"Fax nr.:",{"$f":"Administratif!$D$19","v":0}]
["E-mail adres:",null,null,null,{"$f":"Administratif!D20","v":0},null,null,null,null,null,null,null,null,null,null,null,"GSM nr.:",{"$f":"Administratif!$D$18","v":0}]
[]
["1.2 Contactgegevens van de eigenaar of houder/aanvrager van de milieuvergunning"]
["Naam:",null,{"$f":"batiment_admin!C14","v":0},null,null,null,null,null,null,null,null,"Bedrijf:",{"$f":"batiment_admin!C17","v":0}]
["Voornaam:",null,null,{"$f":"batiment_admin!C15","v":0},null,null,null,null,null,null,null,"BTW nr:",{"$f":"batiment_admin!C18","v":0}]
[]
["Straat:",null,{"$f":"batiment_admin!C20","v":0},null,null,null,null,null,null,null,null,null,"Nr.:",{"$f":"batiment_admin!$C$21","v":0}]
["Postcode:",null,null,{"$f":"batiment_admin!C22","v":0},null,null,null,null,null,null,null,null,"Gemeente:",null,null,{"$f":"batiment_admin!C23","v":0}]
[]
["Telefoonnr.:",null,null,null,{"$f":"batiment_admin!C26","v":0},null,null,null,null,null,null,null,null,null,null,null,"Fax nr.:",{"$f":"batiment_admin!$C$28","v":0}]
["E-mail adres:",null,null,null,{"$f":"batiment_admin!C29","v":0},null,null,null,null,null,null,null,null,null,null,null,"GSM nr.:",{"$f":"batiment_admin!$C$27","v":0}]
[]
[{"$f":"\"1.3 Contactpersoon voor dit gebouw\" & IF(batiment_admin!D31=\"ja\",\" =  verantwoordelijke voor de technische installaties\",\"\")","v":"1.3 Contactpersoon voor dit gebouw"}]
["Naam:",null,{"$f":"IF(batiment_admin!D31=\"ja\",\"\",batiment_admin!C33)","v":0},null,null,null,null,null,null,null,null,"Bedrijf:",{"$f":"IF(batiment_admin!D31=\"ja\",\"\",batiment_admin!C36)","v":0}]
["Voornaam:",null,null,{"$f":"IF(batiment_admin!D31=\"ja\",\"\",batiment_admin!C34)","v":0}]
[]
["Straat:",null,{"$f":"IF(batiment_admin!D31=\"ja\",\"\",batiment_admin!C38)","v":0},null,null,null,null,null,null,null,null,null,"Nr.:",{"$f":"IF(batiment_admin!D31=\"ja\",\"\",batiment_admin!C39)","v":0}]
["Postcode:",null,null,{"$f":"IF(batiment_admin!D31=\"ja\",\"\",batiment_admin!C40)","v":0},null,null,null,null,null,null,null,null,"Gemeente:",null,null,{"$f":"IF(batiment_admin!D31=\"ja\",\"\",batiment_admin!C41)","v":0}]
[]
["Telefoonnr.:",null,null,null,{"$f":"IF(batiment_admin!D31=\"ja\",\"\",batiment_admin!C44)","v":0},null,null,null,null,null,null,null,null,null,null,null,"Fax nr.:",{"$f":"IF(batiment_admin!D31=\"ja\",\"\",batiment_admin!C45)","v":0}]
["E-mail adres:",null,null,null,{"$f":" IF(batiment_admin!D31=\"ja\",\"\",batiment_admin!C46)","v":0},null,null,null,null,null,null,null,null,null,null,null,"GSM nr.:",{"$f":"IF(batiment_admin!D31=\"ja\",\"\",batiment_admin!C47)","v":0}]
[]
["1.4 Installateur"]
["Bedrijf:",null,{"$f":"batiment_admin!C49","v":0}]
["BTW nr.:",null,null,{"$f":"batiment_admin!C50","v":0}]
[]
["1.5 Koeltechnisch bedrijf"]
["Bedrijf:",null,{"$f":"batiment_admin!C53","v":0}]
["Registratienr.:",null,null,null,{"$f":"batiment_admin!C54","v":0}]
[]
["2 Het gebouw:"]
[]
["Naam:",null,{"$f":"batiment_admin!C4","v":0}]
["Straat:",null,{"$f":"batiment_admin!C6","v":0},null,null,null,null,null,null,null,null,null,"Nr.:",{"$f":"batiment_admin!C7","v":0}]
["Postcode:",null,null,{"$f":"batiment_admin!C8","v":0},null,null,null,null,null,null,null,null,"Gemeente:",null,null,{"$f":"batiment_admin!C9","v":0}]
["Bouwjaar:",null,null,null,null,null,{"$f":"batiment_admin!C57","v":0}]
["Netto oppervlakte geklimatiseerde ruimte:",null,null,null,null,null,{"$f":"Dimensionnement!K6","v":0},null,null,null,"Bruto oppervlakte\nbeschermd volume:",null,null,null,null,null,null,null,{"$f":"Dimensionnement!K5","v":0}]
[null,null,null,null,null,null,null,null,null,null,null,null,null,null,null,null,null,"berekend door:",{"$f":"batiment_admin!E73","v":0}]
["Renovaties:"]
[null,"Jaar:",{"$f":"batiment_admin!E61","v":0},null,null,null,"Beschrijving:",{"$f":"batiment_admin!$C$61","v":0}]
[null,"Jaar:",{"$f":"batiment_admin!E62","v":0},null,null,null,"Beschrijving:",{"$f":"batiment_admin!$C$62","v":0}]
[null,"Jaar:",{"$f":"batiment_admin!E63","v":0},null,null,null,"Beschrijving:",{"$f":"batiment_admin!$C$63","v":0}]
[]
["Uitbreidingen:"]
[null,"Jaar:",{"$f":"batiment_admin!E67","v":0},null,null,null,"Beschrijving:",{"$f":"batiment_admin!$C$67","v":0}]
[null,"Jaar:",{"$f":"batiment_admin!E68","v":0},null,null,null,"Beschrijving:",{"$f":"batiment_admin!$C$68","v":0}]
[null,"Jaar:",{"$f":"batiment_admin!E69","v":0},null,null,null,"Beschrijving:",{"$f":"batiment_admin!$C$69","v":0}]
[]
["Bouwwijze:",null,null,null,null,{"$f":"batiment_admin!C71","v":0}]
[]
["Netto oppervlakte per bestemming:"]
[null,null,null,null,null,null,null,null,null,null,"totaal (m²)",null,null,null,null,null,"geklimatiseerd",null,null,"niet geklimatiseerd"]
[null,null,null,null,null,null,null,null,null,"Kantoren:",{"$f":"batiment_admin!C78","v":0},null,null,null,null,null,{"$f":"batiment_admin!D78","v":0},null,null,{"$f":"batiment_admin!E78","v":0}]
[null,null,null,null,null,null,null,null,null,"Auditorium:",{"$f":"batiment_admin!C79","v":0},null,null,null,null,null,{"$f":"batiment_admin!D79","v":0},null,null,{"$f":"batiment_admin!E79","v":0}]
[null,null,null,null,null,null,null,null,null,"Restaurant:",{"$f":"batiment_admin!C80","v":0},null,null,null,null,null,{"$f":"batiment_admin!D80","v":0},null,null,{"$f":"batiment_admin!E80","v":0}]
[null,null,null,null,null,null,null,null,null,"Woning:",{"$f":"batiment_admin!C81","v":0},null,null,null,null,null,{"$f":"batiment_admin!D81","v":0},null,null,{"$f":"batiment_admin!E81","v":0}]
["Andere bestemming",null,null,null,{"$f":"batiment_admin!B82","v":0},null,null,null,null,null,{"$f":"batiment_admin!C82","v":0},null,null,null,null,null,{"$f":"batiment_admin!D82","v":0},null,null,{"$f":"batiment_admin!E82","v":0}]
["Andere bestemming",null,null,null,{"$f":"batiment_admin!B83","v":0},null,null,null,null,null,{"$f":"batiment_admin!C83","v":0},null,null,null,null,null,{"$f":"batiment_admin!D83","v":0},null,null,{"$f":"batiment_admin!E83","v":0}]
["Andere bestemming",null,null,null,{"$f":"batiment_admin!B84","v":0},null,null,null,null,null,{"$f":"batiment_admin!C84","v":0},null,null,null,null,null,{"$f":"batiment_admin!D84","v":0},null,null,{"$f":"batiment_admin!E84","v":0}]
[]
["3. Klimaatregelingssysteem:"]
[]
["Effectief nominaal vermogen:",null,null,null,null,null,null,null,null,{"$f":"Sysclim!I6","v":0}]
["Totaal vermogen van de ijswaterproductiegroepen:",null,null,null,null,null,null,null,null,null,null,null,null,null,null,{"$f":"Sysclim!Q7","v":0}]
["Hoofdcomponenten"]
["Systeem voor de productie van koelenergie",null,null,null,null,null,null,null,null,null,null,null,null,null,null,null,"Aantal eenheden",null,null,"Totaal koelvermogen (kW)"]
[{"$f":"Sysclim!A10","v":"IJswaterproductiemachine met luchtcondensor"},null,null,null,null,null,null,null,null,null,null,null,null,null,null,null,{"$f":"IF(Sysclim!Q10>=1,Sysclim!Q10,\"-\")","v":"-"},null,null,{"$f":"Sysclim!T10","v":0}]
[{"$f":"Sysclim!A11","v":"IJswaterproductiemachine met watercondensor"},null,null,null,null,null,null,null,null,null,null,null,null,null,null,null,{"$f":"IF(Sysclim!Q11>=1,Sysclim!Q11,\"-\")","v":"-"},null,null,{"$f":"Sysclim!T11","v":0}]
[{"$f":"Sysclim!A12","v":"IJswaterproductiemachine met condensor op afstand"},null,null,null,null,null,null,null,null,null,null,null,null,null,null,null,{"$f":"IF(Sysclim!Q12>=1,Sysclim!Q12,\"-\")","v":"-"},null,null,{"$f":"Sysclim!T12","v":0}]
[{"$f":"Sysclim!A13","v":"Condensing unit van monosplit"},null,null,null,null,null,null,null,null,null,null,null,null,null,null,null,{"$f":"IF(Sysclim!Q13>=1,Sysclim!Q13,\"-\")","v":"-"},null,null,{"$f":"Sysclim!T13","v":0}]
[{"$f":"Sysclim!A14","v":"Condensing unit van multisplit"},null,null,null,null,null,null,null,null,null,null,null,null,null,null,null,{"$f":"IF(Sysclim!Q14>=1,Sysclim!Q14,\"-\")","v":"-"},null,null,{"$f":"Sysclim!T14","v":0}]
[{"$f":"Sysclim!A15","v":"Lucht/lucht warmtepomp"},null,null,null,null,null,null,null,null,null,null,null,null,null,null,null,{"$f":"IF(Sysclim!Q15>=1,Sysclim!Q15,\"-\")","v":"-"},null,null,{"$f":"Sysclim!T15","v":0}]
[{"$f":"Sysclim!A16","v":"Lucht/water warmtepomp"},null,null,null,null,null,null,null,null,null,null,null,null,null,null,null,{"$f":"IF(Sysclim!Q16>=1,Sysclim!Q16,\"-\")","v":"-"},null,null,{"$f":"Sysclim!T16","v":0}]
[{"$f":"Sysclim!A17","v":"Water/lucht warmtepomp "},null,null,null,null,null,null,null,null,null,null,null,null,null,null,null,{"$f":"IF(Sysclim!Q17>=1,Sysclim!Q17,\"-\")","v":"-"},null,null,{"$f":"Sysclim!T17","v":0}]
[{"$f":"Sysclim!A18","v":"Water/water warmtepomp"},null,null,null,null,null,null,null,null,null,null,null,null,null,null,null,{"$f":"IF(Sysclim!Q18>=1,Sysclim!Q18,\"-\")","v":"-"},null,null,{"$f":"Sysclim!T18","v":0}]
[{"$f":"Sysclim!A19","v":"Bodem/lucht warmtepomp"},null,null,null,null,null,null,null,null,null,null,null,null,null,null,null,{"$f":"IF(Sysclim!Q19>=1,Sysclim!Q19,\"-\")","v":"-"},null,null,{"$f":"Sysclim!T19","v":0}]
[{"$f":"Sysclim!A20","v":"Bodem/water warmtepomp"},null,null,null,null,null,null,null,null,null,null,null,null,null,null,null,{"$f":"IF(Sysclim!Q20>=1,Sysclim!Q20,\"-\")","v":"-"},null,null,{"$f":"Sysclim!T20","v":0}]
[{"$f":"Sysclim!A21","v":"Absorptiekoelmachine"},null,null,null,null,null,null,null,null,null,null,null,null,null,null,null,{"$f":"IF(Sysclim!Q21>=1,Sysclim!Q21,\"-\")","v":"-"}]
[{"$f":"Sysclim!A22","v":"Koeltoren(s) of luchtkoeler(s) aanwezig"},null,null,null,null,null,null,null,null,null,null,null,null,null,null,null,{"$f":"IF(Sysclim!Q22<>\"\",Sysclim!Q22,\"-\")","v":"-"}]
[]
["Systeem voor de distributie van koelenergie",null,null,null,null,null,null,null,null,null,null,null,null,null,null,null,"Aanwezige systemen"]
[{"$f":"Sysclim!A25","v":"Luchtkanalen"},null,null,null,null,null,null,null,null,null,null,null,null,null,null,null,{"$f":"Sysclim!Q25","v":0}]
[{"$f":"Sysclim!A26","v":"Ijswaterkring"},null,null,null,null,null,null,null,null,null,null,null,null,null,null,null,{"$f":"Sysclim!Q26","v":0}]
[{"$f":"Sysclim!A27","v":"Koelmiddelverdelingssysteem"},null,null,null,null,null,null,null,null,null,null,null,null,null,null,null,{"$f":"Sysclim!Q27","v":0}]
[null,null,null,null,null,null,null,null,null,null,null,null,null,null,null,null," "]
[]
["Systeem voor de emissie van koelenergie",null,null,null,null,null,null,null,null,null,null,null,null,null,null,null,"Aantal eenheden"]
[{"$f":"Sysclim!A31","v":"Ventiloconvectoren"},null,null,null,null,null,null,null,null,null,null,null,null,null,null,null,{"$f":"IF(Sysclim!Q31>=1,Sysclim!Q31,\"-\")","v":"-"}]
[{"$f":"Sysclim!A32","v":"Cassettes in vals plafond"},null,null,null,null,null,null,null,null,null,null,null,null,null,null,null,{"$f":"IF(Sysclim!Q32>=1,Sysclim!Q32,\"-\")","v":"-"}]
[{"$f":"Sysclim!A33","v":"Vloer plafond wandkoeling (watervoerend)"},null,null,null,null,null,null,null,null,null,null,null,null,null,null,null,{"$f":"IF(Sysclim!Q33>=1,Sysclim!Q33,\"-\")","v":"-"}]
[{"$f":"Sysclim!A34","v":"Betonkeractivering"},null,null,null,null,null,null,null,null,null,null,null,null,null,null,null,{"$f":"IF(Sysclim!Q34>=1,Sysclim!Q34,\"-\")","v":"-"}]
[{"$f":"Sysclim!A35","v":"Directe verdamping (vloer-, muur- of plafondkoeling)"},null,null,null,null,null,null,null,null,null,null,null,null,null,null,null,{"$f":"IF(Sysclim!Q35>=1,Sysclim!Q35,\"-\")","v":"-"}]
[{"$f":"Sysclim!A36","v":"Passieve koelbalken"},null,null,null,null,null,null,null,null,null,null,null,null,null,null,null,{"$f":"IF(Sysclim!Q36>=1,Sysclim!Q36,\"-\")","v":"-"}]
[{"$f":"Sysclim!A37","v":"Actieve koelbalken"},null,null,null,null,null,null,null,null,null,null,null,null,null,null,null,{"$f":"IF(Sysclim!Q37>=1,Sysclim!Q37,\"-\")","v":"-"}]
[{"$f":"Sysclim!A38","v":"Ejectoconvectoren"},null,null,null,null,null,null,null,null,null,null,null,null,null,null,null,{"$f":"IF(Sysclim!Q38>=1,Sysclim!Q38,\"-\")","v":"-"}]
[{"$f":"Sysclim!A39","v":"Koelbatterij in luchtgroep"},null,null,null,null,null,null,null,null,null,null,null,null,null,null,null,{"$f":"IF(Sysclim!Q39>=1,Sysclim!Q39,\"-\")","v":"-"}]
[{"$f":"Sysclim!A40","v":"Koelbatterij in luchtkanalen"},null,null,null,null,null,null,null,null,null,null,null,null,null,null,null,{"$f":"IF(Sysclim!Q40>=1,Sysclim!Q40,\"-\")","v":"-"}]
[{"$f":"Sysclim!A41","v":"Binnen unit monosplit"},null,null,null,null,null,null,null,null,null,null,null,null,null,null,null,{"$f":"IF(Sysclim!Q41>=1,Sysclim!Q41,\"-\")","v":"-"}]
[{"$f":"Sysclim!A42","v":"Binnen unit multisplit"},null,null,null,null,null,null,null,null,null,null,null,null,null,null,null,{"$f":"IF(Sysclim!Q42>=1,Sysclim!Q42,\"-\")","v":"-"}]
[{"$f":"Sysclim!A43","v":"Klimaatkast"},null,null,null,null,null,null,null,null,null,null,null,null,null,null,null,{"$f":"IF(Sysclim!Q43>=1,Sysclim!Q43,\"-\")","v":"-"}]
[null,null,null,null,null,null,null,null,null,null,null,null,null,null,null,null," "]
[]
[null,"Andere componenten",null,null,null,null,null,null,null,null,null,null,null,null,null,null," "]
[null,null,null,null,null,null,null,null,null,null,null,null,null,null,null,null," "]
["Ventilatie",null,null,null,null,null,null,null,null,null,null,null,null,null,null,null,"Aantal eenheden"]
["Pulsiegroep",null,null,null,null,null,null,null,null,null,null,null,null,null,null,null,{"$f":"IF(Sysclim!Q51>=1,Sysclim!Q51,\"-\")","v":"-"}]
["Extractiegroep",null,null,null,null,null,null,null,null,null,null,null,null,null,null,null,{"$f":"IF(Sysclim!Q52>=1,Sysclim!Q52,\"-\")","v":"-"}]
["Luchtkleppen en schuiven (buiten de luchtgroepen)",null,null,null,null,null,null,null,null,null,null,null,null,null,null,null,{"$f":"IF(Sysclim!Q53>=1,Sysclim!Q53,\"-\")","v":"-"}]
["Aanzuig- en afblaasroosters",null,null,null,null,null,null,null,null,null,null,null,null,null,null,null,{"$f":"IF(Sysclim!Q54>=1,Sysclim!Q54,\"-\")","v":"-"}]
["Pulsie en extractie monden",null,null,null,null,null,null,null,null,null,null,null,null,null,null,null,{"$f":"IF(Sysclim!Q55>=1,Sysclim!Q55,\"-\")","v":"-"}]
["Canadese/Provençaalse put",null,null,null,null,null,null,null,null,null,null,null,null,null,null,null,{"$f":"IF(Sysclim!Q56>=1,Sysclim!Q56,\"-\")","v":"-"}]
[null,null,null,null,null,null,null,null,null,null,null,null,null,null,null,null," "]
["Warmteterugwinningsysteem",null,null,null,null,null,null,null,null,null,null,null,null,null,null,null,"Aantal eenheden"]
["Lucht/lucht warmtewisselaar en heatpipe",null,null,null,null,null,null,null,null,null,null,null,null,null,null,null,{"$f":"IF(Sysclim!Q59>=1,Sysclim!Q59,\"-\")","v":"-"}]
["Warmteterugwinningsysteem met een gesloten kring",null,null,null,null,null,null,null,null,null,null,null,null,null,null,null,{"$f":"IF(Sysclim!Q60>=1,Sysclim!Q60,\"-\")","v":"-"}]
["Warmtewiel (Roterende systemen)",null,null,null,null,null,null,null,null,null,null,null,null,null,null,null,{"$f":"IF(Sysclim!Q61>=1,Sysclim!Q61,\"-\")","v":"-"}]
[null,null,null,null,null,null,null,null,null,null,null,null,null,null,null,null," "]
["Luchtbevochtigers",null,null,null,null,null,null,null,null,null,null,null,null,null,null,null,"Aantal eenheden",null,null,null,null,null,null,null,null,{"$f":"SUM(Q129:S131)","v":0}]
["Adiabatische bevochtigers",null,null,null,null,null,null,null,null,null,null,null,null,null,null,null,{"$f":"IF(Sysclim!Q64>=1,Sysclim!Q64,\"-\")","v":"-"}]
["Stoombevochtigers",null,null,null,null,null,null,null,null,null,null,null,null,null,null,null,{"$f":"IF(Sysclim!Q65>=1,Sysclim!Q65,\"-\")","v":"-"}]
[null,null,null,null,null,null,null,null,null,null,null,null,null,null,null,null," ",null,null,null,null,null,null,null,null,{"$f":"SUM(Q134:S134)","v":0}]
[null,null,null,null,null,null,null,null,null,null,null,null,null,"Autres",null,null,"Aantal eenheden"]
["Warmtewisselaar",null,null,null,null,null,null,null,null,null,null,null,null,null,null,null,{"$f":"IF(Sysclim!Q69>=1,Sysclim!Q69,\"-\")","v":"-"}]
["Waterbehandelingsinstallatie op suppletiewater",null,null,null,null,null,null,null,null,null,null,null,null,null,null,null,{"$f":"IF(Sysclim!Q70>=1,Sysclim!Q70,\"-\")","v":"-"}]
["Pompen en circulatoren",null,null,null,null,null,null,null,null,null,null,null,null,null,null,null,{"$f":"IF(Sysclim!Q71>=1,Sysclim!Q71,\"-\")","v":"-"}]
["Expansiesystemen",null,null,null,null,null,null,null,null,null,null,null,null,null,null,null,{"$f":"IF(Sysclim!Q72>=1,Sysclim!Q72,\"-\")","v":"-"}]
["Filter, deeltjes en slib-afscheiders",null,null,null,null,null,null,null,null,null,null,null,null,null,null,null,{"$f":"IF(Sysclim!Q73>=1,Sysclim!Q73,\"-\")","v":"-"}]
["Ontluchter, microbellenafscheider, automatische ontgassingssysteem",null,null,null,null,null,null,null,null,null,null,null,null,null,null,null,{"$f":"IF(Sysclim!Q74>=1,Sysclim!Q74,\"-\")","v":"-"}]
["Koude opslag",null,null,null,null,null,null,null,null,null,null,null,null,null,null,null,{"$f":"IF(Sysclim!Q75>=1,Sysclim!Q75,\"-\")","v":"-"}]
["Watercircuits (ijswater, glycolkring, koelwaterkring, luchtcondensoren)",null,null,null,null,null,null,null,null,null,null,null,null,null,null,null,{"$f":"IF(Sysclim!Q76>=1,Sysclim!Q76,\"-\")","v":"-"}]
[]
["4 . Beoordeling van de dimensionering van een klimaatregelingssysteem"]
[null,null,null,null,null,null,null,null,null,null,null,null,null,null,null,null,null,null,null,null,"Beoordeling"]
["Specifiek stroomverbruik in verhouding tot de bruto-oppervlakte\nvan het beschermd volume",null,null,null,null,null,null,null,null,null,null,null,null,null,null,{"$f":"Dimensionnement!K9","v":""},null,null,null,null,{"$f":"Dimensionnement!M9","v":""}]
["Specifiek stroomverbruik van de \"productie van koud\" in verhouding tot de bruto oppervlakte van het beschermd volume",null,null,null,null,null,null,null,null,null,null,null,null,null,null,{"$f":"Dimensionnement!K15","v":""},null,null,null,null,{"$f":"Dimensionnement!M15","v":""}]
["Specifiek vermogen van het klimaatregelingssysteem\n(gedeeld door de netto oppervlakte van de geklimatiseerde ruimtes)",null,null,null,null,null,null,null,null,null,null,null,null,null,null,{"$f":"Dimensionnement!K19","v":""},null,null,null,null,{"$f":"Dimensionnement!M19","v":""}]
["Aantal equivalente bedrijfsuren van het koelsysteem\nbij maximumvermogen ",null,null,null,null,null,null,null,null,null,null,null,null,null,null,{"$f":"Dimensionnement!K22","v":""},null,null,null,null,{"$f":"Dimensionnement!M22","v":""}]
[]
["Commentaar van de EPB-klimaatregelingsadviseur"]
[{"$f":"Dimensionnement!A25","v":0},null,null,null,null,null,null,null,null,null,null,null,null,null,null,null,null,null,null,null,null,null,null,null,{"$f":"Dimensionnement!A25","v":0}]
[]
["5. Algemene controle van de automatische regelingsinstallaties"]
[{"$f":"regulation!C5","v":"Bevinden de regelingsinstallaties zich in goede staat ?"},null,null,null,null,null,null,null,null,null,null,null,null,null,null,null,null,null,{"$f":"regulation!G5","v":0}]
[{"$f":"regulation!C6","v":"Zijn de regelingsinstallaties ingesteld op : \"manuele modus\", \"automatische modus\" of \"noodprogramma\" ?"},null,null,null,null,null,null,null,null,null,null,null,null,null,null,null,null,null,{"$f":"regulation!G6","v":0}]
[{"$f":"regulation!C7","v":"Wordt rekening gehouden met de alarmen van het klimaatregelingsysteem (correctieve acties) ?"},null,null,null,null,null,null,null,null,null,null,null,null,null,null,null,null,null,{"$f":"regulation!G7","v":0}]
[{"$f":"regulation!C8","v":"Is er een beheer van de uurregeling voor de werking van de  ventilatie ?"},null,null,null,null,null,null,null,null,null,null,null,null,null,null,null,null,null,{"$f":"regulation!G8","v":0}]
[{"$f":"regulation!C9","v":"Is er een beheer van de uurregeling voor de werking van de verwarming ?"},null,null,null,null,null,null,null,null,null,null,null,null,null,null,null,null,null,{"$f":"regulation!G9","v":0}]
[{"$f":"regulation!C10","v":"Is er een beheer van de uurregeling voor de werking van de koeling ?"},null,null,null,null,null,null,null,null,null,null,null,null,null,null,null,null,null,{"$f":"regulation!G10","v":0}]
[{"$f":"regulation!C11","v":"Stemmen de uurregelingen voor de werking overeen met de huidige noden van de gebruikers ?"},null,null,null,null,null,null,null,null,null,null,null,null,null,null,null,null,null,{"$f":"regulation!G11","v":0}]
[{"$f":"regulation!C12","v":"Beheert de regeling van het gebouw verschillende zones van klimaatcomfort ?"},null,null,null,null,null,null,null,null,null,null,null,null,null,null,null,null,null,{"$f":"regulation!G12","v":0}]
[{"$f":"regulation!C13","v":"Is er een \"neutrale\" zone tussen de instelpunten voor de verwarming en die voor koeling ?"},null,null,null,null,null,null,null,null,null,null,null,null,null,null,null,null,null,{"$f":"regulation!G13","v":0}]
[{"$f":"regulation!C14","v":"Zijn de instelpunten voor temperatuur en omgevingsvochtigheid voor de verwarming optimaal voor elke zone?"},null,null,null,null,null,null,null,null,null,null,null,null,null,null,null,null,null,{"$f":"regulation!G14","v":0}]
[{"$f":"regulation!C15","v":"Zijn de instelpunten voor temperatuur en omgevingsvochtigheid voor de koeling optimaal voor elke zone?"},null,null,null,null,null,null,null,null,null,null,null,null,null,null,null,null,null,{"$f":"regulation!G15","v":0}]
[{"$f":"regulation!C16","v":"Zijn de instelpunten voor temperatuur optimaal voor elke verdeelkring van de verwarming (aandrijfgroep, ventilatorluchtkoeler, …) ?"},null,null,null,null,null,null,null,null,null,null,null,null,null,null,null,null,null,{"$f":"regulation!G16","v":0}]
[{"$f":"regulation!C17","v":"Zijn de instelpunten voor temperatuur optimaal voor elke verdeelkring van het koelcircuit (pulsiegroep, ventiloconvectoren, …) ?"},null,null,null,null,null,null,null,null,null,null,null,null,null,null,null,null,null,{"$f":"regulation!G17","v":0}]
[{"$f":"regulation!C18","v":"Zijn de instelpunten voor vochtigheid optimaal voor het opstarten en stilleggen van de bevochtigingsinstallaties?"},null,null,null,null,null,null,null,null,null,null,null,null,null,null,null,null,null,{"$f":"regulation!G18","v":0}]
[{"$f":"regulation!C19","v":"Is de regeling van het  verse luchtdebiet gekoppeld aan de bezettingsgraad ?"},null,null,null,null,null,null,null,null,null,null,null,null,null,null,null,null,null,{"$f":"regulation!G19","v":0}]
[{"$f":"regulation!C20","v":"Zijn er curves beschikbaar (metingen, starten en stoppen van de verschillende uitrustingen …)?"},null,null,null,null,null,null,null,null,null,null,null,null,null,null,null,null,null,{"$f":"regulation!G20","v":0}]
[{"$f":"regulation!C21","v":"Komen de curves voor opstarten en stilleggen van de installaties voor ventilatie, koeling en verwarming overeen met de uurregelingen ?"},null,null,null,null,null,null,null,null,null,null,null,null,null,null,null,null,null,{"$f":"IF(S171=\"ja\",regulation!G21,\"niet van toepassing\")","v":"niet van toepassing"}]
[{"$f":"regulation!C22","v":"Is het verschil tussen de curves van de metingen van de omgevingstemperatuur, de aandrijftemperatuur en de instelpunten klein ?"},null,null,null,null,null,null,null,null,null,null,null,null,null,null,null,null,null,{"$f":"IF(S171=\"ja\",regulation!G22,\"niet van toepassing\")","v":"niet van toepassing"}]
[{"$f":"regulation!C23","v":"Wanneer de lokalen bezet zijn, zijn de curves van de metingen van de omgevingstemperatuur stabiel ?"},null,null,null,null,null,null,null,null,null,null,null,null,null,null,null,null,null,{"$f":"IF(S171=\"ja\",regulation!G23,\"niet van toepassing\")","v":"niet van toepassing"}]
[null,null,null,null,null,null,null,null,null,null,null,null,null,null,null,null,null,null,null,null,null,null,null,null,null,0]
["Commentaar van deEPB klimaatregelingsadviseur:",null,null,null,null,null,null,null,null,null,null,null,null,null,null,null,null,null,null,null,null,null,null,null,null,0]
[{"$f":"regulation!C26","v":0},null,null,null,null,null,null,null,null,null,null,null,null,null,null,null,null,null,null,null,null,null,null,null,{"$f":"regulation!C26","v":0}]
[]
["6. Controle van het onderhoud op basis van steekproeven"]
[null,null,null,null,null,null,null,null,null,null,null,null,null,null,null,null,null,null,null,null,null,null,null,null,null,null,"contrôle entretien"]
[{"$f":"IF(Z181>40,IF(Z183+Z184>0,IF(Z185>15,Y182,Y181),\"\"),\"Te weinig ingegeven gegevens met betrekking tot de controle van het onderhoud om het onderhoud van dit klimaatregelingssysteem te kunnen beoordelen\") & IF(Entretien!X33=\"NEE\",Y183,\"\")","v":"Te weinig ingegeven gegevens met betrekking tot de controle van het onderhoud om het onderhoud van dit klimaatregelingssysteem te kunnen beoordelen\n\nBovendien wordt het onderhoud niet uitgevoerd onder toezicht van een persoon die een certificaat heeft behaald na het succesvol afronden van een reglementaire opleiding over het minimum onderhoudsprogramma voor klimaatregelingsystemen en over het logboek."},null,null,null,null,null,null,null,null,null,null,null,null,null,null,null,null,null,null,null,null,null,null,null,"De controle toont aan dat het onderhoud van het klimaatregelingssysteem voldoet aan de minimum programma voor het onderhoud.\n\nDe resultaten van de controle van het onderhoud die eventueel onvoldoende waren worden in de bijlage 1 van het attest van de periodieke controle vermeld.",null,"% cases complétées"]
[null,null,null,null,null,null,null,null,null,null,null,null,null,null,null,null,null,null,null,null,null,null,null,null,"De controle toont aan dat het onderhoud van het klimaatregelingssysteem voldoet niet aan de minimum programma voor het onderhoud.\nEen nieuwe controle kan worden georganiseerd door de ambtenaren van Leefmilieu Brussel en een sanctieprocedure kan worden gestart.\nDe resultaten van de controle van het onderhoud die onvoldoende waren worden in de bijlage 1 van het attest van de periodieke controle vermeld.",0,"nbre cases vérifiées"]
["Commentaar van de klimaatregelingsadviseur:",null,null,null,null,null,null,null,null,null,null,null,null,null,null,null,null,null,null,null,null,null,null,null,"\n\nBovendien wordt het onderhoud niet uitgevoerd onder toezicht van een persoon die een certificaat heeft behaald na het succesvol afronden van een reglementaire opleiding over het minimum onderhoudsprogramma voor klimaatregelingsystemen en over het logboek.",0,"nbre ok"]
[{"$f":"Entretien!B37","v":0},null,null,null,null,null,null,null,null,null,null,null,null,null,null,null,null,null,null,null,null,null,null,null,{"$f":"Entretien!B37","v":0},0,"nbre pas ok"]
[null,null,null,null,null,null,null,null,null,null,null,null,null,null,null,null,null,null,null,null,null,null,null,null,null,{"$f":"IF(Z183+Z184>0,Z184*100/(Z183+Z184),\"\")","v":""},"nbre ok/(nbre ok +  nbre pas ok) * 100"]
["7. Controle op de naleving van de EPB-eisen met betrekking tot de klimaatregelingssystemen",null,null,null,null,null,null,null,null,null,null,null,null,null,null,null,null,null,null,null,null,null,null,null,null,null,"(si ce % > 15% l'entretien est considéré comme insatisfaisant)"]
[]
[{"$f":"PEB!A91","v":"Het gecontroleerde klimaatreglingsysteem is niet conform de eisen zoals gesteld in de reglementering \"klimaatregeling EPB\". \nDe verantwoordelijke voor de technische installaties heeft 12 maanden de tijd om het in overeenstemming te brengen en een nieuwe periodieke controle te laten uitvoeren.\nDe EPB-eisen die niet gerespecteerd worden vindt u in de bijlage 2 van het attest van de periodieke controle."}]
[]
[]
["Commentaar van de klimaatregelingsadviseur:"]
[{"$f":"PEB!A94","v":0},null,null,null,null,null,null,null,null,null,null,null,null,null,null,null,null,null,null,null,null,null,null,null,{"$f":"PEB!A94","v":0}]
[]
["8.  \"Exploitatievoorwaarden\" met betrekking tot de klimaatregelingssystemen"]
[]
["8.1  Milieuvergunning"]
[null,"Referentie milieuvergunning (Nr.)",null,null,null,null,null,null,null,null,null,null,null,null,{"$f":"Permis_environnement!D8","v":0}]
[null,"Identificatieplaat aanwezig op de installatie",null,null,null,null,null,null,null,null,null,null,null,null,{"$f":"Permis_environnement!D9","v":0}]
["8.2  Test documenten"]
[null,"Register aanwezig en bijgewerkt gebleven",null,null,null,null,null,null,null,null,null,null,null,null,{"$f":"Permis_environnement!D11","v":0}]
[null,"Conformiteitscertificaat",null,null,null,null,null,null,null,null,null,null,null,null,{"$f":"Permis_environnement!D12","v":0}]
[null,"Dichtheidsattest bij indienststelling",null,null,null,null,null,null,null,null,null,null,null,null,{"$f":"Permis_environnement!D13","v":0}]
[null,"Resultaat van de laatste dichtheidstest",null,null,null,null,null,null,null,null,null,null,null,null,{"$f":"Permis_environnement!D14","v":0}]
[null,"Datum",null,null,null,null,null,null,null,null,null,null,null,null,{"$f":"Permis_environnement!E14","v":"../../.."}]
["8.3  Indienststelling"]
[null,"Datum",null,null,null,null,null,null,null,null,null,null,null,null,{"$f":"Permis_environnement!D16","v":"../../.."}]
[null,"Indien HCFK aanwezig: bewijs (kopie van een factuur …)",null,null,null,null,null,null,null,null,null,null,null,null,{"$f":"Permis_environnement!D17","v":0}]
[null,"(voor of na 31/12/1999)",null,null,null,null,null,null,null,null,null,null,null,null,{"$f":"Permis_environnement!D18","v":0}]
["8.4  Elektrisch vermogen"]
[null,"Elektrisch vermogen per circuit",null,null,null,null,null,null,null,null,null,null,null,null,{"$f":"Permis_environnement!D20","v":0},null,null,null,"kW"]
["8.5  Koelmiddel"]
[null,"HCFK (R22, R124, 401A,R402A, R408A, R409A, …)",null,null,null,null,null,null,null,null,null,null,null,null,{"$f":"Permis_environnement!D22","v":0}]
[null,"HFK (R134A, R143A, R404A, R407C, R410A,…)",null,null,null,null,null,null,null,null,null,null,null,null,{"$f":"Permis_environnement!D23","v":0}]
[null,"HK (Propaan (R290), Butaan (R600), …)",null,null,null,null,null,null,null,null,null,null,null,null,{"$f":"Permis_environnement!D24","v":0}]
[null,"NH3 (R717)",null,null,null,null,null,null,null,null,null,null,null,null,{"$f":"Permis_environnement!D25","v":0}]
[null,"CO2",null,null,null,null,null,null,null,null,null,null,null,null,{"$f":"Permis_environnement!D26","v":0}]
[null,"Hoeveelheid",null,null,null,null,null,null,null,null,null,null,null,null,{"$f":"Permis_environnement!D27","v":0},null,null,null,"kg"]
["8.6 Geregistreerd koeltechnisch bedrijf"]
[null,"Naam",null,null,null,null,null,null,null,null,null,null,null,null,{"$f":"Permis_environnement!D29","v":""},null,null,null,null,null,null,null,null,null,null,null,null,{"$f":"O219","v":""},"pour la hauteur de ligne"]
[null,"Registratienummer",null,null,null,null,null,null,null,null,null,null,null,null,{"$f":"Permis_environnement!D30","v":""}]
["8.7  Machinezaal en technisch lokaal"]
[null,"Ketels, luchtcompressoren, warmtegeneratoren, pulsiegroepen, verbrandingsmotoren … aanwezig dichtbij de koelinstallaties ?",null,null,null,null,null,null,null,null,null,null,null,null,{"$f":"Permis_environnement!D32","v":0}]
[null,"Indien het elektrisch vermogen > 100 kW is : machineruimte beschikt over een hoge en lage ventilatie",null,null,null,null,null,null,null,null,null,null,null,null,{"$f":"Permis_environnement!D33","v":0}]
[null,"In de nabijheid van een koelmachine met een elektrisch vermogen > 100 kW moet een informatiepaneel geplaatst worden met de volgende gegevens : contactgegevens van de onderhoudsfirma en instructies over de wijze waarop de koelinstallaties in of buiten bedrijf kunnen worden gesteld",null,null,null,null,null,null,null,null,null,null,null,null,{"$f":"Permis_environnement!D34","v":0}]
[]
["Commentaar van de EPB-klimaatregelingsadviseur:"]
[{"$f":"Permis_environnement!B37","v":0},null,null,null,null,null,null,null,null,null,null,null,null,null,null,null,null,null,null,null,null,null,null,null,{"$f":"A227","v":0}]
[]
["9. Aanbevelingen"]
[{"$f":"Y230","v":0}]
[0]
[0]
[0]
[0]
[0]
[0]
[0]
[0]
[0]
[0]
[0]
[0]
[0]
[0]
[0]
[0]
[0]
[0]
[0]
[0]
[0]
[0]
[0]
[0]
[0]
[0]
[0]
[0]
[0]
[0]
[0]
[0]
[0]
[0]
[0]
[0]
[0]
[0]
[0]
[0]
[0]
[0]
[0]
[0]
[0]
[0]
[0]
[0]
[0]
[0]
[0]
[0]
[0]
[0]
[0]
[0]
[0]
[0]
[0]
[]
["Verslag EPB diagnose klimaatregeling",null,null,null,null,null,null,null,null,null,null,null,"Verslag EPB diagnose klimaatregeling"]
["opgesteld door : ",null,null,null,null,null,null,null,null,null,null,null,"ontvangen door :"]
[{"$f":"Administratif!$D$4&\" \"&Administratif!$D$5","v":" "},null,null,null,null,null,null,null,null,null,null,null,"Naam : ………………………………………….."]
[null,null,null,null,null,null,null,null,null,null,null,null,"Functie : ……………………………………….."]
[]
[]
[null,null,null,null,null,null,null,null,null,null,null,"(handtekening)",null,null,null,null,null,null,null,null,null,null,"(handtekening)"]

{"sheet":"Annexe1","index":33,"n_rows":0,"n_cols":0,"rows_kept":0,"cut":false,"hidden":false,"merged":[[1,0,1,4],[0,0,0,4]]}

{"sheet":"Annexe_Rapport_1","index":34,"n_rows":3,"n_cols":4,"rows_kept":3,"cut":false,"hidden":false,"merged":[[0,0,0,3]]}
["Bijlage 1  Controle van het minimum programma voor het onderhoud\nontoereikende punten:"]
["Type uitrusting","Referentienr.","controles waar het resultaat als \"onvoldoende\" werd geacht","Observaties en meetresultaten"]
[null,null," /"]

{"sheet":"Annexe_Rapport_2","index":35,"n_rows":34,"n_cols":9,"rows_kept":34,"cut":false,"hidden":false,"merged":[[10,0,10,7],[8,0,8,7],[11,0,11,7],[12,0,12,7],[13,0,13,7],[14,0,14,7],[15,0,15,7],[16,0,16,7],[17,0,17,7],[18,0,18,7],[19,0,19,7],[21,0,21,7],[31,0,31,7],[33,0,33,7],[23,0,23,7],[25,0,25,7],[27,0,27,7],[28,0,28,7],[29,0,29,7]]}
[]
[]
[]
[]
[]
[]
[]
[]
["Bijlage 2 - EPB-eisen die voor dit klimaatregelingssysteem niet worden nageleefd"]
[]
["Eis inzake de metingen"]
["- Meting van het totale elektrische energieverbruik van alle koelinstallaties"]
["- Meting van de hoeveelheid energie voor het koelen die op het ijswaterverdeelnet wordt overgebracht"]
["- Meting van de hoeveelheid koelenergie overgebracht naar elk gebouw"]
["- Meting van het elektrische energieverbruik van het geheel van de koeltorens en de luchtkoelers"]
["- De meters op de koelproductie zijn voorzien van een mechanisme dat de automatische registratie van de plaatselijk of op afstand gemeten hoeveelheid toelaat (analoge of digitale uitgang)."]
["- Meting van het elektrische energieverbruik van ventilatoren waarvan het een debiet ≥ 10 000 m³/u"]
["- De meters op deze ventilatoren zijn voorzien van een mechanisme dat de automatische registratie van de plaatselijk of op afstand gemeten hoeveelheid toelaat (analoge of digitale uitgang)."]
["- Meting van de hoeveelheid koelenergie overgebracht door het ijswatercircuit naar elke EPB-eenheid"]
["- De meters op de koelenergie overgebracht naar elke EPB-eenheid zijn voorzien van een mechanisme dat de automatische registratie van de plaatselijk of op afstand gemeten hoeveelheid toelaat (analoge of digitale uitgang)."]
[]
["Eis met betrekking tot de energieboekhouding : het jaarlijks verslag moet conform aan de EPB-reglementering voor klimaatregeling zijn"]
[]
["Eis met betrekking tot het logboek : het logboek moet conform aan de EPB-reglementering voor klimaatregeling zijn"]
[]
["Dimensioneringsnota van de koelinstallaties"]
[]
[" Thermische isolatie van de leidingen en toebehoren"]
["- Totale lengte van niet-geïsoleerde leidingen [m] :",null,null,null,null,null,null,null,{"$f":"IF(PEB!I68>0,PEB!I68,\"\")","v":""}]
["- Totaal aantal niet-geïsoleerde toebehoren [m] :",null,null,null,null,null,null,null,{"$f":"IF(PEB!I69>0,PEB!I69,\"\")","v":""}]
[]
["Verdeling van de ijswater- en luchtdistributie"]
[]
["Variatie van het luchtdebiet naargelang de reële bezetting"]

{"sheet":"Rapport (2)","index":36,"n_rows":297,"n_cols":29,"rows_kept":297,"cut":false,"hidden":true,"merged":[[284,0,284,22],[285,0,285,22],[286,0,286,22],[287,0,287,22],[288,0,288,22],[278,0,278,22],[279,0,279,22],[280,0,280,22],[281,0,281,22],[282,0,282,22],[283,0,283,22],[272,0,272,22],[273,0,273,22],[274,0,274,22],[275,0,275,22],[276,0,276,22],[277,0,277,22],[266,0,266,22],[267,0,267,22],[268,0,268,22],[269,0,269,22],[270,0,270,22],[271,0,271,22],[260,0,260,22],[261,0,261,22],[262,0,262,22],[263,0,263,22],[264,0,264,22],[265,0,265,22],[254,0,254,22],[255,0,255,22],[256,0,256,22],[257,0,257,22],[258,0,258,22],[259,0,259,22],[248,0,248,22],[249,0,249,22],[250,0,250,22],[251,0,251,22],[252,0,252,22],[253,0,253,22],[242,0,242,22],[243,0,243,22],[244,0,244,22],[245,0,245,22],[246,0,246,22],[247,0,247,22],[236,0,236,22],[237,0,237,22],[238,0,238,22],[239,0,239,22],[240,0,240,22],[241,0,241,22],[230,0,230,22],[231,0,231,22],[232,0,232,22],[233,0,233,22],[234,0,234,22],[235,0,235,22],[222,1,222,13],[222,14,222,17],[223,1,223,13],[223,14,223,17],[226,0,226,22],[229,0,229,22],[216,14,216,17],[217,14,217,17],[218,14,218,21],[219,14,219,17],[220,14,220,17],[221,1,221,13],[221,14,221,17],[210,14,210,17],[211,14,211,17],[212,14,212,17],[213,14,213,17],[214,14,214,17],[215,14,215,17],[204,14,204,17],[205,14,205,17],[206,14,206,17],[207,14,207,17],[208,14,208,17],[209,14,209,17],[199,14,199,17],[200,14,200,17],[201,14,201,17],[202,1,202,13],[202,14,202,17],[203,1,203,11],[203,14,203,17],[183,0,183,22],[187,0,188,22],[191,0,191,22],[196,14,196,17],[197,14,197,17],[198,14,198,17],[173,0,173,17],[173,18,173,22],[174,0,174,17],[174,18,174,22],[176,0,176,22],[180,0,180,22],[170,0,170,17],[170,18,170,22],[171,0,171,17],[171,18,171,22],[172,0,172,17],[172,18,172,22],[167,0,167,17],[167,18,167,22],[168,0,168,17],[168,18,168,22],[169,0,169,17],[169,18,169,22],[164,0,164,17],[164,18,164,22],[165,0,165,17],[165,18,165,22],[166,0,166,17],[166,18,166,22],[161,0,161,17],[161,18,161,22],[162,0,162,17],[162,18,162,22],[163,0,163,17],[163,18,163,22],[158,0,158,17],[158,18,158,22],[159,0,159,17],[159,18,159,22],[160,0,160,17],[160,18,160,22],[152,0,152,22],[155,0,155,17],[155,18,155,22],[156,0,156,17],[156,18,156,22],[157,0,157,17],[157,18,157,22],[148,0,148,14],[148,15,148,19],[148,20,148,22],[149,0,149,14],[149,15,149,19],[149,20,149,22],[145,20,145,22],[146,0,146,14],[146,15,146,19],[146,20,146,22],[147,0,147,14],[147,15,147,19],[147,20,147,22],[141,0,141,13],[141,16,141,18],[141,20,141,22],[142,0,142,13],[142,16,142,18],[143,16,143,18],[143,20,143,22],[139,0,139,13],[139,16,139,18],[139,20,139,22],[140,0,140,13],[140,16,140,18],[140,20,140,22],[137,0,137,13],[137,16,137,18],[137,20,137,22],[138,0,138,13],[138,16,138,18],[138,20,138,22],[133,16,133,18],[133,19,133,22],[135,0,135,13],[135,16,135,18],[136,0,136,13],[136,16,136,18],[136,20,136,22],[130,0,130,13],[131,0,131,13],[131,16,131,18],[132,0,132,13],[132,16,132,18],[132,20,132,22],[128,0,128,13],[128,16,128,18],[128,20,128,22],[129,0,129,13],[129,16,129,18],[129,19,129,22],[125,0,125,13],[126,0,126,13],[126,16,126,18],[127,0,127,13],[127,16,127,18],[127,20,127,22],[121,0,121,13],[121,16,121,18],[122,0,122,13],[122,16,122,18],[123,0,123,13],[123,16,123,18],[118,20,118,22],[119,0,119,13],[119,16,119,18],[119,20,119,22],[120,0,120,13],[120,16,120,18],[112,0,112,13],[112,16,112,18],[115,1,115,14],[117,0,117,13],[118,0,118,13],[118,16,118,18],[109,0,109,13],[109,16,109,18],[110,0,110,13],[110,16,110,18],[111,0,111,13],[111,16,111,18],[106,0,106,13],[106,16,106,18],[107,0,107,13],[107,16,107,18],[108,0,108,13],[108,16,108,18],[103,0,103,13],[103,16,103,18],[104,0,104,13],[104,16,104,18],[105,0,105,13],[105,16,105,18],[100,0,100,13],[100,16,100,18],[101,0,101,13],[101,16,101,18],[102,0,102,13],[102,16,102,18],[95,0,95,13],[95,16,95,18],[96,0,96,13],[96,16,96,18],[98,0,98,14],[99,0,99,14],[91,0,91,13],[91,16,91,18],[92,0,92,14],[93,0,93,14],[94,0,94,13],[94,16,94,18],[89,0,89,13],[89,16,89,18],[89,19,89,22],[90,0,90,13],[90,16,90,18],[90,19,90,22],[87,0,87,13],[87,16,87,18],[87,19,87,22],[88,0,88,13],[88,16,88,18],[88,19,88,22],[85,0,85,13],[85,16,85,18],[85,19,85,22],[86,0,86,13],[86,16,86,18],[86,19,86,22],[83,0,83,13],[83,16,83,18],[83,19,83,22],[84,0,84,13],[84,16,84,18],[84,19,84,22],[81,0,81,13],[81,16,81,18],[81,19,81,22],[82,0,82,13],[82,16,82,18],[82,19,82,22],[79,0,79,13],[79,16,79,18],[79,19,79,22],[80,0,80,13],[80,16,80,18],[80,19,80,22],[75,9,75,11],[76,15,76,20],[77,0,77,14],[78,0,78,14],[78,16,78,18],[78,19,78,22],[70,4,70,9],[70,10,70,15],[70,16,70,18],[70,19,70,22],[71,4,71,9],[71,10,71,15],[71,16,71,18],[71,19,71,22],[68,10,68,15],[68,16,68,18],[68,19,68,22],[69,4,69,9],[69,10,69,15],[69,16,69,18],[69,19,69,22],[66,10,66,15],[66,16,66,18],[66,19,66,22],[67,10,67,15],[67,16,67,18],[67,19,67,22],[59,2,59,3],[61,5,61,11],[64,10,64,15],[64,16,64,18],[64,19,64,22],[65,10,65,15],[65,16,65,18],[65,19,65,22],[50,18,50,22],[52,2,52,3],[53,2,53,3],[54,2,54,3],[57,2,57,3],[58,2,58,3],[47,3,47,11],[47,15,47,22],[48,6,48,7],[49,0,49,5],[49,6,49,9],[49,10,49,17],[49,18,49,21],[33,17,33,21],[35,24,38,24],[36,2,36,22],[37,3,37,13],[41,4,41,9],[46,0,46,1],[46,2,46,11],[46,13,46,16],[46,19,46,22],[29,2,29,11],[29,13,29,15],[29,20,29,22],[30,3,30,11],[30,15,30,22],[32,0,32,3],[32,4,32,12],[32,17,32,21],[23,17,23,21],[26,2,26,9],[26,12,26,22],[27,0,27,2],[27,3,27,9],[27,12,27,22],[19,2,19,11],[19,13,19,15],[19,20,19,22],[20,3,20,11],[20,15,20,22],[22,0,22,3],[22,4,22,12],[22,17,22,21],[12,4,12,12],[12,17,12,21],[13,17,13,21],[16,2,16,9],[16,12,16,22],[17,0,17,2],[17,3,17,9],[17,12,17,22],[7,0,7,4],[7,5,7,7],[9,2,9,11],[9,13,9,16],[9,19,9,22],[10,3,10,10],[10,15,10,22],[0,0,0,22],[2,20,2,22],[5,2,5,9],[5,12,5,22],[6,3,6,9],[6,12,6,22]]}
["VERSLAG EPB DIAGNOSE \nVAN EEN KLIMAATREGELINGSSYSTEEM",null,null,null,null,null,null,null,null,null,null,null,null,null,null,null,null,null,null,null,null,null,null,null,"set_clear (utilisé lorsque la macro \"clear\" est employée)"]
[]
["1. Administratieve gegevens:",null,null,null,null,null,null,null,null,null,null,null,null,null,null,null,null,null,"Datum:",null,{"$f":"Menu!AC3","v":"2020-12-01"}]
[]
["1.1 Gegevens over de EPB klimaatregelingsadviseur"]
["Naam:",null,{"$f":"Administratif!D4","v":0},null,null,null,null,null,null,null,null,"Bedrijf:",{"$f":"Administratif!D8","v":0}]
["Voornaam:",null,null,{"$f":"Administratif!D5","v":0},null,null,null,null,null,null,null,"BTW nr:",{"$f":"Administratif!D9","v":0}]
["Identificatienr.:",null,null,null,null,{"$f":"Administratif!D6","v":0}]
[]
["Straat:",null,{"$f":"Administratif!D11","v":0},null,null,null,null,null,null,null,null,null,"Nr.:",{"$f":"Administratif!D12","v":0}]
["Postcode:",null,null,{"$f":"Administratif!D13","v":0},null,null,null,null,null,null,null,null,"Gemeente:",null,null,{"$f":"Administratif!D14","v":0}]
[]
["Telefoonnr.:",null,null,null,{"$f":"Administratif!D17","v":0},null,null,null,null,null,null,null,null,null,null,null,"Fax nr.:",{"$f":"Administratif!$D$19","v":0}]
["E-mail adres:",null,null,null,{"$f":"Administratif!D20","v":0},null,null,null,null,null,null,null,null,null,null,null,"GSM nr.:",{"$f":"Administratif!$D$18","v":0}]
[]
["1.2 Contactgegevens van de eigenaar of houder/aanvrager van de milieuvergunning"]
["Naam:",null,{"$f":"batiment_admin!C14","v":0},null,null,null,null,null,null,null,null,"Bedrijf:",{"$f":"batiment_admin!C17","v":0}]
["Voornaam:",null,null,{"$f":"batiment_admin!C15","v":0},null,null,null,null,null,null,null,"BTW nr:",{"$f":"batiment_admin!C18","v":0}]
[]
["Straat:",null,{"$f":"batiment_admin!C20","v":0},null,null,null,null,null,null,null,null,null,"Nr.:",{"$f":"batiment_admin!$C$21","v":0}]
["Postcode:",null,null,{"$f":"batiment_admin!C22","v":0},null,null,null,null,null,null,null,null,"Gemeente:",null,null,{"$f":"batiment_admin!C23","v":0}]
[]
["Telefoonnr.:",null,null,null,{"$f":"batiment_admin!C26","v":0},null,null,null,null,null,null,null,null,null,null,null,"Fax nr.:",{"$f":"batiment_admin!$C$28","v":0}]
["E-mail adres:",null,null,null,{"$f":"batiment_admin!C29","v":0},null,null,null,null,null,null,null,null,null,null,null,"GSM nr.:",{"$f":"batiment_admin!$C$27","v":0}]
[]
[{"$f":"\"1.3 Contactpersoon voor dit gebouw\" & IF(batiment_admin!D31=\"ja\",\" =  verantwoordelijke voor de technische installaties\",\"\")","v":"1.3 Contactpersoon voor dit gebouw"}]
["Naam:",null,{"$f":"IF(batiment_admin!D31=\"ja\",\"\",batiment_admin!C33)","v":0},null,null,null,null,null,null,null,null,"Bedrijf:",{"$f":"IF(batiment_admin!D31=\"ja\",\"\",batiment_admin!C36)","v":0}]
["Voornaam:",null,null,{"$f":"IF(batiment_admin!D31=\"ja\",\"\",batiment_admin!C34)","v":0}]
[]
["Straat:",null,{"$f":"IF(batiment_admin!D31=\"ja\",\"\",batiment_admin!C38)","v":0},null,null,null,null,null,null,null,null,null,"Nr.:",{"$f":"IF(batiment_admin!D31=\"ja\",\"\",batiment_admin!C39)","v":0}]
["Postcode:",null,null,{"$f":"IF(batiment_admin!D31=\"ja\",\"\",batiment_admin!C40)","v":0},null,null,null,null,null,null,null,null,"Gemeente:",null,null,{"$f":"IF(batiment_admin!D31=\"ja\",\"\",batiment_admin!C41)","v":0}]
[]
["Telefoonnr.:",null,null,null,{"$f":"IF(batiment_admin!D31=\"ja\",\"\",batiment_admin!C44)","v":0},null,null,null,null,null,null,null,null,null,null,null,"Fax nr.:",{"$f":"IF(batiment_admin!D31=\"ja\",\"\",batiment_admin!C45)","v":0}]
["E-mail adres:",null,null,null,{"$f":" IF(batiment_admin!D31=\"ja\",\"\",batiment_admin!C46)","v":0},null,null,null,null,null,null,null,null,null,null,null,"GSM nr.:",{"$f":"IF(batiment_admin!D31=\"ja\",\"\",batiment_admin!C47)","v":0}]
[]
["1.4 Installateur"]
["Bedrijf:",null,{"$f":"batiment_admin!C49","v":0}]
["BTW nr.:",null,null,{"$f":"batiment_admin!C50","v":0}]
[]
["1.5 Koeltechnisch bedrijf"]
["Bedrijf:",null,{"$f":"batiment_admin!C53","v":0}]
["Registratienr.:",null,null,null,{"$f":"batiment_admin!C54","v":0}]
[]
["2 Het gebouw:"]
[]
["Naam:",null,{"$f":"batiment_admin!C4","v":0}]
["Straat:",null,{"$f":"batiment_admin!C6","v":0},null,null,null,null,null,null,null,null,null,"Nr.:",{"$f":"batiment_admin!C7","v":0}]
["Postcode:",null,null,{"$f":"batiment_admin!C8","v":0},null,null,null,null,null,null,null,null,"Gemeente:",null,null,{"$f":"batiment_admin!C9","v":0}]
["Bouwjaar:",null,null,null,null,null,{"$f":"batiment_admin!C57","v":0}]
["Netto oppervlakte geklimatiseerde ruimte:",null,null,null,null,null,{"$f":"Dimensionnement!K6","v":0},null,null,null,"Bruto oppervlakte\nbeschermd volume:",null,null,null,null,null,null,null,{"$f":"Dimensionnement!K5","v":0}]
[null,null,null,null,null,null,null,null,null,null,null,null,null,null,null,null,null,"berekend door:",{"$f":"batiment_admin!E73","v":0}]
["Renovaties:"]
[null,"Jaar:",{"$f":"batiment_admin!E61","v":0},null,null,null,"Beschrijving:",{"$f":"batiment_admin!$C$61","v":0}]
[null,"Jaar:",{"$f":"batiment_admin!E62","v":0},null,null,null,"Beschrijving:",{"$f":"batiment_admin!$C$62","v":0}]
[null,"Jaar:",{"$f":"batiment_admin!E63","v":0},null,null,null,"Beschrijving:",{"$f":"batiment_admin!$C$63","v":0}]
[]
["Uitbreidingen:"]
[null,"Jaar:",{"$f":"batiment_admin!E67","v":0},null,null,null,"Beschrijving:",{"$f":"batiment_admin!$C$67","v":0}]
[null,"Jaar:",{"$f":"batiment_admin!E68","v":0},null,null,null,"Beschrijving:",{"$f":"batiment_admin!$C$68","v":0}]
[null,"Jaar:",{"$f":"batiment_admin!E69","v":0},null,null,null,"Beschrijving:",{"$f":"batiment_admin!$C$69","v":0}]
[]
["Bouwwijze:",null,null,null,null,{"$f":"batiment_admin!C71","v":0}]
[]
["Netto oppervlakte per bestemming:"]
[null,null,null,null,null,null,null,null,null,null,"totaal (m²)",null,null,null,null,null,"geklimatiseerd",null,null,"niet geklimatiseerd"]
[null,null,null,null,null,null,null,null,null,"Kantoren:",{"$f":"batiment_admin!C78","v":0},null,null,null,null,null,{"$f":"batiment_admin!D78","v":0},null,null,{"$f":"batiment_admin!E78","v":0}]
[null,null,null,null,null,null,null,null,null,"Auditorium:",{"$f":"batiment_admin!C79","v":0},null,null,null,null,null,{"$f":"batiment_admin!D79","v":0},null,null,{"$f":"batiment_admin!E79","v":0}]
[null,null,null,null,null,null,null,null,null,"Restaurant:",{"$f":"batiment_admin!C80","v":0},null,null,null,null,null,{"$f":"batiment_admin!D80","v":0},null,null,{"$f":"batiment_admin!E80","v":0}]
[null,null,null,null,null,null,null,null,null,"Woning:",{"$f":"batiment_admin!C81","v":0},null,null,null,null,null,{"$f":"batiment_admin!D81","v":0},null,null,{"$f":"batiment_admin!E81","v":0}]
["Andere bestemming",null,null,null,{"$f":"batiment_admin!B82","v":0},null,null,null,null,null,{"$f":"batiment_admin!C82","v":0},null,null,null,null,null,{"$f":"batiment_admin!D82","v":0},null,null,{"$f":"batiment_admin!E82","v":0}]
["Andere bestemming",null,null,null,{"$f":"batiment_admin!B83","v":0},null,null,null,null,null,{"$f":"batiment_admin!C83","v":0},null,null,null,null,null,{"$f":"batiment_admin!D83","v":0},null,null,{"$f":"batiment_admin!E83","v":0}]
["Andere bestemming",null,null,null,{"$f":"batiment_admin!B84","v":0},null,null,null,null,null,{"$f":"batiment_admin!C84","v":0},null,null,null,null,null,{"$f":"batiment_admin!D84","v":0},null,null,{"$f":"batiment_admin!E84","v":0}]
[]
["3. Klimaatregelingssysteem:"]
[]
["Effectief nominaal vermogen:",null,null,null,null,null,null,null,null,{"$f":"Sysclim!I6","v":0}]
["Totaal vermogen van de ijswaterproductiegroepen:",null,null,null,null,null,null,null,null,null,null,null,null,null,null,{"$f":"Sysclim!Q7","v":0}]
["Hoofdcomponenten"]
["Systeem voor de productie van koelenergie",null,null,null,null,null,null,null,null,null,null,null,null,null,null,null,"Aantal eenheden",null,null,"Totaal koelvermogen (kW)"]
[{"$f":"Sysclim!A10","v":"IJswaterproductiemachine met luchtcondensor"},null,null,null,null,null,null,null,null,null,null,null,null,null,null,null,{"$f":"IF(Sysclim!Q10>=1,Sysclim!Q10,\"-\")","v":"-"},null,null,{"$f":"Sysclim!T10","v":0}]
[{"$f":"Sysclim!A11","v":"IJswaterproductiemachine met watercondensor"},null,null,null,null,null,null,null,null,null,null,null,null,null,null,null,{"$f":"IF(Sysclim!Q11>=1,Sysclim!Q11,\"-\")","v":"-"},null,null,{"$f":"Sysclim!T11","v":0}]
[{"$f":"Sysclim!A12","v":"IJswaterproductiemachine met condensor op afstand"},null,null,null,null,null,null,null,null,null,null,null,null,null,null,null,{"$f":"IF(Sysclim!Q12>=1,Sysclim!Q12,\"-\")","v":"-"},null,null,{"$f":"Sysclim!T12","v":0}]
[{"$f":"Sysclim!A13","v":"Condensing unit van monosplit"},null,null,null,null,null,null,null,null,null,null,null,null,null,null,null,{"$f":"IF(Sysclim!Q13>=1,Sysclim!Q13,\"-\")","v":"-"},null,null,{"$f":"Sysclim!T13","v":0}]
[{"$f":"Sysclim!A14","v":"Condensing unit van multisplit"},null,null,null,null,null,null,null,null,null,null,null,null,null,null,null,{"$f":"IF(Sysclim!Q14>=1,Sysclim!Q14,\"-\")","v":"-"},null,null,{"$f":"Sysclim!T14","v":0}]
[{"$f":"Sysclim!A15","v":"Lucht/lucht warmtepomp"},null,null,null,null,null,null,null,null,null,null,null,null,null,null,null,{"$f":"IF(Sysclim!Q15>=1,Sysclim!Q15,\"-\")","v":"-"},null,null,{"$f":"Sysclim!T15","v":0}]
[{"$f":"Sysclim!A16","v":"Lucht/water warmtepomp"},null,null,null,null,null,null,null,null,null,null,null,null,null,null,null,{"$f":"IF(Sysclim!Q16>=1,Sysclim!Q16,\"-\")","v":"-"},null,null,{"$f":"Sysclim!T16","v":0}]
[{"$f":"Sysclim!A17","v":"Water/lucht warmtepomp "},null,null,null,null,null,null,null,null,null,null,null,null,null,null,null,{"$f":"IF(Sysclim!Q17>=1,Sysclim!Q17,\"-\")","v":"-"},null,null,{"$f":"Sysclim!T17","v":0}]
[{"$f":"Sysclim!A18","v":"Water/water warmtepomp"},null,null,null,null,null,null,null,null,null,null,null,null,null,null,null,{"$f":"IF(Sysclim!Q18>=1,Sysclim!Q18,\"-\")","v":"-"},null,null,{"$f":"Sysclim!T18","v":0}]
[{"$f":"Sysclim!A19","v":"Bodem/lucht warmtepomp"},null,null,null,null,null,null,null,null,null,null,null,null,null,null,null,{"$f":"IF(Sysclim!Q19>=1,Sysclim!Q19,\"-\")","v":"-"},null,null,{"$f":"Sysclim!T19","v":0}]
[{"$f":"Sysclim!A20","v":"Bodem/water warmtepomp"},null,null,null,null,null,null,null,null,null,null,null,null,null,null,null,{"$f":"IF(Sysclim!Q20>=1,Sysclim!Q20,\"-\")","v":"-"},null,null,{"$f":"Sysclim!T20","v":0}]
[{"$f":"Sysclim!A21","v":"Absorptiekoelmachine"},null,null,null,null,null,null,null,null,null,null,null,null,null,null,null,{"$f":"IF(Sysclim!Q21>=1,Sysclim!Q21,\"-\")","v":"-"}]
[{"$f":"Sysclim!A22","v":"Koeltoren(s) of luchtkoeler(s) aanwezig"},null,null,null,null,null,null,null,null,null,null,null,null,null,null,null,{"$f":"IF(Sysclim!Q22<>\"\",Sysclim!Q22,\"-\")","v":"-"}]
[]
["Systeem voor de distributie van koelenergie",null,null,null,null,null,null,null,null,null,null,null,null,null,null,null,"Aanwezige systemen"]
[{"$f":"Sysclim!A25","v":"Luchtkanalen"},null,null,null,null,null,null,null,null,null,null,null,null,null,null,null,{"$f":"Sysclim!Q25","v":0}]
[{"$f":"Sysclim!A26","v":"Ijswaterkring"},null,null,null,null,null,null,null,null,null,null,null,null,null,null,null,{"$f":"Sysclim!Q26","v":0}]
[{"$f":"Sysclim!A27","v":"Koelmiddelverdelingssysteem"},null,null,null,null,null,null,null,null,null,null,null,null,null,null,null,{"$f":"Sysclim!Q27","v":0}]
[null,null,null,null,null,null,null,null,null,null,null,null,null,null,null,null," "]
[]
["Systeem voor de emissie van koelenergie",null,null,null,null,null,null,null,null,null,null,null,null,null,null,null,"Aantal eenheden"]
[{"$f":"Sysclim!A31","v":"Ventiloconvectoren"},null,null,null,null,null,null,null,null,null,null,null,null,null,null,null,{"$f":"IF(Sysclim!Q31>=1,Sysclim!Q31,\"-\")","v":"-"}]
[{"$f":"Sysclim!A32","v":"Cassettes in vals plafond"},null,null,null,null,null,null,null,null,null,null,null,null,null,null,null,{"$f":"IF(Sysclim!Q32>=1,Sysclim!Q32,\"-\")","v":"-"}]
[{"$f":"Sysclim!A33","v":"Vloer plafond wandkoeling (watervoerend)"},null,null,null,null,null,null,null,null,null,null,null,null,null,null,null,{"$f":"IF(Sysclim!Q33>=1,Sysclim!Q33,\"-\")","v":"-"}]
[{"$f":"Sysclim!A34","v":"Betonkeractivering"},null,null,null,null,null,null,null,null,null,null,null,null,null,null,null,{"$f":"IF(Sysclim!Q34>=1,Sysclim!Q34,\"-\")","v":"-"}]
[{"$f":"Sysclim!A35","v":"Directe verdamping (vloer-, muur- of plafondkoeling)"},null,null,null,null,null,null,null,null,null,null,null,null,null,null,null,{"$f":"IF(Sysclim!Q35>=1,Sysclim!Q35,\"-\")","v":"-"}]
[{"$f":"Sysclim!A36","v":"Passieve koelbalken"},null,null,null,null,null,null,null,null,null,null,null,null,null,null,null,{"$f":"IF(Sysclim!Q36>=1,Sysclim!Q36,\"-\")","v":"-"}]
[{"$f":"Sysclim!A37","v":"Actieve koelbalken"},null,null,null,null,null,null,null,null,null,null,null,null,null,null,null,{"$f":"IF(Sysclim!Q37>=1,Sysclim!Q37,\"-\")","v":"-"}]
[{"$f":"Sysclim!A38","v":"Ejectoconvectoren"},null,null,null,null,null,null,null,null,null,null,null,null,null,null,null,{"$f":"IF(Sysclim!Q38>=1,Sysclim!Q38,\"-\")","v":"-"}]
[{"$f":"Sysclim!A39","v":"Koelbatterij in luchtgroep"},null,null,null,null,null,null,null,null,null,null,null,null,null,null,null,{"$f":"IF(Sysclim!Q39>=1,Sysclim!Q39,\"-\")","v":"-"}]
[{"$f":"Sysclim!A40","v":"Koelbatterij in luchtkanalen"},null,null,null,null,null,null,null,null,null,null,null,null,null,null,null,{"$f":"IF(Sysclim!Q40>=1,Sysclim!Q40,\"-\")","v":"-"}]
[{"$f":"Sysclim!A41","v":"Binnen unit monosplit"},null,null,null,null,null,null,null,null,null,null,null,null,null,null,null,{"$f":"IF(Sysclim!Q41>=1,Sysclim!Q41,\"-\")","v":"-"}]
[{"$f":"Sysclim!A42","v":"Binnen unit multisplit"},null,null,null,null,null,null,null,null,null,null,null,null,null,null,null,{"$f":"IF(Sysclim!Q42>=1,Sysclim!Q42,\"-\")","v":"-"}]
[{"$f":"Sysclim!A43","v":"Klimaatkast"},null,null,null,null,null,null,null,null,null,null,null,null,null,null,null,{"$f":"IF(Sysclim!Q43>=1,Sysclim!Q43,\"-\")","v":"-"}]
[null,null,null,null,null,null,null,null,null,null,null,null,null,null,null,null," "]
[]
[null,"Andere componenten",null,null,null,null,null,null,null,null,null,null,null,null,null,null," "]
[null,null,null,null,null,null,null,null,null,null,null,null,null,null,null,null," "]
["Ventilatie",null,null,null,null,null,null,null,null,null,null,null,null,null,null,null,"Aantal eenheden"]
["Pulsiegroep",null,null,null,null,null,null,null,null,null,null,null,null,null,null,null,{"$f":"IF(Sysclim!Q51>=1,Sysclim!Q51,\"-\")","v":"-"}]
["Extractiegroep",null,null,null,null,null,null,null,null,null,null,null,null,null,null,null,{"$f":"IF(Sysclim!Q52>=1,Sysclim!Q52,\"-\")","v":"-"}]
["Luchtkleppen en schuiven (buiten de luchtgroepen)",null,null,null,null,null,null,null,null,null,null,null,null,null,null,null,{"$f":"IF(Sysclim!Q53>=1,Sysclim!Q53,\"-\")","v":"-"}]
["Aanzuig- en afblaasroosters",null,null,null,null,null,null,null,null,null,null,null,null,null,null,null,{"$f":"IF(Sysclim!Q54>=1,Sysclim!Q54,\"-\")","v":"-"}]
["Pulsie en extractie monden",null,null,null,null,null,null,null,null,null,null,null,null,null,null,null,{"$f":"IF(Sysclim!Q55>=1,Sysclim!Q55,\"-\")","v":"-"}]
["Canadese/Provençaalse put",null,null,null,null,null,null,null,null,null,null,null,null,null,null,null,{"$f":"IF(Sysclim!Q56>=1,Sysclim!Q56,\"-\")","v":"-"}]
[null,null,null,null,null,null,null,null,null,null,null,null,null,null,null,null," "]
["Warmteterugwinningsysteem",null,null,null,null,null,null,null,null,null,null,null,null,null,null,null,"Aantal eenheden"]
["Lucht/lucht warmtewisselaar en heatpipe",null,null,null,null,null,null,null,null,null,null,null,null,null,null,null,{"$f":"IF(Sysclim!Q59>=1,Sysclim!Q59,\"-\")","v":"-"}]
["Warmteterugwinningsysteem met een gesloten kring",null,null,null,null,null,null,null,null,null,null,null,null,null,null,null,{"$f":"IF(Sysclim!Q60>=1,Sysclim!Q60,\"-\")","v":"-"}]
["Warmtewiel (Roterende systemen)",null,null,null,null,null,null,null,null,null,null,null,null,null,null,null,{"$f":"IF(Sysclim!Q61>=1,Sysclim!Q61,\"-\")","v":"-"}]
[null,null,null,null,null,null,null,null,null,null,null,null,null,null,null,null," "]
["Luchtbevochtigers",null,null,null,null,null,null,null,null,null,null,null,null,null,null,null,"Aantal eenheden",null,null,null,null,null,null,null,null,{"$f":"SUM(Q129:S131)","v":0}]
["Adiabatische bevochtigers",null,null,null,null,null,null,null,null,null,null,null,null,null,null,null,{"$f":"IF(Sysclim!Q64>=1,Sysclim!Q64,\"-\")","v":"-"}]
["Stoombevochtigers",null,null,null,null,null,null,null,null,null,null,null,null,null,null,null,{"$f":"IF(Sysclim!Q65>=1,Sysclim!Q65,\"-\")","v":"-"}]
[null,null,null,null,null,null,null,null,null,null,null,null,null,null,null,null," ",null,null,null,null,null,null,null,null,{"$f":"SUM(Q134:S134)","v":0}]
[null,null,null,null,null,null,null,null,null,null,null,null,null,"Autres",null,null,"Aantal eenheden"]
["Warmtewisselaar",null,null,null,null,null,null,null,null,null,null,null,null,null,null,null,{"$f":"IF(Sysclim!Q69>=1,Sysclim!Q69,\"-\")","v":"-"}]
["Waterbehandelingsinstallatie op suppletiewater",null,null,null,null,null,null,null,null,null,null,null,null,null,null,null,{"$f":"IF(Sysclim!Q70>=1,Sysclim!Q70,\"-\")","v":"-"}]
["Pompen en circulatoren",null,null,null,null,null,null,null,null,null,null,null,null,null,null,null,{"$f":"IF(Sysclim!Q71>=1,Sysclim!Q71,\"-\")","v":"-"}]
["Expansiesystemen",null,null,null,null,null,null,null,null,null,null,null,null,null,null,null,{"$f":"IF(Sysclim!Q72>=1,Sysclim!Q72,\"-\")","v":"-"}]
["Filter, deeltjes en slib-afscheiders",null,null,null,null,null,null,null,null,null,null,null,null,null,null,null,{"$f":"IF(Sysclim!Q73>=1,Sysclim!Q73,\"-\")","v":"-"}]
["Ontluchter, microbellenafscheider, automatische ontgassingssysteem",null,null,null,null,null,null,null,null,null,null,null,null,null,null,null,{"$f":"IF(Sysclim!Q74>=1,Sysclim!Q74,\"-\")","v":"-"}]
["Koude opslag",null,null,null,null,null,null,null,null,null,null,null,null,null,null,null,{"$f":"IF(Sysclim!Q75>=1,Sysclim!Q75,\"-\")","v":"-"}]
["Watercircuits (ijswater, glycolkring, koelwaterkring, luchtcondensoren)",null,null,null,null,null,null,null,null,null,null,null,null,null,null,null,{"$f":"IF(Sysclim!Q76>=1,Sysclim!Q76,\"-\")","v":"-"}]
[]
["4 . Beoordeling van de dimensionering van een klimaatregelingssysteem"]
[null,null,null,null,null,null,null,null,null,null,null,null,null,null,null,null,null,null,null,null,"Beoordeling"]
["Specifiek stroomverbruik in verhouding tot de bruto-oppervlakte\nvan het beschermd volume",null,null,null,null,null,null,null,null,null,null,null,null,null,null,{"$f":"Dimensionnement!K9","v":""},null,null,null,null,{"$f":"Dimensionnement!M9","v":""}]
["Specifiek stroomverbruik van de \"productie van koud\" in verhouding tot de bruto oppervlakte van het beschermd volume",null,null,null,null,null,null,null,null,null,null,null,null,null,null,{"$f":"Dimensionnement!K15","v":""},null,null,null,null,{"$f":"Dimensionnement!M15","v":""}]
["Specifiek vermogen van het klimaatregelingssysteem\n(gedeeld door de netto oppervlakte van de geklimatiseerde ruimtes)",null,null,null,null,null,null,null,null,null,null,null,null,null,null,{"$f":"Dimensionnement!K19","v":""},null,null,null,null,{"$f":"Dimensionnement!M19","v":""}]
["Aantal equivalente bedrijfsuren van het koelsysteem\nbij maximumvermogen ",null,null,null,null,null,null,null,null,null,null,null,null,null,null,{"$f":"Dimensionnement!K22","v":""},null,null,null,null,{"$f":"Dimensionnement!M22","v":""}]
[]
["Commentaar van de EPB-klimaatregelingsadviseur"]
[{"$f":"Dimensionnement!A25","v":0},null,null,null,null,null,null,null,null,null,null,null,null,null,null,null,null,null,null,null,null,null,null,null,{"$f":"Dimensionnement!A25","v":0}]
[]
["5. Algemene controle van de automatische regelingsinstallaties"]
[{"$f":"regulation!C5","v":"Bevinden de regelingsinstallaties zich in goede staat ?"},null,null,null,null,null,null,null,null,null,null,null,null,null,null,null,null,null,{"$f":"regulation!G5","v":0}]
[{"$f":"regulation!C6","v":"Zijn de regelingsinstallaties ingesteld op : \"manuele modus\", \"automatische modus\" of \"noodprogramma\" ?"},null,null,null,null,null,null,null,null,null,null,null,null,null,null,null,null,null,{"$f":"regulation!G6","v":0}]
[{"$f":"regulation!C7","v":"Wordt rekening gehouden met de alarmen van het klimaatregelingsysteem (correctieve acties) ?"},null,null,null,null,null,null,null,null,null,null,null,null,null,null,null,null,null,{"$f":"regulation!G7","v":0}]
[{"$f":"regulation!C8","v":"Is er een beheer van de uurregeling voor de werking van de  ventilatie ?"},null,null,null,null,null,null,null,null,null,null,null,null,null,null,null,null,null,{"$f":"regulation!G8","v":0}]
[{"$f":"regulation!C9","v":"Is er een beheer van de uurregeling voor de werking van de verwarming ?"},null,null,null,null,null,null,null,null,null,null,null,null,null,null,null,null,null,{"$f":"regulation!G9","v":0}]
[{"$f":"regulation!C10","v":"Is er een beheer van de uurregeling voor de werking van de koeling ?"},null,null,null,null,null,null,null,null,null,null,null,null,null,null,null,null,null,{"$f":"regulation!G10","v":0}]
[{"$f":"regulation!C11","v":"Stemmen de uurregelingen voor de werking overeen met de huidige noden van de gebruikers ?"},null,null,null,null,null,null,null,null,null,null,null,null,null,null,null,null,null,{"$f":"regulation!G11","v":0}]
[{"$f":"regulation!C12","v":"Beheert de regeling van het gebouw verschillende zones van klimaatcomfort ?"},null,null,null,null,null,null,null,null,null,null,null,null,null,null,null,null,null,{"$f":"regulation!G12","v":0}]
[{"$f":"regulation!C13","v":"Is er een \"neutrale\" zone tussen de instelpunten voor de verwarming en die voor koeling ?"},null,null,null,null,null,null,null,null,null,null,null,null,null,null,null,null,null,{"$f":"regulation!G13","v":0}]
[{"$f":"regulation!C14","v":"Zijn de instelpunten voor temperatuur en omgevingsvochtigheid voor de verwarming optimaal voor elke zone?"},null,null,null,null,null,null,null,null,null,null,null,null,null,null,null,null,null,{"$f":"regulation!G14","v":0}]
[{"$f":"regulation!C15","v":"Zijn de instelpunten voor temperatuur en omgevingsvochtigheid voor de koeling optimaal voor elke zone?"},null,null,null,null,null,null,null,null,null,null,null,null,null,null,null,null,null,{"$f":"regulation!G15","v":0}]
[{"$f":"regulation!C16","v":"Zijn de instelpunten voor temperatuur optimaal voor elke verdeelkring van de verwarming (aandrijfgroep, ventilatorluchtkoeler, …) ?"},null,null,null,null,null,null,null,null,null,null,null,null,null,null,null,null,null,{"$f":"regulation!G16","v":0}]
[{"$f":"regulation!C17","v":"Zijn de instelpunten voor temperatuur optimaal voor elke verdeelkring van het koelcircuit (pulsiegroep, ventiloconvectoren, …) ?"},null,null,null,null,null,null,null,null,null,null,null,null,null,null,null,null,null,{"$f":"regulation!G17","v":0}]
[{"$f":"regulation!C18","v":"Zijn de instelpunten voor vochtigheid optimaal voor het opstarten en stilleggen van de bevochtigingsinstallaties?"},null,null,null,null,null,null,null,null,null,null,null,null,null,null,null,null,null,{"$f":"regulation!G18","v":0}]
[{"$f":"regulation!C19","v":"Is de regeling van het  verse luchtdebiet gekoppeld aan de bezettingsgraad ?"},null,null,null,null,null,null,null,null,null,null,null,null,null,null,null,null,null,{"$f":"regulation!G19","v":0}]
[{"$f":"regulation!C20","v":"Zijn er curves beschikbaar (metingen, starten en stoppen van de verschillende uitrustingen …)?"},null,null,null,null,null,null,null,null,null,null,null,null,null,null,null,null,null,{"$f":"regulation!G20","v":0}]
[{"$f":"regulation!C21","v":"Komen de curves voor opstarten en stilleggen van de installaties voor ventilatie, koeling en verwarming overeen met de uurregelingen ?"},null,null,null,null,null,null,null,null,null,null,null,null,null,null,null,null,null,{"$f":"IF(S171=\"ja\",regulation!G21,\"niet van toepassing\")","v":"niet van toepassing"}]
[{"$f":"regulation!C22","v":"Is het verschil tussen de curves van de metingen van de omgevingstemperatuur, de aandrijftemperatuur en de instelpunten klein ?"},null,null,null,null,null,null,null,null,null,null,null,null,null,null,null,null,null,{"$f":"IF(S171=\"ja\",regulation!G22,\"niet van toepassing\")","v":"niet van toepassing"}]
[{"$f":"regulation!C23","v":"Wanneer de lokalen bezet zijn, zijn de curves van de metingen van de omgevingstemperatuur stabiel ?"},null,null,null,null,null,null,null,null,null,null,null,null,null,null,null,null,null,{"$f":"IF(S171=\"ja\",regulation!G23,\"niet van toepassing\")","v":"niet van toepassing"}]
[null,null,null,null,null,null,null,null,null,null,null,null,null,null,null,null,null,null,null,null,null,null,null,null,null,0]
["Commentaar van deEPB klimaatregelingsadviseur:",null,null,null,null,null,null,null,null,null,null,null,null,null,null,null,null,null,null,null,null,null,null,null,null,0]
[{"$f":"regulation!C26","v":0},null,null,null,null,null,null,null,null,null,null,null,null,null,null,null,null,null,null,null,null,null,null,null,{"$f":"regulation!C26","v":0}]
[]
["6. Controle van het onderhoud op basis van steekproeven"]
[null,null,null,null,null,null,null,null,null,null,null,null,null,null,null,null,null,null,null,null,null,null,null,null,null,null,"contrôle entretien"]
[{"$f":"IF(Z181>40,IF(Z183+Z184>0,IF(Z185>15,Y182,Y181),\"\"),\"Te weinig ingegeven gegevens met betrekking tot de controle van het onderhoud om het onderhoud van dit klimaatregelingssysteem te kunnen beoordelen\") & IF(Entretien!X33=\"NEE\",Y183,\"\")","v":"Te weinig ingegeven gegevens met betrekking tot de controle van het onderhoud om het onderhoud van dit klimaatregelingssysteem te kunnen beoordelen\n\nBovendien wordt het onderhoud niet uitgevoerd onder toezicht van een persoon die een certificaat heeft behaald na het succesvol afronden van een reglementaire opleiding over het minimum onderhoudsprogramma voor klimaatregelingsystemen en over het logboek."},null,null,null,null,null,null,null,null,null,null,null,null,null,null,null,null,null,null,null,null,null,null,null,"De controle toont aan dat het onderhoud van het klimaatregelingssysteem voldoet aan de minimum programma voor het onderhoud.\n\nDe resultaten van de controle van het onderhoud die eventueel onvoldoende waren worden in de bijlage 1 van het attest van de periodieke controle vermeld.",null,"% cases complétées"]
[null,null,null,null,null,null,null,null,null,null,null,null,null,null,null,null,null,null,null,null,null,null,null,null,"De controle toont aan dat het onderhoud van het klimaatregelingssysteem voldoet niet aan de minimum programma voor het onderhoud.\nEen nieuwe controle kan worden georganiseerd door de ambtenaren van Leefmilieu Brussel en een sanctieprocedure kan worden gestart.\nDe resultaten van de controle van het onderhoud die onvoldoende waren worden in de bijlage 1 van het attest van de periodieke controle vermeld.",0,"nbre cases vérifiées"]
["Commentaar van de klimaatregelingsadviseur:",null,null,null,null,null,null,null,null,null,null,null,null,null,null,null,null,null,null,null,null,null,null,null,"\n\nBovendien wordt het onderhoud niet uitgevoerd onder toezicht van een persoon die een certificaat heeft behaald na het succesvol afronden van een reglementaire opleiding over het minimum onderhoudsprogramma voor klimaatregelingsystemen en over het logboek.",0,"nbre ok"]
[{"$f":"Entretien!B37","v":0},null,null,null,null,null,null,null,null,null,null,null,null,null,null,null,null,null,null,null,null,null,null,null,{"$f":"Entretien!B37","v":0},0,"nbre pas ok"]
[null,null,null,null,null,null,null,null,null,null,null,null,null,null,null,null,null,null,null,null,null,null,null,null,null,{"$f":"IF(Z183+Z184>0,Z184*100/(Z183+Z184),\"\")","v":""},"nbre ok/(nbre ok +  nbre pas ok) * 100"]
["7. Controle op de naleving van de EPB-eisen met betrekking tot de klimaatregelingssystemen",null,null,null,null,null,null,null,null,null,null,null,null,null,null,null,null,null,null,null,null,null,null,null,null,null,"(si ce % > 15% l'entretien est considéré comme insatisfaisant)"]
[]
[{"$f":"PEB!A91","v":"Het gecontroleerde klimaatreglingsysteem is niet conform de eisen zoals gesteld in de reglementering \"klimaatregeling EPB\". \nDe verantwoordelijke voor de technische installaties heeft 12 maanden de tijd om het in overeenstemming te brengen en een nieuwe periodieke controle te laten uitvoeren.\nDe EPB-eisen die niet gerespecteerd worden vindt u in de bijlage 2 van het attest van de periodieke controle."}]
[]
[]
["Commentaar van de klimaatregelingsadviseur:"]
[{"$f":"PEB!A94","v":0},null,null,null,null,null,null,null,null,null,null,null,null,null,null,null,null,null,null,null,null,null,null,null,{"$f":"PEB!A94","v":0}]
[]
["8.  \"Exploitatievoorwaarden\" met betrekking tot de klimaatregelingssystemen"]
[]
["8.1  Milieuvergunning"]
[null,"Referentie milieuvergunning (Nr.)",null,null,null,null,null,null,null,null,null,null,null,null,{"$f":"Permis_environnement!D8","v":0}]
[null,"Identificatieplaat aanwezig op de installatie",null,null,null,null,null,null,null,null,null,null,null,null,{"$f":"Permis_environnement!D9","v":0}]
["8.2  Test documenten"]
[null,"Register aanwezig en bijgewerkt gebleven",null,null,null,null,null,null,null,null,null,null,null,null,{"$f":"Permis_environnement!D11","v":0}]
[null,"Conformiteitscertificaat",null,null,null,null,null,null,null,null,null,null,null,null,{"$f":"Permis_environnement!D12","v":0}]
[null,"Dichtheidsattest bij indienststelling",null,null,null,null,null,null,null,null,null,null,null,null,{"$f":"Permis_environnement!D13","v":0}]
[null,"Resultaat van de laatste dichtheidstest",null,null,null,null,null,null,null,null,null,null,null,null,{"$f":"Permis_environnement!D14","v":0}]
[null,"Datum",null,null,null,null,null,null,null,null,null,null,null,null,{"$f":"Permis_environnement!E14","v":"../../.."}]
["8.3  Indienststelling"]
[null,"Datum",null,null,null,null,null,null,null,null,null,null,null,null,{"$f":"Permis_environnement!D16","v":"../../.."}]
[null,"Indien HCFK aanwezig: bewijs (kopie van een factuur …)",null,null,null,null,null,null,null,null,null,null,null,null,{"$f":"Permis_environnement!D17","v":0}]
[null,"(voor of na 31/12/1999)",null,null,null,null,null,null,null,null,null,null,null,null,{"$f":"Permis_environnement!D18","v":0}]
["8.4  Elektrisch vermogen"]
[null,"Elektrisch vermogen per circuit",null,null,null,null,null,null,null,null,null,null,null,null,{"$f":"Permis_environnement!D20","v":0},null,null,null,"kW"]
["8.5  Koelmiddel"]
[null,"HCFK (R22, R124, 401A,R402A, R408A, R409A, …)",null,null,null,null,null,null,null,null,null,null,null,null,{"$f":"Permis_environnement!D22","v":0}]
[null,"HFK (R134A, R143A, R404A, R407C, R410A,…)",null,null,null,null,null,null,null,null,null,null,null,null,{"$f":"Permis_environnement!D23","v":0}]
[null,"HK (Propaan (R290), Butaan (R600), …)",null,null,null,null,null,null,null,null,null,null,null,null,{"$f":"Permis_environnement!D24","v":0}]
[null,"NH3 (R717)",null,null,null,null,null,null,null,null,null,null,null,null,{"$f":"Permis_environnement!D25","v":0}]
[null,"CO2",null,null,null,null,null,null,null,null,null,null,null,null,{"$f":"Permis_environnement!D26","v":0}]
[null,"Hoeveelheid",null,null,null,null,null,null,null,null,null,null,null,null,{"$f":"Permis_environnement!D27","v":0},null,null,null,"kg"]
["8.6 Geregistreerd koeltechnisch bedrijf"]
[null,"Naam",null,null,null,null,null,null,null,null,null,null,null,null,{"$f":"Permis_environnement!D29","v":""},null,null,null,null,null,null,null,null,null,null,null,null,{"$f":"O219","v":""},"pour la hauteur de ligne"]
[null,"Registratienummer",null,null,null,null,null,null,null,null,null,null,null,null,{"$f":"Permis_environnement!D30","v":""}]
["8.7  Machinezaal en technisch lokaal"]
[null,"Ketels, luchtcompressoren, warmtegeneratoren, pulsiegroepen, verbrandingsmotoren … aanwezig dichtbij de koelinstallaties ?",null,null,null,null,null,null,null,null,null,null,null,null,{"$f":"Permis_environnement!D32","v":0}]
[null,"Indien het elektrisch vermogen > 100 kW is : machineruimte beschikt over een hoge en lage ventilatie",null,null,null,null,null,null,null,null,null,null,null,null,{"$f":"Permis_environnement!D33","v":0}]
[null,"In de nabijheid van een koelmachine met een elektrisch vermogen > 100 kW moet een informatiepaneel geplaatst worden met de volgende gegevens : contactgegevens van de onderhoudsfirma en instructies over de wijze waarop de koelinstallaties in of buiten bedrijf kunnen worden gesteld",null,null,null,null,null,null,null,null,null,null,null,null,{"$f":"Permis_environnement!D34","v":0}]
[]
["Commentaar van de EPB-klimaatregelingsadviseur:"]
[{"$f":"Permis_environnement!B37","v":0},null,null,null,null,null,null,null,null,null,null,null,null,null,null,null,null,null,null,null,null,null,null,null,{"$f":"A227","v":0}]
[]
["9. Aanbevelingen"]
[{"$f":"Y230","v":0}]
[0]
[0]
[0]
[0]
[0]
[0]
[0]
[0]
[0]
[0]
[0]
[0]
[0]
[0]
[0]
[0]
[0]
[0]
[0]
[0]
[0]
[0]
[0]
[0]
[0]
[0]
[0]
[0]
[0]
[0]
[0]
[0]
[0]
[0]
[0]
[0]
[0]
[0]
[0]
[0]
[0]
[0]
[0]
[0]
[0]
[0]
[0]
[0]
[0]
[0]
[0]
[0]
[0]
[0]
[0]
[0]
[0]
[0]
[0]
[]
["Verslag EPB diagnose klimaatregeling",null,null,null,null,null,null,null,null,null,null,null,"Verslag EPB diagnose klimaatregeling"]
["opgesteld door : ",null,null,null,null,null,null,null,null,null,null,null,"ontvangen door :"]
[{"$f":"Administratif!$D$4&\" \"&Administratif!$D$5","v":" "},null,null,null,null,null,null,null,null,null,null,null,"Naam : ………………………………………….."]
[null,null,null,null,null,null,null,null,null,null,null,null,"Functie : ……………………………………….."]
[]
[]
[null,null,null,null,null,null,null,null,null,null,null,"(handtekening)",null,null,null,null,null,null,null,null,null,null,"(handtekening)"]

{"sheet":"batiment_admin (2)","index":37,"n_rows":84,"n_cols":8,"rows_kept":84,"cut":false,"hidden":true,"merged":[[64,0,64,3],[72,0,72,1],[73,0,73,1],[75,0,75,2]]}
[]
[]
["Gebouw"]
[null,"Naam van het gebouw",null,null,null,null,null,"ja"]
[null,null,null,null,null,null,null,"nee"]
["Adres","Straat"]
[null,"Nummer"]
[null,"Postnummer"]
[null,"Gemeente"]
[null,"Land","België"]
[]
[]
["Contactgevens van de eigenaar (of houder/aanvrager)"]
[null,"Achternaam"]
[null,"Voornaam"]
[]
[null,"Bedrijfsnaam"]
[null,"BTW nummer"]
[]
["Adres","Straat"]
[null,"Nummer"]
[null,"Postnummer"]
[null,"Gemeente"]
[null,"Land"]
[]
[null,"Telefoonnummer"]
[null,"GSM nummer"]
[null,"Faxnummer"]
[null,"E-mail-adres"]
[]
["Is de eigenaar (of houder/aanvrager) ook de contactpersoon ?",null,null,"nee"]
["Contactpersoon voor dit gebouw"]
[null,"Achternaam"]
[null,"Voornaam"]
[]
[null,"Bedrijfsnaam"]
[]
["Adres","Straat"]
[null,"Nummer"]
[null,"Postnummer"]
[null,"Gemeente"]
[null,"Land"]
[]
[null,"Telefoonnummer"]
[null,"Faxnummer"]
[null,"E-mail-adres"]
[null,"GSM nummer"]
["Installateur"]
[null,"Bedrijfsnaam"]
[null,"BTW nummer"]
[]
["Koeltechnisch bedrijf"]
[null,"Bedrijfsnaam"]
[null,"Registratienummer"]
[]
["Gebouw"]
[null,"Bouwjaar"]
[]
["Beschrijving van de eventuele renovaties van het gebouw en van de technische installaties"]
["Renovaties"]
[null,"Korte beschrijving",null,"jaar",null,null,"Lourd"]
[null,"Korte beschrijving",null,"jaar",null,null,"simple"]
[null,"Korte beschrijving",null,"jaar"]
[]
["Beschrijving van de uitbreidingen van het gebouw"]
["Uitbreidingen"]
[null,"Korte beschrijving",null,"jaar",null,null,"Lourd "]
[null,"Korte beschrijving",null,"jaar",null,null,"Neuf"]
[null,"Korte beschrijving",null,"jaar"]
[]
[null,"Bouwwijze"]
[null,null,null,null,null,null,"Zwaar"]
["Bruto oppervlakte van het beschermd volume",null,null,"Bron:",null,null,"Half zwaar"]
["Netto oppervlakte geklimatiseerde ruimtes",null,null,null,null,null,"Matig zwaar"]
[null,null,null,null,null,null,"Licht"]
["Netto oppervlakte per bestemming",null,null,"details:",null,null,"EPB Certificaat"]
[null,null,"totaal (m²)","geklimatiseerd","niet geklimatiseerd",null,"Adviseur"]
[null,"Kantoren",null,null,null,null,"Logboek"]
[null,"Auditorium"]
[null,"Restaurant"]
[null,"Woning"]
["Andere bestemming"]
["Andere bestemming"]
["Andere bestemming"]

{"sheet":"Récup (2)","index":38,"n_rows":19,"n_cols":29,"rows_kept":19,"cut":false,"hidden":true,"merged":[[4,13,4,14],[4,1,4,4],[4,5,4,6],[4,7,4,8],[4,9,4,10],[4,11,4,12],[5,5,5,6],[5,7,5,8],[5,9,5,10],[5,11,5,12],[5,13,5,14],[4,15,4,16],[4,17,4,18],[4,19,4,20],[4,21,4,22],[4,23,4,24],[6,1,6,4],[6,5,6,6],[6,7,6,8],[6,9,6,10],[6,11,6,12],[6,21,6,22],[6,23,6,24],[5,15,5,16],[5,17,5,18],[5,19,5,20],[5,21,5,22],[5,23,5,24],[7,13,7,14],[6,13,6,14],[6,15,6,16],[6,17,6,18],[6,19,6,20],[7,1,7,4],[7,5,7,6],[7,7,7,8],[7,9,7,10],[7,11,7,12],[8,1,8,4],[8,5,8,6],[8,7,8,8],[8,9,8,10],[8,11,8,12],[8,23,8,24],[7,15,7,16],[7,17,7,18],[7,19,7,20],[7,21,7,22],[7,23,7,24],[8,13,8,14],[8,15,8,16],[8,17,8,18],[8,19,8,20],[8,21,8,22],[9,14,10,14],[9,1,10,1],[9,2,9,4],[9,5,10,5],[9,6,10,6],[9,7,10,7],[9,8,10,8],[9,9,10,9],[9,10,10,10],[9,11,10,11],[9,12,10,12],[9,13,10,13],[9,21,10,21],[9,22,10,22],[9,23,10,23],[9,24,10,24],[9,15,10,15],[9,16,10,16],[9,17,10,17],[9,18,10,18],[9,19,10,19],[9,20,10,20]]}
["Andere componenten"]
[]
[]
[]
[null,"Aantal uitrustingen te controleren :",null,null,null,1,null,2,null,3,null,4,null,5,null,6,null,7,null,8,null,9,null,10,null,null,"ok",null,"Type récupérateur"]
[null,"Gegevens van deze uitrusting",null,null,null,null,null,null,null,null,null,null,null,null,null,null,null,null,null,null,null,null,null,null,null,null,"niet ok",null,"Lucht/lucht warmtewisselaar of heatpipe"]
[null,"Klantreferentie (TAG name, P&ID number)",null,null,null,null,null,null,null,null,null,null,null,null,null,null,null,null,null,null,null,null,null,null,null,null,"niet van toepassing",null,"Met gesloten kring"]
[null,"Type uitrusting",null,null,null,null,null,null,null,null,null,null,null,null,null,null,null,null,null,null,null,null,null,null,null,null,null,null,"Roterende systeem (warmtewiel)"]
[null,"Plaats (verdiep, bureelnummer)"]
[null,"Controle van het onderhoud","Type van gegevens",null,null,"Resultaat van de controle","Observaties en meetresultaten","Resultaat van de controle","Observaties en meetresultaten","Resultaat van de controle","Observaties en meetresultaten","Resultaat van de controle","Observaties en meetresultaten","Resultaat van de controle","Observaties en meetresultaten","Resultaat van de controle","Observaties en meetresultaten","Resultaat van de controle","Observaties en meetresultaten","Resultaat van de controle","Observaties en meetresultaten","Resultaat van de controle","Observaties en meetresultaten","Resultaat van de controle","Observaties en meetresultaten"]
[]
[null,"Lucht/lucht-warmtewisselaars (kruisstroom, tegenstroom, buizen ...) en Caloduc (heatpipe)"]
[null,"Controle van de staat van het warmteterugwinningssysteem, controle op schade, corrosie en lekkage (caloduc/heatpipe)",null,"x"]
[null,"Terugwinningssysteem met gesloten tussencircuit"]
[null,"Controle van de staat van de batterijen van het warmteterugwinningssysteem, controle op schade, corrosie en lekkage (caloduc/heatpipe)",null,"x"]
[null,"Controle van de uitrustingen waaruit dit circuit bestaat: kleppen, leidingen, circulatoren, regeling, …",null,"x"]
[null,"Controleren of het water van het circuit werd geanalyseerd (verslagen in het logboek)","x"]
[null,"Systeem van het roterende type (warmtewiel)"]
[null,"Algemene controle : staat van het wiel, de dichtingen, de riem, de motor, controle op schade en corrosie",null,"x"]

{"sheet":"Annexe_Rapport_2 (2)","index":39,"n_rows":34,"n_cols":9,"rows_kept":34,"cut":false,"hidden":true,"merged":[[21,0,21,7],[8,0,8,7],[10,0,10,7],[11,0,11,7],[12,0,12,7],[13,0,13,7],[14,0,14,7],[15,0,15,7],[16,0,16,7],[17,0,17,7],[18,0,18,7],[19,0,19,7],[33,0,33,7],[23,0,23,7],[25,0,25,7],[27,0,27,7],[28,0,28,7],[29,0,29,7],[31,0,31,7]]}
[]
[]
[]
[]
[]
[]
[]
[]
["Bijlage 2 - EPB-eisen die voor dit klimaatregelingssysteem niet worden nageleefd"]
[]
["Eis inzake de metingen"]
["- Meting van het totale elektrische energieverbruik van alle koelinstallaties"]
["- Meting van de hoeveelheid energie voor het koelen die op het ijswaterverdeelnet wordt overgebracht"]
["- Meting van de hoeveelheid koelenergie overgebracht naar elk gebouw"]
["- Meting van het elektrische energieverbruik van het geheel van de koeltorens en de luchtkoelers"]
["- De meters op de koelproductie zijn voorzien van een mechanisme dat de automatische registratie van de plaatselijk of op afstand gemeten hoeveelheid toelaat (analoge of digitale uitgang)."]
["- Meting van het elektrische energieverbruik van ventilatoren waarvan het een debiet ≥ 10 000 m³/u"]
["- De meters op deze ventilatoren zijn voorzien van een mechanisme dat de automatische registratie van de plaatselijk of op afstand gemeten hoeveelheid toelaat (analoge of digitale uitgang)."]
["- Meting van de hoeveelheid koelenergie overgebracht door het ijswatercircuit naar elke EPB-eenheid"]
["- De meters op de koelenergie overgebracht naar elke EPB-eenheid zijn voorzien van een mechanisme dat de automatische registratie van de plaatselijk of op afstand gemeten hoeveelheid toelaat (analoge of digitale uitgang)."]
[]
["Eis met betrekking tot de energieboekhouding : het jaarlijks verslag moet conform aan de EPB-reglementering voor klimaatregeling zijn"]
[]
["Eis met betrekking tot het logboek : het logboek moet conform aan de EPB-reglementering voor klimaatregeling zijn"]
[]
["Dimensioneringsnota van de koelinstallaties"]
[]
[" Thermische isolatie van de leidingen en toebehoren"]
["- Totale lengte van niet-geïsoleerde leidingen [m] :",null,null,null,null,null,null,null,{"$f":"IF(PEB!I68>0,PEB!I68,\"\")","v":""}]
["- Totaal aantal niet-geïsoleerde toebehoren [m] :",null,null,null,null,null,null,null,{"$f":"IF(PEB!I69>0,PEB!I69,\"\")","v":""}]
[]
["Verdeling van de ijswater- en luchtdistributie"]
[]
["Variatie van het luchtdebiet naargelang de reële bezetting"]

{"sheet":"Consommations (2)","index":40,"n_rows":28,"n_cols":10,"rows_kept":28,"cut":false,"hidden":true,"merged":[[16,2,17,4],[16,5,17,7],[16,8,17,10],[24,5,26,7],[25,2,26,4]]}
[]
[]
[null,null,"Verbruik"]
[]
[null,null,"Totaal verbruik"]
[]
[null,null,"Jaarlijks totaal stroomverbruik"]
[null,null,"Jaar","kWh/an"]
[]
[]
[]
[]
[]
[]
[]
[null,null,"Verbruik van het klimaatregelingssysteem"]
[null,null,"Jaarlijks stroomverbruik koelinstallaties",null,null,"Jaarlijks stroomverbruik van de ijswaterproductiesgroepen",null,null,"Jaarlijkse koelenergieproductie door de ijswaterproductiegroepen"]
[]
[null,null,"Jaar","kWh/an",null,"Jaar","kWh/an",null,"Jaar","kWh/an"]
[]
[]
[]
[]
[]
[null,null,null,null,null,"Jaarlijks stroomverbruik \nventilatoren > 10000 m³/u"]
[null,null,"Jaarlijks stroomverbruik luchtcondensoren en koeltorens"]
[]
[null,null,"Jaar","kWh/an",null,"Jaar","kWh/an"]

{"sheet":"Dimensionnement (2)","index":41,"n_rows":29,"n_cols":20,"rows_kept":29,"cut":false,"hidden":true,"merged":[[53,0,53,4],[54,0,54,4],[47,0,47,4],[48,0,48,4],[49,0,49,4],[50,0,50,4],[51,0,51,4],[52,0,52,4],[46,0,46,4],[35,0,35,4],[36,0,36,4],[37,0,37,4],[38,0,38,4],[39,0,39,4],[40,0,40,4],[41,0,41,4],[42,0,42,4],[43,0,43,4],[44,0,44,4],[45,0,45,4],[34,0,34,4],[8,0,8,8],[13,0,13,8],[14,0,14,8],[15,0,15,8],[18,0,18,8],[21,0,21,8],[24,0,24,10],[29,6,29,9],[31,0,31,4],[32,0,32,4],[33,0,33,4]]}
[]
[]
["Beoordeling van de dimensionering van het klimaatregelingssysteem"]
[]
["Bruto oppervlakte van het beschermd volume",null,null,null,null,null,null,null,null,"m2",{"$f":"batiment_admin!C73","v":0}]
["Netto oppervlakte geklimatiseerde ruimtes",null,null,null,null,null,null,null,null,"m2",{"$f":"batiment_admin!C74","v":0}]
[null,null,null,null,null,null,null,null,null,null,null,null,"Beoordeling",null,"zeer laag","laag","hoog","zeer hoog"]
["Jaarlijks gemiddeld totaal stroomverbruik",null,null,null,null,null,null,null,null,"kWh/jaar",{"$f":"IF(SUM(Consommations!D9:D13)>0,AVERAGEIF(Consommations!D9:D13,\">0\"),\"\")","v":""}]
["Specifiek stroomverbruik in verhouding tot de bruto-oppervlakte\nvan het beschermd volume",null,null,null,null,null,null,null,null,"kWh/m2.jaar",{"$f":"IF(AND(K8<>\"\",K5<>\"\",K8>0,K5>0),K8/K5,\"\")","v":""},null,{"$f":"IF(K9=\"\",\"\",IF(K9<O9,O7,IF(K9<P9,P7,IF(K9>R9,R7,IF(K9>Q9,Q7,\"gemiddeld\")))))","v":""},null,50,80,140,170]
[]
["Jaarlijks gemiddeld stroomverbruik van de koelinstallaties",null,null,null,null,null,null,null,null,"kWh/jaar",{"$f":"IF(SUM(Consommations!D20:D24)>0,AVERAGEIF(Consommations!D20:D24,\">0\"),\"\")","v":""}]
["Jaarlijks stroomverbruik van de koeltorens en luchtkoelers",null,null,null,null,null,null,null,null,"kWh/jaar",{"$f":"IF(SUM(Consommations!D29:D33)>0,AVERAGEIF(Consommations!D29:D33,\">0\"),\"\")","v":""}]
["Jaarlijks gemiddeld stroomverbruik van de ventilatoren",null,null,null,null,null,null,null,null,"kWh/jaar",{"$f":"IF(SUM(Consommations!G29:G33)>0,AVERAGEIF(Consommations!G29:G33,\">0\"),\"\")","v":""}]
["Aandeel van het stroomverbruik dat voor rekening komt van\nde \"productie van koud\"",null,null,null,null,null,null,null,null,"%",{"$f":"IF(Sysclim!Q22=\"ja\",IF(AND(K12<>\"\",K11<>\"\",K8<>\"\",K12>0,K11>0,K8>0),(K11+K12)*100/K8,\"\"),IF(AND(K11<>\"\",K8<>\"\",K11>0,K8>0),K11*100/K8,\"\"))","v":""}]
["Specifiek stroomverbruik van de \"productie van koud\" in verhouding tot de bruto oppervlakte van het beschermd volume",null,null,null,null,null,null,null,null,"kWh/m2.jaar",{"$f":"IF(Sysclim!Q22=\"ja\",IF(AND(K12<>\"\",K11<>\"\",K5<>\"\",K12>0,K11>0,K5>0),(K11+K12)/K5,\"\"),IF(AND(K11<>\"\",K5<>\"\",K11>0,K5>0),K11/K5,\"\"))","v":""},null,{"$f":"IF(K15=\"\",\"\",IF(K15<O15,O7,IF(K15<P15,P7,IF(K15>R15,R7,IF(K15>Q15,Q7,\"gemiddeld\")))))","v":""},null,10,20,40,50]
["Specifiek stroomverbruik van de \"productie van koud\" in verhouding tot de netto oppervlakte van de geklimatiseerde ruimtes",null,null,null,null,null,null,null,null,"kWh/m2.jaar",{"$f":"IF(Sysclim!Q22=\"ja\",IF(AND(K12<>\"\",K11<>\"\",K6<>\"\",K12>0,K11>0,K6>0),(K11+K12)/K6,\"\"),IF(AND(K11<>\"\",K6<>\"\",K11>0,K6>0),K11/K6,\"\"))","v":""}]
[]
["Effectief nominaal vermogen van het klimaatregelingsysteem",null,null,null,null,null,null,null,null,"kW",{"$f":"Sysclim!I6","v":0}]
["Specifieke vermogen van het klimaatregelingssysteem\n(gedeeld door de netto oppervlakte van de geklimatiseerde ruimtes)",null,null,null,null,null,null,null,null,"W/m2",{"$f":"IF(AND(K18<>\"\",K6<>\"\",K18>0,K6>0),K18*1000/K6,\"\")","v":""},null,{"$f":"IF(K19=\"\",\"\",IF(K19<O19,O7,IF(K19<P19,P7,IF(K19>R19,R7,IF(K19>Q19,Q7,\"gemiddeld\")))))","v":""},null,50,75,125,150]
[]
["Elektrische vermogen van de koelinstallaties",null,null,null,null,null,null,null,null,"kW"]
["Aantal equivalente bedrijfsuren van het koelsysteem\nbij maximumvermogen ",null,null,null,null,null,null,null,null,"uren/an",{"$f":"IF(AND(K11<>\"\",K21<>\"\",K11>0,K21>0),K11/K21,\"\")","v":""},null,{"$f":"IF(K22=\"\",\"\",IF(K22<O22,O7,IF(K22<P22,P7,IF(K22>R22,R7,IF(K22>Q22,Q7,\"gemiddeld\")))))","v":""},null,500,750,1250,1500]
[]
["Commentaar over deze indicatoren"]
[null,null,null,null,null,null,null,null,null,null,null,null,null,null,null,null,null,null,null,{"$f":"A25","v":0}]
[]
["Legenda:",null,null,null,"Gegevens die moeten ingevoerd worden"]
[null,null,null,null,"Gegevens uit de vorige tabbladen"]
[null,null,null,null,"Resultaat van een berekening"]

{"sheet":"regulation (2)","index":42,"n_rows":26,"n_cols":16,"rows_kept":26,"cut":false,"hidden":true,"merged":[[22,2,22,5],[25,2,25,6],[16,2,16,5],[17,2,17,5],[18,2,18,5],[19,2,19,5],[20,2,20,5],[21,2,21,5],[15,2,15,5],[4,2,4,5],[5,2,5,5],[6,2,6,5],[7,2,7,5],[8,2,8,5],[9,2,9,5],[10,2,10,5],[11,2,11,5],[12,2,12,5],[13,2,13,5],[14,2,14,5]]}
[null,null,null,null,null,null,null,null,"ETAT:"]
[]
[null,null,"Controle van de automatische regeling",null,null,null,null,null,null,null,null,null,"ja"]
[null,null,null,null,null,null,null,null,null,null,null,null,"nee"]
[null,null,"Bevinden de regelingsinstallaties zich in goede staat ?",null,null,null,null,null,"état",null,"(oui, non, sans objet)"]
[null,null,"Zijn de regelingsinstallaties ingesteld op : \"manuele mode\", \"automatische mode\" of \"noodprogramma\" ?",null,null,null,null,null,"général",null,"(automatique, dégradé, manuel)",null,"automatisch"]
[null,null,"Wordt rekening gehouden met de alarmen van het klimaatregelingsysteem (correctieve acties) ?",null,null,null,null,null,"suivi des alarmes",null,"(oui, non, sans objet)",null,"\"noodprogramma\""]
[null,null,"Is er een beheer van de uurregeling voor de werking van de  ventilatie ?",null,null,null,null,null,"plages horaires",null,null,null,"manueel"]
[null,null,"Is er een beheer van de uurregeling voor de werking van de verwarming ?"]
[null,null,"Is er een beheer van de uurregeling voor de werking van de koeling ?"]
[null,null,"Stemmen de uurregelingen voor de werking overeen met de huidige noden van de gebruikers ?"]
[null,null,"Beheert de regeling van het gebouw verschillende zones van klimaatcomfort ?",null,null,null,null,null,"gestion partition ?"]
[null,null,"Is er een \"neutrale\" zone tussen de setpunten voor de verwarming en die voor koeling ?",null,null,null,null,null,"zone neutre"]
[null,null,"Zijn de setpunten voor temperatuur en omgevingsvochtigheid voor de verwarming optimaal voor elke zone?",null,null,null,null,null,"consignes T et RH"]
[null,null,"Zijn de setpunten voor temperatuur en omgevingsvochtigheid voor de koeling optimaal voor elke zone?"]
[null,null,"Zijn de setpunten voor temperatuur optimaal voor elk subcircuit van de verwarming (aandrijfgroep, ventilatorluchtkoeler, …) ?",null,null,null,null,null,"consignes des sous-circuits"]
[null,null,"Zijn de setpunten voor temperatuur optimaal voor elk subcircuit van het koelcircuit (pulsiegroep, ventiloconvectoren, …) ?"]
[null,null,"Zijn de setpunten voor vochtigheid optimaal voor het opstarten en stilleggen van de bevochtigingsinstallaties?",null,null,null,null,null,"consignes humidification"]
[null,null,"Is de regeling van het debiet verse lucht gekoppeld aan de bezettingsgraad ?",null,null,null,null,null,"débit air neuf = f(taux d'occupation) ?"]
[null,null,"Zijn er curves beschikbaar (metingen, starten en stoppen van de verschillende uitrustingen …)?",null,null,null,null,null,"courbes"]
[null,null,"Komen de curves voor opstarten en stilleggen van de installaties voor ventilatie, koeling en verwarming overeen met de uurregelingen ?",null,null,null,null,null,"vérification plages horaires"]
[null,null,"Is het verschil tussen de curves van de metingen van de omgevingstemperatuur, de aandrijftemperatuur en de setpunten klein ?",null,null,null,null,null,"vérification températures"]
[null,null,"Wanneer de lokalen bezet zijn, zijn de curves van de metingen van de omgevingstemperatuur stabiel ?"]
[]
[null,null,"Commentaar met betrekking tot de automatische regeling"]
[null,null,null,null,null,null,null,null,null,null,null,null,null,null,null,{"$f":"C26","v":0}]

{"sheet":"machine_frigo (2)","index":43,"n_rows":91,"n_cols":29,"rows_kept":91,"cut":false,"hidden":true,"merged":[[18,24,19,24],[86,2,86,3],[18,15,19,15],[18,16,19,16],[18,17,19,17],[18,18,19,18],[18,19,19,19],[18,20,19,20],[18,9,19,9],[18,10,19,10],[18,11,19,11],[18,12,19,12],[18,13,19,13],[18,14,19,14],[18,1,19,1],[18,2,18,4],[18,5,19,5],[18,6,19,6],[18,7,19,7],[18,8,19,8],[18,21,19,21],[18,22,19,22],[18,23,19,23],[16,23,16,24],[17,5,17,6],[17,7,17,8],[17,9,17,10],[17,11,17,12],[17,13,17,14],[17,15,17,16],[17,17,17,18],[17,19,17,20],[17,21,17,22],[17,23,17,24],[16,5,16,6],[16,7,16,8],[16,9,16,10],[16,11,16,12],[16,13,16,14],[16,15,16,16],[16,17,16,18],[16,19,16,20],[16,21,16,22],[14,23,14,24],[15,5,15,6],[15,7,15,8],[15,9,15,10],[15,11,15,12],[15,13,15,14],[15,15,15,16],[15,17,15,18],[15,19,15,20],[15,21,15,22],[15,23,15,24],[14,5,14,6],[14,7,14,8],[14,9,14,10],[14,11,14,12],[14,13,14,14],[14,15,14,16],[14,17,14,18],[14,19,14,20],[14,21,14,22],[12,23,12,24],[13,5,13,6],[13,7,13,8],[13,9,13,10],[13,11,13,12],[13,13,13,14],[13,15,13,16],[13,17,13,18],[13,19,13,20],[13,21,13,22],[13,23,13,24],[12,5,12,6],[12,7,12,8],[12,9,12,10],[12,11,12,12],[12,13,12,14],[12,15,12,16],[12,17,12,18],[12,19,12,20],[12,21,12,22],[10,23,10,24],[11,5,11,6],[11,7,11,8],[11,9,11,10],[11,11,11,12],[11,13,11,14],[11,15,11,16],[11,17,11,18],[11,19,11,20],[11,21,11,22],[11,23,11,24],[10,5,10,6],[10,7,10,8],[10,9,10,10],[10,11,10,12],[10,13,10,14],[10,15,10,16],[10,17,10,18],[10,19,10,20],[10,21,10,22],[8,23,8,24],[9,5,9,6],[9,7,9,8],[9,9,9,10],[9,11,9,12],[9,13,9,14],[9,15,9,16],[9,17,9,18],[9,19,9,20],[9,21,9,22],[9,23,9,24],[8,5,8,6],[8,7,8,8],[8,9,8,10],[8,11,8,12],[8,13,8,14],[8,15,8,16],[8,17,8,18],[8,19,8,20],[8,21,8,22],[6,23,6,24],[7,5,7,6],[7,7,7,8],[7,9,7,10],[7,11,7,12],[7,13,7,14],[7,15,7,16],[7,17,7,18],[7,19,7,20],[7,21,7,22],[7,23,7,24],[6,5,6,6],[6,7,6,8],[6,9,6,10],[6,11,6,12],[6,13,6,14],[6,15,6,16],[6,17,6,18],[6,19,6,20],[6,21,6,22],[4,17,4,18],[4,19,4,20],[4,21,4,22],[4,23,4,24],[5,5,5,6],[5,7,5,8],[5,9,5,10],[5,11,5,12],[5,13,5,14],[5,15,5,16],[4,5,4,6],[4,7,4,8],[4,9,4,10],[4,11,4,12],[4,13,4,14],[4,15,4,16],[5,17,5,18],[5,19,5,20],[5,21,5,22],[5,23,5,24]]}
["Systeem voor de productie van koelenergie"]
[]
[]
[]
[null,"Aantal uitrustingen te controleren",null,null,null,1,null,2,null,3,null,4,null,5,null,6,null,7,null,8,null,9,null,10]
[null,"Gegevens met betrekking tot de koelmachine",null,null,null,null,null,null,null,null,null,null,null,null,null,null,null,null,null,null,null,null,null,null,null,null,"Type compresseur",null,"Type machine"]
[null,"Klantreferentie (TAG name, P&ID number)",null,null,null,null,null,null,null,null,null,null,null,null,null,null,null,null,null,null,null,null,null,null,null,"ok","zuigercompressor",null,{"$f":"Sysclim!A10","v":"IJswaterproductiemachine met luchtcondensor"}]
[null,"Machine type",null,null,null,null,null,null,null,null,null,null,null,null,null,null,null,null,null,null,null,null,null,null,null,"niet ok","Scroll compressor",null,{"$f":"Sysclim!A11","v":"IJswaterproductiemachine met watercondensor"}]
[null,"Fabrikant",null,null,null,null,null,null,null,null,null,null,null,null,null,null,null,null,null,null,null,null,null,null,null,"niet van toepassing","Schroefcompressor",null,{"$f":"Sysclim!A12","v":"IJswaterproductiemachine met condensor op afstand"}]
[null,"Model",null,null,null,null,null,null,null,null,null,null,null,null,null,null,null,null,null,null,null,null,null,null,null,null,"Turbo/centrifugaalcomp.",null,{"$f":"Sysclim!A13","v":"Condensing unit van monosplit"}]
[null,"Serienummer",null,null,null,null,null,null,null,null,null,null,null,null,null,null,null,null,null,null,null,null,null,null,null,null,"Schott- of rolzuigercomp.",null,{"$f":"Sysclim!A14","v":"Condensing unit van multisplit"}]
[null,"Bouwjaar",null,null,null,null,null,null,null,null,null,null,null,null,null,null,null,null,null,null,null,null,null,null,null,null,null,null,{"$f":"Sysclim!A15","v":"Lucht/lucht warmtepomp"}]
[null,"Effectief nominaal vermogen (kW)",null,null,null,null,null,null,null,null,null,null,null,null,null,null,null,null,null,null,null,null,null,null,null,null,null,null,{"$f":"Sysclim!A16","v":"Lucht/water warmtepomp"}]
[null,"Elektrisch vermogen (kW)",null,null,null,null,null,null,null,null,null,null,null,null,null,null,null,null,null,null,null,null,null,null,null,null,null,null,{"$f":"Sysclim!A17","v":"Water/lucht warmtepomp "}]
[null,"Compressortypes",null,null,null,null,null,null,null,null,null,null,null,null,null,null,null,null,null,null,null,null,null,null,null,null,null,null,{"$f":"Sysclim!A18","v":"Water/water warmtepomp"}]
[null,"Aantal compressoren",null,null,null,null,null,null,null,null,null,null,null,null,null,null,null,null,null,null,null,null,null,null,null,null,null,null,{"$f":"Sysclim!A19","v":"Bodem/lucht warmtepomp"}]
[null,"Type koelmiddel",null,null,null,null,null,null,null,null,null,null,null,null,null,null,null,null,null,null,null,null,null,null,null,null,null,null,{"$f":"Sysclim!A20","v":"Bodem/water warmtepomp"}]
[null,"Hoeveelheid koelmiddel (kg)"]
[null,"Controle van het onderhoud","Type van gegevens",null,null,"Resultaat van de controle","Observaties en meetresultaten","Resultaat van de controle","Observaties en meetresultaten","Resultaat van de controle","Observaties en meetresultaten","Resultaat van de controle","Observaties en meetresultaten","Resultaat van de controle","Observaties en meetresultaten","Resultaat van de controle","Observaties en meetresultaten","Resultaat van de controle","Observaties en meetresultaten","Resultaat van de controle","Observaties en meetresultaten","Resultaat van de controle","Observaties en meetresultaten","Resultaat van de controle","Observaties en meetresultaten"]
[]
[null,"Controleren of de ruimte rond de machine vrijgemaakt is en de aanbevelingen van de fabrikant op het vlak van de ruimte en de luchtrecirculatie rond de machine worden nageleefd",null,"x"]
[null,"De eventuele alarmen noteren",null,"x"]
[null,"Controle van het koelmiddelcircuit"]
[null,"Controle van het register : dichtheidscontroles en controle van de hoeveelheden koelvloeistof die aan een koelcircuit\nworden toegevoegd of afgetapt","x"]
[null,"Checklist \"Exploitatievoorwaarden\" invullen (milieuvergunning)","x","x"]
[null,"Visuele controle van de leidingen, kleppen, veiligheidsventielen en aansluitingen: opsporing van lekken, staat van de isolatie, corrosie en bevestigingen;",null,"x"]
[null,"Werkingscontrole van de meetvoorzieningen (manometers, temperatuurmeters, …), regelsystemen (automaten, regelaars, actuatoren, …), veiligheids- (pressostaat) en alarmvoorzieningen;",null,"x"]
[null,"Controleren of de volgende metingen op het koelcircuit werden uitgevoerd : de werkingsdrukken en -temperaturen noteren (HD, LD, onderkoeling, oververhitting) en vergelijken met de inbedrijfstellingsgegevens","x"]
[null,"1 HD",null,null,"x",null,0,null,0,null,0,null,0,null,0,null,0,null,0,null,0,null,0,null,0]
[null,"1 LD",null,null,"x",null,0,null,0,null,0,null,0,null,0,null,0,null,0,null,0,null,0,null,0]
[null,"1 Temperatuur koelmiddel na de condensor",null,null,"x",null,0,null,0,null,0,null,0,null,0,null,0,null,0,null,0,null,0,null,0]
[null,"1 Onderkoeling",null,null,"x",null,0,null,0,null,0,null,0,null,0,null,0,null,0,null,0,null,0,null,0]
[null,"1 Temperatuur koelmiddel na de verdamper",null,null,"x",null,0,null,0,null,0,null,0,null,0,null,0,null,0,null,0,null,0,null,0]
[null,"1 Oververhitting",null,null,"x",null,0,null,0,null,0,null,0,null,0,null,0,null,0,null,0,null,0,null,0]
[null,"Controle van het koelmiddel:  afwezigheid van luchtbellen achter het kijkglas, peil in de koelmiddelfles, vochtigheidsindicator ...",null,"x"]
[null,"Compressor(en)"]
[null,"Controleren of de kwaliteit en het niveau van de olie regelmatig werden gecontroleerd\nHet oliepeil controleren\nVerslagen van olieanalyses lezen","x",null,"x"]
[null,"Bevestigingen, beschermingselementen, trillingsdempers, opwarming, trillingen, netheid en geluid controleren",null,"x"]
[null,"Controleren of het stroomverbruik voor elke fase bij maximale belasting werd gemeten (koelinstallatie in regime toestand)","x"]
[null,"Compressornummer","x"]
[null,"Nominale motorstroom","x",null,null,null,0,null,0,null,0,null,0,null,0,null,0,null,0,null,0,null,0,null,0]
[null,"Stroomverbruik op fase 1\nStroomverbruik alleen meten wanneer een probleem met de koelcyclus wordt gedetecteerd : zie  1",null,null,"x",null,0,null,0,null,0,null,0,null,0,null,0,null,0,null,0,null,0,null,0]
[null,"Stroomverbruik op fase 2\nStroomverbruik alleen meten wanneer een probleem met de koelcyclus wordt gedetecteerd : zie  1",null,null,"x",null,0,null,0,null,0,null,0,null,0,null,0,null,0,null,0,null,0,null,0]
[null,"Stroomverbruik op fase 3\nStroomverbruik alleen meten wanneer een probleem met de koelcyclus wordt gedetecteerd : zie  1",null,null,"x",null,0,null,0,null,0,null,0,null,0,null,0,null,0,null,0,null,0,null,0]
[null,"Indien een startteller gemonteerd is, controleren of het aantal startcycli in de werkverslagen werd genoteerd. De resultaten vergelijken met de voorschriften van de fabrikant.","x"]
[null,"Controle van de werking van condensors en verdampers"]
[null,"Controleren of de temperaturen van de lucht of van het water voor en na de condensor en de verdamper werden gemeten","x"]
[null,"Temperatuur van de lucht of van het water voor de condensor",null,null,"x",null,0,null,0,null,0,null,0,null,0,null,0,null,0,null,0,null,0,null,0]
[null,"Temperatuur van de lucht of van het water na de condensor",null,null,"x",null,0,null,0,null,0,null,0,null,0,null,0,null,0,null,0,null,0,null,0]
[null,"Temperatuur van de lucht of van het water voor de verdamper",null,null,"x",null,0,null,0,null,0,null,0,null,0,null,0,null,0,null,0,null,0,null,0]
[null,"Temperatuur van de lucht of van het water na de verdamper",null,null,"x",null,0,null,0,null,0,null,0,null,0,null,0,null,0,null,0,null,0,null,0]
[null,"Luchtgekoelde condensors"]
[null,"Aantal luchtgekoeld condensors"]
[null,"Condensor nummer"]
[null,"De staat van de warmtewisselingsbatterij controleren, lekken of eventuele beschadiging opsporen, de batterij op corrosie en netheid controleren",null,"x"]
[null,"Controleren of het water correct wordt afgevoerd",null,"x"]
[null,"Controle van de ventilator(en): controleren op draairichting, schade, corrosie, geluid, trillingen, de bevestigingen controleren ® ventilator, motor, koppeling, aandrijving, beschermingsaccessoires",null,"x"]
[null,"Controleren of het stroomverbruik voor elke fase (op nominale frequentie) van elke ventilator werd gemeten","x"]
[null,"Aantal ventilator(en)"]
[null,"Ventilator nummer"]
[null,"Nominale motorstroom","x",null,null,null,0,null,0,null,0,null,0,null,0,null,0,null,0,null,0,null,0,null,0]
[null,"Stroomverbruik op fase 1",null,null,"x",null,0,null,0,null,0,null,0,null,0,null,0,null,0,null,0,null,0,null,0]
[null,"Stroomverbruik op fase 2",null,null,"x",null,0,null,0,null,0,null,0,null,0,null,0,null,0,null,0,null,0,null,0]
[null,"Stroomverbruik op fase 3",null,null,"x",null,0,null,0,null,0,null,0,null,0,null,0,null,0,null,0,null,0,null,0]
[null,"Watergekoelde condensors"]
[null,"Warmtewisselaar (condensor)"]
[null,"Visuele controle: opsporing van lekken, staat van de isolatie, schade, corrosie en bevestigingen",null,"x"]
[null,"Open, gesloten en hybride koeltorens en verdampingscondensors"]
[null,"Aantal koeltorens"]
[null,"Koeltoren nummer"]
[null,"Controleren of de temperaturen in vertrek- en retourleidingen werden gemeten","x"]
[null,"Temperatuur van het water in de vertrekleiding van de koeltoren",null,null,"x",null,0,null,0,null,0,null,0,null,0,null,0,null,0,null,0,null,0,null,0]
[null,"Temperatuur van het water in de retourleiding van de koeltoren",null,null,"x",null,0,null,0,null,0,null,0,null,0,null,0,null,0,null,0,null,0,null,0]
[null,"Controle van de staat van de toren: zuiverheid, afzettingen, corrosie, leidingen, bevestigingen, verdeling van de vernevelde lucht",null,"x"]
[null,"Indien een koeltoren gedurende een lange periode in stilstand blijft (meer dan een week), controleren of deze leeg leeggemaakt werd",null,"x"]
[null,"De werking van de automatische deconcentratie en van de waterpeilregeling controleren: corrosie, schade, \"manuele werking\" ...",null,"x"]
[null,"Visuele controle van de waterbehandelingsinstallaties corrosie, lekken, schade ...",null,"x"]
[null,"Controleren of het toevoegingswater en het water van de koeltoren werden geanalyseerd (verslagen in het logboek)","x"]
[null,"Als de lediging, reiniging en ontsmetting niet mogelijk zijn: controleren of legionellaonderzoeken werden uitgevoerd","x"]
[null,"Controle van de ventilator(en): controleren op draairichting, schade, corrosie, geluid, trillingen, de bevestigingen controleren ® ventilator, motor, koppeling, aandrijving, moffen, beschermingsaccessoires",null,"x"]
[null,"Aantal ventilator(en)"]
[null,"Ventilator nummer"]
[null,"Nominale motorstroom","x",null,null,null,0,null,0,null,0,null,0,null,0,null,0,null,0,null,0,null,0,null,0]
[null,"Stroomverbruik op fase 1",null,null,"x",null,0,null,0,null,0,null,0,null,0,null,0,null,0,null,0,null,0,null,0]
[null,"Stroomverbruik op fase 2",null,null,"x",null,0,null,0,null,0,null,0,null,0,null,0,null,0,null,0,null,0,null,0]
[null,"Stroomverbruik op fase 3",null,null,"x",null,0,null,0,null,0,null,0,null,0,null,0,null,0,null,0,null,0,null,0]
[null,"Controle en onderhoud van de circulatiepomp(en) en de filter(s)","Zie \"pompen en filters van de watercircuits\""]
["(s)","Systèmes dont la source froide provient du sol\nCaptage vertical (BTES - Borehole Thermal Energy)  et captage sur nappe aquifère (ATES - Aquifer Thermal Energy Storage)"]
[null,"Vérifier que les mesures de la température de départ et de retour ont été effectuées.","x"]
[null,"Mesurer T départ",null,null,"x",null,0,null,0,null,0,null,0,null,0,null,0,null,0,null,0,null,0,null,0]
[null,"Mesurer T retour",null,null,"x",null,0,null,0,null,0,null,0,null,0,null,0,null,0,null,0,null,0,null,0]

{"sheet":"Humid (2)","index":44,"n_rows":25,"n_cols":30,"rows_kept":25,"cut":false,"hidden":true,"merged":[[11,21,12,21],[11,22,12,22],[11,23,12,23],[11,24,12,24],[11,15,12,15],[11,16,12,16],[11,17,12,17],[11,18,12,18],[11,19,12,19],[11,20,12,20],[11,1,12,1],[11,2,11,4],[11,5,12,5],[11,6,12,6],[11,7,12,7],[11,8,12,8],[9,17,9,18],[9,19,9,20],[9,21,9,22],[9,23,9,24],[10,15,10,16],[11,14,12,14],[10,17,10,18],[10,19,10,20],[10,21,10,22],[10,23,10,24],[11,9,12,9],[11,10,12,10],[11,11,12,11],[11,12,12,12],[11,13,12,13],[9,15,9,16],[10,5,10,6],[10,7,10,8],[10,9,10,10],[10,11,10,12],[10,13,10,14],[9,5,9,6],[9,7,9,8],[9,9,9,10],[9,11,9,12],[9,13,9,14],[8,15,8,16],[8,17,8,18],[8,19,8,20],[8,21,8,22],[8,23,8,24],[8,5,8,6],[8,7,8,8],[8,9,8,10],[8,11,8,12],[8,13,8,14],[7,15,7,16],[7,17,7,18],[7,19,7,20],[7,21,7,22],[7,23,7,24],[7,5,7,6],[7,7,7,8],[7,9,7,10],[7,11,7,12],[7,13,7,14],[5,17,5,18],[5,19,5,20],[5,21,5,22],[5,23,5,24],[6,5,6,6],[6,7,6,8],[6,9,6,10],[6,11,6,12],[6,13,6,14],[6,15,6,16],[6,17,6,18],[6,19,6,20],[6,21,6,22],[6,23,6,24],[4,17,4,18],[4,19,4,20],[4,21,4,22],[4,23,4,24],[5,5,5,6],[5,7,5,8],[5,9,5,10],[5,11,5,12],[5,13,5,14],[5,15,5,16],[4,5,4,6],[4,7,4,8],[4,9,4,10],[4,11,4,12],[4,13,4,14],[4,15,4,16]]}
["Andere componenten"]
[]
[]
[]
[null,"Aantal uitrustingen te controleren :",null,null,null,1,null,2,null,3,null,4,null,5,null,6,null,7,null,8,null,9,null,10,null,null,"ok",null,"Type d'humidificateur"]
[null,"Gegevens van deze uitrusting",null,null,null,null,null,null,null,null,null,null,null,null,null,null,null,null,null,null,null,null,null,null,null,null,"niet ok",null,"Adiabatische bevochtiger : bevochtigingsbak"]
[null,"Klantreferentie (TAG name, P&ID number)",null,null,null,null,null,null,null,null,null,null,null,null,null,null,null,null,null,null,null,null,null,null,null,null,"niet van toepassing",null,"Adiabatische bevochtiger : verneveling systeem, ultrason …","En italique = exemple"]
[null,"Type uitrusting",null,null,null,null,null,null,null,null,null,null,null,null,null,null,null,null,null,null,null,null,null,null,null,"*",null,null,"Stoombevochtiger","* données \"obligatoires\""]
[null,"Merk"]
[null,"Model"]
[null,"Plaats (verdiep, bureelnummer)",null,null,null,null,null,null,null,null,null,null,null,null,null,null,null,null,null,null,null,null,null,null,null,"*"]
[null,"Controle van het onderhoud","Type van gegevens",null,null,"Resultaat van de controle","Observaties en meetresultaten","Resultaat van de controle","Observaties en meetresultaten","Resultaat van de controle","Observaties en meetresultaten","Resultaat van de controle","Observaties en meetresultaten","Resultaat van de controle","Observaties en meetresultaten","Resultaat van de controle","Observaties en meetresultaten","Resultaat van de controle","Observaties en meetresultaten","Resultaat van de controle","Observaties en meetresultaten","Resultaat van de controle","Observaties en meetresultaten","Resultaat van de controle","Observaties en meetresultaten"]
[]
[null,"Adiabatische luchtbevochtigers (luchtbevochtigingsbak, vernevelingssystemen, ultrasone systemen, …)"]
[null,"Controle van de luchtbevochtiger op slijtage, corrosie, afzettingen, controle van de verneveling en van de netheid",null,"x"]
[null,"Controle van de sproeiers. Indien mogelijk werkingscontrole van het vernevelingssysteem (verdeling …)",null,"x"]
[null,"Alleen voor bevochtigingsbakken : controleren of geleidbaarheidsmetingen werden uitgevoerd","x"]
[null,"Alleen voor bevochtigingsbakken : werkingscontrole van de pomp (geluid, corrosie …) en van de automatische deconcentratie (indien aanwezig)",null,"x"]
[null,"Alleen voor bevochtigingsbakken. Controleren of verslagen van wateranalysen in het logboek zich bevinden (analyse van het deconcetratiewater voor de bevochtigingsbakken en van het toevoegingswater voor de ultrasone en de vernevelingssystemen ...)","x"]
[null,"Controle van de goede werking van de uv-ontsmetting (indien aanwezig)",null,"x"]
[null,"Stoombevochtigers"]
[null,"Controle van de luchtbevochtiger op slijtage, corrosie, afzettingen, controle van de verneveling en van de netheid",null,"x"]
[null,"Controle van de sproeiers. Indien mogelijk werkingscontrole van het vernevelingssysteem (verdeling …)",null,"x"]
[null,"Controleren of het stroomverbruik werd gemeten (bevochtigers met elektrodes of met elektrische weerstand)","x"]
[null,"Indien het toevoegingswater wordt behandeld of als de fabrikant voorschriften heeft gegeven : controleren of verslagen van wateranalysen in het logboek zich bevinden","x"]

{"sheet":"Echangeur (2)","index":45,"n_rows":19,"n_cols":27,"rows_kept":19,"cut":false,"hidden":true,"merged":[[4,13,4,14],[4,1,4,4],[4,5,4,6],[4,7,4,8],[4,9,4,10],[4,11,4,12],[5,5,5,6],[5,7,5,8],[5,9,5,10],[5,11,5,12],[5,13,5,14],[4,15,4,16],[4,17,4,18],[4,19,4,20],[4,21,4,22],[4,23,4,24],[6,1,6,4],[6,5,6,6],[6,7,6,8],[6,9,6,10],[6,11,6,12],[6,21,6,22],[6,23,6,24],[5,15,5,16],[5,17,5,18],[5,19,5,20],[5,21,5,22],[5,23,5,24],[6,13,6,14],[6,15,6,16],[6,17,6,18],[6,19,6,20],[7,15,7,16],[7,17,7,18],[7,19,7,20],[8,13,8,14],[7,1,7,4],[7,5,7,6],[7,7,7,8],[7,9,7,10],[7,11,7,12],[7,13,7,14],[7,21,7,22],[7,23,7,24],[9,5,9,6],[9,7,9,8],[9,9,9,10],[9,11,9,12],[9,13,9,14],[8,15,8,16],[8,17,8,18],[8,19,8,20],[8,21,8,22],[8,23,8,24],[8,5,8,6],[8,7,8,8],[8,9,8,10],[8,11,8,12],[10,1,10,4],[10,5,10,6],[10,7,10,8],[10,9,10,10],[10,11,10,12],[10,23,10,24],[9,15,9,16],[9,17,9,18],[9,19,9,20],[9,21,9,22],[9,23,9,24],[10,13,10,14],[10,15,10,16],[10,17,10,18],[10,19,10,20],[10,21,10,22],[11,14,12,14],[11,1,12,1],[11,2,11,4],[11,5,12,5],[11,6,12,6],[11,7,12,7],[11,8,12,8],[11,9,12,9],[11,10,12,10],[11,11,12,11],[11,12,12,12],[11,13,12,13],[11,21,12,21],[11,22,12,22],[11,23,12,23],[11,24,12,24],[11,15,12,15],[11,16,12,16],[11,17,12,17],[11,18,12,18],[11,19,12,19],[11,20,12,20]]}
["Andere componenten"]
[]
[]
[]
[null,"Aantal uitrustingen te controleren :",null,null,null,1,null,2,null,3,null,4,null,5,null,6,null,7,null,8,null,9,null,10,null,null,"ok"]
[null,"Gegevens van deze uitrusting",null,null,null,null,null,null,null,null,null,null,null,null,null,null,null,null,null,null,null,null,null,null,null,null,"niet ok"]
[null,"Klantreferentie (TAG name, P&ID number)",null,null,null,null,null,null,null,null,null,null,null,null,null,null,null,null,null,null,null,null,null,null,null,null,"niet van toepassing"]
[null,"Type uitrusting"]
[null,"Primaire kring"]
[null,"Secondaire kring"]
[null,"Plaats (verdiep, bureelnummer)"]
[null,"Controle van het onderhoud","Type van gegevens",null,null,"Resultaat van de controle","Observaties en meetresultaten","Resultaat van de controle","Observaties en meetresultaten","Resultaat van de controle","Observaties en meetresultaten","Resultaat van de controle","Observaties en meetresultaten","Resultaat van de controle","Observaties en meetresultaten","Resultaat van de controle","Observaties en meetresultaten","Resultaat van de controle","Observaties en meetresultaten","Resultaat van de controle","Observaties en meetresultaten","Resultaat van de controle","Observaties en meetresultaten","Resultaat van de controle","Observaties en meetresultaten"]
[]
[null,"De staat van de warmtewisselaar controleren : visuele controle van de thermische isolatie, lekken, corrosie of eventuele beschadiging opsporen","x"]
[null,"Controleren of de temperatuur aan de ingang en de uitgang van de warmtewisselaaar (primaire en secundaire kring) werd gemeten","x"]
[null,"Indien vaste temperatuurmeters werden aangebracht : temperatuur ingang primaire kring noteren",null,null,"x",null,0,null,0,null,0,null,0,null,0,null,0,null,0,null,0,null,0]
[null,"Indien vaste temperatuurmeters werden aangebracht : temperatuur uitgang primaire kring noteren",null,null,"x",null,0,null,0,null,0,null,0,null,0,null,0,null,0,null,0,null,0]
[null,"Indien vaste temperatuurmeters werden aangebracht : temperatuur ingang secundaire kring noteren",null,null,"x",null,0,null,0,null,0,null,0,null,0,null,0,null,0,null,0,null,0]
[null,"Indien vaste temperatuurmeters werden aangebracht : temperatuur uitgang secundaire kring noteren",null,null,"x",null,0,null,0,null,0,null,0,null,0,null,0,null,0,null,0,null,0]

{"sheet":"Circuit_eau (2)","index":46,"n_rows":16,"n_cols":16,"rows_kept":16,"cut":false,"hidden":true,"merged":[[9,8,10,8],[7,1,7,4],[7,5,7,6],[7,7,7,8],[8,1,8,4],[8,5,8,6],[8,7,8,8],[9,1,10,1],[9,2,9,4],[9,5,10,5],[9,6,10,6],[9,7,10,7],[6,1,6,4],[6,5,6,6],[6,7,6,8],[4,1,4,4],[4,5,4,6],[4,7,4,8],[5,5,5,6],[5,7,5,8]]}
["Andere componenten"]
[]
[]
[]
[null,"Aantal uitrustingen te controleren :",null,null,null,1,null,2,null,null,"ok",null,"Type de circuit",null,null,"Classe de filtre suivant NEN 779:2012"]
[null,"Gegevens van deze uitrusting",null,null,null,null,null,null,null,null,"niet ok",null,"IJswater",null,null,"G1"]
[null,"Klantreferentie (TAG name, P&ID number)",null,null,null,null,null,null,null,null,"niet van toepassing",null,"Koeltoren"]
[null,"Circuit",null,null,null,null,null,null,null,null,null,null,"Andere : …"]
[null,"Plaats (zone of toepassing)"]
[null,"Controle van het onderhoud","Type van gegevens",null,null,"Resultaat van de controle","Observaties en meetresultaten","Resultaat van de controle","Observaties en meetresultaten"]
[null,null,null,null,null,null,null,null,null,null,null,null,null,null,null,"G4"]
[null,"De leidingen van het circuit visueel controleren (gedurende het bezoek van de technische ruimtes) : de staat van de isolatie controleren (condensatie …), controleren op lekken en zichtbare uitwendige corrosie of schade",null,"x"]
[null,"De manuele ventielen van het circuit visueel controleren (gedurende het bezoek van de technische ruimtes) : de staat van de isolatie controleren (condensatie …), controleren op lekken en zichtbare uitwendige corrosie of schade",null,"x"]
[null,"De gemotoriseerde kleppen van het circuit visueel controleren (gedurende het bezoek van de technische ruimtes) : staat van de isolatie (condensatie …), lekken, zichtbare uitwendige corrosie of schade, eindschakelaars controleren, abnormale werking ...",null,"x"]
[null,"De druk in het circuit controleren",null,"x"]
[null,"Controleren of het water van de verschillende kringen werd geanalyseerd (verslagen in het logboek)","x"]

{"sheet":"GP","index":47,"n_rows":62,"n_cols":32,"rows_kept":62,"cut":false,"hidden":true,"merged":[[5,17,5,18],[5,19,5,20],[5,21,5,22],[5,23,5,24],[4,5,4,6],[4,7,4,8],[4,9,4,10],[4,11,4,12],[4,13,4,14],[4,15,4,16],[4,17,4,18],[4,19,4,20],[4,21,4,22],[4,23,4,24],[5,5,5,6],[5,7,5,8],[5,9,5,10],[5,11,5,12],[5,13,5,14],[5,15,5,16],[7,23,7,24],[6,5,6,6],[6,7,6,8],[6,9,6,10],[6,11,6,12],[6,13,6,14],[6,15,6,16],[6,17,6,18],[6,19,6,20],[6,21,6,22],[6,23,6,24],[7,5,7,6],[7,7,7,8],[7,9,7,10],[7,11,7,12],[7,13,7,14],[7,15,7,16],[7,17,7,18],[7,19,7,20],[7,21,7,22],[8,19,8,20],[8,21,8,22],[10,15,10,16],[10,17,10,18],[10,19,10,20],[10,21,10,22],[8,23,8,24],[9,5,9,6],[9,7,9,8],[9,9,9,10],[9,11,9,12],[9,13,9,14],[9,15,9,16],[9,23,9,24],[8,5,8,6],[8,7,8,8],[8,9,8,10],[8,11,8,12],[8,13,8,14],[8,15,8,16],[8,17,8,18],[9,17,9,18],[9,19,9,20],[9,21,9,22],[13,22,14,22],[13,23,14,23],[13,24,14,24],[13,19,14,19],[13,20,14,20],[13,9,14,9],[13,10,14,10],[13,11,14,11],[13,12,14,12],[13,13,14,13],[13,14,14,14],[13,21,14,21],[13,15,14,15],[13,16,14,16],[13,17,14,17],[13,18,14,18],[10,23,10,24],[11,19,11,20],[11,21,11,22],[11,23,11,24],[12,23,12,24],[12,5,12,6],[12,7,12,8],[12,9,12,10],[12,11,12,12],[12,13,12,14],[11,5,11,6],[11,7,11,8],[11,9,11,10],[11,11,11,12],[11,13,11,14],[11,15,11,16],[11,17,11,18],[12,15,12,16],[12,17,12,18],[12,19,12,20],[12,21,12,22],[10,9,10,10],[10,11,10,12],[10,13,10,14],[4,1,4,4],[6,1,6,4],[7,1,7,4],[8,1,8,4],[13,1,14,1],[13,2,13,4],[13,5,14,5],[13,6,14,6],[13,7,14,7],[10,5,10,6],[10,7,10,8],[13,8,14,8]]}
["Systeem voor de emissie van koelenergie"]
[]
[]
[]
[null,"Aantal uitrustingen te controleren :",null,null,null,1,null,2,null,3,null,4,null,5,null,6,null,7,null,8,null,9,null,10,null,null,"ok","mmH2O",null,null,null,"Classe de filtre suivant NEN 779:2012"]
[null,"Gegevens van deze uitrusting",null,null,null,null,null,null,null,null,null,null,null,null,null,null,null,null,null,null,null,null,null,null,null,null,"niet ok","mbar",null,null,null,"G1"]
[null,"Klantreferentie (TAG name, P&ID number)",null,null,null,null,null,null,null,null,null,null,null,null,null,null,null,null,null,null,null,null,null,null,null,null,"niet van toepassing","Pa",null,null,null,"G2"]
[null,"Type uitrusting",null,null,null,"Pulsiegroep",null,"Pulsiegroep",null,"Pulsiegroep",null,"Pulsiegroep",null,"Pulsiegroep",null,"Pulsiegroep",null,"Pulsiegroep",null,"Pulsiegroep",null,"Pulsiegroep",null,"Pulsiegroep",null,null,null,null,null,null,null,"G3"]
[null,"Plaats (verdiep, bureelnummer)",null,null,null,null,null,null,null,null,null,null,null,null,null,null,null,null,null,null,null,null,null,null,null,null,null,null,null,null,null,"G4"]
[null,"Fabrikant",null,null,null,null,null,null,null,null,null,null,null,null,null,null,null,null,null,null,null,null,null,null,null,null,null,null,null,null,null,"M5 (ex. F5)"]
[null,"Model"]
[null,"Nominale debiet (m³/u)",null,null,null,null,null,null,null,null,null,null,null,null,null,null,null,null,null,null,null,null,null,null,null,null,null,null,null,null,null,"M6 (ex. F6)"]
[null,"Bouwjaar"]
[null,"Controle van het onderhoud","Type van gegevens",null,null,"Resultaat van de controle","Observaties en meetresultaten","Resultaat van de controle","Observaties en meetresultaten","Resultaat van de controle","Observaties en meetresultaten","Resultaat van de controle","Observaties en meetresultaten","Resultaat van de controle","Observaties en meetresultaten","Resultaat van de controle","Observaties en meetresultaten","Resultaat van de controle","Observaties en meetresultaten","Resultaat van de controle","Observaties en meetresultaten","Resultaat van de controle","Observaties en meetresultaten","Resultaat van de controle","Observaties en meetresultaten",null,null,null,null,null,null,"F7"]
[null,null,null,null,null,null,null,null,null,null,null,null,null,null,null,null,null,null,null,null,null,null,null,null,null,null,null,null,null,null,null,"F8"]
[null,"Algemene controles",null,null,null,null,null,null,null,null,null,null,null,null,null,null,null,null,null,null,null,null,null,null,null,null,null,null,null,null,null,"F9"]
[null,"Controleren of het minimale verseluchtdebiet van elke pulsiegroep werd gemeten","x"]
[null,"Controle van de afdichting van de toegangsmiddelen",null,"x"]
[null,"Controle van de zuiverheid, de corrosie, de reiniging van de luchtbehandelingsgroep",null,"x"]
[null,"Kleppen en schuiven (in deze luchtgroep)"]
[null,"Controle van de zuiverheid, de corrosie, van eventuele schade",null,"x"]
[null,"Controleren of de positie van de afsluit- of regelvoorziening correct is","x","x"]
[null,"Luchtfilters"]
[null,"De voor-filter visueel op vuil controleren (indien bestaand)",null,"x"]
[null,"De filter visueel op vuil controleren",null,"x"]
[null,"Filterklasse volgens NEN 779:2012","x"]
[null,"Het drukverschil aflezen op de manometer/onderdrukmeter (indien aanwezig)\n(meeteenheid kiezen)",null,null,"x","mmH2O",0,"mmH2O",0,"mmH2O",0,"mmH2O",0,"mmH2O",0,"mmH2O",0,"mmH2O",0,"mmH2O",0,"mmH2O",0,"mmH2O",0]
[null,"De gemeten waarden vergelijken met de voorgeschreven waarden","x"]
[null,"Koel- en verwarmingsbatterijen"]
[null,"Aantal batterijen in deze luchtbehandelingsgroep (voorverwarming, verwarming, koeling)",null,null,"x"]
[null,"De staat van de batterij controleren, lekken of eventuele beschadiging opsporen, de batterij op corrosie en netheid controleren",null,"x"]
[null,"Kan het regelsysteem de verwarmings- en koelingsbatterijen gelijktijdig in werking stellen (OK = nee) ?","x","x"]
[null,"Temperatuur van de ingeblazen lucht meten (uitgang pulsiegroep)",null,null,"x",null,0,null,0,null,0,null,0,null,0,null,0,null,0,null,0,null,0,null,0]
[null,"Controleren of de temperatuurmetingen van de ingeblazen lucht van elke pulsiegroep werden uitgevoerd","x"]
[null,"Meting van de temperatuur in vertrekleiding van het circuit van de batterij in werking (vergelijken met de op de regeling ingestelde temperatuur)",null,null,"x",null,0,null,0,null,0,null,0,null,0,null,0,null,0,null,0,null,0,null,0]
[null,"Meting van de temperatuur in retourleiding van het circuit van de batterij in werking (vergelijken met de op de regeling ingestelde temperatuur)",null,null,"x",null,0,null,0,null,0,null,0,null,0,null,0,null,0,null,0,null,0,null,0]
[null,"Controleren of de vertrek- en retourtemperaturen werd gemeten (volgens de minimum programma voor het onderhoud)","x"]
[null,"Controle van de reiniging van de condensaatopvangbak en van de werking van het condensaatpompsysteem (indien aanwezig)",null,"x"]
[null,"Controle van de reiniging en de vulling van de sifon",null,"x"]
[null,"Visuele controle van de druppelvangers",null,"x"]
[null,"Warmteterugwinningssystemen","zie specifieke tabbladen"]
[null,"Luchtbevochtiger","zie specifieke tabbladen"]
[null,"Ventilator"]
[null,"Algemene controles"]
[null,"De staat van de ventilatiegroep controleren, controleren op schade, corrosie, de bevestigingen controleren: ventilator, motor, koppeling, aandrijving, beschermingsaccessoires, moffen of andere aansluitingen van de luchtkanalen",null,"x"]
[null,"Controle van het wiel/de schoep"]
[null,"Controleren op lagergeluiden en trillingen",null,"x"]
[null,"Controle van de motor en de koppeling"]
[null,"Controleren of het stroomverbruik voor elke fase van de ventilator werd gemeten (op nominale frequentie)","x"]
[null,"Nominale motorstroom","x"]
[null,"Stroomverbruik op fase 1",null,null,"x",null,0,null,0,null,0,null,0,null,0,null,0,null,0,null,0,null,0]
[null,"Stroomverbruik op fase 2",null,null,"x",null,0,null,0,null,0,null,0,null,0,null,0,null,0,null,0,null,0]
[null,"Stroomverbruik op fase 3",null,null,"x",null,0,null,0,null,0,null,0,null,0,null,0,null,0,null,0,null,0]
[null,"Lagergeluiden, trillingen, warmlopen controleren",null,"x"]
[null,"De uitlijning van de motor en de koppeling visueel controleren",null,"x"]
[null,"Controle van de aandrijving"]
[null,"De staat, de uitlijning en de spanning van de riem(en) visueel controleren ",null,"x"]
[null,"Faseregelaar (indien aanwezig)"]
[null,"Controleren of de door de regelaar ontwikkelde warmte correct wordt afgevoerd. De zuiverheid controleren (stof).",null,"x"]
[null,"Luchtkanalen, verluchtingskokers en luchtkamers"]
[null,"Visuele controle van de staat van de buitenwanden van kokers en kamers, opsporing van lekken, condensatie, controle van isolatie, steunen en bevestigingselementen (gedurende het bezoek van de technische ruimtes)",null,"x"]
[null,"Controleren of de planning voor de binneninspectie van de luchtkanalen werd opgevolgd","x"]

{"sheet":"GP (2)","index":48,"n_rows":62,"n_cols":32,"rows_kept":62,"cut":false,"hidden":true,"merged":[[13,10,14,10],[13,11,14,11],[13,12,14,12],[13,13,14,13],[13,14,14,14],[12,23,12,24],[11,23,11,24],[11,11,11,12],[11,13,11,14],[11,15,11,16],[13,23,14,23],[13,24,14,24],[13,15,14,15],[13,16,14,16],[13,17,14,17],[13,18,14,18],[13,19,14,19],[13,20,14,20],[13,1,14,1],[13,2,13,4],[13,5,14,5],[13,6,14,6],[13,7,14,7],[13,8,14,8],[11,17,11,18],[11,19,11,20],[11,21,11,22],[12,5,12,6],[12,7,12,8],[12,9,12,10],[12,11,12,12],[12,13,12,14],[12,15,12,16],[13,9,14,9],[12,17,12,18],[12,19,12,20],[12,21,12,22],[13,21,14,21],[13,22,14,22],[11,5,11,6],[11,7,11,8],[11,9,11,10],[7,19,7,20],[7,21,7,22],[7,23,7,24],[7,13,7,14],[9,17,9,18],[9,19,9,20],[9,21,9,22],[9,23,9,24],[10,5,10,6],[10,7,10,8],[10,9,10,10],[10,11,10,12],[10,13,10,14],[10,15,10,16],[9,5,9,6],[9,7,9,8],[9,9,9,10],[9,11,9,12],[9,13,9,14],[9,15,9,16],[10,17,10,18],[10,19,10,20],[10,21,10,22],[10,23,10,24],[6,23,6,24],[5,15,5,16],[5,17,5,18],[5,19,5,20],[5,21,5,22],[5,23,5,24],[8,1,8,4],[8,5,8,6],[8,7,8,8],[8,9,8,10],[8,11,8,12],[7,1,7,4],[7,5,7,6],[7,7,7,8],[7,9,7,10],[7,11,7,12],[8,13,8,14],[8,15,8,16],[8,17,8,18],[8,19,8,20],[8,21,8,22],[8,23,8,24],[7,15,7,16],[7,17,7,18],[6,1,6,4],[6,5,6,6],[6,7,6,8],[6,9,6,10],[6,11,6,12],[4,15,4,16],[4,17,4,18],[4,19,4,20],[4,21,4,22],[6,13,6,14],[6,15,6,16],[6,17,6,18],[6,19,6,20],[6,21,6,22],[4,23,4,24],[5,5,5,6],[5,7,5,8],[5,9,5,10],[5,11,5,12],[5,13,5,14],[4,1,4,4],[4,5,4,6],[4,7,4,8],[4,9,4,10],[4,11,4,12],[4,13,4,14]]}
["Systeem voor de emissie van koelenergie"]
[]
[]
[]
[null,"Aantal uitrustingen te controleren :",null,null,null,1,null,2,null,3,null,4,null,5,null,6,null,7,null,8,null,9,null,10,null,null,"ok","mmH2O",null,null,null,"Classe de filtre suivant NEN 779:2012"]
[null,"Gegevens van deze uitrusting",null,null,null,null,null,null,null,null,null,null,null,null,null,null,null,null,null,null,null,null,null,null,null,null,"niet ok","mbar",null,null,null,"G1"]
[null,"Klantreferentie (TAG name, P&ID number)",null,null,null,null,null,null,null,null,null,null,null,null,null,null,null,null,null,null,null,null,null,null,null,null,"niet van toepassing","Pa",null,null,null,"G2"]
[null,"Type uitrusting",null,null,null,"Pulsiegroep",null,"Pulsiegroep",null,"Pulsiegroep",null,"Pulsiegroep",null,"Pulsiegroep",null,"Pulsiegroep",null,"Pulsiegroep",null,"Pulsiegroep",null,"Pulsiegroep",null,"Pulsiegroep",null,null,null,null,null,null,null,"G3"]
[null,"Plaats (verdiep, bureelnummer)",null,null,null,null,null,null,null,null,null,null,null,null,null,null,null,null,null,null,null,null,null,null,null,null,null,null,null,null,null,"G4"]
[null,"Fabrikant",null,null,null,null,null,null,null,null,null,null,null,null,null,null,null,null,null,null,null,null,null,null,null,null,null,null,null,null,null,"M5 (ex. F5)"]
[null,"Model"]
[null,"Nominale debiet (m³/u)",null,null,null,null,null,null,null,null,null,null,null,null,null,null,null,null,null,null,null,null,null,null,null,null,null,null,null,null,null,"M6 (ex. F6)"]
[null,"Bouwjaar"]
[null,"Controle van het onderhoud","Type van gegevens",null,null,"Resultaat van de controle","Observaties en meetresultaten","Resultaat van de controle","Observaties en meetresultaten","Resultaat van de controle","Observaties en meetresultaten","Resultaat van de controle","Observaties en meetresultaten","Resultaat van de controle","Observaties en meetresultaten","Resultaat van de controle","Observaties en meetresultaten","Resultaat van de controle","Observaties en meetresultaten","Resultaat van de controle","Observaties en meetresultaten","Resultaat van de controle","Observaties en meetresultaten","Resultaat van de controle","Observaties en meetresultaten",null,null,null,null,null,null,"F7"]
[null,null,null,null,null,null,null,null,null,null,null,null,null,null,null,null,null,null,null,null,null,null,null,null,null,null,null,null,null,null,null,"F8"]
[null,"Algemene controles",null,null,null,null,null,null,null,null,null,null,null,null,null,null,null,null,null,null,null,null,null,null,null,null,null,null,null,null,null,"F9"]
[null,"Controleren of het minimale verseluchtdebiet van elke pulsiegroep werd gemeten","x"]
[null,"Controle van de afdichting van de toegangsmiddelen",null,"x"]
[null,"Controle van de zuiverheid, de corrosie, de reiniging van de luchtbehandelingsgroep",null,"x"]
[null,"Kleppen en schuiven (in deze luchtgroep)"]
[null,"Controle van de zuiverheid, de corrosie, van eventuele schade",null,"x"]
[null,"Controleren of de positie van de afsluit- of regelvoorziening correct is","x","x"]
[null,"Luchtfilters"]
[null,"De voor-filter visueel op vuil controleren (indien bestaand)",null,"x"]
[null,"De filter visueel op vuil controleren",null,"x"]
[null,"Filterklasse volgens NEN 779:2012","x"]
[null,"Het drukverschil aflezen op de manometer/onderdrukmeter (indien aanwezig)\n(meeteenheid kiezen)",null,null,"x","mmH2O",0,"mmH2O",0,"mmH2O",0,"mmH2O",0,"mmH2O",0,"mmH2O",0,"mmH2O",0,"mmH2O",0,"mmH2O",0,"mmH2O",0]
[null,"De gemeten waarden vergelijken met de voorgeschreven waarden","x"]
[null,"Koel- en verwarmingsbatterijen"]
[null,"Aantal batterijen in deze luchtbehandelingsgroep (voorverwarming, verwarming, koeling)",null,null,"x"]
[null,"De staat van de batterij controleren, lekken of eventuele beschadiging opsporen, de batterij op corrosie en netheid controleren",null,"x"]
[null,"Kan het regelsysteem de verwarmings- en koelingsbatterijen gelijktijdig in werking stellen (OK = nee) ?","x","x"]
[null,"Temperatuur van de ingeblazen lucht meten (uitgang pulsiegroep)",null,null,"x",null,0,null,0,null,0,null,0,null,0,null,0,null,0,null,0,null,0,null,0]
[null,"Controleren of de temperatuurmetingen van de ingeblazen lucht van elke pulsiegroep werden uitgevoerd","x"]
[null,"Meting van de temperatuur in vertrekleiding van het circuit van de batterij in werking (vergelijken met de op de regeling ingestelde temperatuur)",null,null,"x",null,0,null,0,null,0,null,0,null,0,null,0,null,0,null,0,null,0,null,0]
[null,"Meting van de temperatuur in retourleiding van het circuit van de batterij in werking (vergelijken met de op de regeling ingestelde temperatuur)",null,null,"x",null,0,null,0,null,0,null,0,null,0,null,0,null,0,null,0,null,0,null,0]
[null,"Controleren of de vertrek- en retourtemperaturen werd gemeten (volgens de minimum programma voor het onderhoud)","x"]
[null,"Controle van de reiniging van de condensaatopvangbak en van de werking van het condensaatpompsysteem (indien aanwezig)",null,"x"]
[null,"Controle van de reiniging en de vulling van de sifon",null,"x"]
[null,"Visuele controle van de druppelvangers",null,"x"]
[null,"Warmteterugwinningssystemen","zie specifieke tabbladen"]
[null,"Luchtbevochtiger","zie specifieke tabbladen"]
[null,"Ventilator"]
[null,"Algemene controles"]
[null,"De staat van de ventilatiegroep controleren, controleren op schade, corrosie, de bevestigingen controleren: ventilator, motor, koppeling, aandrijving, beschermingsaccessoires, moffen of andere aansluitingen van de luchtkanalen",null,"x"]
[null,"Controle van het wiel/de schoep"]
[null,"Controleren op lagergeluiden en trillingen",null,"x"]
[null,"Controle van de motor en de koppeling"]
[null,"Controleren of het stroomverbruik voor elke fase van de ventilator werd gemeten (op nominale frequentie)","x"]
[null,"Nominale motorstroom","x"]
[null,"Stroomverbruik op fase 1",null,null,"x",null,0,null,0,null,0,null,0,null,0,null,0,null,0,null,0,null,0]
[null,"Stroomverbruik op fase 2",null,null,"x",null,0,null,0,null,0,null,0,null,0,null,0,null,0,null,0,null,0]
[null,"Stroomverbruik op fase 3",null,null,"x",null,0,null,0,null,0,null,0,null,0,null,0,null,0,null,0,null,0]
[null,"Lagergeluiden, trillingen, warmlopen controleren",null,"x"]
[null,"De uitlijning van de motor en de koppeling visueel controleren",null,"x"]
[null,"Controle van de aandrijving"]
[null,"De staat, de uitlijning en de spanning van de riem(en) visueel controleren ",null,"x"]
[null,"Faseregelaar (indien aanwezig)"]
[null,"Controleren of de door de regelaar ontwikkelde warmte correct wordt afgevoerd. De zuiverheid controleren (stof).",null,"x"]
[null,"Luchtkanalen, verluchtingskokers en luchtkamers"]
[null,"Visuele controle van de staat van de buitenwanden van kokers en kamers, opsporing van lekken, condensatie, controle van isolatie, steunen en bevestigingselementen (gedurende het bezoek van de technische ruimtes)",null,"x"]
[null,"Controleren of de planning voor de binneninspectie van de luchtkanalen werd opgevolgd","x"]

{"sheet":"GE (2)","index":49,"n_rows":886,"n_cols":32,"rows_kept":886,"cut":false,"hidden":true,"merged":[[4,23,4,24],[5,5,5,6],[5,7,5,8],[5,9,5,10],[5,11,5,12],[5,13,5,14],[4,1,4,4],[4,5,4,6],[4,7,4,8],[4,9,4,10],[4,11,4,12],[4,13,4,14],[6,1,6,4],[6,5,6,6],[6,7,6,8],[6,9,6,10],[6,11,6,12],[4,15,4,16],[4,17,4,18],[4,19,4,20],[4,21,4,22],[6,13,6,14],[6,15,6,16],[6,17,6,18],[6,19,6,20],[6,21,6,22],[6,23,6,24],[5,15,5,16],[5,17,5,18],[5,19,5,20],[5,21,5,22],[5,23,5,24],[8,1,8,4],[8,5,8,6],[8,7,8,8],[8,9,8,10],[8,11,8,12],[7,1,7,4],[7,5,7,6],[7,7,7,8],[7,9,7,10],[7,11,7,12],[8,13,8,14],[8,15,8,16],[8,17,8,18],[8,19,8,20],[8,21,8,22],[8,23,8,24],[7,15,7,16],[7,17,7,18],[7,19,7,20],[7,21,7,22],[7,23,7,24],[7,13,7,14],[9,17,9,18],[9,19,9,20],[9,21,9,22],[9,23,9,24],[10,5,10,6],[10,7,10,8],[10,9,10,10],[10,11,10,12],[10,13,10,14],[10,15,10,16],[9,5,9,6],[9,7,9,8],[9,9,9,10],[9,11,9,12],[9,13,9,14],[9,15,9,16],[10,17,10,18],[10,19,10,20],[10,21,10,22],[10,23,10,24],[13,1,14,1],[13,2,13,4],[13,5,14,5],[13,6,14,6],[13,7,14,7],[13,8,14,8],[11,17,11,18],[11,19,11,20],[11,21,11,22],[12,5,12,6],[12,7,12,8],[12,9,12,10],[12,11,12,12],[12,13,12,14],[12,15,12,16],[13,9,14,9],[12,17,12,18],[12,19,12,20],[12,21,12,22],[13,21,14,21],[13,22,14,22],[11,5,11,6],[11,7,11,8],[11,9,11,10],[13,10,14,10],[13,11,14,11],[13,12,14,12],[13,13,14,13],[13,14,14,14],[12,23,12,24],[11,23,11,24],[11,11,11,12],[11,13,11,14],[11,15,11,16],[13,23,14,23],[13,24,14,24],[13,15,14,15],[13,16,14,16],[13,17,14,17],[13,18,14,18],[13,19,14,19],[13,20,14,20]]}
["Systeem voor de emissie van koelenergie"]
[]
[]
[]
[null,"Aantal uitrustingen te controleren :",null,null,null,1,null,2,null,3,null,4,null,5,null,6,null,7,null,8,null,9,null,10,null,null,"ok","mmH2O",null,null,null,"Classe de filtre suivant NEN 779:2012"]
[null,"Gegevens van deze uitrusting",null,null,null,null,null,null,null,null,null,null,null,null,null,null,null,null,null,null,null,null,null,null,null,null,"niet ok","mbar",null,null,null,"G1"]
[null,"Klantreferentie (TAG name, P&ID number)",null,null,null,null,null,null,null,null,null,null,null,null,null,null,null,null,null,null,null,null,null,null,null,null,"niet van toepassing","Pa",null,null,null,"G2"]
[null,"Type uitrusting",null,null,null,"Extractiegroep",null,"Extractiegroep",null,"Extractiegroep",null,"Extractiegroep",null,"Extractiegroep",null,"Extractiegroep",null,"Extractiegroep",null,"Extractiegroep",null,"Extractiegroep",null,"Extractiegroep",null,null,null,null,null,null,null,"G3"]
[null,"Plaats (verdiep, bureelnummer)",null,null,null,null,null,null,null,null,null,null,null,null,null,null,null,null,null,null,null,null,null,null,null,null,null,null,null,null,null,"G4"]
[null,"Fabrikant",null,null,null,null,null,null,null,null,null,null,null,null,null,null,null,null,null,null,null,null,null,null,null,null,null,null,null,null,null,"M5 (ex. F5)"]
[null,"Model"]
[null,"Nominale debiet (m³/u)",null,null,null,null,null,null,null,null,null,null,null,null,null,null,null,null,null,null,null,null,null,null,null,null,null,null,null,null,null,"M6 (ex. F6)"]
[null,"Bouwjaar"]
[null,"Controle van het onderhoud","Type van gegevens",null,null,"Resultaat van de controle","Observaties en meetresultaten","Resultaat van de controle","Observaties en meetresultaten","Resultaat van de controle","Observaties en meetresultaten","Resultaat van de controle","Observaties en meetresultaten","Resultaat van de controle","Observaties en meetresultaten","Resultaat van de controle","Observaties en meetresultaten","Resultaat van de controle","Observaties en meetresultaten","Resultaat van de controle","Observaties en meetresultaten","Resultaat van de controle","Observaties en meetresultaten","Resultaat van de controle","Observaties en meetresultaten",null,null,null,null,null,null,"F7"]
[null,null,null,null,null,null,null,null,null,null,null,null,null,null,null,null,null,null,null,null,null,null,null,null,null,null,null,null,null,null,null,"F8"]
[null,"Algemene controles",null,null,null,null,null,null,null,null,null,null,null,null,null,null,null,null,null,null,null,null,null,null,null,null,null,null,null,null,null,"F9"]
[null,"Controle van de afdichting van de toegangsmiddelen",null,"x"]
[null,"Controle van de zuiverheid, de corrosie, de reiniging van de luchtbehandelingsgroep",null,"x"]
[null,"Kleppen en schuiven (in deze luchtgroep)"]
[null,"Controle van de zuiverheid, de corrosie, van eventuele schade",null,"x"]
[null,"Controleren of de positie van de afsluit- of regelvoorziening correct is","x","x"]
[null,"Luchtfilters"]
[null,"De filter visueel op vuil controleren",null,"x"]
[null,"Warmteterugwinningssystemen","zie specifieke tabbladen"]
[null,"Ventilator"]
[null,"Algemene controles"]
[null,"De staat van de ventilatiegroep controleren, controleren op schade, corrosie, de bevestigingen controleren: ventilator, motor, koppeling, aandrijving, beschermingsaccessoires, moffen of andere aansluitingen van de luchtkanalen",null,"x"]
[null,"Controle van het wiel/de schoep"]
[null,"Controleren op lagergeluiden en trillingen",null,"x"]
[null,"Controle van de motor en de koppeling"]
[null,"Controleren of het stroomverbruik voor elke fase van de ventilator werd gemeten","x"]
[null,"Lagergeluiden, trillingen, warmlopen controleren",null,"x"]
[null,"De uitlijning van de motor en de koppeling visueel controleren",null,"x"]
[null,"Controle van de aandrijving"]
[null,"De staat, de uitlijning en de spanning van de riem(en) visueel controleren ",null,"x"]
[null,"Faseregelaar (indien aanwezig)"]
[null,"Controleren of de door de regelaar ontwikkelde warmte correct wordt afgevoerd. De zuiverheid controleren (stof).",null,"x"]
[]
[]
[]
[]
[]
[]
[]
[]
[]
[]
[]
[]
[]
[]
[]
[]
[]
[]
[]
[]
[]
[]
[]
[]
[]
[]
[]
[]
[]
[]
[]
[]
[]
[]
[]
[]
[]
[]
[]
[]
[]
[]
[]
[]
[]
[]
[]
[]
[]
[]
[]
[]
[]
[]
[]
[]
[]
[]
[]
[]
[]
[]
[]
[]
[]
[]
[]
[]
[]
[]
[]
[]
[]
[]
[]
[]
[]
[]
[]
[]
[]
[]
[]
[]
[]
[]
[]
[]
[]
[]
[]
[]
[]
[]
[]
[]
[]
[]
[]
[]
[]
[]
[]
[]
[]
[]
[]
[]
[]
[]
[]
[]
[]
[]
[]
[]
[]
[]
[]
[]
[]
[]
[]
[]
[]
[]
[]
[]
[]
[]
[]
[]
[]
[]
[]
[]
[]
[]
[]
[]
[]
[]
[]
[]
[]
[]
[]
[]
[]
[]
[]
[]
[]
[]
[]
[]
[]
[]
[]
[]
[]
[]
[]
[]
[]
[]
[]
[]
[]
[]
[]
[]
[]
[]
[]
[]
[]
[]
[]
[]
[]
[]
[]
[]
[]
[]
[]
[]
[]
[]
[]
[]
[]
[]
[]
[]
[]
[]
[]
[]
[]
[]
[]
[]
[]
[]
[]
[]
[]
[]
[]
[]
[]
[]
[]
[]
[]
[]
[]
[]
[]
[]
[]
[]
[]
[]
[]
[]
[]
[]
[]
[]
[]
[]
[]
[]
[]
[]
[]
[]
[]
[]
[]
[]
[]
[]
[]
[]
[]
[]
[]
[]
[]
[]
[]
[]
[]
[]
[]
[]
[]
[]
[]
[]
[]
[]
[]
[]
[]
[]
[]
[]
[]
[]
[]
[]
[]
[]
[]
[]
[]
[]
[]
[]
[]
[]
[]
[]
[]
[]
[]
[]
[]
[]
[]
[]
[]
[]
[]
[]
[]
[]
[]
[]
[]
[]
[]
[]
[]
[]
[]
[]
[]
[]
[]
[]
[]
[]
[]
[]
[]
[]
[]
[]
[]
[]
[]
[]
[]
[]
[]
[]
[]
[]
[]
[]
[]
[]
[]
[]
[]
[]
[]
[]
[]
[]
[]
[]
[]
[]
[]
[]
[]
[]
[]
[]
[]
[]
[]
[]
[]
[]
[]
[]
[]
[]
[]
[]
[]
[]
[]
[]
[]
[]
[]
[]
[]
[]
[]
[]
[]
[]
[]
[]
[]
[]
[]
[]
[]
[]
[]
[]
[]
[]
[]
[]
[]
[]
[]
[]
[]
[]
[]
[]
[]
[]
[]
[]
[]
[]
[]
[]
[]
[]
[]
[]
[]
[]
[]
[]
[]
[]
[]
[]
[]
[]
[]
[]
[]
[]
[]
[]
[]
[]
[]
[]
[]
[]
[]
[]
[]
[]
[]
[]
[]
[]
[]
[]
[]
[]
[]
[]
[]
[]
[]
[]
[]
[]
[]
[]
[]
[]
[]
[]
[]
[]
[]
[]
[]
[]
[]
[]
[]
[]
[]
[]
[]
[]
[]
[]
[]
[]
[]
[]
[]
[]
[]
[]
[]
[]
[]
[]
[]
[]
[]
[]
[]
[]
[]
[]
[]
[]
[]
[]
[]
[]
[]
[]
[]
[]
[]
[]
[]
[]
[]
[]
[]
[]
[]
[]
[]
[]
[]
[]
[]
[]
[]
[]
[]
[]
[]
[]
[]
[]
[]
[]
[]
[]
[]
[]
[]
[]
[]
[]
[]
[]
[]
[]
[]
[]
[]
[]
[]
[]
[]
[]
[]
[]
[]
[]
[]
[]
[]
[]
[]
[]
[]
[]
[]
[]
[]
[]
[]
[]
[]
[]
[]
[]
[]
[]
[]
[]
[]
[]
[]
[]
[]
[]
[]
[]
[]
[]
[]
[]
[]
[]
[]
[null,null,null,null,"Contrôle de la propreté, du niveau de corrosion, de la présence d'éléments endommagés"]
[null,null,null,null,"Vérifier que la position des organes de sectionnement ou de régulation est correcte"]
[]
[]
[]
[]
[]
[]
[]
[]
[]
[]
[]
[]
[]
[]
[]
[]
[]
[]
[]
[]
[]
[]
[]
[]
[]
[]
[]
[]
[]
[]
[]
[]
[]
[]
[]
[]
[]
[]
[]
[]
[]
[]
[]
[]
[]
[]
[]
[]
[]
[]
[]
[]
[]
[]
[]
[]
[]
[]
[]
[]
[]
[]
[]
[]
[]
[]
[]
[]
[]
[]
[]
[]
[]
[]
[]
[]
[]
[]
[]
[]
[]
[]
[]
[]
[]
[null,null,null,null,"Contrôle de la propreté, du niveau de corrosion, de la présence d'éléments endommagés"]
[]
[]
[]
[]
[]
[]
[]
[]
[]
[]
[]
[]
[]
[]
[]
[]
[]
[]
[]
[]
[]
[]
[]
[]
[]
[]
[]
[]
[]
[]
[]
[]
[]
[]
[]
[]
[]
[]
[]
[]
[]
[]
[]
[]
[]
[]
[]
[]
[]
[]
[]
[]
[]
[]
[]
[]
[]
[]
[]
[]
[]
[]
[]
[]
[]
[]
[]
[]
[]
[]
[]
[]
[]
[]
[]
[]
[]
[]
[]
[]
[]
[]
[]
[]
[]
[]
[]
[]
[]
[]
[]
[]
[]
[]
[]
[]
[]
[]
[]
[]
[]
[]
[]
[]
[]
[]
[]
[]
[]
[]
[]
[]
[]
[]
[]
[]
[]
[]
[]
[]
[]
[]
[]
[]
[]
[]
[]
[]
[]
[]
[]
[]
[]
[]
[]
[]
[]
[]
[]
[]
[]
[]
[]
[]
[]
[]
[]
[]
[]
[]
[]
[]
[]
[]
[]
[]
[]
[]
[]
[]
[]
[]
[null,null,null,null,"Contrôle de la propreté, du niveau de corrosion, de la présence d'éléments endommagés"]
[null,null,null,null,"Vérifier que la position des organes de sectionnement ou de régulation est correcte"]

{"sheet":"Grilles (2)","index":50,"n_rows":12,"n_cols":29,"rows_kept":12,"cut":false,"hidden":true,"merged":[[9,21,10,21],[9,22,10,22],[9,23,10,23],[9,24,10,24],[9,15,10,15],[9,16,10,16],[9,17,10,17],[9,18,10,18],[9,19,10,19],[9,20,10,20],[9,14,10,14],[9,1,10,1],[9,2,9,4],[9,5,10,5],[9,6,10,6],[9,7,10,7],[9,8,10,8],[9,9,10,9],[9,10,10,10],[9,11,10,11],[9,12,10,12],[9,13,10,13],[8,13,8,14],[8,15,8,16],[8,17,8,18],[8,19,8,20],[8,21,8,22],[8,23,8,24],[7,15,7,16],[7,17,7,18],[7,19,7,20],[7,21,7,22],[7,23,7,24],[8,1,8,4],[8,5,8,6],[8,7,8,8],[8,9,8,10],[8,11,8,12],[7,1,7,4],[7,5,7,6],[7,7,7,8],[7,9,7,10],[7,11,7,12],[7,13,7,14],[6,13,6,14],[6,15,6,16],[6,17,6,18],[6,19,6,20],[6,21,6,22],[6,23,6,24],[5,15,5,16],[5,17,5,18],[5,19,5,20],[5,21,5,22],[5,23,5,24],[6,1,6,4],[6,5,6,6],[6,7,6,8],[6,9,6,10],[6,11,6,12],[4,15,4,16],[4,17,4,18],[4,19,4,20],[4,21,4,22],[4,23,4,24],[5,5,5,6],[5,7,5,8],[5,9,5,10],[5,11,5,12],[5,13,5,14],[4,13,4,14],[4,1,4,4],[4,5,4,6],[4,7,4,8],[4,9,4,10],[4,11,4,12]]}
["Systeem voor de distributie van koelenergie"]
[]
[]
[]
[null,"Aantal uitrustingen te controleren :",null,null,null,1,null,2,null,3,null,4,null,5,null,6,null,7,null,8,null,9,null,10,null,null,"ok",null,"Grilles"]
[null,"Gegevens van deze uitrusting",null,null,null,null,null,null,null,null,null,null,null,null,null,null,null,null,null,null,null,null,null,null,null,null,"niet ok",null,"Aanzuigrooster"]
[null,"Klantreferentie (TAG name, P&ID number)",null,null,null,null,null,null,null,null,null,null,null,null,null,null,null,null,null,null,null,null,null,null,null,null,"niet van toepassing",null,"Afblaasrooster"]
[null,"Type uitrusting"]
[null,"Plaats (verdiep, bureelnummer)"]
[null,"Controle van het onderhoud","Type van gegevens",null,null,"Resultaat van de controle","Observaties en meetresultaten","Resultaat van de controle","Observaties en meetresultaten","Resultaat van de controle","Observaties en meetresultaten","Resultaat van de controle","Observaties en meetresultaten","Resultaat van de controle","Observaties en meetresultaten","Resultaat van de controle","Observaties en meetresultaten","Resultaat van de controle","Observaties en meetresultaten","Resultaat van de controle","Observaties en meetresultaten","Resultaat van de controle","Observaties en meetresultaten","Resultaat van de controle","Observaties en meetresultaten"]
[]
[null,"Visuele controle : staat, netheid, corrosie, eventuele schade",null,"x"]

{"sheet":"Bouches (2)","index":51,"n_rows":12,"n_cols":29,"rows_kept":12,"cut":false,"hidden":true,"merged":[[9,21,10,21],[9,22,10,22],[9,23,10,23],[9,24,10,24],[9,15,10,15],[9,16,10,16],[9,17,10,17],[9,18,10,18],[9,19,10,19],[9,20,10,20],[9,14,10,14],[9,1,10,1],[9,2,9,4],[9,5,10,5],[9,6,10,6],[9,7,10,7],[9,8,10,8],[9,9,10,9],[9,10,10,10],[9,11,10,11],[9,12,10,12],[9,13,10,13],[8,13,8,14],[8,15,8,16],[8,17,8,18],[8,19,8,20],[8,21,8,22],[8,23,8,24],[7,15,7,16],[7,17,7,18],[7,19,7,20],[7,21,7,22],[7,23,7,24],[8,1,8,4],[8,5,8,6],[8,7,8,8],[8,9,8,10],[8,11,8,12],[7,1,7,4],[7,5,7,6],[7,7,7,8],[7,9,7,10],[7,11,7,12],[7,13,7,14],[6,13,6,14],[6,15,6,16],[6,17,6,18],[6,19,6,20],[6,21,6,22],[6,23,6,24],[5,15,5,16],[5,17,5,18],[5,19,5,20],[5,21,5,22],[5,23,5,24],[6,1,6,4],[6,5,6,6],[6,7,6,8],[6,9,6,10],[6,11,6,12],[4,15,4,16],[4,17,4,18],[4,19,4,20],[4,21,4,22],[4,23,4,24],[5,5,5,6],[5,7,5,8],[5,9,5,10],[5,11,5,12],[5,13,5,14],[4,13,4,14],[4,1,4,4],[4,5,4,6],[4,7,4,8],[4,9,4,10],[4,11,4,12]]}
["Systeem voor de distributie van koelenergie"]
[]
[]
[]
[null,"Aantal uitrustingen te controleren :",null,null,null,1,null,2,null,3,null,4,null,5,null,6,null,7,null,8,null,9,null,10,null,null,"ok",null,"Bouches"]
[null,"Gegevens van deze uitrusting",null,null,null,null,null,null,null,null,null,null,null,null,null,null,null,null,null,null,null,null,null,null,null,null,"niet ok",null,"Pulsiemond"]
[null,"Klantreferentie (TAG name, P&ID number)",null,null,null,null,null,null,null,null,null,null,null,null,null,null,null,null,null,null,null,null,null,null,null,null,"niet van toepassing",null,"extractiemond"]
[null,"Type uitrusting"]
[null,"Plaats (verdiep, bureelnummer)"]
[null,"Controle van het onderhoud","Type van gegevens",null,null,"Resultaat van de controle","Observaties en meetresultaten","Resultaat van de controle","Observaties en meetresultaten","Resultaat van de controle","Observaties en meetresultaten","Resultaat van de controle","Observaties en meetresultaten","Resultaat van de controle","Observaties en meetresultaten","Resultaat van de controle","Observaties en meetresultaten","Resultaat van de controle","Observaties en meetresultaten","Resultaat van de controle","Observaties en meetresultaten","Resultaat van de controle","Observaties en meetresultaten","Resultaat van de controle","Observaties en meetresultaten"]
[]
[null,"Visuele controle : staat, netheid, corrosie, eventuele schade\nWerkingscontrole (verdeling van het luchtdebiet)",null,"x"]

{"sheet":"Puits_provencal (2)","index":52,"n_rows":12,"n_cols":27,"rows_kept":12,"cut":false,"hidden":true,"merged":[[9,21,10,21],[9,22,10,22],[9,23,10,23],[9,24,10,24],[9,15,10,15],[9,16,10,16],[9,17,10,17],[9,18,10,18],[9,19,10,19],[9,20,10,20],[9,14,10,14],[9,1,10,1],[9,2,9,4],[9,5,10,5],[9,6,10,6],[9,7,10,7],[9,8,10,8],[9,9,10,9],[9,10,10,10],[9,11,10,11],[9,12,10,12],[9,13,10,13],[8,13,8,14],[8,15,8,16],[8,17,8,18],[8,19,8,20],[8,21,8,22],[8,23,8,24],[7,15,7,16],[7,17,7,18],[7,19,7,20],[7,21,7,22],[7,23,7,24],[8,1,8,4],[8,5,8,6],[8,7,8,8],[8,9,8,10],[8,11,8,12],[7,1,7,4],[7,5,7,6],[7,7,7,8],[7,9,7,10],[7,11,7,12],[7,13,7,14],[6,13,6,14],[6,15,6,16],[6,17,6,18],[6,19,6,20],[6,21,6,22],[6,23,6,24],[5,15,5,16],[5,17,5,18],[5,19,5,20],[5,21,5,22],[5,23,5,24],[6,1,6,4],[6,5,6,6],[6,7,6,8],[6,9,6,10],[6,11,6,12],[4,15,4,16],[4,17,4,18],[4,19,4,20],[4,21,4,22],[4,23,4,24],[5,5,5,6],[5,7,5,8],[5,9,5,10],[5,11,5,12],[5,13,5,14],[4,13,4,14],[4,1,4,4],[4,5,4,6],[4,7,4,8],[4,9,4,10],[4,11,4,12]]}
["Systeem voor de distributie van koelenergie"]
[]
[]
[]
[null,"Aantal uitrustingen te controleren :",null,null,null,1,null,2,null,3,null,4,null,5,null,6,null,7,null,8,null,9,null,10,null,null,"ok"]
[null,"Gegevens van deze uitrusting",null,null,null,null,null,null,null,null,null,null,null,null,null,null,null,null,null,null,null,null,null,null,null,null,"niet ok"]
[null,"Klantreferentie (TAG name, P&ID number)",null,null,null,null,null,null,null,null,null,null,null,null,null,null,null,null,null,null,null,null,null,null,null,null,"niet van toepassing"]
[null,"Type uitrusting",null,null,null,"Canadese/provençaalse put",null,"Canadese/provençaalse put",null,"Canadese/provençaalse put",null,"Canadese/provençaalse put",null,"Canadese/provençaalse put",null,"Canadese/provençaalse put",null,"Canadese/provençaalse put",null,"Canadese/provençaalse put",null,"Canadese/provençaalse put",null,"Canadese/provençaalse put"]
[null,"Plaats (op welke kant van het gebouw)"]
[null,"Controle van het onderhoud","Type van gegevens",null,null,"Resultaat van de controle","Observaties en meetresultaten","Resultaat van de controle","Observaties en meetresultaten","Resultaat van de controle","Observaties en meetresultaten","Resultaat van de controle","Observaties en meetresultaten","Resultaat van de controle","Observaties en meetresultaten","Resultaat van de controle","Observaties en meetresultaten","Resultaat van de controle","Observaties en meetresultaten","Resultaat van de controle","Observaties en meetresultaten","Resultaat van de controle","Observaties en meetresultaten","Resultaat van de controle","Observaties en meetresultaten"]
[]
[null,"Controleren of inspecties werden gedaan: controle op aanwezigheid van stilstaand water en van de staat (zuiverheid, schade, …)","x"]

{"sheet":"Clapets (2)","index":53,"n_rows":14,"n_cols":29,"rows_kept":14,"cut":false,"hidden":true,"merged":[[4,13,4,14],[4,1,4,4],[4,5,4,6],[4,7,4,8],[4,9,4,10],[4,11,4,12],[5,5,5,6],[5,7,5,8],[5,9,5,10],[5,11,5,12],[5,13,5,14],[4,15,4,16],[4,17,4,18],[4,19,4,20],[4,21,4,22],[4,23,4,24],[6,1,6,4],[6,5,6,6],[6,7,6,8],[6,9,6,10],[6,11,6,12],[6,21,6,22],[6,23,6,24],[5,15,5,16],[5,17,5,18],[5,19,5,20],[5,21,5,22],[5,23,5,24],[7,13,7,14],[6,13,6,14],[6,15,6,16],[6,17,6,18],[6,19,6,20],[7,1,7,4],[7,5,7,6],[7,7,7,8],[7,9,7,10],[7,11,7,12],[8,1,8,4],[8,5,8,6],[8,7,8,8],[8,9,8,10],[8,11,8,12],[8,23,8,24],[7,15,7,16],[7,17,7,18],[7,19,7,20],[7,21,7,22],[7,23,7,24],[8,13,8,14],[8,15,8,16],[8,17,8,18],[8,19,8,20],[8,21,8,22],[9,14,10,14],[9,1,10,1],[9,2,9,4],[9,5,10,5],[9,6,10,6],[9,7,10,7],[9,8,10,8],[9,9,10,9],[9,10,10,10],[9,11,10,11],[9,12,10,12],[9,13,10,13],[9,21,10,21],[9,22,10,22],[9,23,10,23],[9,24,10,24],[9,15,10,15],[9,16,10,16],[9,17,10,17],[9,18,10,18],[9,19,10,19],[9,20,10,20]]}
["Systeem voor de distributie van koelenergie"]
[]
[]
[]
[null,"Aantal uitrustingen te controleren :",null,null,null,1,null,2,null,3,null,4,null,5,null,6,null,7,null,8,null,9,null,10,null,null,"ok",null,"Type de clapet"]
[null,"Gegevens van deze uitrusting",null,null,null,null,null,null,null,null,null,null,null,null,null,null,null,null,null,null,null,null,null,null,null,null,"niet ok",null,"Brandklep"]
[null,"Klantreferentie (TAG name, P&ID number)",null,null,null,null,null,null,null,null,null,null,null,null,null,null,null,null,null,null,null,null,null,null,null,null,"niet van toepassing",null,"Terugslagklep"]
[null,"Type uitrusting",null,null,null,null,null,null,null,null,null,null,null,null,null,null,null,null,null,null,null,null,null,null,null,null,null,null,"Klep op verse lucht"]
[null,"Plaats (op welke kant van het gebouw)",null,null,null,null,null,null,null,null,null,null,null,null,null,null,null,null,null,null,null,null,null,null,null,null,null,null,"Mengklep"]
[null,"Controle van het onderhoud","Type van gegevens",null,null,"Resultaat van de controle","Observaties en meetresultaten","Resultaat van de controle","Observaties en meetresultaten","Resultaat van de controle","Observaties en meetresultaten","Resultaat van de controle","Observaties en meetresultaten","Resultaat van de controle","Observaties en meetresultaten","Resultaat van de controle","Observaties en meetresultaten","Resultaat van de controle","Observaties en meetresultaten","Resultaat van de controle","Observaties en meetresultaten","Resultaat van de controle","Observaties en meetresultaten","Resultaat van de controle","Observaties en meetresultaten",null,null,null,"Andere : …"]
[]
[null,"Visuele controle : staat, netheid, corrosie, eventuele schade",null,"x"]
[null,"Controleren of de positie van de afsluit- of regelvoorziening correct is","x","x"]
[null,"Test van de afsluit- of regelvoorzieningen (manueel of gemotoriseerd). Gebruik voor gemotoriseerde voorzieningen het bedieningssysteem.",null,"x"]

{"sheet":"Appoint (2)","index":54,"n_rows":13,"n_cols":27,"rows_kept":13,"cut":false,"hidden":true,"merged":[[4,13,4,14],[4,1,4,4],[4,5,4,6],[4,7,4,8],[4,9,4,10],[4,11,4,12],[5,5,5,6],[5,7,5,8],[5,9,5,10],[5,11,5,12],[5,13,5,14],[4,15,4,16],[4,17,4,18],[4,19,4,20],[4,21,4,22],[4,23,4,24],[6,1,6,4],[6,5,6,6],[6,7,6,8],[6,9,6,10],[6,11,6,12],[6,23,6,24],[5,15,5,16],[5,17,5,18],[5,19,5,20],[5,21,5,22],[5,23,5,24],[6,13,6,14],[6,15,6,16],[6,17,6,18],[6,19,6,20],[6,21,6,22],[7,5,7,6],[7,7,7,8],[7,9,7,10],[7,11,7,12],[7,13,7,14],[8,5,8,6],[8,7,8,8],[8,9,8,10],[8,11,8,12],[8,13,8,14],[9,8,10,8],[7,17,7,18],[7,19,7,20],[7,21,7,22],[7,23,7,24],[8,15,8,16],[7,15,7,16],[9,14,10,14],[8,17,8,18],[8,19,8,20],[8,21,8,22],[8,23,8,24],[9,9,10,9],[9,10,10,10],[9,11,10,11],[9,12,10,12],[9,1,10,1],[9,2,9,4],[9,5,10,5],[9,6,10,6],[9,7,10,7],[9,13,10,13],[9,21,10,21],[9,22,10,22],[9,23,10,23],[9,24,10,24],[9,15,10,15],[9,16,10,16],[9,17,10,17],[9,18,10,18],[9,19,10,19],[9,20,10,20]]}
["Andere componenten"]
[]
[]
[]
[null,"Aantal uitrustingen te controleren :",null,null,null,1,null,2,null,3,null,4,null,5,null,6,null,7,null,8,null,9,null,10,null,null,"ok"]
[null,"Gegevens van deze uitrusting",null,null,null,null,null,null,null,null,null,null,null,null,null,null,null,null,null,null,null,null,null,null,null,null,"niet ok"]
[null,"Klantreferentie (TAG name, P&ID number)",null,null,null,null,null,null,null,null,null,null,null,null,null,null,null,null,null,null,null,null,null,null,null,null,"niet van toepassing"]
[null,"Type waterbehandelingsinstallaties : filtratie, verzachting, producttoevoeging, reverse osmosis …"]
[null,"Plaats (zone of toepassing)"]
[null,"Controle van het onderhoud","Type van gegevens",null,null,"Resultaat van de controle","Observaties en meetresultaten","Resultaat van de controle","Observaties en meetresultaten","Resultaat van de controle","Observaties en meetresultaten","Resultaat van de controle","Observaties en meetresultaten","Resultaat van de controle","Observaties en meetresultaten","Resultaat van de controle","Observaties en meetresultaten","Resultaat van de controle","Observaties en meetresultaten","Resultaat van de controle","Observaties en meetresultaten","Resultaat van de controle","Observaties en meetresultaten","Resultaat van de controle","Observaties en meetresultaten"]
[]
[null,"Visuele controle van de waterbehandelingsinstallatie op corrosie, lekken, schade, aanwezigheid van zout in de bak van een waterverzachter, genoeg product in de bak van een productdosering …",null,"x"]
[null,"Controleren of het water werd geanalyseerd (verslagen in het logboek)","x"]

{"sheet":"Pompe (2)","index":55,"n_rows":22,"n_cols":27,"rows_kept":22,"cut":false,"hidden":true,"merged":[[4,13,4,14],[4,1,4,4],[4,5,4,6],[4,7,4,8],[4,9,4,10],[4,11,4,12],[5,5,5,6],[5,7,5,8],[5,9,5,10],[5,11,5,12],[5,13,5,14],[4,15,4,16],[4,17,4,18],[4,19,4,20],[4,21,4,22],[4,23,4,24],[6,1,6,4],[6,5,6,6],[6,7,6,8],[6,9,6,10],[6,11,6,12],[6,23,6,24],[5,15,5,16],[5,17,5,18],[5,19,5,20],[5,21,5,22],[5,23,5,24],[6,13,6,14],[6,15,6,16],[6,17,6,18],[6,19,6,20],[6,21,6,22],[7,17,7,18],[7,19,7,20],[7,21,7,22],[7,23,7,24],[8,5,8,6],[8,7,8,8],[8,9,8,10],[8,11,8,12],[8,13,8,14],[8,15,8,16],[7,5,7,6],[7,7,7,8],[7,9,7,10],[7,11,7,12],[7,13,7,14],[7,15,7,16],[9,5,9,6],[9,7,9,8],[9,9,9,10],[9,11,9,12],[9,13,9,14],[10,8,11,8],[8,17,8,18],[8,19,8,20],[8,21,8,22],[8,23,8,24],[9,15,9,16],[10,14,11,14],[9,17,9,18],[9,19,9,20],[9,21,9,22],[9,23,9,24],[10,9,11,9],[10,10,11,10],[10,11,11,11],[10,12,11,12],[10,13,11,13],[10,1,11,1],[10,2,10,4],[10,5,11,5],[10,6,11,6],[10,7,11,7],[10,21,11,21],[10,22,11,22],[10,23,11,23],[10,24,11,24],[10,15,11,15],[10,16,11,16],[10,17,11,17],[10,18,11,18],[10,19,11,19],[10,20,11,20]]}
["Andere componenten"]
[]
[]
[]
[null,"Aantal uitrustingen te controleren :",null,null,null,1,null,2,null,3,null,4,null,5,null,6,null,7,null,8,null,9,null,10,null,null,"ok"]
[null,"Gegevens van deze uitrusting",null,null,null,null,null,null,null,null,null,null,null,null,null,null,null,null,null,null,null,null,null,null,null,null,"niet ok"]
[null,"Klantreferentie (TAG name, P&ID number)",null,null,null,null,null,null,null,null,null,null,null,null,null,null,null,null,null,null,null,null,null,null,null,null,"niet van toepassing"]
[null,"Merk"]
[null,"Model"]
[null,"Plaats (circuit, verdiep, lokaal)"]
[null,"Controle van het onderhoud","Type van gegevens",null,null,"Resultaat van de controle","Observaties en meetresultaten","Resultaat van de controle","Observaties en meetresultaten","Resultaat van de controle","Observaties en meetresultaten","Resultaat van de controle","Observaties en meetresultaten","Resultaat van de controle","Observaties en meetresultaten","Resultaat van de controle","Observaties en meetresultaten","Resultaat van de controle","Observaties en meetresultaten","Resultaat van de controle","Observaties en meetresultaten","Resultaat van de controle","Observaties en meetresultaten","Resultaat van de controle","Observaties en meetresultaten"]
[]
[null,"Circulatoren (met natlopende rotor)"]
[null,"Controle van de draairichting, trillingen, geluid, lekkage, corrosie of andere schade",null,"x"]
[null,"Centrifugaalcirculatiepompen (in-line, monoblok, …)"]
[null,"Controle van de staat: netheid, corrosie, lekkage, bevestigingen, beschermingsaccessoires",null,"x"]
[null,"Controle van geluid en trillingen",null,"x"]
[null,"Controleren of het stroomverbruik voor elke fase van de pomp op nominale frequentie werd gemeten","x"]
[null,"Indien druk- of debietsmeting aanwezig : de gemeten waarden noteren",null,null,"x"]
[null,"Controle van de opwarming van de motor (snele controle met de hand ® oppassen !)",null,"x"]
[null,"Faseregelaar (indien aanwezig): controle van de afstelling, van de warmteafvoer, indien nodig stofvrij maken",null,"x"]
[null,"Het aanval startcycli/uur controleren (indien startteller aanwezig)",null,null,"x"]

{"sheet":"Expans (2)","index":56,"n_rows":15,"n_cols":32,"rows_kept":15,"cut":false,"hidden":true,"merged":[[10,21,11,21],[10,22,11,22],[10,23,11,23],[10,24,11,24],[10,15,11,15],[10,16,11,16],[10,17,11,17],[10,18,11,18],[10,19,11,19],[10,20,11,20],[10,1,11,1],[10,2,10,4],[10,5,11,5],[10,6,11,6],[10,7,11,7],[10,8,11,8],[8,17,8,18],[8,19,8,20],[8,21,8,22],[8,23,8,24],[9,15,9,16],[10,14,11,14],[9,17,9,18],[9,19,9,20],[9,21,9,22],[9,23,9,24],[10,9,11,9],[10,10,11,10],[10,11,11,11],[10,12,11,12],[10,13,11,13],[9,5,9,6],[9,7,9,8],[9,9,9,10],[9,11,9,12],[9,13,9,14],[7,17,7,18],[7,19,7,20],[7,21,7,22],[7,23,7,24],[8,5,8,6],[8,7,8,8],[8,9,8,10],[8,11,8,12],[8,13,8,14],[8,15,8,16],[7,5,7,6],[7,7,7,8],[7,9,7,10],[7,11,7,12],[7,13,7,14],[7,15,7,16],[6,13,6,14],[6,15,6,16],[6,17,6,18],[6,19,6,20],[6,21,6,22],[6,23,6,24],[5,15,5,16],[5,17,5,18],[5,19,5,20],[5,21,5,22],[5,23,5,24],[6,1,6,4],[6,5,6,6],[6,7,6,8],[6,9,6,10],[6,11,6,12],[4,15,4,16],[4,17,4,18],[4,19,4,20],[4,21,4,22],[4,23,4,24],[5,5,5,6],[5,7,5,8],[5,9,5,10],[5,11,5,12],[5,13,5,14],[4,13,4,14],[4,1,4,4],[4,5,4,6],[4,7,4,8],[4,9,4,10],[4,11,4,12]]}
["Andere componenten"]
[]
[]
[]
[null,"Aantal uitrustingen te controleren :",null,null,null,1,null,2,null,3,null,4,null,5,null,6,null,7,null,8,null,9,null,10,null,null,"ok",null,null,null,null,"Classe de filtre suivant NEN 779:2012"]
[null,"Gegevens van deze uitrusting",null,null,null,null,null,null,null,null,null,null,null,null,null,null,null,null,null,null,null,null,null,null,null,null,"niet ok",null,null,null,null,"G1"]
[null,"Klantreferentie (TAG name, P&ID number)",null,null,null,null,null,null,null,null,null,null,null,null,null,null,null,null,null,null,null,null,null,null,null,null,"niet van toepassing",null,null,null,null,"G2"]
[null,"Merk",null,null,null,null,null,null,null,null,null,null,null,null,null,null,null,null,null,null,null,null,null,null,null,null,null,null,null,null,null,"G3"]
[null,"Model"]
[null,"Plaats (circuit, verdiep, lokaal)"]
[null,"Controle van het onderhoud","Type de contrôle",null,null,"Resultaat van de controle","Observaties en meetresultaten","Resultaat van de controle","Observaties en meetresultaten","Resultaat van de controle","Observaties en meetresultaten","Resultaat van de controle","Observaties en meetresultaten","Resultaat van de controle","Observaties en meetresultaten","Resultaat van de controle","Observaties en meetresultaten","Resultaat van de controle","Observaties en meetresultaten","Resultaat van de controle","Observaties en meetresultaten","Resultaat van de controle","Observaties en meetresultaten","Resultaat van de controle","Observaties en meetresultaten"]
[null,null,null,null,null,null,null,null,null,null,null,null,null,null,null,null,null,null,null,null,null,null,null,null,null,null,null,null,null,null,null,"G4"]
[null,"Algemene controle van het expansiesysteem : corrosie, lekkage, staat, trillingen, staat van het regelingssysteem (indien aanwezig), staat van de compressor (indien aanwezig), staat van de pompen (indien aanwezig)",null,"x",null,null,null,null,null,null,null,null,null,null,null,null,null,null,null,null,null,null,null,null,null,null,null,null,null,null,null,"F7"]
[null,null,null,null,null,null,null,null,null,null,null,null,null,null,null,null,null,null,null,null,null,null,null,null,null,null,null,null,null,null,null,"F8"]
[null,null,null,null,null,null,null,null,null,null,null,null,null,null,null,null,null,null,null,null,null,null,null,null,null,null,null,null,null,null,null,"F9"]

{"sheet":"Filtre (2)","index":57,"n_rows":18,"n_cols":29,"rows_kept":18,"cut":false,"hidden":true,"merged":[[4,13,4,14],[4,1,4,4],[4,5,4,6],[4,7,4,8],[4,9,4,10],[4,11,4,12],[5,5,5,6],[5,7,5,8],[5,9,5,10],[5,11,5,12],[5,13,5,14],[4,15,4,16],[4,17,4,18],[4,19,4,20],[4,21,4,22],[4,23,4,24],[6,1,6,4],[6,5,6,6],[6,7,6,8],[6,9,6,10],[6,11,6,12],[6,23,6,24],[5,15,5,16],[5,17,5,18],[5,19,5,20],[5,21,5,22],[5,23,5,24],[6,13,6,14],[6,15,6,16],[6,17,6,18],[6,19,6,20],[6,21,6,22],[7,17,7,18],[7,19,7,20],[7,21,7,22],[7,23,7,24],[8,5,8,6],[8,7,8,8],[8,9,8,10],[8,11,8,12],[8,13,8,14],[8,15,8,16],[7,5,7,6],[7,7,7,8],[7,9,7,10],[7,11,7,12],[7,13,7,14],[7,15,7,16],[8,17,8,18],[8,19,8,20],[8,21,8,22],[8,23,8,24],[9,5,9,6],[9,7,9,8],[9,9,9,10],[9,11,9,12],[9,13,9,14],[9,15,9,16],[10,5,10,6],[10,7,10,8],[10,9,10,10],[10,11,10,12],[10,13,10,14],[11,8,12,8],[9,17,9,18],[9,19,9,20],[9,21,9,22],[9,23,9,24],[10,15,10,16],[11,14,12,14],[10,17,10,18],[10,19,10,20],[10,21,10,22],[10,23,10,24],[11,9,12,9],[11,10,12,10],[11,11,12,11],[11,12,12,12],[11,13,12,13],[11,1,12,1],[11,2,11,4],[11,5,12,5],[11,6,12,6],[11,7,12,7],[11,21,12,21],[11,22,12,22],[11,23,12,23],[11,24,12,24],[11,15,12,15],[11,16,12,16],[11,17,12,17],[11,18,12,18],[11,19,12,19],[11,20,12,20]]}
["Andere componenten"]
[]
[]
[]
[null,"Aantal uitrustingen te controleren :",null,null,null,1,null,2,null,3,null,4,null,5,null,6,null,7,null,8,null,9,null,10,null,null,"ok",null,"Type de filtre"]
[null,"Gegevens van deze uitrusting",null,null,null,null,null,null,null,null,null,null,null,null,null,null,null,null,null,null,null,null,null,null,null,null,"niet ok",null,"Zandfilter"]
[null,"Klantreferentie (TAG name, P&ID number)",null,null,null,null,null,null,null,null,null,null,null,null,null,null,null,null,null,null,null,null,null,null,null,null,"niet van toepassing",null,"Patroonfilter/zeeffilter"]
[null,"Filtertype",null,null,null,null,null,null,null,null,null,null,null,null,null,null,null,null,null,null,null,null,null,null,null,null,null,null,"Deeltjes/slibasfcheider"]
[null,"Merk",null,null,null,null,null,null,null,null,null,null,null,null,null,null,null,null,null,null,null,null,null,null,null,null,null,null,"Magnetische filter"]
[null,"Model",null,null,null,null,null,null,null,null,null,null,null,null,null,null,null,null,null,null,null,null,null,null,null,null,null,null,"Andere : …"]
[null,"Plaats (circuit, verdiep, lokaal)"]
[null,"Controle van het onderhoud","Type van gegevens",null,null,"Resultaat van de controle","Observaties en meetresultaten","Resultaat van de controle","Observaties en meetresultaten","Resultaat van de controle","Observaties en meetresultaten","Resultaat van de controle","Observaties en meetresultaten","Resultaat van de controle","Observaties en meetresultaten","Resultaat van de controle","Observaties en meetresultaten","Resultaat van de controle","Observaties en meetresultaten","Resultaat van de controle","Observaties en meetresultaten","Resultaat van de controle","Observaties en meetresultaten","Resultaat van de controle","Observaties en meetresultaten"]
[]
[null,"Visuele controle van de filter : corrosie, lekkage, schade",null,"x"]
[null,"Drukverlies meten (indien drukmeters aanwezig zijn)",null,"x",null,null,0,null,0,null,0,null,0,null,0,null,0,null,0,null,0,null,0,null,0]
[null,"Observer le niveau d'encrassement, si celui-ci peut être observé",null,"x"]
[null,"Manuele spui van de \"manuele\" afscheiders, controle van de afzettingen",null,"x"]
[null,"Test van de \"automatische\" afscheiders, controle van de afzettingen",null,"x"]

{"sheet":"Purgeur_air (2)","index":58,"n_rows":16,"n_cols":32,"rows_kept":16,"cut":false,"hidden":true,"merged":[[4,13,4,14],[4,1,4,4],[4,5,4,6],[4,7,4,8],[4,9,4,10],[4,11,4,12],[5,5,5,6],[5,7,5,8],[5,9,5,10],[5,11,5,12],[5,13,5,14],[4,15,4,16],[4,17,4,18],[4,19,4,20],[4,21,4,22],[4,23,4,24],[6,1,6,4],[6,5,6,6],[6,7,6,8],[6,9,6,10],[6,11,6,12],[6,23,6,24],[5,15,5,16],[5,17,5,18],[5,19,5,20],[5,21,5,22],[5,23,5,24],[6,13,6,14],[6,15,6,16],[6,17,6,18],[6,19,6,20],[6,21,6,22],[7,17,7,18],[7,19,7,20],[7,21,7,22],[7,23,7,24],[8,5,8,6],[8,7,8,8],[8,9,8,10],[8,11,8,12],[8,13,8,14],[8,15,8,16],[7,5,7,6],[7,7,7,8],[7,9,7,10],[7,11,7,12],[7,13,7,14],[7,15,7,16],[8,17,8,18],[8,19,8,20],[8,21,8,22],[8,23,8,24],[9,5,9,6],[9,7,9,8],[9,9,9,10],[9,11,9,12],[9,13,9,14],[9,15,9,16],[10,5,10,6],[10,7,10,8],[10,9,10,10],[10,11,10,12],[10,13,10,14],[11,8,12,8],[9,17,9,18],[9,19,9,20],[9,21,9,22],[9,23,9,24],[10,15,10,16],[11,14,12,14],[10,17,10,18],[10,19,10,20],[10,21,10,22],[10,23,10,24],[11,9,12,9],[11,10,12,10],[11,11,12,11],[11,12,12,12],[11,13,12,13],[11,1,12,1],[11,2,11,4],[11,5,12,5],[11,6,12,6],[11,7,12,7],[11,21,12,21],[11,22,12,22],[11,23,12,23],[11,24,12,24],[11,15,12,15],[11,16,12,16],[11,17,12,17],[11,18,12,18],[11,19,12,19],[11,20,12,20]]}
["Andere componenten"]
[]
[]
[]
[null,"Aantal uitrustingen te controleren :",null,null,null,1,null,2,null,3,null,4,null,5,null,6,null,7,null,8,null,9,null,10,null,null,"ok",null,"Type purgeur air",null,null,"Classe de filtre suivant NEN 779:2012"]
[null,"Gegevens van deze uitrusting",null,null,null,null,null,null,null,null,null,null,null,null,null,null,null,null,null,null,null,null,null,null,null,null,"niet ok",null,"manuele ontluchter",null,null,"G1"]
[null,"Klantreferentie (TAG name, P&ID number)",null,null,null,null,null,null,null,null,null,null,null,null,null,null,null,null,null,null,null,null,null,null,null,null,"niet van toepassing",null,"automatische ontluchter",null,null,"G2"]
[null,"Type",null,null,null,null,null,null,null,null,null,null,null,null,null,null,null,null,null,null,null,null,null,null,null,null,null,null,"automatische ontgassingssysteem"]
[null,"Merk",null,null,null,null,null,null,null,null,null,null,null,null,null,null,null,null,null,null,null,null,null,null,null,null,null,null,null,null,null,"G3"]
[null,"Model"]
[null,"Plaats (circuit, verdiep, lokaal)"]
[null,"Controle van het onderhoud","Type van gegevens",null,null,"Resultaat van de controle","Observaties en meetresultaten","Resultaat van de controle","Observaties en meetresultaten","Resultaat van de controle","Observaties en meetresultaten","Resultaat van de controle","Observaties en meetresultaten","Resultaat van de controle","Observaties en meetresultaten","Resultaat van de controle","Observaties en meetresultaten","Resultaat van de controle","Observaties en meetresultaten","Resultaat van de controle","Observaties en meetresultaten","Resultaat van de controle","Observaties en meetresultaten","Resultaat van de controle","Observaties en meetresultaten"]
[null,null,null,null,null,null,null,null,null,null,null,null,null,null,null,null,null,null,null,null,null,null,null,null,null,null,null,null,null,null,null,"G4"]
[null,"Controle van de hoeveelheid lucht in de manuele ontluchter (of microbellenafscheider voorzien van een manuele ontluchter)",null,"x",null,null,null,null,null,null,null,null,null,null,null,null,null,null,null,null,null,null,null,null,null,null,null,null,null,null,null,"F7"]
[null,"Werkingscontrole van de automatische ontluchter (of microbellenafscheider voorzien van een automatische ontluchter)",null,"x",null,null,null,null,null,null,null,null,null,null,null,null,null,null,null,null,null,null,null,null,null,null,null,null,null,null,null,"F8"]
[null,"Automatische vacuümontgassers : vacuümtest, werkingscontrole van een cyclus",null,"x",null,null,null,null,null,null,null,null,null,null,null,null,null,null,null,null,null,null,null,null,null,null,null,null,null,null,null,"F9"]

{"sheet":"stockage_déstockage (2)","index":59,"n_rows":16,"n_cols":32,"rows_kept":16,"cut":false,"hidden":true,"merged":[[7,17,7,18],[7,19,7,20],[7,21,7,22],[7,23,7,24],[7,13,7,14],[7,15,7,16],[8,13,9,13],[8,21,9,21],[8,22,9,22],[8,23,9,23],[8,24,9,24],[8,15,9,15],[8,16,9,16],[8,17,9,17],[8,18,9,18],[8,19,9,19],[8,20,9,20],[8,14,9,14],[8,1,9,1],[8,2,8,4],[8,5,9,5],[8,6,9,6],[8,7,9,7],[8,8,9,8],[7,5,7,6],[7,7,7,8],[7,9,7,10],[7,11,7,12],[8,9,9,9],[8,10,9,10],[8,11,9,11],[8,12,9,12],[6,13,6,14],[6,15,6,16],[6,17,6,18],[6,19,6,20],[6,21,6,22],[6,23,6,24],[5,15,5,16],[5,17,5,18],[5,19,5,20],[5,21,5,22],[5,23,5,24],[6,1,6,4],[6,5,6,6],[6,7,6,8],[6,9,6,10],[6,11,6,12],[4,15,4,16],[4,17,4,18],[4,19,4,20],[4,21,4,22],[4,23,4,24],[5,5,5,6],[5,7,5,8],[5,9,5,10],[5,11,5,12],[5,13,5,14],[4,13,4,14],[4,1,4,4],[4,5,4,6],[4,7,4,8],[4,9,4,10],[4,11,4,12]]}
["Andere componenten"]
[]
[]
[]
[null,"Aantal uitrustingen te controleren :",null,null,null,1,null,2,null,3,null,4,null,5,null,6,null,7,null,8,null,9,null,10,null,null,"ok"]
[null,"Gegevens van deze uitrusting",null,null,null,null,null,null,null,null,null,null,null,null,null,null,null,null,null,null,null,null,null,null,null,null,"niet ok"]
[null,"Klantreferentie (TAG name, P&ID number)",null,null,null,null,null,null,null,null,null,null,null,null,null,null,null,null,null,null,null,null,null,null,null,null,"niet van toepassing"]
[null,"Plaats (circuit, verdiep, lokaal)"]
[null,"Controle van het onderhoud","Type van gegevens",null,null,"Resultaat van de controle","Observaties en meetresultaten","Resultaat van de controle","Observaties en meetresultaten","Resultaat van de controle","Observaties en meetresultaten","Resultaat van de controle","Observaties en meetresultaten","Resultaat van de controle","Observaties en meetresultaten","Resultaat van de controle","Observaties en meetresultaten","Resultaat van de controle","Observaties en meetresultaten","Resultaat van de controle","Observaties en meetresultaten","Resultaat van de controle","Observaties en meetresultaten","Resultaat van de controle","Observaties en meetresultaten"]
[]
[null,"Visuele controle van de staat van de faseveranderingsmaterialen",null,"x"]
[]
[null,null,null,null,null,null,null,null,null,null,null,null,null,null,null,null,null,null,null,null,null,null,null,null,null,null,null,null,null,null,null,"G4"]
[null,null,null,null,null,null,null,null,null,null,null,null,null,null,null,null,null,null,null,null,null,null,null,null,null,null,null,null,null,null,null,"F7"]
[null,null,null,null,null,null,null,null,null,null,null,null,null,null,null,null,null,null,null,null,null,null,null,null,null,null,null,null,null,null,null,"F8"]
[null,null,null,null,null,null,null,null,null,null,null,null,null,null,null,null,null,null,null,null,null,null,null,null,null,null,null,null,null,null,null,"F9"]

{"sheet":"Permis_environnement (2)","index":60,"n_rows":37,"n_cols":17,"rows_kept":37,"cut":false,"hidden":true,"merged":[[8,5,12,5],[28,3,28,4],[31,5,34,5],[36,1,36,3]]}
[]
[]
[]
[null,"Milieuvergunning bestaande installaties"]
[null,null,null,null,null,null,null,null,"ja"]
[null,null,"Vragen","Antwoorden",null,"Nuttige informatie",null,null,"nee"]
[null,"1. Milieuvergunning",null,null,null,null,null,null,"ok"]
[null,null,"Referentie van de milieuvergunning",null,null,null,null,null,"niet ok"]
[null,null,"Identificatieplaat aanwezig",null,null,"De gegevens van punten 3 tot 6 moeten in de register zich bevinden",null,null,"niet van toepassing"]
[null,"2. Test documenten"]
[null,null,"Register aanwezig en bijgewerkt gebleven"]
[null,null,"Conformiteitscertificaat"]
[null,null,"Dichteitsattest bij de indienststelling"]
[null,null,"Laatste dichtheidstest: resultaat + datum (deze test moet door een geregistreerde bedrijf uitgevoerd worden)",null,"../../.."]
[null,"3. Indienstelling"]
[null,null,"Datum","../../.."]
[null,null,"Indien HCFK aanwezig : bewijs (kopie van een factuur …)"]
[null,null,"(voor of na 31/12/1999)"]
[null,"4. Elektrisch vermogen"]
[null,null,"Elektrisch vermogen per circuit",null,"kW","Totaal elektrisch vermogen van de compressoren op hetzelfde circuit"]
[null,"5. Koelmiddel"]
[null,"Type :","HCFK (R22, R124, 401A,R402A, R408A, R409A, …)",null,null,"Naam van de koelmiddel opschrijven"]
[null,null,"HFK (R134A, R143A, R404A, R407C, R410A,…)"]
[null,null,"HK (Propane (R290), Butane (R600), …)"]
[null,null,"NH3 (R717)"]
[null,null,"CO2"]
[null,null,"Hoeveelheid",null,"kg","Naam en registratienummer op internet controleren"]
[null,"6. Koeltechnisch bedrijf","Indien de koelmiddel een HCFK of een HFK, naam en registratienummer van het koeltechnisch bedrijf hier opschrijven",null,null,"Indien HCFK aanwezig is(R22, …), moet de exploitant dit aan de BIM met een specifieke formulier meedelen"]
[null,null,"Naam",{"$f":"IF(batiment_admin!C53<>\"\",batiment_admin!C53,\"\")","v":""},null,null,null,null,null,null,null,null,null,null,null,{"$f":"D29","v":""},"pour ajuster la hauteur de la ligne"]
[null,null,"Registratienummer",{"$f":"IF(batiment_admin!C54<>\"\",batiment_admin!C54,\"\")","v":""}]
[null,"7. Machineruimte"]
[null,null,"Ketels, luchtcompressoren, warmtegeneratoren, pulsiegroepen, verbrandingsmotoren … aanwezig dichtbij de koelinstallaties ?",null,null," "]
[null,null,"Indien het elektrisch vermogen > 100 kW is : machineruimte beschikt over een hoge en lage ventilatie"]
[null,null,"In de nabijheid van een koelmachine met een elektrisch vermogen > 100 kW moet een informatiepaneel geplaatst worden met de volgende gegevens : contactgegevens van de onderhoudsfirma en instructies over de wijze waarop de koelinstallaties in of buiten bedrijf kunnen worden gesteld"]
[]
[null,"Commentaar met betrekking tot de exploitatievoorwaarden voor deze koelinstallaties:"]
[null,null,null,null,null,null,null,null,null,null,null,null,null,null,{"$f":"B37","v":0}]

{"sheet":"Recommandations (2)","index":61,"n_rows":105,"n_cols":7,"rows_kept":105,"cut":false,"hidden":true,"merged":[[7,2,7,3]]}
[]
[]
[]
[null,null,"Aanbevelingen"]
[]
[null,null,null,null,null,"ja"]
[null,null,"Algemene aanbevelingen",null,null,"nee"]
[null,null,null,null,null,null,{"$f":"C8","v":0}]
[]
[null,null,"Volgende aanbevelingen toe te voegen aan het eindverslag :"]
[]
[null,null,"1 Vermindering van het opwarmingsrisico en van de koelbehoeften"]
[]
[null,null,"1.1 Vermindering van de interne warmtetoevoer"]
[]
[null,null,"De keuze van efficiënte elektrische uitrustingen aanmoedigen: iedere elektrische uitrusting ontwikkelt warmte. De keuze van computers, motoren, fotokopieerapparaten, elektrische huishoudtoestellen enz. is dus zeer belangrijk om de opwarming te beperken."]
[null,null,"Een doordacht verlichtingsbeheer voeren: keuze van gloeilampen of TL-buizen met laag energieverbruik, automatisch doven van de verlichting, keuze tussen algemene verlichting van een kantoor of verlichting van de werkpost, rekening houden met het daglicht ..."]
[null,null," Nous vous recommandons d’isoler toutes les conduites et les accessoires, afin d’éviter des transferts de chaleur entre le circuit de chauffage et le circuit de refroidissement, d’éviter un transfert de chaleur en un endroit inadéquat, prévenir des problèmes de condensation … "]
[]
[null,null,"1.2 Vermindering van de warmtetoevoer van buiten af"]
[]
[null,null,"geklimatiseerde lokalen die zich aan de zuid-, de oost- of de westkant bevinden en niet van zonweringen voorzien zijn, kan het interessant zijn zonweringen aan de buitenkant te installeren, de ruiten te vervangen door ruiten in weerkaatsend glas, een weerkaatsende film op de ruiten aan te brengen of natuurlijke beschaduwing te bevorderen (groenbedekking, aanwezigheid van bomen, ...)."]
[null,null,"Om rekening te houden met de combinatie van externe en interne factoren, is het raadzaam lokalen die een aanzienlijke warmtebron (computerlokalen, vergaderzalen) zijn, aan de noordzijde in te richten."]
[]
[null,null,"2 De ventilatie verbeteren"]
[]
[null,null,"2.1 Free cooling nastreven"]
[]
[null,null,"Als het gebouw een zekere thermische inertie heeft: het gebouw 's nachts ventileren in de zomer (100% verse lucht), voor het gebruik, om het \"voor te koelen\" (wanneer de buitentemperatuur lager is dan de temperatuur in de lokalen)."]
[null,null,"De regeling van de mengschuiven zodanig aanpassen dat zij aan verseluchtzijde 100% openen wanneer de buitentemperatuur lager is dan de ingestelde kamertemperatuur en in bepaalde zones koude gevraagd wordt."]
[]
[]
[null,null,"2.2 Het luchtverdeelnet verbeteren"]
[]
[null,null,"Lekken in het luchtverdeelnet herstellen."]
[null,null,"Wij raden aan de kokers en luchtkanalen die zich niet in het beschermd volume bevinden, te isoleren."]
[null,null,"Het net uitbalanceren als bepaalde lokalen niet correct geventileerd worden (te veel of te weinig ventilatie)."]
[null,null,"De opstelling en het type van de luchtopeningen wijzigen om het rendement van de klimaatregelingsinstallaties te verhogen: als de ingeblazen lucht rechtstreeks aangezogen of slecht verdeeld wordt, kan de installatie de lucht niet doeltreffend mengen, wat gevolgen heeft voor het binnenklimaat en het energieverbruik."]
[null,null," De leidingverliezen van het net verminderen (gladde, progressief divergerende leidingen, schoepen in de bochtstukken, ...) indien de verhouding tussen het samengevoegd vermogen van de aanzuig- en inblaasventilatoren en het (gemeenschappelijk) getransporteerde luchtdebiet hoger is dan 1,1 W/(m³/u)."]
[null,null," "]
[]
[null,null,"2.3 Beheer van het verseluchtdebiet en regeling van het recirculatiepercentage"]
[]
[null,null,"Behoudens een uitzonderlijke behoefte, de ventilatie uitschakelen tijdens het gebruik van de lokalen (uitgezonderd eventueel 's nachts en tijdens warme periodes in de zomer)."]
[null,null,"De verseluchtaanvoer tot het aanbevolen hygiënisch debiet beperken door het vermogen van de ventilator van de installatie aan te passen (op een lagere snelheid instellen, de diameters van de riemschijven van de motor en de ventilator aanpassen, ...)"]
[null,null,"Het sanitair aanzuigingsdebiet beperken buiten de gebruiksperiodes."]
[null,null,"Opteren voor een regeling met variabele snelheid van de ventilator in plaats van een regeling met een smoorsysteem."]
[null,null,"In geval van luchtrecirculatie in de installatie: vervang de manuele luchtmengschuif door een automatische schuif die een modulatie van 100% verse lucht tot 100% gerecirculeerde lucht toelaat. Met de regeling van het binnenklimaat door middel van luchtrecirculatie kan men het energieverbruik verlagen en bijgevolg energie besparen."]
[null,null,"Overweeg, voor lokalen met variabele bezettingsgraad, het verseluchtdebiet te regelen op basis van de bezettingsgraad of van een meting van de luchtkwaliteit."]
[null,null,"Indien de ventilatoren van het type \"met naar voor gerichte schoepen\" zijn en de schoepen niet in de vorm van een vliegtuigvleugel geprofileerd zijn, vervang deze ventilatoren dan door ventilatoren met naar achter gerichte schoepen (// in de draairichting)."]
[]
[null,null,"2.4 Warmteterugwinning"]
[null,null,"In de huidige configuratie van de inblaas- en aanzuiggroepen kan het interessant zijn de plaatsing te overwegen van een systeem dat de warmte van de aangezogen lucht terugwint."]
[]
[null,null,"3 De koelinstallatie verbeteren"]
[null,null,"3.1 De omgeving van de koelinstallaties verbeteren"]
[]
[null,null,"De omgeving van de koelmachines, de condensors en/of de koeltorens vrijmaken (om de toevoer van verse lucht te verbeteren)."]
[null,null,"De luchtcondensors in de schaduw plaatsen of ze omgeven met een lichtgekleurd oppervlak (witte kiezel is beter dan zwarte roofing)."]
[]
[null,null,"3.2 Aanpassingen van de regeling van de koudeproductie"]
[]
[null,null,"Voorzien in een tijdsregeling voor de koelinstallatie: de productie van koelwater onderbreken buiten de gebruiksuren ('s nachts, weekend, ...) als er dan geen koelbehoeften zijn."]
[null,null,"De productie van koelwater in de winter uitschakelen als er geen koelbehoeften zijn."]
[null,null,"De herinschakeling van de koelinstallatie vertragen op basis van een meting van de buitentemperatuur (bijvoorbeeld wanneer die lager is dan 13 °C). Dit systeem verhindert de inschakeling van een koelmachine of van een tweede compressor wanneer zich in de lokalen een tijdelijke temperatuurpiek heeft voorgedaan, bijvoorbeeld in het tussenseizoen."]
[null,null,"Wanneer de temperatuursensor zich in de volle zon of op een weinig representatieve plaats bevindt, verplaats hem dan om een betrouwbare meting te verkrijgen."]
[null,null,"Als de koelmachine uitgerust is met een regelsysteem door injectie van warme gassen, probeer dit systeem dan in de mate van het mogelijke buiten werking te stellen."]
[null,null,"De voeding van de weerstanden van de compressorcarters in de winter uitschakelen (enkele uren laten voorverwarmen voor ze opnieuw wordt ingeschakeld!)."]
[null,null,"De mogelijkheid onderzoeken om de inschakeldrempel van het hogedruksysteem van de compressor te verhogen."]
[null,null,"Bij vervanging van het thermostatische expansieventiel, proberen de koelmachine uit te rusten met een digitale regeling met elektronisch expansieventiel."]
[null,null,"De diverse vermogenstrappen regelen om een cascadewerking te verkrijgen."]
[null,null,"De cascaderegeling van de compressoren verbeteren: de drempels wijzigen, vertragen, van type regelaar veranderen, ..."]
[null,null,"De verdampingstemperatuur en bijgevolg de temperatuur van het koelwater verhogen om de ontvochtiging in de koudebatterij van de luchtbehandelingsgroep te beperken als ontvochtiging niet vereist is (bijvoorbeeld in het tussenseizoen)."]
[null,null,"De temperatuur van de verdamper aanpassen aan de werkelijke behoeften van het gebouw (bv. een hogere begintemperatuur in de winter dan in de zomer).é)"]
[null,null,"De mogelijkheid onderzoeken om de regeling van het omschakelpunt in functie van de vraag te automatiseren."]
[null,null,"Kies bij een vervanging van de compressor een compressor met variabele snelheid (Inverter). De investering is duurder, maar biedt een aantrekkelijk rendement."]
[null,null,"De machines uitrusten met een opteller en bedrijfsurenteller voor de compressoren."]
[null,null,"De werking van de ventilatoren van de luchtcondensor of de koeltoren aansturen met een cascaderegeling of een snelheidsregelaar."]
[]
[null,null,"3.3 Aanpassingen van de technische installaties voor koudeproductie"]
[]
[null,null,"Een lokaal koudeproductiesysteem installeren in een zone waar koeling nodig is, terwijl in de andere zones een warmtevraag heerst ."]
[null,null,"Bij koelbehoeften in de winter: rust het koelsysteem uit met een free-chilling installatie (= bypass van de koelmachine) om gedeeltelijk  in deze behoeften te voorzien."]
[null,null,"De condensor van een koelwatermachine uitrusten met een warmteterugwinningssysteem (warmtewisselaar bij de uitgang van de compressor voor het voorverwarmen van het sanitair water, de warmte van de condensor voor de luchtverwarming van het gebouw, ...) als er warmtebehoeften bij lage temperatuur bestaan en als de koelmachine in de winter functioneert."]
[null,null,"Als de koelinstallatie R22 of R12 als koelmiddel gebruikt en minder dan 10 jaar oud is, bij de fabrikant navraag doen of er een \"upgrade\" is naar een toegestaan koelmiddel. Als dat mogelijk is, de \"upgrade\" van de machine voorbereiden door te onderzoeken of de prestaties nog voldoening schenken (bijvoorbeeld verlaging van het rendement als R407 wordt gebruikt). Indien de machine meer dan 10 jaar oud is en/of een \"upgrade\" niet mogelijk is, de vervanging van de machine tegen 2015 voorbereiden door de werkelijke behoeften van de installatie te analyseren. Een eventuele vervanging is een gelegenheid om het algemeen concept van de installatie voor koudeproductie te wijzigen (bijvoorbeeld met terugwinning op de condensor of combinatie met een free-chilling systeem)."]
[null,null,"Indien de koelinstallatie ouder dan 20 jaar is en/of niet de kenmerken van een performante machine bezit (opsplitsing van het vermogen van de compressor in diverse trappen of compressor met schuifschroef of met frequentieregelaar, aanwezigheid van een digitale regeling, goede algemene toestand van de schoepen van de warmtewisselaars, van de elektrische componenten, geen algemene corrosie, olievlekken op de grond, aanzienlijke trillingen, ...): in haar vervanging voorzien."]
[null,null,"Een wateronthardingssysteem (en een eventuele installatie voor de dosering van biociden of ontkalkings-/corrosiewerende producten) op het condensatiecircuit installeren als het gaat om een koelinstallatie voorzien van een watercondensor met open toren."]
[null,null,"Een automatisch deconcentratiesysteem gebaseerd op de meting van de geleidbaarheid op het koeltorencircuit installeren."]
[]
[null,null,"3.4 Aanpassingen van het systeem voor koudedistributie"]
[]
[null,null,"Alle leidingen en accessoires isoleren\nMet voorrang te isoleren leidingen:\n- aanzuigleiding van de compressor\n- leidingen die kunnen bevriezen\n- leidingen voor verwarming, koelwater, sanitair warm water en verluchtingskokers die zich niet in het beschermd volume bevinden\n- dicht bij elkaar gelegen verwarmings- en koelwaterleidingen."]
[null,null,"Alle leidingen en accessoires isoleren om warmteoverdracht tussen het verwarmingscircuit en het koelcircuit te vermijden, warmteoverdracht op een ongeschikte plaats te vermijden, condensatieproblemen te voorkomen, ..."]
[null,null,"De inschakeldrempels van de koel-, verwarmings-, bevochtigings-, ontvochtigingsinstallaties aanpassen. In een \"neutrale\" zone voorzien."]
[null,null,"Het ontvochtigingspeil beperken tot 60% RV (in plaats van 50%) + een neutrale zone creëren tussen de ingestelde waarden voor bevochtiging en ontvochtiging."]
[null,null,"De omschakelpunten van de diverse circuits analyseren en ze zo hoog mogelijk instellen. Op die manier kan men minder koud koelwater (verkregen door het omschakelpunt van de verdamper te verhogen of met behulp van een mengventiel) gebruiken en dus de warmteverliezen tijdens het transport verlagen. Het productiesysteem kan bovendien zijn eigen omschakelpunt verhogen, wat de energiebesparing ten goede komt."]
[null,null,"De temperatuur van het water in elk circuit door middel van driewegventielen aanpassen aan de behoeften van de diverse zones."]
[null,null,"De koelwatercirculatie onderbreken buiten de gebruiksuren ('s nachts, weekend, ...) als er geen koelingsbehoefte is."]
[null,null,"De koelwatercirculatie in de winter uitschakelen of beperken (bijvoorbeeld: 1 u/dag) in zones waar tijdens deze periode geen koelingsbehoefte bestaat."]
[null,null,"De circulatiepomp vervangen of aanpassen zodanig dat regeling door verandering van de snelheid mogelijk is als de eindapparaten van het type met variabel debiet zijn (bv. tweewegventielen in ventilo-convectoren)."]
[null,null,"Het vertrek van de diverse circuits met balanskleppen uitrusten en het net uitbalanceren als er geen kleppen zijn en de distributie niet correct gebeurt (slecht gekoelde lokalen)."]
[null,null,"Het circuit is uitgerust met balanskleppen maar de distributie gebeurt niet correct. Wij bevelen dan aan het circuit uit te balanceren."]
[null,null,"Afsluitkleppen installeren of de uitschakeling van de pompen van elke koelmachine regelen (afhankelijk van het type van hydraulisch schema) om warmteoverdracht in de uitgeschakelde machine te vermijden."]
[null,null,"Een buffervat op het koelwatercircuit plaatsen om de inertie van het koelwatercircuit te verhogen en het aantal startcycli van de koelinstallaties te verlagen."]
[null,null,"De kwaliteit van het water van het circuit verhogen: op basis van analyses een behandelingsproduct in brengen, de lage punten van het circuit ontluchten, een deeltjesafscheider plaatsen, ..."]

{"sheet":"Annexe_rapport_1 (2)","index":62,"n_rows":3,"n_cols":4,"rows_kept":3,"cut":false,"hidden":true,"merged":[[0,0,0,3]]}
["Bijlage 1  Controle van het minimum programma voor het onderhoud\nonvoldoende punten:"]
["Type uitrusting","Referentienr.","controles waar het resultaat werd als \"onvoldoend\" geacht","Observaties en meetresultaten"]
[null,null," /"]